{"text_format":"1","workbook":"xlsx","n_sheets":4,"sheets":["はじめに","入力シート","出力シート（タイムライン）","出力シート（避難確保計画）"],"not_rendered":{"charts":0,"images":2,"macros":1,"external_links":0,"defined_names":5,"comments":0,"pivot_tables":0},"unopened":[],"bounds":{"document_bytes":16777216,"sheet_cells":100000,"rows_first":2000,"rows_last":500,"rows_between":2000,"halvings":0,"cell_chars":16384,"cell_head_chars":4096},"cells_cut":0,"cells_raw":0,"read":"whole","date_system":"1900"}

{"sheet":"はじめに","index":0,"n_rows":5,"n_cols":2,"rows_kept":5,"cut":false,"hidden":false,"merged":[]}
[]
[null,"はじめに"]
[]
[]
[null,"〇本シートは、避難確保計画及び避難行動タイムラインを簡易に作成することを目的としたものです。このため、出力シート上に作成される計画内容は、必ずしも施設の状況を反映したものとはなりません。適切な計画を作成するため、シート上に作成された計画内容を十分確認し、施設に合った内容に修正してください。\n\n〇「例、補足説明」及び「入力のためのヒント」欄を参考に入力を進めてください。\n\n〇シートの性質上、文字がつぶれたりする場合がありますので、その場合は適宜エクセルシートの大きさを変えるなどで表示内容を調整してください。\n\n〇右隣の  「入力シート」　　をクリックして、入力を進めて下さい。"]

{"sheet":"入力シート","index":1,"n_rows":416,"n_cols":26,"rows_kept":416,"cut":false,"hidden":false,"merged":[[306,20,308,20],[252,1,252,6],[251,1,251,6],[248,1,248,6],[245,1,245,6],[248,13,248,14],[384,20,390,20],[266,1,268,18],[264,0,264,11],[259,1,259,6],[259,7,259,12],[259,13,259,14],[259,15,259,19],[260,1,260,6],[260,7,260,12],[260,13,260,14],[260,15,260,19],[261,1,261,6],[261,7,261,12],[261,13,261,14],[261,15,261,19],[281,20,283,20],[270,0,270,20],[353,13,353,15],[274,13,274,15],[243,1,243,6],[243,7,243,12],[243,13,243,14],[243,15,243,19],[244,1,244,6],[244,7,244,12],[244,15,244,19],[252,15,252,19],[253,1,253,6],[253,7,253,12],[253,13,253,14],[253,15,253,19],[246,1,246,6],[246,7,246,12],[246,13,246,14],[246,15,246,19],[249,1,249,6],[249,7,249,12],[249,13,249,14],[249,15,249,19],[250,1,250,6],[252,7,252,12],[252,13,252,14],[238,1,238,6],[238,7,238,12],[239,1,239,6],[239,7,239,12],[239,13,239,14],[239,15,239,19],[242,1,242,6],[242,7,242,12],[242,13,242,14],[242,15,242,19],[241,1,241,6],[241,7,241,12],[241,13,241,14],[241,15,241,19],[236,1,236,6],[248,7,248,12],[251,7,251,12],[227,15,227,19],[228,7,228,12],[228,13,228,14],[228,15,228,19],[231,15,231,19],[232,13,232,14],[233,13,233,14],[233,15,233,19],[240,7,240,12],[240,13,240,14],[240,15,240,19],[236,7,236,12],[236,13,236,14],[236,15,236,19],[245,7,245,12],[237,1,237,6],[237,7,237,12],[237,13,237,14],[229,15,229,19],[238,13,238,14],[238,15,238,19],[234,7,234,12],[234,13,234,14],[234,15,234,19],[248,15,248,19],[244,13,244,14],[237,15,237,19],[251,13,251,14],[251,15,251,19],[250,7,250,12],[250,13,250,14],[250,15,250,19],[245,13,245,14],[245,15,245,19],[284,13,284,15],[317,12,318,18],[337,13,337,15],[309,13,309,15],[286,16,286,17],[305,16,305,17],[307,16,307,17],[320,0,320,18],[282,16,282,17],[284,16,284,17],[326,16,326,17],[322,16,322,17],[335,16,335,17],[335,13,335,15],[333,0,333,18],[335,1,335,10],[337,1,337,10],[337,16,337,17],[262,1,262,6],[227,13,227,14],[330,1,330,10],[339,1,339,10],[339,12,340,18],[330,12,331,18],[342,0,342,18],[311,13,311,15],[313,13,313,15],[315,13,315,15],[328,13,328,15],[328,1,328,10],[322,1,322,10],[274,16,274,17],[301,1,301,10],[303,1,303,10],[305,1,305,10],[324,13,324,15],[326,13,326,15],[290,16,290,17],[309,16,309,17],[311,16,311,17],[313,16,313,17],[307,1,307,10],[47,14,47,15],[45,0,45,14],[262,15,262,19],[47,1,47,10],[55,14,55,15],[53,12,53,13],[53,14,53,15],[57,12,57,13],[57,14,57,15],[61,0,61,18],[83,1,83,10],[79,0,79,10],[85,0,85,10],[81,1,81,10],[51,1,51,10],[91,0,91,10],[117,1,121,3],[135,1,135,10],[135,12,135,18],[197,16,197,17],[157,12,157,13],[258,7,258,12],[258,13,258,14],[129,1,129,18],[216,1,216,6],[255,1,255,6],[16,23,22,23],[28,23,31,23],[33,23,35,23],[18,16,18,17],[22,16,22,17],[103,0,103,18],[109,1,115,3],[22,14,22,15],[49,14,49,15],[51,12,51,13],[65,12,65,13],[65,14,65,15],[65,16,65,17],[55,12,55,13],[101,12,101,18],[29,1,29,2],[29,3,29,5],[29,6,29,11],[35,5,35,10],[37,5,37,10],[29,12,29,15],[29,16,29,20],[53,1,53,10],[119,11,119,19],[131,0,131,19],[133,0,133,18],[151,0,151,18],[254,13,254,14],[254,15,254,19],[255,7,255,12],[255,13,255,14],[255,15,255,19],[216,13,216,14],[217,13,217,14],[216,7,216,12],[218,7,218,12],[219,7,219,12],[220,7,220,12],[221,7,221,12],[218,13,218,14],[219,13,219,14],[220,13,220,14],[221,13,221,14],[217,7,217,12],[137,12,137,18],[183,0,183,13],[203,1,203,14],[141,1,141,10],[127,2,127,4],[49,1,49,10],[59,1,59,10],[59,12,59,13],[59,14,59,15],[81,12,81,18],[83,12,83,18],[89,12,89,18],[87,12,87,18],[93,1,93,9],[93,12,93,18],[105,0,105,11],[115,11,115,19],[117,11,117,19],[109,5,109,9],[111,5,111,9],[113,5,113,9],[115,5,115,9],[117,5,117,9],[63,0,63,15],[65,1,65,10],[67,0,67,10],[175,1,175,10],[141,12,141,13],[169,0,169,12],[167,1,167,10],[191,1,191,14],[175,12,175,18],[185,16,185,17],[171,1,171,10],[173,1,173,10],[179,1,179,10],[179,12,179,18],[185,1,185,14],[181,0,181,19],[147,1,147,10],[8,12,8,18],[75,12,75,18],[47,16,47,17],[51,14,51,15],[49,12,49,13],[193,16,193,17],[173,12,173,13],[159,12,159,13],[127,5,127,14],[123,0,123,11],[137,1,137,10],[139,1,139,10],[125,1,125,18],[89,1,89,9],[55,1,55,10],[47,12,47,13],[33,5,33,10],[107,5,107,9],[95,1,95,9],[95,12,95,18],[97,0,97,10],[99,1,99,9],[99,12,99,18],[101,1,101,9],[10,1,10,10],[28,1,28,20],[147,16,147,17],[149,12,149,13],[147,12,147,13],[189,1,189,14],[153,1,153,10],[155,1,155,10],[157,1,157,10],[159,1,159,10],[161,1,161,10],[163,1,163,10],[165,16,165,17],[167,12,167,13],[77,1,77,10],[107,1,107,3],[107,11,107,19],[16,1,16,10],[16,16,16,17],[177,0,177,12],[20,14,20,18],[109,11,109,19],[111,11,111,19],[113,11,113,19],[234,1,234,6],[280,16,280,17],[221,15,221,19],[307,13,307,15],[286,13,286,15],[288,13,288,15],[290,13,290,15],[223,1,223,6],[223,7,223,12],[223,13,223,14],[224,7,224,12],[224,13,224,14],[224,1,224,6],[257,7,257,12],[225,1,225,6],[226,1,226,6],[229,1,229,6],[227,1,227,6],[228,1,228,6],[240,1,240,6],[272,0,272,11],[258,1,258,6],[262,7,262,12],[262,13,262,14],[226,7,226,12],[226,13,226,14],[226,15,226,19],[210,0,210,11],[187,1,187,14],[191,16,191,17],[257,15,257,19],[324,1,324,10],[326,1,326,10],[193,1,193,14],[195,1,195,14],[197,1,197,14],[199,1,199,14],[201,1,201,14],[212,1,212,10],[257,13,257,14],[257,1,257,6],[254,1,254,6],[225,7,225,12],[225,13,225,14],[227,7,227,12],[254,7,254,12],[229,7,229,12],[229,13,229,14],[276,1,276,10],[276,16,276,17],[292,12,293,18],[301,16,301,17],[301,13,301,15],[303,13,303,15],[288,16,288,17],[315,16,315,17],[274,1,274,10],[280,1,280,10],[282,1,282,10],[284,1,284,10],[278,16,278,17],[286,1,286,10],[288,1,288,10],[303,16,303,17],[305,13,305,15],[276,13,276,15],[295,0,295,18],[297,1,297,10],[299,1,299,10],[278,13,278,15],[280,13,280,15],[282,13,282,15],[379,12,379,13],[371,0,371,19],[368,12,369,18],[375,12,375,13],[377,12,377,13],[373,0,373,18],[375,1,375,10],[377,1,377,10],[379,1,379,10],[368,1,368,10],[365,0,365,16],[357,1,357,10],[353,1,353,10],[355,1,355,10],[355,16,355,17],[346,12,347,18],[322,13,322,15],[328,16,328,17],[351,16,351,17],[344,16,344,17],[349,0,349,16],[351,13,351,15],[344,13,344,15],[344,1,344,10],[346,1,346,10],[351,1,351,10],[362,12,363,18],[355,13,355,15],[39,5,39,10],[353,16,353,17],[360,0,360,16],[362,1,362,10],[290,1,290,10],[292,1,292,10],[357,12,358,18],[49,23,57,23],[64,23,66,23],[73,23,77,23],[79,23,81,23],[82,23,85,23],[73,0,73,10],[75,1,75,10],[278,1,278,10],[309,1,309,10],[311,1,311,10],[313,1,313,10],[315,1,315,10],[317,1,317,10],[87,1,87,9],[149,1,149,10],[77,12,77,18],[143,1,143,10],[2,20,2,21],[71,0,71,21],[2,1,2,10],[4,0,4,18],[24,12,24,13],[24,14,24,15],[24,16,24,17],[2,12,2,18],[57,1,57,10],[69,1,69,10],[22,1,22,10],[24,1,24,10],[41,5,41,10],[6,1,6,10],[10,12,10,18],[12,0,12,18],[8,1,8,10],[16,12,16,13],[16,14,16,15],[18,12,18,13],[18,14,18,15],[22,12,22,13],[20,1,20,10],[18,1,18,10],[375,25,379,25],[134,23,140,23],[153,23,158,23],[185,23,190,23],[274,23,278,23],[87,23,89,23],[109,23,111,23],[171,23,175,23],[179,23,181,23],[203,23,207,23],[266,23,267,23],[93,23,95,23],[99,23,101,23],[123,23,129,23],[16,25,22,25],[28,25,31,25],[125,25,127,25],[135,25,137,25],[218,25,219,25],[274,25,278,25],[119,5,119,9],[121,5,121,9],[231,13,231,14],[258,15,258,19],[153,12,153,18],[155,12,155,18],[127,15,127,16],[127,17,127,19],[230,7,230,12],[231,7,231,12],[232,7,232,12],[233,7,233,12],[232,15,232,19],[230,13,230,14],[187,16,187,17],[189,16,189,17],[165,12,165,13],[121,11,121,19],[224,15,224,19],[225,15,225,19],[216,15,216,19],[217,15,217,19],[218,15,218,19],[219,15,219,19],[220,15,220,19],[106,20,108,20],[223,15,223,19],[208,0,208,19],[214,0,214,11],[163,16,163,17],[195,16,195,17],[206,16,206,17],[199,16,199,17],[143,16,143,17],[145,16,145,17],[161,16,161,17],[145,1,145,10],[201,16,201,17],[203,16,203,17],[139,12,139,13],[171,12,171,18],[165,1,165,10],[384,23,389,23],[189,20,195,20],[197,20,199,20],[217,23,222,23],[216,0,221,0],[222,1,222,19],[235,1,235,19],[247,1,247,19],[256,1,256,19],[217,20,219,20],[212,12,212,13],[217,1,217,6],[218,1,218,6],[219,1,219,6],[220,1,220,6],[221,1,221,6],[230,1,230,6],[231,1,231,6],[232,1,232,6],[233,1,233,6],[230,15,230,19],[363,1,363,10],[382,0,382,21],[324,16,324,17]]}
["入力用シート（避難確保計画・避難行動タイムライン）"]
[]
[null,"入力する項目",null,null,null,null,null,null,null,null,null,null,"入　力",null,null,null,null,null,null,null,"例、補足説明",null,null,"入力のためのヒント",null,"避難確保計画\n解説編参照箇所"]
[]
["反映先：表紙、他"]
[]
["　","計画作成年月日",null,null,null,null,null,null,null,null,null,null,null,"年",null,"月"]
[]
["　","施設名"]
[]
["　","対象となる災害（3つの中から選択してください）",null,null,null,null,null,null,null,null,null,null,null,null,null,null,null,null,null,null,"浸水害／土砂災害／両方"]
[]
["反映先：避難確保計画 (様式１）"]
[]
["【1】　施設の収容人数の状況"]
[]
[null,"平日 昼間",null,null,null,null,null,null,null,null,null,null,"利用者",null,null,null,"名　施設職員",null,null,"名",null,null,null,"時間帯毎の施設職員数、利用者数を記入します。\n休日の体制が平日とは異なる場合は「休日設定の有無」で「平日と異なる」を選択して下さい。",null,"第１章1.2(3)(4)\n施設利用者（要配慮者）の把握、施設職員の把握"]
[]
[null,"平日 夜間",null,null,null,null,null,null,null,null,null,null,"利用者",null,null,null,"名　施設職員",null,null,"名"]
[]
[null,"休日設定の有無",null,null,null,null,null,null,null,null,null,null,null,null,"平日と同じ",null,null,null,null,null,"平日と同じ／平日と異なる"]
[]
[null,"休日 昼間",null,null,null,null,null,null,null,null,null,null,"利用者",null,null,null,"名　施設職員",null,null,"名"]
[]
[null,"休日 夜間",null,null,null,null,null,null,null,null,null,null,"利用者",null,null,null,"名　施設職員",null,null,"名"]
[]
["【2】　事前休業の判断",null,null,null,null,null,null,null,null,null,null,null,null,null,null,null,null,null,null,null,null,null,false]
[]
[null,"　大型台風の襲来が予想される場合で、公共交通機関の計画的な運休が予定される場合、通所部門を臨時休業とする。",null,null,null,null,null,null,null,null,null,null,null,null,null,null,null,null,null,null,null,null,null,"開業時間と利用者の通所にかかる時間も考慮して、休業の判断をして下さい。",null,"第１章1.2(5)　\n事前休業の判断について"]
[null,"　または",null,null,null,null,"の時点で、全県下又は「",null,null,null,null,null,null,null,null,null," 」に以下のいずれかが発令されている場合は、"]
[]
[null,"通所部門を臨時休業とする。",null,null,null,null,null,null,null,null,null,null,null,null,null,null,null,null,null,null,"例）午前10時　　○○市"]
[]
[null,null,null,null,null,null,null,null,null,null,null,null,null,null,null,null,null,null,"ｄ",null,"例）暴風警報又は特別警報",null,null,"休業の判断をするための、情報を記載して下さい。"]
[]
[null,null,null,null,null,null,null,null,null,null,null,null,null,null,null,null,null,null,null,null,"　　大雨警報又は特別警報"]
[]
[null,null,null,null,null,null,null,null,null,null,null,null,null,null,null,null,"ｄ",null,null,null,"　　洪水警報"]
[]
[null,null,null,null,null,null,null,null,null,null,null,null,null,null,null,null,null,null,null,null,"　　テレビのニュース"]
[]
[null,null,null,null,null,null,null,null,null,null,null,null,null,null,null,null,null,null,null,null,"　　〇〇市役所からの連絡"]
[]
[]
[]
["【3】　避難対象、利用者数、施設職員数"]
[]
["　","種別（歩行状態等）",null,null,null,null,null,null,null,null,null,null,null,null,"利用者",null,null,null,"施設職員"]
[]
[null,"車椅子",null,null,null,null,null,null,null,null,null,null,"約 ",null,null,null,"名　","約",null,"名　","例）車いす",null,null,"利用者を避難させる状況を想定し、避難対象、利用者数、施設職員数を記入します。\n\n種別は施設職員が分かりやすいように記入して下さい。"]
[]
[null,"ストレッチャー",null,null,null,null,null,null,null,null,null,null,"約 ",null,null,null,"名　","約",null,"名　","　　ストレッチャー"]
[]
[null,"自立歩行",null,null,null,null,null,null,null,null,null,null,"約 ",null,null,null,"名　","約",null,"名　","　　歩行器・歩行者"]
[]
[null,null,null,null,null,null,null,null,null,null,null,null,"約 ",null,null,null,"名　","約",null,"名　","　　杖"]
[]
[null,null,null,null,null,null,null,null,null,null,null,null,"約 ",null,null,null,"名　","約",null,"名　","　　自立歩行"]
[]
[null,null,null,null,null,null,null,null,null,null,null,null,"約 ",null,null,null,"名　","約",null,"名　"]
[]
["反映先：タイムライン「２．施設ハザードの確認」"]
[]
["【4】　施設階層と浸水深"]
[null,null,null,null,null,null,null,null,null,null,null,null,null,null,null,null,null,null,null,null,null,null,null,"施設ハザードを確認して、記入して下さい。"]
[null,"施設階層",null,null,null,null,null,null,null,null,null,null,"施設階層",null,null,null,"階　浸水深",null,null,"ｍ","例）1ｍ、0.5～1.0ｍ"]
[]
["【5】　土砂災害警戒区域"]
[]
[null,"土砂災害警戒区域",null,null,null,null,null,null,null,null,null,null,"土砂災害区域内か否か",null,null,null,null,null,null,null,"区域内／区域外"]
[]
["反映先：タイムライン「７.体制確立や避難開始等のタイミングの検討」"]
[]
["【6】　対象河川①",null,null,null,null,null,null,null,null,null,null,null,null,null,null,null,null,null,null,null,null,null,null,"所在する市町村から、施設周辺で浸水を引き起こす恐れのある河川に係る「洪水予報」または「水位到達情報」が伝達されます。"]
[]
[null,"浸水想定区域を持つ河川名",null,null,null,null,null,null,null,null,null,null,null,null,null,null,null,null,null,null,"例）庄内川"]
[]
[null,"参照する水位観測所",null,null,null,null,null,null,null,null,null,null,null,null,null,null,null,null,null,null,"例）枇杷島"]
[]
["【7】　対象河川②（ある場合）",null,null,null,null,null,null,null,null,null,null,null,null,null,null,null,null,null,null,null,null,null,null,"どのような情報がどうやって伝達されるのか市町村に確認下さい。"]
[]
[null,"浸水想定区域を持つ河川名",null,null,null,null,null,null,null,null,null,null,null,null,null,null,null,null,null,null,"例）木曽川"]
[null,null,null,null,null,null,null,null,null,null,null,null,null,null,null,null,null,null,null,null,null,null,null,"市町村から伝達される洪水予報等を踏まえて、必要な防災体制を検討しましょう。"]
[null,"参照する水位観測所",null,null,null,null,null,null,null,null,null,null,null,null,null,null,null,null,null,null,"例）犬山"]
[]
["【8】　対象河川③（ある場合）"]
[]
[null,"浸水想定区域を持つ河川名",null,null,null,null,null,null,null,null,null,null,null,null,null,null,null,null,null,null,"例）新川",null,null,"通常は、最寄りの基準水位観測所を参照先とします。疑問点は市町村に確認下さい。"]
[]
[null,"参照する水位観測所",null,null,null,null,null,null,null,null,null,null,null,null,null,null,null,null,null,null,"例）水場川外水位"]
[]
["【9】　対象河川④（ある場合）"]
[]
[null,"浸水想定区域を持つ河川名",null,null,null,null,null,null,null,null,null,null,null,null,null,null,null,null,null,null,"例）五条川",null,null,"通常は、最寄りの基準水位観測所を参照先とします。疑問点は市町村に確認下さい。"]
[]
[null,"参照する水位観測所",null,null,null,null,null,null,null,null,null,null,null,null,null,null,null,null,null,null,"例）曽野"]
[]
["【10】　対象河川⑤（ある場合）"]
[]
[null,"浸水想定区域を持つ河川名",null,null,null,null,null,null,null,null,null,null,null,null,null,null,null,null,null,null,"例）内津川",null,null,"通常は、最寄りの基準水位観測所を参照先とします。疑問点は市町村に確認下さい。"]
[]
[null,"参照する水位観測所",null,null,null,null,null,null,null,null,null,null,null,null,null,null,null,null,null,null,"例）松本"]
[]
["反映先：避難確保計画 (様式３）"]
[]
["【11】　情報の入手"]
[]
["　","収集する情報",null,null,null,"情報の例示",null,null,null,null,null,"収集方法"]
[]
["　","洪水予報等",null,null,null,"気象警報、津波情報",null,null,null,null,null,"気象庁ウェブサイト（http://www.jma.go.jp/jp/warn/）、テレビ（データ放送）",null,null,null,null,null,null,null,null,"例）テレビ、ラジオ",null,null,"洪水予報等は、所在する市町村からFAX等で伝達されます。\n\n伝達方法について市町村に確認のうえ、入手手段を記載して下さい。",null,"第１章 1.4(1)\n情報収集"]
[]
["　",null,null,null,null,"洪水予報、\n水位到達情報",null,null,null,null,null,"川の防災情報（https://www.river.go.jp/index）",null,null,null,null,null,null,null,null,"例） インターネット\n　　　（情報提供機関のウェブサイト）"]
[]
["　",null,null,null,null,"土砂災害警戒情報",null,null,null,null,null,"気象庁ウェブサイト（http://www.jma.go.jp/jp/warn/）",null,null,null,null,null,null,null,null,"例） ラジオ（ＡＭ○○○）"]
[]
[null,null,null,null,null,"高齢者等避難、\n避難指示",null,null,null,null,null,"市町村ウェブサイト（●●）、緊急速報メール",null,null,null,null,null,null,null,null,"例）防災行政無線、エリアメール・緊急速報メール、防災メール"]
[]
[null,"その他",null,null,null,"施設周辺の浸水状況",null,null,null,null,null,"施設職員による目視",null,null,null,null,null,null,null,null,"例）施設職員による目視（但し、安全に配慮して危険な場所に近づかないよう施設内から実施）"]
[]
[null,null,null,null,null,"排水施設の稼働状況",null,null,null,null,null,"市町村への問い合わせ",null,null,null,null,null,null,null,null,"例）市町村からのＦＡＸ\n　　（事前に調整）"]
[]
["　",null,null,null,null,"施設周辺における\n土砂災害の前兆現象",null,null,null,null,null,"―",null,null,null,null,null,null,null,null,"例）施設職員による目視（但し、安全に配慮して危険な場所に近づかないよう施設内から実施）"]
[]
["【12】　情報伝達について",null,null,null,null,null,null,null,null,null,null,null,null,null,null,null,null,null,null,null,null,null,null,"【14】　立退き避難（水平避難）の場合の避難場所２（指定緊急避難場所）が自動で入力されるようになっています。\n適宜編集してください。"]
[]
[null,"避難する場合には「利用者緊急連絡先一覧表」に基づき、利用者の保護者・家族等に対し、",null,null,null,null,null,null,null,null,null,null,null,null,null,null,null,null,null,null,null,null,null,null,null,"第１章 1.4(2)\n情報伝達"]
[]
[null,"「",{"$f":"IF(M154=\"\",\"\",M154)","v":""},null,null,"（避難場所）へ避難する。利用者引き渡しは",null,null,null,null,null,null,null,null,null,{"$f":"IF(M154=\"\",\"\",M154)","v":""},null,"（避難場所）",null,null,"例）〇〇公園"]
[]
[null,"において行う。利用者の引き渡し開始は○○時頃とする。」旨を連絡する。"]
[]
["反映先：タイムライン「３．安全な避難先の検討」、避難確保計画 (様式４）"]
[]
["【13】　立退き避難（水平避難）の場合の避難場所１（浸水想定区域外の関連施設）"]
[null,null,null,null,null,null,null,null,null,null,null,null,null,null,null,null,null,null,null,null,null,null,null,"避難場所を設定し、設定した場所や避難ルートが避難時に浸水などで通行困難とならないことを確認して下さい。"]
[null,"避難場所名",null,null,null,null,null,null,null,null,null,null,null,null,null,null,null,null,null,null,"例）〇〇小学校",null,null,null,null,"第１章1.5\n避難誘導(様式４)\n"]
[]
[null,"避難場所の住所",null,null,null,null,null,null,null,null,null,null,null,null,null,null,null,null,null,null,"例）〇〇市△町〇-〇"]
[]
[null,"避難場所の避難先階",null,null,null,null,null,null,null,null,null,null,null,null,"階"]
[]
[null,"避難場所までの移動距離、時間",null,null,null,null,null,null,null,null,null,null,null,null,"ｍ"]
[]
[null,"避難場所までの移動手段①",null,null,null,null,null,null,null,null,null,null,"徒歩の場合",null,null,null,"所要時間",null,null,"分"]
[]
[null,"避難場所までの移動手段②",null,null,null,null,null,null,null,null,null,null,"車両の場合",null,null,null,"所要台数",null,null,"台"]
[]
[null,"浸水想定区域および浸水深",null,null,null,null,null,null,null,null,null,null,"　",null,null,null,"浸水深",null,null,"ｍ","区域内の場合、浸水深ｍを記載"]
[]
[null,"土砂災害区域内か否か",null,null,null,null,null,null,null,null,null,null,"　",null,null,null,null,null,null,null,"区域外がのぞましい"]
[]
["【14】　立退き避難（水平避難）の場合の避難場所２（指定緊急避難場所）"]
[]
[null,"避難場所名",null,null,null,null,null,null,null,null,null,null,null,null,null,null,null,null,null,null,"例）□□小学校",null,null,"避難場所を設定し、設定した場所や避難ルートが避難時に浸水などで通行困難とならないことを確認して下さい。"]
[]
[null,"避難場所の住所",null,null,null,null,null,null,null,null,null,null,null,null,null,null,null,null,null,null,"例）□□市△町〇-〇"]
[]
[null,"避難場所の避難先階",null,null,null,null,null,null,null,null,null,null,null,null,"階"]
[]
[null,"避難場所までの移動距離",null,null,null,null,null,null,null,null,null,null,null,null,"ｍ"]
[]
[null,"避難場所までの移動手段①",null,null,null,null,null,null,null,null,null,null,"徒歩の場合",null,null,null,"所要時間",null,null,"分"]
[]
[null,"避難場所までの移動手段②",null,null,null,null,null,null,null,null,null,null,"車両の場合",null,null,null,"所要台数",null,null,"台"]
[]
[null,"浸水想定区域および浸水深",null,null,null,null,null,null,null,null,null,null,"　",null,null,null,"浸水深",null,null,"ｍ","区域内の場合、浸水深ｍを記載"]
[]
[null,"土砂災害区域内か否か",null,null,null,null,null,null,null,null,null,null,"　",null,null,null,null,null,null,null,"区域外がのぞましい"]
[]
["【15】　施設内にて屋内安全確保を図る場所"]
[]
[null,"施設内の場所、部屋名",null,null,null,null,null,null,null,null,null,null,null,null,null,null,null,null,null,null,"例）施設内大広間、〇〇室",null,null,"避難に伴うリスクを踏まえ、必要がある場合、屋内安全確保を図る場所を設定して下さい。"]
[]
[null,"階層",null,null,null,null,null,null,null,null,null,null,null,null,"階"]
[]
[null,"移動手段",null,null,null,null,null,null,null,null,null,null,null,null,null,null,null,null,null,null,"例）エレベーター、階段"]
[]
["【16】　近隣の安全な場所"]
[]
[null,"近隣の安全な場所",null,null,null,null,null,null,null,null,null,null,null,null,null,null,null,null,null,null,"例）〇〇公園",null,null,"指定緊急避難場所ではないが、標高の高い場所など近隣のより安全な場所・建物等を記入して下さい"]
[]
["反映先：タイムライン「5．避難を行うための準備や所要時間の検討」"]
[]
["【17】　避難準備"]
[]
[null,"①利用者への家族の連絡",null,null,null,null,null,null,null,null,null,null,null,null,null,null,15,null,"分",null,null,null,null,"避難を行うための準備や所要時間を設定して下さい。所要時間は余裕を持たせて設定して下さい。"]
[]
[null,"②利用者の家族への受渡し",null,null,null,null,null,null,null,null,null,null,null,null,null,null,30,null,"分"]
[]
[null,"③避難路の安全確保",null,null,null,null,null,null,null,null,null,null,null,null,null,null,10,null,"分",null,"例）\n ① 利用者家族への連絡\n ② 避難路の安全確保\n ② 持出品の準備"]
[]
[null,"③持出し品の準備",null,null,null,null,null,null,null,null,null,null,null,null,null,null,15,null,"分"]
[]
[null,null,null,null,null,null,null,null,null,null,null,null,null,null,null,null,null,null,"分"]
[]
[null,null,null,null,null,null,null,null,null,null,null,null,null,null,null,null,null,null,"分"]
[]
[null,null,null,null,null,null,null,null,null,null,null,null,null,null,null,null,null,null,"分",null,"　　　同じタイミングで行う場合\n　　　は、同じ番号にして下さい"]
[]
[null,null,null,null,null,null,null,null,null,null,null,null,null,null,null,null,null,null,"分"]
[]
[null,null,null,null,null,null,null,null,null,null,null,null,null,null,null,null,null,null,"分"]
[]
[null,null,null,null,null,null,null,null,null,null,null,null,null,null,null,null,null,null,"分",null,null,null,null,"所要時間を記入して下さい。\n並列した準備があれば、最大所要時間を記入して下さい。"]
[]
[]
[null,null,null,null,null,null,null,null,null,null,null,null,null,null,"合計",null,60,null,"分",null,"合計時間を記入して下さい"]
[]
["反映先：タイムライン「７．対応のタイミングの検討」、避難確保計画 (様式２）"]
[]
["【18】　自衛水防組織の有無"]
[]
[null,"自衛水防組織の有無",null,null,null,null,null,null,null,null,null,null,"　",null,null,null,null,null,null,null,"有／無",null,null,null,null,"第１章 1.1(3)目次"]
[]
["【19】　施設の対応"]
[]
[null,"①体制確立の判断時期",null,null,null,null,null,"②活動内容",null,null,null,null,null,"目安等",null,"③対応班（要員）"]
[null,"台風発生情報",null,null,null,null,null,"防災情報の収集",null,null,null,null,null,"随時",null,"情報収集伝達要員",null,null,null,null,"※記載されている内容等を参考　\n　に、適宜入力して下さい。\n　以下、同じ","　",null,"自衛組織が設置される場合は\n「〇〇班（△△要員）」を記載して下さい。\n自衛組織が設置されない場合は「△△要員」を記載して下さい。",null,"第１章 1.3(2)"]
[null,null,null,null,null,null,null,null,null,null,null,null,null,null,null,null,null,null,null,null,null,null,null,null,null,"防災体制の判断基準の設定"]
[]
[]
[]
[]
[null,"洪水注意報の発表",null,null,null,null,null,"防災情報の収集",null,null,null,null,null,15,null,"情報収集伝達要員",null,null,null,null,"【洪水の場合】"]
[null,"氾濫注意情報の発表",null,null,null,null,null,"浸水防止対策の準備",null,null,null,null,null,2,null,"避難誘導要員",null,null,null,null,"例）洪水注意報"]
[null,"氾濫注意水位超過",null,null,null,null,null,"幹部職員の参集連絡",null,null,null,null,null,1,null,"情報収集伝達要員",null,null,null,null,"　　氾濫注意情報または氾濫注意水位超過"]
[null,null,null,null,null,null,null,"参集職員への事前連絡",null,null,null,null,null,1,null,"情報収集伝達要員",null,null,null,null,"　（○○川（○○地点））"]
[null,null,null,null,null,null,null,"持出し品のチェック",null,null,null,null,null,30,null,"避難誘導要員"]
[null,null,null,null,null,null,null,"避難路の確認",null,null,null,null,null,15,null,"避難誘導要員"]
[null,null,null,null,null,null,null,"利用者への注意喚起",null,null,null,null,null,"随時",null,"避難誘導要員"]
[null,null,null,null,null,null,null,null,null,null,null,null,null,null,null,null,null,null,null,null,"【土砂災害の場合】"]
[null,null,null,null,null,null,null,null,null,null,null,null,null,null,null,null,null,null,null,null,"例）大雨注意報"]
[null,{"$f":"IF(M76=\"\",\"\",\"□ \"&M76)&IF(M78=\"\",\"\",\" (\"&M78&\"観測所）\")","v":""}]
[null,{"$f":"IF(M82=\"\",\"\",\"□ \"&M82)&IF(M84=\"\",\"\",\" (\"&M84&\"観測所）\")","v":""}]
[null,{"$f":"IF(M88=\"\",\"\",\"□ \"&M88)&IF(M90=\"\",\"\",\" (\"&M90&\"観測所）\")","v":""}]
[]
[null,"大雨洪水警報の発表",null,null,null,null,null,"職員の参集",null,null,null,null,null,20,null,"情報収集伝達要員"]
[null,"洪水予報氾濫警戒情報の発表",null,null,null,null,null,"土嚢の設置",null,null,null,null,null,20,null,"避難誘導要員"]
[null,"避難判断水位超過",null,null,null,null,null,"止水板の設置",null,null,null,null,null,30,null,"避難誘導要員"]
[null,"高齢者等避難の発令",null,null,null,null,null,"重要備品、設備の退避",null,null,null,null,null,3,null,"避難誘導要員"]
[null,null,null,null,null,null,null,"利用者家族への連絡",null,null,null,null,null,3,null,"情報収集伝達要員"]
[null,null,null,null,null,null,null,"利用者家族への引渡し",null,null,null,null,null,3,null,"情報収集伝達要員"]
[null,null,null,null,null,null,null,"持出し品の準備",null,null,null,null,null,3,null,"避難誘導要員"]
[null,null,null,null,null,null,null,"利用休止の判断",null,null,null,null,null,3,null,"管理権限者"]
[null,null,null,null,null,null,null,"避難経路の確認",null,null,null,null,null,5,null,"避難誘導要員"]
[null,null,null,null,null,null,null,"避難開始の判断",null,null,null,null,null,5,null,"管理権限者"]
[null,null,null,null,null,null,null,"避難所への移動開始",null,null,null,null,null,10,null,"避難誘導要員"]
[]
[null,"土砂災害警戒情報の発表",null,null,null,null,null,"屋内上層階へ退避開始",null,null,null,null,null,5,null,"避難誘導要員"]
[null,"洪水予報氾濫危険情報の発表",null,null,null,null,null,"全員避難のチェック、施錠",null,null,null,null,null,5,null,"避難誘導要員"]
[null,"氾濫危険水位超過",null,null,null,null,null,"利用者家族への避難先連絡",null,null,null,null,null,5,null,"情報収集伝達要員"]
[null,null,null,null,null,null,null,"急病人の緊急搬送要請",null,null,null,null,null,10,null,"情報収集伝達要員"]
[]
[]
[]
[]
[]
[null,null,null,null,null,null,null,"利用者避難完了の確認",null,null,null,null,null,5,null,"避難誘導要員"]
[null,null,null,null,null,null,null,"従業員の安否確認",null,null,null,null,null,"5分",null,"情報収集伝達要員"]
[null,null,null,null,null,null,null,"利用者の安全確保・体調管理",null,null,null,null,null,5,null,"避難誘導要員"]
[]
[]
[]
[]
["【20】　大型台風"]
[]
[null,"大型台風の襲来が予想される場合で、公共交通機関の計画運休が予定されている場合、避難に関する準備をし、早めに避難を開始する。また、協定を締結した地域の企業等と連携して早めに避難を開始する。",null,null,null,null,null,null,null,null,null,null,null,null,null,null,null,null,null,null,null,null,null,"適宜状況に応じて、記載して下さい。"]
[]
[]
[]
["反映先：避難確保計画 (様式５）"]
[]
["【21】　情報収集・伝達に係る機材等"]
[]
[null,"□テレビ",null,null,null,null,null,null,null,null,null,null,"有",null,null,null,null,null,"台　",null,null,null,null,"情報収集等を行う時に使用する機材として位置づけされている場合は、「有」を選択し、その台数等を記載して下さい。\n\nそれ以外の機材については、「その他」の欄に機材名と台数を記載して下さい。",null,"第１章1.6　\n避難の確保を図るための施設の整備（様式５）"]
[]
[null,"□デスクトップパソコン",null,null,null,null,null,null,null,null,null,null,"有",null,null,null,null,null,"台"]
[]
[null,"□ノートパソコン",null,null,null,null,null,null,null,null,null,null,"有",null,null,null,null,null,"台"]
[]
[null,"□ラジオ",null,null,null,null,null,null,null,null,null,null,"有",null,null,null,null,null,"器"]
[null,null,null,null,null,null,null,null,null,null,null,null,null,null,null,null,null,null,null,null,"「有」の場合、数を記入して下さい"]
[null,"□タブレット端末",null,null,null,null,null,null,null,null,null,null,"有",null,null,null,null,null,"台"]
[]
[null,"□ファックス",null,null,null,null,null,null,null,null,null,null,"有",null,null,null,null,null,"台",null,"　以下、同じ"]
[]
[null,"□携帯電話",null,null,null,null,null,null,null,null,null,null,"有",null,null,null,null,null,"台"]
[]
[null,"□携帯電話用バッテリー",null,null,null,null,null,null,null,null,null,null,"有",null,null,null,null,null,"個"]
[]
[null,"□乾電池",null,null,null,null,null,null,null,null,null,null,"有",null,null,null,null,null,"個"]
[]
[null,"□その他",null,null,null,null,null,null,null,null,null,null,"□トランシーバー4台、□充電器2器などを記載",null,null,null,null,null,null,null,"各機材の前に「□」を入力"]
[null,null,null,null,null,null,null,null,null,null,null,null,null,null,null,null,null,null,null,null,"以下、同じ"]
[]
["【22】　避難誘導に係る機材等"]
[]
[null,"□従業員名簿",null,null,null,null,null,null,null,null,null,null,"有"]
[]
[null,"□利用者名簿",null,null,null,null,null,null,null,null,null,null,"有"]
[]
[null,"□案内旗",null,null,null,null,null,null,null,null,null,null,"有",null,null,null,null,null,"枚"]
[]
[null,"□携帯電話",null,null,null,null,null,null,null,null,null,null,"有",null,null,null,null,null,"台"]
[]
[null,"□携帯電話用バッテリー",null,null,null,null,null,null,null,null,null,null,"有",null,null,null,null,null,"個"]
[]
[null,"□拡声器",null,null,null,null,null,null,null,null,null,null,"有",null,null,null,null,null,"台"]
[]
[null,"□懐中電灯",null,null,null,null,null,null,null,null,null,null,"有",null,null,null,null,null,"台"]
[]
[null,"□乾電池",null,null,null,null,null,null,null,null,null,null,"有",null,null,null,null,null,"個"]
[]
[null,"□ライフジャケット",null,null,null,null,null,null,null,null,null,null,"無",null,null,null,null,null,"着"]
[]
[null,"□蛍光塗料",null,null,null,null,null,null,null,null,null,null,"無",null,null,null,null,null,"個"]
[]
[null,"□その他",null,null,null,null,null,null,null,null,null,null,"□誘導灯5個、□運動靴などを記載"]
[]
[]
["【23】　施設内の一時避難に係る機材等"]
[]
[null,"□水",null,null,null,null,null,null,null,null,null,null,"有",null,null,null,null,null,"日分"]
[]
[null,"□食料",null,null,null,null,null,null,null,null,null,null,"有",null,null,null,null,null,"日分"]
[]
[null,"□寝具",null,null,null,null,null,null,null,null,null,null,"有",null,null,null,null,null,"人分"]
[]
[null,"□防寒具",null,null,null,null,null,null,null,null,null,null,"有",null,null,null,null,null,"人分"]
[]
[null,"□その他",null,null,null,null,null,null,null,null,null,null,"□扇風機5台、□カイロ20個などを記載"]
[]
[]
["【24】　衛生器具に係る機材等"]
[]
[null,"□おむつ・おしりふき",null,null,null,null,null,null,null,null,null,null,"有",null,null,null,null,null,"日分"]
[]
[null,"□タオル",null,null,null,null,null,null,null,null,null,null,"有",null,null,null,null,null,"日分"]
[]
[null,"□その他",null,null,null,null,null,null,null,null,null,null,"□ウエットティッシュ、□使い捨て手袋などを記載"]
[]
[]
["【25】　医療品に係る機材等"]
[]
[null,"□常備薬",null,null,null,null,null,null,null,null,null,null,null,null,null,null,null,null,"人分"]
[]
[null,"□その他",null,null,null,null,null,null,null,null,null,null,"□消毒薬、□包帯、□絆創膏などを記載"]
[]
[]
["【26】　その他の機材等"]
[]
[null,"□ウエットティッシュ",null,null,null,null,null,null,null,null,null,null,"有",null,null,null,null,null,"袋・個"]
[]
[null,"□ゴミ袋",null,null,null,null,null,null,null,null,null,null,"有",null,null,null,null,null,"枚"]
[]
[null,"□タオル",null,null,null,null,null,null,null,null,null,null,"有",null,null,null,null,null,"枚"]
[]
[null,"□その他",null,null,null,null,null,null,null,null,null,null,"□簡易マット、□紙タオルなどを記載"]
[]
[]
["【27】　浸水を防ぐための機材等"]
[]
[null,null,null,null,null,null,null,null,null,null,null,null,"□土のう、□バケツなどを記載"]
[]
[]
["【28】　土砂災害に対する避難を確保するための機材等"]
[]
[]
[null,null,null,null,null,null,null,null,null,null,null,null,"□ビニールシート、□スコップなどを記載"]
[]
[]
["反映先：避難確保計画 (様式５）8.防災教育及び訓練の実施"]
[]
["【29】　研修実施（毎年）"]
[]
[null,"新規採用施設職員の研修実施月",null,null,null,null,null,null,null,null,null,null,null,null,"月",null,null,null,null,null,null,null,null,null,null,"第１章1.7　\n防災教育及び訓練の取組（様式７）"]
[]
[null,"全施設職員の研修実施月",null,null,null,null,null,null,null,null,null,null,null,null,"月",null,null,null,null,null,"情報収集・伝達及び避難誘導に関する訓練"]
[]
[null,"その他の教育及び訓練計画の作成月",null,null,null,null,null,null,null,null,null,null,null,null,"月"]
[]
[]
["避難確保計画（様式６）以降"]
[]
[null,null,null,null,null,null,null,null,null,null,null,null,null,null,null,null,null,null,null,null,"\nシートをクリックして、様式６\n以降の入力を行って下さい。",null,null,"避難確保計画（様式６）以降は、直接「避難確保計画」シートに記入して下さい。"]
[null,null,null,null,null,null,"9.自衛水防組織の業務に関する事項"]
[]
[]
[null,null,null,null,null,null,"10.防災教育及び訓練の年間計画"]
[]
[]
[null,null,null,null,null,null,"11.利用者緊急連絡先一覧表"]
[]
[]
[null,null,null,null,null,null,"12.緊急連絡網"]
[]
[]
[null,null,null,null,null,null,"13.外部機関等の緊急連絡先一覧表"]
[]
[]
[null,null,null,null,null,null,"14.対応別避難誘導一覧表"]
[]
[]
[null,null,null,null,null,null,"15.防災体制一覧表"]
[]
[]
[null,null,null,null,null,null,"自衛水防組織活動要領"]
[]
[]
[null,null,null,null,null,null,"自衛水防組織の編成と任務"]
[]
[]
[null,null,null,null,null,null,"自衛水防組織装備品リスト"]
[]
[]
[null,null,null,null,null,null,"施設周辺の避難地図"]

{"sheet":"出力シート（タイムライン）","index":2,"n_rows":87,"n_cols":28,"rows_kept":87,"cut":false,"hidden":false,"merged":[[78,1,78,2],[76,1,76,2],[71,12,71,15],[71,20,71,22],[73,16,73,19],[61,20,61,22],[62,20,62,22],[69,20,69,22],[64,20,64,22],[65,20,65,22],[66,20,66,22],[68,20,68,22],[75,1,75,2],[70,12,70,15],[70,16,70,19],[70,20,70,22],[76,16,76,19],[76,20,76,22],[76,12,76,15],[77,16,77,19],[77,20,77,22],[78,20,78,22],[67,20,67,22],[63,20,63,22],[67,1,67,2],[59,20,59,22],[56,20,56,22],[65,1,65,2],[66,12,66,15],[47,12,47,15],[46,12,46,15],[47,20,47,22],[51,12,51,15],[51,16,51,19],[51,20,51,22],[46,16,46,19],[46,20,46,22],[52,16,52,19],[52,20,52,22],[49,16,49,19],[47,16,47,19],[48,12,48,15],[55,16,55,19],[67,16,67,19],[60,20,60,22],[48,20,48,22],[54,12,54,15],[49,20,49,22],[80,0,81,2],[55,12,55,15],[58,12,58,15],[57,12,57,15],[61,12,61,15],[61,16,61,19],[62,12,62,15],[74,1,74,2],[59,0,60,2],[69,16,69,19],[64,16,64,19],[65,12,65,15],[65,16,65,19],[59,16,59,19],[73,0,73,2],[70,0,71,2],[68,12,68,15],[68,16,68,19],[67,12,67,15],[58,16,58,19],[63,12,63,15],[63,16,63,19],[60,12,60,15],[60,16,60,19],[77,1,77,2],[30,13,30,14],[31,13,31,14],[55,1,55,2],[54,1,54,2],[53,1,53,2],[62,0,62,2],[63,1,63,2],[64,1,64,2],[49,12,49,15],[50,12,50,15],[41,3,41,4],[41,5,41,6],[38,13,38,14],[41,7,41,9],[64,12,64,15],[52,0,52,2],[47,0,48,2],[31,10,31,12],[42,12,42,15],[59,12,59,15],[56,1,56,2],[57,1,57,2],[66,1,66,2],[69,12,69,15],[7,6,7,7],[24,6,24,7],[31,17,32,22],[29,17,30,22],[29,16,30,16],[26,17,28,22],[26,16,28,16],[26,10,26,12],[27,10,27,12],[28,10,28,12],[29,10,29,12],[30,10,30,12],[22,16,25,16],[22,17,25,22],[45,20,45,22],[32,10,32,12],[26,13,26,14],[27,13,27,14],[28,13,28,14],[34,17,34,22],[37,18,38,22],[43,12,43,15],[50,16,50,19],[1,0,2,9],[5,9,5,11],[13,0,13,3],[14,0,14,1],[14,2,14,3],[15,0,15,1],[17,0,17,3],[11,6,11,7],[6,0,6,2],[7,0,7,2],[8,0,8,2],[9,0,9,2],[10,0,10,2],[11,0,11,2],[6,3,6,5],[7,3,7,5],[8,3,8,5],[8,6,8,7],[9,6,9,7],[10,6,10,7],[6,6,6,7],[9,3,9,5],[10,3,10,5],[11,3,11,5],[45,12,45,15],[45,16,45,19],[42,16,42,19],[33,17,33,22],[35,16,36,17],[24,10,24,12],[24,13,24,14],[38,9,38,12],[43,20,43,22],[31,16,32,16],[36,13,36,14],[37,13,37,14],[29,13,29,14],[44,16,44,19],[37,16,38,17],[35,18,36,22],[44,20,44,22],[41,20,41,22],[41,0,41,2],[32,13,32,14],[33,13,33,14],[44,12,44,15],[21,16,21,22],[43,16,43,19],[22,6,22,7],[22,10,22,12],[22,13,22,14],[25,6,25,7],[25,10,25,12],[25,13,25,14],[42,20,42,22],[25,3,25,5],[18,0,18,3],[22,0,22,2],[22,3,22,5],[25,0,25,2],[23,0,23,2],[21,13,21,14],[23,6,23,7],[23,10,23,12],[23,13,23,14],[23,3,23,5],[24,0,24,2],[24,3,24,5],[21,0,21,2],[21,3,21,5],[21,6,21,7],[21,9,21,12],[83,12,83,15],[83,16,83,19],[83,20,83,22],[80,16,80,19],[80,20,80,22],[81,12,81,15],[81,16,81,19],[81,20,81,22],[82,20,82,22],[82,16,82,19],[85,12,85,15],[85,16,85,19],[85,20,85,22],[72,12,72,15],[71,16,71,19],[72,20,72,22],[73,12,73,15],[72,16,72,19],[73,20,73,22],[75,12,75,15],[75,16,75,19],[75,20,75,22],[84,12,84,15],[84,16,84,19],[84,20,84,22],[82,12,82,15],[79,12,79,15],[79,16,79,19],[79,20,79,22],[74,12,74,15],[74,16,74,19],[74,20,74,22],[80,12,80,15],[77,12,77,15],[48,16,48,19],[52,12,52,15],[50,20,50,22],[53,12,53,15],[53,20,53,22],[66,16,66,19],[62,16,62,19],[53,16,53,19],[58,20,58,22],[54,16,54,19],[54,20,54,22],[56,12,56,15],[56,16,56,19],[57,16,57,19],[57,20,57,22],[55,20,55,22]]}
[]
["避難行動タイムライン",null,null,null,null,null,null,null,null,null,null,null,null,null,null,null,"施設名：",{"$f":"IF(入力シート!M9=\"\",\"\",入力シート!M9)","v":""}]
[null,null,null,null,null,null,null,null,null,null,null,null,null,null,null,null,"対象となる災害：",null,{"$f":"IF(入力シート!M11=\"\",\"\",入力シート!M11)","v":""}]
[]
["１．施設の利用状況の確認 ",null,null,null,null,null,null,null,null,"4．避難場所までの避難経路の検討\n",null,null,null,null,null,null,null,null,null,null,null,"別紙１"]
[{"$f":"入力シート!B48","v":"種別（歩行状態等）"},null,null,"利用者",null,null,"施設職員",null,null,"避難経路図",null,null,"～検討を始めるための準備～"]
[{"$f":"IF(入力シート!B50=\"\",\"\",入力シート!B50)","v":"車椅子"},null,null,{"$f":"IF(入力シート!O50=\"\",\"\",入力シート!O50)","v":""},null,null,{"$f":"IF(入力シート!S50=\"\",\"\",入力シート!S50)","v":""}]
[{"$f":"IF(入力シート!B52=\"\",\"\",入力シート!B52)","v":"ストレッチャー"},null,null,{"$f":"IF(入力シート!O52=\"\",\"\",入力シート!O52)","v":""},null,null,{"$f":"IF(入力シート!S52=\"\",\"\",入力シート!S52)","v":""}]
[{"$f":"IF(入力シート!B54=\"\",\"\",入力シート!B54)","v":"自立歩行"},null,null,{"$f":"IF(入力シート!O54=\"\",\"\",入力シート!O54)","v":""},null,null,{"$f":"IF(入力シート!S54=\"\",\"\",入力シート!S54)","v":""}]
[{"$f":"IF(入力シート!B56=\"\",\"\",入力シート!B56)","v":""},null,null,{"$f":"IF(入力シート!O56=\"\",\"\",入力シート!O56)","v":""},null,null,{"$f":"IF(入力シート!S56=\"\",\"\",入力シート!S56)","v":""}]
[{"$f":"IF(入力シート!B58=\"\",\"\",入力シート!B58)","v":""},null,null,{"$f":"IF(入力シート!O58=\"\",\"\",入力シート!O58)","v":""},null,null,{"$f":"IF(入力シート!S58=\"\",\"\",入力シート!S58)","v":""}]
[{"$f":"IF(入力シート!B60=\"\",\"\",入力シート!B60)","v":""},null,null,{"$f":"IF(入力シート!O60=\"\",\"\",入力シート!O60)","v":""},null,null,{"$f":"IF(入力シート!S60=\"\",\"\",入力シート!S60)","v":""}]
[]
["２．施設ハザードの確認"]
["施設階層",null,"浸水深"]
[{"$f":"IF(入力シート!O66=\"\",\"\",入力シート!O66)","v":""},null,{"$f":"IF(入力シート!S66=\"\",\"\",入力シート!S66)","v":""},"m"]
[]
["土砂災害区域"]
[{"$f":"IF(入力シート!S70=\"\",\"\",入力シート!S70)","v":""}]
[]
["3．安全な避難先の検討",null,null,null,null,null,null,null,null,"5．避難を行うための準備や所要時間の検討\n",null,null,null,null,null,null,"６．避難に必要な備品や浸水対策資機材の確認\n"]
["避難場所",null,null,"浸水想定区域",null,null,"土砂災害警戒区域",null,null,"対応内容",null,null,null,"所要時間",null,null,"備　蓄　品"]
[{"$f":"\"施設名：\"&入力シート!M136","v":"施設名："},null,null,{"$f":"\"□\"&入力シート!M148","v":"□　"},null,null,{"$f":"\"□\"&入力シート!M150","v":"□　"},null,null,"避難準備",{"$f":"IF(入力シート!B186=\"\",\"\",入力シート!B186)","v":"①利用者への家族の連絡"},null,null,{"$f":"IF(入力シート!Q186=\"\",\"\",入力シート!Q186)","v":15},null,null,"情報収集・伝達",{"$f":"IF(Y23<>\"\",RIGHT(Y23,LEN(Y23)),\"\")","v":"□テレビ、□デスクトップパソコン、□ノートパソコン、□ラジオ、□タブレット端末、□ファックス、□携帯電話、□携帯電話用バッテリー、□乾電池"},null,null,null,null,null,null,{"$f":"IF(入力シート!M275=\"有\",\"\"&入力シート!B275&IF(入力シート!Q275<>\"\",入力シート!Q275&入力シート!S275,\"\"),\"\")&IF(入力シート!M277=\"有\",\"、\"&入力シート!B277&IF(入力シート!Q277<>\"\",入力シート!Q277&入力シート!S277,\"\"),\"\")&IF(入力シート!M279=\"有\",\"、\"&入力シート!B279&IF(入力シート!Q279<>\"\",入力シート!Q279&入力シート!S279,\"\"),\"\")&IF(入力シート!M281=\"有\",\"、\"&入力シート!B281&IF(入力シート!Q281<>\"\",入力シート!Q281&入力シート!S281,\"\"),\"\")&IF(入力シート!M283=\"有\",\"、\"&入力シート!B283&IF(入力シート!Q283<>\"\",入力シート!Q283&入力シート!S283,\"\"),\"\")&IF(入力シート!M285=\"有\",\"、\"&入力シート!B285&IF(入力シート!Q285<>\"\",入力シート!Q285&入力シート!S285,\"\"),\"\")&IF(入力シート!M287=\"有\",\"、\"&入力シート!B287&IF(入力シート!Q287<>\"\",入力シート!Q287&入力シート!S287,\"\"),\"\")&IF(入力シート!M289=\"有\",\"、\"&入力シート!B289&IF(入力シート!Q289<>\"\",入力シート!Q289&入力シート!S289,\"\"),\"\")&IF(入力シート!M291=\"有\",\"、\"&入力シート!B291&IF(入力シート!Q291<>\"\",入力シート!Q291&入力シート!S291,\"\"),\"\")&IF(入力シート!M293<>\"□トランシーバー4台、□充電器2器などを記載\",\"、\"&入力シート!M293,\"\")","v":"□テレビ、□デスクトップパソコン、□ノートパソコン、□ラジオ、□タブレット端末、□ファックス、□携帯電話、□携帯電話用バッテリー、□乾電池"}]
[{"$f":"\"階層：\"&入力シート!M140&\"階\"","v":"階層：階"},null,null,{"$f":"IF(入力シート!M148=\"区域内\",\"□浸水深　　\"&入力シート!S148&\"ｍ\",\"\")","v":""},null,null,null,null,null,null,{"$f":"IF(入力シート!B188=\"\",\"\",入力シート!B188)","v":"②利用者の家族への受渡し"},null,null,{"$f":"IF(入力シート!Q188=\"\",\"\",入力シート!Q188)","v":30}]
[{"$f":"IF(入力シート!M154<1,\"\",\"施設名：\"&入力シート!M154)","v":""},null,null,{"$f":"IF(入力シート!M154<1,\"\",\"□\"&入力シート!M166)","v":""},null,null,{"$f":"IF(入力シート!M154<1,\"\",\"□\"&入力シート!M168)","v":""},null,null,null,{"$f":"IF(入力シート!B190=\"\",\"\",入力シート!B190)","v":"③避難路の安全確保"},null,null,{"$f":"IF(入力シート!Q190=\"\",\"\",入力シート!Q190)","v":10}]
[{"$f":"IF(入力シート!M154<1,\"\",\"階層：\"&入力シート!M158&\"階\")","v":""},null,null,{"$f":"IF(入力シート!M166=\"区域内\",\"□浸水深　　\"&入力シート!S166&\"ｍ\",\"\")","v":""},null,null,null,null,null,null,{"$f":"IF(入力シート!B192=\"\",\"\",入力シート!B192)","v":"③持出し品の準備"},null,null,{"$f":"IF(入力シート!Q192=\"\",\"\",入力シート!Q192)","v":15}]
[null,null,null,null,null,null,null,null,null,null,{"$f":"IF(入力シート!B194=\"\",\"\",入力シート!B194)","v":""},null,null,{"$f":"IF(入力シート!Q194=\"\",\"\",入力シート!Q194)","v":""},null,null,"避難誘導",{"$f":"IF(Y27<>\"\",RIGHT(Y27,LEN(Y27)-1),\"\")","v":"□従業員名簿、□利用者名簿、□案内旗、□携帯電話、□携帯電話用バッテリー、□拡声器、□懐中電灯、□乾電池"},null,null,null,null,null,null,{"$f":"IF(入力シート!M298=\"有\",\"、\"&入力シート!B298,\"\")&IF(入力シート!M300=\"有\",\"、\"&入力シート!B300,\"\")&IF(入力シート!M302=\"有\",\"、\"&入力シート!B302&IF(入力シート!Q302<>\"\",入力シート!Q302&入力シート!S302,\"\"),\"\")&IF(入力シート!M304=\"有\",\"、\"&入力シート!B304&IF(入力シート!Q304<>\"\",入力シート!Q304&入力シート!S304,\"\"),\"\")&IF(入力シート!M306=\"有\",\"、\"&入力シート!B306&IF(入力シート!Q306<>\"\",入力シート!Q306&入力シート!S306,\"\"),\"\")&IF(入力シート!M308=\"有\",\"、\"&入力シート!B308&IF(入力シート!Q308<>\"\",入力シート!Q308&入力シート!S308,\"\"),\"\")&IF(入力シート!M310=\"有\",\"、\"&入力シート!B310&IF(入力シート!Q310<>\"\",入力シート!Q310&入力シート!S310,\"\"),\"\")&IF(入力シート!M312=\"有\",\"、\"&入力シート!B312&IF(入力シート!Q312<>\"\",入力シート!Q312&入力シート!S312,\"\"),\"\")&IF(入力シート!M314=\"有\",\"、\"&入力シート!B314&IF(入力シート!Q314<>\"\",入力シート!Q314&入力シート!S314,\"\"),\"\")&IF(入力シート!M316=\"有\",\"、\"&入力シート!B316&IF(入力シート!Q316<>\"\",入力シート!Q316&入力シート!S316,\"\"),\"\")&IF(入力シート!M318<>\"□誘導灯5個、□運動靴などを記載\",\"、\"&入力シート!M318,\"\")","v":"、□従業員名簿、□利用者名簿、□案内旗、□携帯電話、□携帯電話用バッテリー、□拡声器、□懐中電灯、□乾電池"}]
[null,null,null,null,null,null,null,null,null,null,{"$f":"IF(入力シート!B196=\"\",\"\",入力シート!B196)","v":""},null,null,{"$f":"IF(入力シート!Q196=\"\",\"\",入力シート!Q196)","v":""}]
[null,null,null,null,null,null,null,null,null,null,{"$f":"IF(入力シート!B198=\"\",\"\",入力シート!B198)","v":""},null,null,{"$f":"IF(入力シート!Q198=\"\",\"\",入力シート!Q198)","v":""}]
[null,null,null,null,null,null,null,null,null,null,{"$f":"IF(入力シート!B200=\"\",\"\",入力シート!B200)","v":""},null,null,{"$f":"IF(入力シート!Q200=\"\",\"\",入力シート!Q200)","v":""},null,null,"施設内の一時避難",{"$f":"IF(Y30<>\"\",RIGHT(Y30,LEN(Y30)-1),\"\")","v":"□水、□食料、□寝具、□防寒具"},null,null,null,null,null,null,{"$f":"IF(入力シート!M323=\"有\",\"、\"&入力シート!B323&IF(入力シート!Q323<>\"\",入力シート!Q323&入力シート!S323,\"\"),\"\")&IF(入力シート!M325=\"有\",\"、\"&入力シート!B325&IF(入力シート!Q325<>\"\",入力シート!Q325&入力シート!S325,\"\"),\"\")&IF(入力シート!M327=\"有\",\"、\"&入力シート!B327&IF(入力シート!Q327<>\"\",入力シート!Q327&入力シート!S327,\"\"),\"\")&IF(入力シート!M329=\"有\",\"、\"&入力シート!B329&IF(入力シート!Q329<>\"\",入力シート!Q329&入力シート!S329,\"\"),\"\")&IF(入力シート!M331<>\"□扇風機5台、□カイロ20個などを記載\",\"、\"&入力シート!M331,\"\")","v":"、□水、□食料、□寝具、□防寒具"}]
[null,null,null,null,null,null,null,null,null,null,{"$f":"IF(入力シート!B202=\"\",\"\",入力シート!B202)","v":""},null,null,{"$f":"IF(入力シート!Q202=\"\",\"\",入力シート!Q202)","v":""}]
[null,null,null,null,null,null,null,null,null,null,{"$f":"IF(入力シート!B204=\"\",\"\",入力シート!B204)","v":""},null,null,{"$f":"IF(入力シート!Q204=\"\",\"\",入力シート!Q204)","v":""},null,null,"衛生器具",{"$f":"IF(Y32<>\"\",RIGHT(Y32,LEN(Y32)-1),\"\")","v":"□おむつ・おしりふき、□タオル"},null,null,null,null,null,null,{"$f":"IF(入力シート!M336=\"有\",\"、\"&入力シート!B336&IF(入力シート!Q336<>\"\",入力シート!Q336&入力シート!S336,\"\"),\"\")&IF(入力シート!M338=\"有\",\"、\"&入力シート!B338&IF(入力シート!Q338<>\"\",入力シート!Q338&入力シート!S338,\"\"),\"\")&IF(入力シート!M340<>\"□ウエットティッシュ、□使い捨て手袋などを記載\",\"、\"&入力シート!M340,\"\")","v":"、□おむつ・おしりふき、□タオル"}]
[null,null,null,null,null,null,null,null,null,null,"避難準備の所要時間（計）",null,null,{"$f":"IF(入力シート!Q207=\"\",\"\",入力シート!Q207)","v":60}]
[null,null,null,null,null,null,null,null,null,"避難所への移動",null,null,null,null,null,null,"医療品",{"$f":"IF(Y34<>\"\",RIGHT(Y34,LEN(Y34)-1),\"\")","v":""},null,null,null,null,null,null,{"$f":"IF(入力シート!M345=\"有\",\"、\"&入力シート!B345&IF(入力シート!Q345<>\"\",入力シート!Q345&入力シート!S345,\"\"),\"\")&IF(入力シート!M347<>\"□消毒薬、□包帯、□絆創膏などを記載\",\"、\"&入力シート!M347,\"\")","v":""}]
[null,null,null,null,null,null,null,null,null,"避難場所：",{"$f":"IF(入力シート!M136=\"\",\"\",入力シート!M136)","v":""},null,null,null,null,null,"その他",{"$f":"IF(Y35<>\"\",RIGHT(Y35,LEN(Y35)-1),\"\")","v":"□ウエットティッシュ、□ゴミ袋、□タオル"},null,null,null,null,null,null,{"$f":"IF(入力シート!M352=\"有\",\"、\"&入力シート!B352&IF(入力シート!Q352<>\"\",入力シート!Q352&入力シート!S352,\"\"),\"\")&IF(入力シート!M354=\"有\",\"、\"&入力シート!B354&IF(入力シート!Q354<>\"\",入力シート!Q354&入力シート!S354,\"\"),\"\")&IF(入力シート!M356=\"有\",\"、\"&入力シート!B356&IF(入力シート!Q356<>\"\",入力シート!Q356&入力シート!S356,\"\"),\"\")&IF(入力シート!M358<>\"□簡易マット、□紙タオルなどを記載\",\"、\"&入力シート!M358,\"\")","v":"、□ウエットティッシュ、□ゴミ袋、□タオル"}]
[null,null,null,null,null,null,null,null,null,"移動距離：",{"$f":"IF(入力シート!M142=\"\",\"\",入力シート!M142)","v":""},"m",null,null,null,null,"浸水を防ぐための対策",null,{"$f":"Y36","v":""},null,null,null,null,null,{"$f":"IF(入力シート!M363=\"□土のう、□バケツなどを記載\",\"\",入力シート!M363)","v":""}]
[null,null,null,null,null,null,null,null,null,"移動手段：",{"$f":"IF(入力シート!S144>0,\"□徒歩\",\"\")","v":""},null,null,{"$f":"IF(入力シート!S144=\"\",\"\",入力シート!S144)","v":""}]
[null,null,null,null,null,null,null,null,null,null,{"$f":"IF(入力シート!S146>0,\"□車両\",\"\")","v":""},{"$f":"IF(入力シート!S146=\"\",\"\",入力シート!S146)","v":""},"台",null,null,null,"土砂災害に対する避難を確保するための対策",null,{"$f":"Y38","v":""},null,null,null,null,null,{"$f":"IF(入力シート!M369=\"□ビニールシート、□スコップなどを記載\",\"\",入力シート!M369)","v":""}]
[null,null,null,null,null,null,null,null,null,"避難準備から避難完了までの所要時間（合計）",null,null,null,{"$f":"IF(IF(N37=\"\",0,N37)+IF(N33=\"\",0,N33)=0,\"-\",(IF(N37=\"\",0,N37)+IF(N33=\"\",0,N33)))","v":60}]
["７．体制確立や避難開始等のタイミングの検討\n"]
["現象",null,null,"防災情報",null,null,null,null,null,null,null,null,"施設名：",{"$f":"\"（\"&入力シート!M9&\"）　\"","v":"（）　"},null,null,null,null,null,"の対応"]
["警戒レベル1",null,null,null,null,null,null,null,null,null,null,"体制確立の判断時期",null,null,null,null,"活動内容",null,null,null,"対応班（要員）"]
[null,null,null,null,null,null,null,null,null,null,null,null,{"$f":"IF(入力シート!B218=\"\",\"\",\"□\"&入力シート!B218)","v":"□台風発生情報"},null,null,null,{"$f":"IF(入力シート!H218=\"\",\"\",\"□\"&入力シート!H218)&(IF(入力シート!N218=\"\",\"\",\"(\"&入力シート!N218&\"分)\"))","v":"□防災情報の収集(随時分)"},null,null,null,{"$f":"IF(入力シート!P218=\"\",\"\",\"□\"&入力シート!P218)","v":"□情報収集伝達要員"}]
[null,null,null,null,null,null,null,null,null,null,null,null,{"$f":"IF(入力シート!B219=\"\",\"\",\"□\"&入力シート!B219)","v":""},null,null,null,{"$f":"IF(入力シート!H219=\"\",\"\",\"□\"&入力シート!H219)&(IF(入力シート!N219=\"\",\"\",\"(\"&入力シート!N219&\"分)\"))","v":""},null,null,null,{"$f":"IF(入力シート!P219=\"\",\"\",\"□\"&入力シート!P219)","v":""}]
[null,null,null,null,null,null,null,null,null,null,null,null,{"$f":"IF(入力シート!B220=\"\",\"\",\"□\"&入力シート!B220)","v":""},null,null,null,{"$f":"IF(入力シート!H220=\"\",\"\",\"□\"&入力シート!H220)&(IF(入力シート!N220=\"\",\"\",\"(\"&入力シート!N220&\"分)\"))","v":""},null,null,null,{"$f":"IF(入力シート!P220=\"\",\"\",\"□\"&入力シート!P220)","v":""}]
[null,null,null,null,null,null,null,null,null,null,null,null,{"$f":"IF(入力シート!B221=\"\",\"\",\"□\"&入力シート!B221)","v":""},null,null,null,{"$f":"IF(入力シート!H221=\"\",\"\",\"□\"&入力シート!H221)&(IF(入力シート!N221=\"\",\"\",\"(\"&入力シート!N221&\"分)\"))","v":""},null,null,null,{"$f":"IF(入力シート!P221=\"\",\"\",\"□\"&入力シート!P221)","v":""}]
[null,null,null,null,null,null,null,null,null,null,null,null,{"$f":"IF(入力シート!B222=\"\",\"\",\"□\"&入力シート!B222)","v":""},null,null,null,{"$f":"IF(入力シート!H222=\"\",\"\",\"□\"&入力シート!H222)&(IF(入力シート!N222=\"\",\"\",\"(\"&入力シート!N222&\"分)\"))","v":""},null,null,null,{"$f":"IF(入力シート!P222=\"\",\"\",\"□\"&入力シート!P222)","v":""}]
["警戒レベル2",null,null,null,null,null,null,null,null,null,null,null,{"$f":"IF(入力シート!B224=\"\",\"\",\"□\"&入力シート!B224)","v":"□洪水注意報の発表"},null,null,null,{"$f":"IF(入力シート!H224=\"\",\"\",\"□\"&入力シート!H224&(IF(入力シート!N224=\"\",\"\",\"(\"&入力シート!N224&\"分)\")))","v":"□防災情報の収集(15分)"},null,null,null,{"$f":"IF(入力シート!P224=\"\",\"\",\"□\"&入力シート!P224)","v":"□情報収集伝達要員"}]
[null,null,null,null,null,null,null,null,null,null,null,null,{"$f":"IF(入力シート!B225=\"\",\"\",\"□\"&入力シート!B225)","v":"□氾濫注意情報の発表"},null,null,null,{"$f":"IF(入力シート!H225=\"\",\"\",\"□\"&入力シート!H225&(IF(入力シート!N225=\"\",\"\",\"(\"&入力シート!N225&\"分)\")))","v":"□浸水防止対策の準備(2分)"},null,null,null,{"$f":"IF(入力シート!P225=\"\",\"\",\"□\"&入力シート!P225)","v":"□避難誘導要員"}]
[null,null,null,null,null,null,null,null,null,null,null,null,{"$f":"IF(入力シート!B226=\"\",\"\",\"□\"&入力シート!B226)","v":"□氾濫注意水位超過"},null,null,null,{"$f":"IF(入力シート!H226=\"\",\"\",\"□\"&入力シート!H226&(IF(入力シート!N226=\"\",\"\",\"(\"&入力シート!N226&\"分)\")))","v":"□幹部職員の参集連絡(1分)"},null,null,null,{"$f":"IF(入力シート!P226=\"\",\"\",\"□\"&入力シート!P226)","v":"□情報収集伝達要員"}]
[null,null,null,null,null,null,null,null,null,null,null,null,{"$f":"IF(入力シート!B227=\"\",\"\",\"□\"&入力シート!B227)","v":""},null,null,null,{"$f":"IF(入力シート!H227=\"\",\"\",\"□\"&入力シート!H227&(IF(入力シート!N227=\"\",\"\",\"(\"&入力シート!N227&\"分)\")))","v":"□参集職員への事前連絡(1分)"},null,null,null,{"$f":"IF(入力シート!P227=\"\",\"\",\"□\"&入力シート!P227)","v":"□情報収集伝達要員"}]
[null,null,null,null,null,null,null,null,null,null,null,null,{"$f":"IF(入力シート!B228=\"\",\"\",\"□\"&入力シート!B228)","v":""},null,null,null,{"$f":"IF(入力シート!H228=\"\",\"\",\"□\"&入力シート!H228&(IF(入力シート!N228=\"\",\"\",\"(\"&入力シート!N228&\"分)\")))","v":"□持出し品のチェック(30分)"},null,null,null,{"$f":"IF(入力シート!P228=\"\",\"\",\"□\"&入力シート!P228)","v":"□避難誘導要員"}]
["氾濫注意水位超過",null,null,null,null,null,null,null,null,null,null,null,{"$f":"IF(入力シート!B229=\"\",\"\",\"□\"&入力シート!B229)","v":""},null,null,null,{"$f":"IF(入力シート!H229=\"\",\"\",\"□\"&入力シート!H229&(IF(入力シート!N229=\"\",\"\",\"(\"&入力シート!N229&\"分)\")))","v":"□避難路の確認(15分)"},null,null,null,{"$f":"IF(入力シート!P229=\"\",\"\",\"□\"&入力シート!P229)","v":"□避難誘導要員"}]
[{"$f":"IF(入力シート!M$76=\"\",\"\",入力シート!M$76)","v":""},{"$f":"IF(入力シート!M$78=\"\",\"\",入力シート!M$78&\"観測所\")","v":""},null,null,null,null,null,null,null,null,null,null,{"$f":"IF(入力シート!B230=\"\",\"\",\"□\"&入力シート!B230)","v":""},null,null,null,{"$f":"IF(入力シート!H230=\"\",\"\",\"□\"&入力シート!H230&(IF(入力シート!N230=\"\",\"\",\"(\"&入力シート!N230&\"分)\")))","v":"□利用者への注意喚起(随時分)"},null,null,null,{"$f":"IF(入力シート!P230=\"\",\"\",\"□\"&入力シート!P230)","v":"□避難誘導要員"}]
[{"$f":"IF(入力シート!M$82=\"\",\"\",入力シート!M$82)","v":""},{"$f":"IF(入力シート!M$84=\"\",\"\",入力シート!M$84&\"観測所\")","v":""},null,null,null,null,null,null,null,null,null,null,{"$f":"IF(入力シート!B231=\"\",\"\",\"□\"&入力シート!B231)","v":""},null,null,null,{"$f":"IF(入力シート!H231=\"\",\"\",\"□\"&入力シート!H231&(IF(入力シート!N231=\"\",\"\",\"(\"&入力シート!N231&\"分)\")))","v":""},null,null,null,{"$f":"IF(入力シート!P231=\"\",\"\",\"□\"&入力シート!P231)","v":""}]
[{"$f":"IF(入力シート!M$88=\"\",\"\",入力シート!M$88)","v":""},{"$f":"IF(入力シート!M$90=\"\",\"\",入力シート!M$90&\"観測所\")","v":""},null,null,null,null,null,null,null,null,null,null,{"$f":"IF(入力シート!B232=\"\",\"\",\"□\"&入力シート!B232)","v":""},null,null,null,{"$f":"IF(入力シート!H232=\"\",\"\",\"□\"&入力シート!H232&(IF(入力シート!N232=\"\",\"\",\"(\"&入力シート!N232&\"分)\")))","v":""},null,null,null,{"$f":"IF(入力シート!P232=\"\",\"\",\"□\"&入力シート!P232)","v":""}]
[{"$f":"IF(入力シート!M$94=\"\",\"\",入力シート!M$94)","v":""},{"$f":"IF(入力シート!M$96=\"\",\"\",入力シート!M$96&\"観測所\")","v":""},null,null,null,null,null,null,null,null,null,null,{"$f":"IF(入力シート!B233=\"\",\"\",\"□\"&入力シート!B233)","v":""},null,null,null,{"$f":"IF(入力シート!H233=\"\",\"\",\"□\"&入力シート!H233&(IF(入力シート!N233=\"\",\"\",\"(\"&入力シート!N233&\"分)\")))","v":""},null,null,null,{"$f":"IF(入力シート!P233=\"\",\"\",\"□\"&入力シート!P233)","v":""}]
[{"$f":"IF(入力シート!M$100=\"\",\"\",入力シート!M$100)","v":""},{"$f":"IF(入力シート!M$102=\"\",\"\",入力シート!M$102&\"観測所\")","v":""},null,null,null,null,null,null,null,null,null,null,{"$f":"IF(入力シート!B234=\"\",\"\",\"□\"&入力シート!B234)","v":""},null,null,null,{"$f":"IF(入力シート!H234=\"\",\"\",\"□\"&入力シート!H234&(IF(入力シート!N234=\"\",\"\",\"(\"&入力シート!N234&\"分)\")))","v":""},null,null,null,{"$f":"IF(入力シート!P234=\"\",\"\",\"□\"&入力シート!P234)","v":""},null,null,null,"□職員の参集(20分)",null,null,"IF(入力シート!AK228=\"\",\"\",\"□\"&入力シート!AK228)"]
[null,null,null,null,null,null,null,null,null,null,null,null,{"$f":"IF(入力シート!B235=\"\",\"\",\"□\"&入力シート!B235)","v":""},null,null,null,{"$f":"IF(入力シート!H235=\"\",\"\",\"□\"&入力シート!H235&(IF(入力シート!N235=\"\",\"\",\"(\"&入力シート!N235&\"分)\")))","v":""},null,null,null,{"$f":"IF(入力シート!P235=\"\",\"\",\"□\"&入力シート!P235)","v":""},null,null,null,"□土嚢の設置(20分)"]
["警戒レベル3",null,null,null,null,null,null,null,null,null,null,null,{"$f":"IF(入力シート!B237=\"\",\"\",\"□\"&入力シート!B237)","v":"□大雨洪水警報の発表"},null,null,null,{"$f":"IF(入力シート!H237=\"\",\"\",\"□\"&入力シート!H237&(IF(入力シート!N237=\"\",\"\",\"(\"&入力シート!N237&\"分)\")))","v":"□職員の参集(20分)"},null,null,null,{"$f":"IF(入力シート!P237=\"\",\"\",\"□\"&入力シート!P237)","v":"□情報収集伝達要員"},null,null,null,"□利用者家族への引渡し(3分)"]
[null,null,null,null,null,null,null,null,null,null,null,null,{"$f":"IF(入力シート!B238=\"\",\"\",\"□\"&入力シート!B238)","v":"□洪水予報氾濫警戒情報の発表"},null,null,null,{"$f":"IF(入力シート!H238=\"\",\"\",\"□\"&入力シート!H238&(IF(入力シート!N238=\"\",\"\",\"(\"&入力シート!N238&\"分)\")))","v":"□土嚢の設置(20分)"},null,null,null,{"$f":"IF(入力シート!P238=\"\",\"\",\"□\"&入力シート!P238)","v":"□避難誘導要員"},null,null,null,"□持出し品の準備(3分)"]
[null,null,null,null,null,null,null,null,null,null,null,null,{"$f":"IF(入力シート!B239=\"\",\"\",\"□\"&入力シート!B239)","v":"□避難判断水位超過"},null,null,null,{"$f":"IF(入力シート!H239=\"\",\"\",\"□\"&入力シート!H239&(IF(入力シート!N239=\"\",\"\",\"(\"&入力シート!N239&\"分)\")))","v":"□止水板の設置(30分)"},null,null,null,{"$f":"IF(入力シート!P239=\"\",\"\",\"□\"&入力シート!P239)","v":"□避難誘導要員"},null,null,null,"□利用休止の判断(3分)"]
["避難判断水位超過",null,null,null,null,null,null,null,null,null,null,null,{"$f":"IF(入力シート!B240=\"\",\"\",\"□\"&入力シート!B240)","v":"□高齢者等避難の発令"},null,null,null,{"$f":"IF(入力シート!H240=\"\",\"\",\"□\"&入力シート!H240&(IF(入力シート!N240=\"\",\"\",\"(\"&入力シート!N240&\"分)\")))","v":"□重要備品、設備の退避(3分)"},null,null,null,{"$f":"IF(入力シート!P240=\"\",\"\",\"□\"&入力シート!P240)","v":"□避難誘導要員"},null,null,null,"□持出し品を車両への積込(3分)"]
[{"$f":"A54","v":""},"",null,null,null,null,null,null,null,null,null,null,{"$f":"IF(入力シート!B241=\"\",\"\",\"□\"&入力シート!B241)","v":""},null,null,null,{"$f":"IF(入力シート!H241=\"\",\"\",\"□\"&入力シート!H241&(IF(入力シート!N241=\"\",\"\",\"(\"&入力シート!N241&\"分)\")))","v":"□利用者家族への連絡(3分)"},null,null,null,{"$f":"IF(入力シート!P241=\"\",\"\",\"□\"&入力シート!P241)","v":"□情報収集伝達要員"},null,null,null,"□避難経路の確認(5分)"]
["","",null,null,null,null,null,null,null,null,null,null,{"$f":"IF(入力シート!B242=\"\",\"\",\"□\"&入力シート!B242)","v":""},null,null,null,{"$f":"IF(入力シート!H242=\"\",\"\",\"□\"&入力シート!H242&(IF(入力シート!N242=\"\",\"\",\"(\"&入力シート!N242&\"分)\")))","v":"□利用者家族への引渡し(3分)"},null,null,null,{"$f":"IF(入力シート!P242=\"\",\"\",\"□\"&入力シート!P242)","v":"□情報収集伝達要員"},null,null,null,"□避難開始の判断(20分)"]
["","",null,null,null,null,null,null,null,null,null,null,{"$f":"IF(入力シート!B243=\"\",\"\",\"□\"&入力シート!B243)","v":""},null,null,null,{"$f":"IF(入力シート!H243=\"\",\"\",\"□\"&入力シート!H243&(IF(入力シート!N243=\"\",\"\",\"(\"&入力シート!N243&\"分)\")))","v":"□持出し品の準備(3分)"},null,null,null,{"$f":"IF(入力シート!P243=\"\",\"\",\"□\"&入力シート!P243)","v":"□避難誘導要員"},null,null,null,"□避難所への移動開始(15分)"]
["","",null,null,null,null,null,null,null,null,null,null,{"$f":"IF(入力シート!B244=\"\",\"\",\"□\"&入力シート!B244)","v":""},null,null,null,{"$f":"IF(入力シート!H244=\"\",\"\",\"□\"&入力シート!H244&(IF(入力シート!N244=\"\",\"\",\"(\"&入力シート!N244&\"分)\")))","v":"□利用休止の判断(3分)"},null,null,null,{"$f":"IF(入力シート!P244=\"\",\"\",\"□\"&入力シート!P244)","v":"□管理権限者"},null,null,null,"□グループ施設への移動開始(分)"]
["","",null,null,null,null,null,null,null,null,null,null,{"$f":"IF(入力シート!B245=\"\",\"\",\"□\"&入力シート!B245)","v":""},null,null,null,{"$f":"IF(入力シート!H245=\"\",\"\",\"□\"&入力シート!H245&(IF(入力シート!N245=\"\",\"\",\"(\"&入力シート!N245&\"分)\")))","v":"□避難経路の確認(5分)"},null,null,null,{"$f":"IF(入力シート!P245=\"\",\"\",\"□\"&入力シート!P245)","v":"□避難誘導要員"},null,null,null,"□屋内上層階へ退避開始(分)"]
[null,null,null,null,null,null,null,null,null,null,null,null,{"$f":"IF(入力シート!B246=\"\",\"\",\"□\"&入力シート!B246)","v":""},null,null,null,{"$f":"IF(入力シート!H246=\"\",\"\",\"□\"&入力シート!H246&(IF(入力シート!N246=\"\",\"\",\"(\"&入力シート!N246&\"分)\")))","v":"□避難開始の判断(5分)"},null,null,null,{"$f":"IF(入力シート!P246=\"\",\"\",\"□\"&入力シート!P246)","v":"□管理権限者"},null,null,null,"□全員避難のチェック、施錠(分)"]
[null,null,null,null,null,null,null,null,null,null,null,null,{"$f":"IF(入力シート!B247=\"\",\"\",\"□\"&入力シート!B247)","v":""},null,null,null,{"$f":"IF(入力シート!H247=\"\",\"\",\"□\"&入力シート!H247&(IF(入力シート!N247=\"\",\"\",\"(\"&入力シート!N247&\"分)\")))","v":"□避難所への移動開始(10分)"},null,null,null,{"$f":"IF(入力シート!P247=\"\",\"\",\"□\"&入力シート!P247)","v":"□避難誘導要員"},null,null,null,"□利用者家族への避難開始連絡(分)"]
["警戒レベル4",null,null,null,null,null,null,null,null,null,null,null,{"$f":"IF(入力シート!B249=\"\",\"\",\"□\"&入力シート!B249)","v":"□土砂災害警戒情報の発表"},null,null,null,{"$f":"IF(入力シート!H249=\"\",\"\",\"□\"&入力シート!H249&(IF(入力シート!N249=\"\",\"\",\"(\"&入力シート!N249&\"分)\")))","v":"□屋内上層階へ退避開始(5分)"},null,null,null,{"$f":"IF(入力シート!P249=\"\",\"\",\"□\"&入力シート!P249)","v":"□避難誘導要員"}]
[null,null,null,null,null,null,null,null,null,null,null,null,{"$f":"IF(入力シート!B250=\"\",\"\",\"□\"&入力シート!B250)","v":"□洪水予報氾濫危険情報の発表"},null,null,null,{"$f":"IF(入力シート!H250=\"\",\"\",\"□\"&入力シート!H250&(IF(入力シート!N250=\"\",\"\",\"(\"&入力シート!N250&\"分)\")))","v":"□全員避難のチェック、施錠(5分)"},null,null,null,{"$f":"IF(入力シート!P250=\"\",\"\",\"□\"&入力シート!P250)","v":"□避難誘導要員"}]
[null,null,null,null,null,null,null,null,null,null,null,null,{"$f":"IF(入力シート!B251=\"\",\"\",\"□\"&入力シート!B251)","v":"□氾濫危険水位超過"},null,null,null,{"$f":"IF(入力シート!H251=\"\",\"\",\"□\"&入力シート!H251&(IF(入力シート!N251=\"\",\"\",\"(\"&入力シート!N251&\"分)\")))","v":"□利用者家族への避難先連絡(5分)"},null,null,null,{"$f":"IF(入力シート!P251=\"\",\"\",\"□\"&入力シート!P251)","v":"□情報収集伝達要員"}]
["氾濫危険水位超過",null,null,null,null,null,null,null,null,null,null,null,{"$f":"IF(入力シート!B252=\"\",\"\",\"□\"&入力シート!B252)","v":""},null,null,null,{"$f":"IF(入力シート!H252=\"\",\"\",\"□\"&入力シート!H252&(IF(入力シート!N252=\"\",\"\",\"(\"&入力シート!N252&\"分)\")))","v":"□急病人の緊急搬送要請(10分)"},null,null,null,{"$f":"IF(入力シート!P252=\"\",\"\",\"□\"&入力シート!P252)","v":"□情報収集伝達要員"}]
[{"$f":"A64","v":""},{"$f":"B64","v":""},null,null,null,null,null,null,null,null,null,null,{"$f":"IF(入力シート!B253=\"\",\"\",\"□\"&入力シート!B253)","v":""},null,null,null,{"$f":"IF(入力シート!H253=\"\",\"\",\"□\"&入力シート!H253&(IF(入力シート!N253=\"\",\"\",\"(\"&入力シート!N253&\"分)\")))","v":""},null,null,null,{"$f":"IF(入力シート!P253=\"\",\"\",\"□\"&入力シート!P253)","v":""}]
[{"$f":"A65","v":""},"",null,null,null,null,null,null,null,null,null,null,{"$f":"IF(入力シート!B254=\"\",\"\",\"□\"&入力シート!B254)","v":""},null,null,null,{"$f":"IF(入力シート!H254=\"\",\"\",\"□\"&入力シート!H254&(IF(入力シート!N254=\"\",\"\",\"(\"&入力シート!N254&\"分)\")))","v":""},null,null,null,{"$f":"IF(入力シート!P254=\"\",\"\",\"□\"&入力シート!P254)","v":""}]
[{"$f":"A66","v":""},"",null,null,null,null,null,null,null,null,null,null,{"$f":"IF(入力シート!B255=\"\",\"\",\"□\"&入力シート!B255)","v":""},null,null,null,{"$f":"IF(入力シート!H255=\"\",\"\",\"□\"&入力シート!H255&(IF(入力シート!N255=\"\",\"\",\"(\"&入力シート!N255&\"分)\")))","v":""},null,null,null,{"$f":"IF(入力シート!P255=\"\",\"\",\"□\"&入力シート!P255)","v":""}]
[{"$f":"A67","v":""},"",null,null,null,null,null,null,null,null,null,null,{"$f":"IF(入力シート!B256=\"\",\"\",\"□\"&入力シート!B256)","v":""},null,null,null,{"$f":"IF(入力シート!H256=\"\",\"\",\"□\"&入力シート!H256&(IF(入力シート!N256=\"\",\"\",\"(\"&入力シート!N256&\"分)\")))","v":""},null,null,null,{"$f":"IF(入力シート!P256=\"\",\"\",\"□\"&入力シート!P256)","v":""}]
[{"$f":"A68","v":""},""]
[]
["警戒レベル5 ",null,null,null,null,null,null,null,null,null,null,null,{"$f":"IF(入力シート!B258=\"\",\"\",\"□\"&入力シート!B258)","v":""},null,null,null,{"$f":"IF(入力シート!H258=\"\",\"\",\"□\"&入力シート!H258&(IF(入力シート!N258=\"\",\"\",\"(\"&入力シート!N258&\"分)\")))","v":"□利用者避難完了の確認(5分)"},null,null,null,{"$f":"IF(入力シート!P258=\"\",\"\",\"□\"&入力シート!P258)","v":"□避難誘導要員"}]
[null,null,null,null,null,null,null,null,null,null,null,null,{"$f":"IF(入力シート!B259=\"\",\"\",\"□\"&入力シート!B259)","v":""},null,null,null,{"$f":"IF(入力シート!H259=\"\",\"\",\"□\"&入力シート!H259&(IF(入力シート!N259=\"\",\"\",\"(\"&入力シート!N259&\"分)\")))","v":"□従業員の安否確認(5分分)"},null,null,null,{"$f":"IF(入力シート!P259=\"\",\"\",\"□\"&入力シート!P259)","v":"□情報収集伝達要員"}]
[null,null,null,null,null,null,null,null,null,null,null,null,{"$f":"IF(入力シート!B260=\"\",\"\",\"□\"&入力シート!B260)","v":""},null,null,null,{"$f":"IF(入力シート!H260=\"\",\"\",\"□\"&入力シート!H260&(IF(入力シート!N260=\"\",\"\",\"(\"&入力シート!N260&\"分)\")))","v":"□利用者の安全確保・体調管理(5分)"},null,null,null,{"$f":"IF(入力シート!P260=\"\",\"\",\"□\"&入力シート!P260)","v":"□避難誘導要員"}]
[null,null,null,null,null,null,null,null,null,null,null,null,{"$f":"IF(入力シート!B261=\"\",\"\",\"□\"&入力シート!B261)","v":""},null,null,null,{"$f":"IF(入力シート!H261=\"\",\"\",\"□\"&入力シート!H261&(IF(入力シート!N261=\"\",\"\",\"(\"&入力シート!N261&\"分)\")))","v":""},null,null,null,{"$f":"IF(入力シート!P261=\"\",\"\",\"□\"&入力シート!P261)","v":""}]
[null,null,null,"広範囲で数十年に",null,null,null,null,null,null,null,null,{"$f":"IF(入力シート!B262=\"\",\"\",\"□\"&入力シート!B262)","v":""},null,null,null,{"$f":"IF(入力シート!H262=\"\",\"\",\"□\"&入力シート!H262&(IF(入力シート!N262=\"\",\"\",\"(\"&入力シート!N262&\"分)\")))","v":""},null,null,null,{"$f":"IF(入力シート!P262=\"\",\"\",\"□\"&入力シート!P262)","v":""}]
[null,null,null,"一度の大雨",null,null,null,null,null,null,null,null,{"$f":"IF(入力シート!B263=\"\",\"\",\"□\"&入力シート!B263)","v":""},null,null,null,{"$f":"IF(入力シート!H263=\"\",\"\",\"□\"&入力シート!H263&(IF(入力シート!N263=\"\",\"\",\"(\"&入力シート!N263&\"分)\")))","v":""},null,null,null,{"$f":"IF(入力シート!P263=\"\",\"\",\"□\"&入力シート!P263)","v":""}]
["注意）現象と防災情報の関係性は時系列が前後する可能性があります"]

{"sheet":"出力シート（避難確保計画）","index":3,"n_rows":1254,"n_cols":146,"rows_kept":1254,"cut":false,"hidden":false,"merged":[[184,29,184,43],[184,45,184,61],[185,29,185,43],[185,45,185,61],[186,29,186,43],[186,45,186,61],[177,29,177,43],[177,45,177,61],[178,29,178,43],[178,45,178,61],[179,111,179,127],[180,3,180,17],[180,29,180,43],[180,45,180,61],[180,69,180,83],[180,95,180,109],[184,69,184,83],[184,95,184,109],[184,111,184,127],[183,29,183,43],[183,45,183,61],[183,69,183,83],[183,95,183,109],[183,111,183,127],[182,29,182,43],[177,111,177,127],[190,3,190,17],[192,3,192,17],[183,3,183,17],[184,3,184,17],[185,3,185,17],[186,3,186,17],[181,29,181,43],[181,45,181,61],[522,3,522,21],[513,29,513,43],[513,45,513,61],[503,3,503,17],[503,29,503,43],[503,45,503,61],[493,3,493,17],[493,29,493,43],[493,45,493,61],[452,3,452,17],[452,29,452,43],[452,45,452,61],[451,45,451,61],[441,3,441,17],[441,29,441,43],[441,45,441,61],[431,3,431,17],[432,29,432,43],[432,45,432,61],[430,3,430,17],[430,29,430,43],[430,45,430,61],[395,3,395,10],[387,3,387,17],[522,69,522,87],[523,3,524,21],[523,69,524,87],[524,28,526,62],[524,94,526,128],[525,3,525,5],[525,69,525,71],[526,3,526,21],[526,69,526,87],[527,3,528,21],[527,69,528,87],[531,3,534,62],[531,69,534,128],[74,17,74,18],[74,39,74,42],[62,19,62,38],[514,111,514,127],[515,69,515,83],[515,95,515,109],[515,111,515,127],[518,3,518,21],[518,28,520,62],[518,69,518,87],[518,94,520,128],[519,3,520,21],[519,69,520,87],[510,111,510,127],[511,111,511,127],[512,95,512,109],[512,111,512,127],[513,3,513,17],[192,29,192,43],[514,69,514,83],[514,95,514,109],[515,3,515,17],[515,29,515,43],[515,45,515,61],[510,3,510,17],[510,29,510,43],[510,45,510,61],[510,95,510,109],[511,3,511,17],[511,29,511,43],[511,45,511,61],[511,95,511,109],[512,3,512,17],[512,29,512,43],[512,45,512,61],[512,69,512,83],[513,69,513,83],[513,95,513,109],[514,3,514,17],[514,29,514,43],[514,45,514,61],[513,111,513,127],[506,3,506,17],[506,29,506,43],[506,45,506,61],[506,69,506,83],[506,95,506,109],[506,111,506,127],[508,3,508,17],[508,29,508,43],[508,45,508,61],[508,69,508,83],[508,95,508,109],[508,111,508,127],[509,3,509,17],[509,29,509,43],[509,45,509,61],[509,69,509,83],[509,95,509,109],[509,111,509,127],[503,69,503,83],[503,95,503,109],[503,111,503,127],[504,3,504,17],[504,29,504,43],[504,45,504,61],[504,69,504,83],[504,95,504,109],[504,111,504,127],[505,3,505,17],[505,29,505,43],[505,45,505,61],[505,69,505,83],[505,95,505,109],[505,111,505,127],[500,3,500,17],[500,29,500,43],[500,45,500,61],[500,69,500,83],[500,95,500,109],[500,111,500,127],[501,3,501,17],[501,29,501,43],[501,45,501,61],[501,69,501,83],[501,95,501,109],[501,111,501,127],[502,3,502,17],[502,29,502,43],[502,45,502,61],[502,69,502,83],[502,95,502,109],[502,111,502,127],[496,3,496,17],[496,29,496,43],[496,45,496,61],[496,69,496,83],[496,95,496,109],[496,111,496,127],[497,3,497,17],[497,29,497,43],[497,45,497,61],[497,69,497,83],[497,95,497,109],[497,111,497,127],[499,3,499,17],[499,29,499,43],[499,45,499,61],[499,69,499,83],[499,95,499,109],[499,111,499,127],[493,69,493,83],[493,95,493,109],[493,111,493,127],[494,3,494,17],[494,29,494,43],[494,45,494,61],[494,69,494,83],[494,95,494,109],[494,111,494,127],[495,3,495,17],[495,29,495,43],[495,45,495,61],[495,69,495,83],[495,95,495,109],[495,111,495,127],[490,3,490,17],[490,29,490,43],[490,45,490,61],[490,69,490,83],[490,95,490,109],[490,111,490,127],[491,3,491,17],[491,29,491,43],[491,45,491,61],[491,69,491,83],[491,95,491,109],[491,111,491,127],[492,3,492,17],[492,29,492,43],[492,45,492,61],[492,69,492,83],[492,95,492,109],[492,111,492,127],[457,3,457,10],[457,28,459,62],[457,69,457,76],[457,94,459,128],[458,3,459,21],[458,69,459,87],[461,3,461,10],[461,69,461,76],[462,3,463,21],[462,69,463,87],[464,3,464,5],[464,69,464,71],[465,3,465,10],[465,69,465,76],[466,3,467,21],[466,69,467,87],[482,56,483,63],[482,122,483,129],[452,69,452,83],[452,95,452,109],[452,111,452,127],[453,3,453,17],[453,29,453,43],[453,45,453,61],[453,69,453,83],[453,95,453,109],[453,111,453,127],[454,3,454,17],[454,29,454,43],[454,45,454,61],[454,69,454,83],[454,95,454,109],[454,111,454,127],[448,3,448,17],[448,29,448,43],[448,45,448,61],[448,95,448,109],[448,111,448,127],[449,3,449,17],[449,29,449,43],[449,45,449,61],[449,95,449,109],[449,111,449,127],[450,3,450,17],[450,29,450,43],[450,45,450,61],[450,95,450,109],[450,111,450,127],[451,3,451,17],[451,29,451,43],[451,95,451,109],[451,111,451,127],[444,3,444,17],[444,29,444,43],[444,45,444,61],[444,69,444,83],[444,95,444,109],[444,111,444,127],[445,3,445,17],[445,29,445,43],[445,45,445,61],[445,69,445,83],[445,95,445,109],[445,111,445,127],[447,3,447,17],[447,29,447,43],[447,45,447,61],[447,69,447,83],[447,95,447,109],[447,111,447,127],[441,69,441,83],[441,95,441,109],[441,111,441,127],[442,3,442,17],[442,29,442,43],[442,45,442,61],[442,69,442,83],[442,95,442,109],[442,111,442,127],[443,3,443,17],[443,29,443,43],[443,45,443,61],[443,69,443,83],[443,95,443,109],[443,111,443,127],[438,3,438,17],[438,29,438,43],[438,45,438,61],[438,69,438,83],[438,95,438,109],[438,111,438,127],[439,3,439,17],[439,29,439,43],[439,45,439,61],[439,69,439,83],[439,95,439,109],[439,111,439,127],[440,3,440,17],[440,29,440,43],[440,45,440,61],[440,69,440,83],[440,95,440,109],[440,111,440,127],[434,3,434,17],[434,29,434,43],[434,45,434,61],[434,69,434,83],[434,95,434,109],[434,111,434,127],[435,3,435,17],[435,29,435,43],[435,45,435,61],[435,69,435,83],[435,95,435,109],[435,111,435,127],[436,3,436,17],[436,29,436,43],[436,45,436,61],[436,69,436,83],[436,95,436,109],[436,111,436,127],[431,29,431,43],[431,45,431,61],[431,69,431,83],[431,95,431,109],[431,111,431,127],[432,69,432,83],[432,95,432,109],[432,111,432,127],[433,3,433,17],[433,29,433,43],[433,45,433,61],[433,69,433,83],[433,95,433,109],[433,111,433,127],[430,69,430,83],[430,95,430,109],[430,111,430,127],[432,3,432,17],[395,69,395,76],[396,3,397,21],[396,69,397,87],[398,3,398,5],[399,3,399,10],[399,69,399,76],[400,3,401,21],[400,69,401,87],[416,56,417,63],[416,122,417,129],[420,2,421,62],[420,68,424,129],[429,3,429,17],[429,29,429,43],[429,45,429,61],[429,69,429,83],[429,95,429,109],[429,111,429,127],[398,69,398,71],[387,29,387,43],[387,45,387,61],[387,69,387,83],[387,95,387,109],[387,111,387,127],[388,3,388,17],[388,29,388,43],[388,45,388,61],[388,69,388,83],[388,95,388,109],[388,111,388,127],[391,3,391,10],[391,28,393,62],[391,69,391,76],[391,94,393,128],[392,3,393,21],[392,69,393,87],[384,3,384,17],[384,29,384,43],[384,45,384,61],[384,69,384,83],[384,95,384,109],[384,111,384,127],[385,3,385,17],[385,29,385,43],[385,45,385,61],[385,69,385,83],[385,95,385,109],[385,111,385,127],[386,3,386,17],[386,29,386,43],[386,45,386,61],[386,69,386,83],[386,95,386,109],[386,111,386,127],[381,3,381,17],[381,29,381,43],[381,45,381,61],[381,69,381,83],[381,95,381,109],[381,111,381,127],[382,3,382,17],[382,29,382,43],[382,45,382,61],[382,69,382,83],[382,95,382,109],[382,111,382,127],[383,3,383,17],[383,29,383,43],[383,45,383,61],[383,69,383,83],[383,95,383,109],[383,111,383,127],[377,3,377,17],[377,29,377,43],[377,45,377,61],[377,69,377,83],[377,95,377,109],[377,111,377,127],[378,3,378,17],[378,29,378,43],[378,45,378,61],[378,69,378,83],[378,95,378,109],[378,111,378,127],[379,3,379,17],[379,29,379,43],[379,45,379,61],[379,69,379,83],[379,95,379,109],[379,111,379,127],[374,3,374,17],[374,29,374,43],[374,45,374,61],[374,69,374,83],[374,95,374,109],[374,111,374,127],[375,3,375,17],[375,29,375,43],[375,45,375,61],[375,69,375,83],[375,95,375,109],[375,111,375,127],[376,3,376,17],[376,29,376,43],[376,45,376,61],[376,69,376,83],[376,95,376,109],[376,111,376,127],[370,3,370,17],[370,29,370,43],[370,45,370,61],[370,69,370,83],[370,95,370,109],[370,111,370,127],[372,3,372,17],[372,29,372,43],[372,45,372,61],[372,69,372,83],[372,95,372,109],[372,111,372,127],[373,3,373,17],[373,29,373,43],[373,45,373,61],[373,69,373,83],[373,95,373,109],[373,111,373,127],[367,3,367,17],[367,29,367,43],[367,45,367,61],[367,69,367,83],[367,95,367,109],[367,111,367,127],[368,3,368,17],[368,29,368,43],[368,45,368,61],[365,3,365,17],[365,29,365,43],[365,45,365,61],[368,69,368,83],[368,95,368,109],[368,111,368,127],[369,3,369,17],[369,29,369,43],[369,45,369,61],[369,69,369,83],[369,95,369,109],[369,111,369,127],[363,3,363,17],[363,29,363,43],[363,45,363,61],[363,69,363,83],[363,95,363,109],[363,111,363,127],[364,3,364,17],[364,29,364,43],[364,45,364,61],[364,69,364,83],[364,95,364,109],[364,111,364,127],[365,69,365,83],[365,95,365,109],[365,111,365,127],[366,3,366,17],[366,29,366,43],[366,45,366,61],[366,69,366,83],[366,95,366,109],[366,111,366,127],[329,3,329,21],[329,69,329,87],[330,3,331,21],[330,69,331,87],[331,28,333,62],[331,94,333,128],[332,3,332,5],[332,69,332,71],[333,3,333,21],[333,69,333,87],[338,3,341,62],[338,69,341,128],[350,56,351,63],[350,122,351,129],[354,2,355,62],[354,68,358,129],[334,3,335,21],[334,69,335,87],[319,45,319,61],[319,95,319,109],[319,111,319,127],[320,3,320,17],[320,29,320,43],[320,45,320,61],[320,95,320,109],[320,111,320,127],[326,3,327,21],[326,69,327,87],[321,3,321,17],[321,29,321,43],[321,45,321,61],[321,69,321,83],[321,95,321,109],[321,111,321,127],[322,3,322,17],[322,29,322,43],[322,45,322,61],[325,3,325,21],[325,28,327,62],[325,69,325,87],[325,94,327,128],[314,3,314,17],[314,29,314,43],[314,45,314,61],[314,69,314,83],[314,95,314,109],[314,111,314,127],[322,69,322,83],[322,95,322,109],[322,111,322,127],[315,3,315,17],[315,29,315,43],[315,45,315,61],[315,69,315,83],[315,95,315,109],[315,111,315,127],[316,3,316,17],[316,29,316,43],[316,45,316,61],[316,95,316,109],[316,111,316,127],[317,3,317,17],[317,29,317,43],[317,45,317,61],[317,95,317,109],[317,111,317,127],[318,3,318,17],[318,29,318,43],[318,45,318,61],[318,95,318,109],[318,111,318,127],[319,3,319,17],[319,29,319,43],[310,3,310,17],[310,29,310,43],[310,45,310,61],[310,69,310,83],[310,95,310,109],[310,111,310,127],[311,3,311,17],[311,29,311,43],[311,45,311,61],[311,69,311,83],[311,95,311,109],[311,111,311,127],[312,3,312,17],[312,29,312,43],[312,45,312,61],[312,69,312,83],[312,95,312,109],[312,111,312,127],[306,3,306,17],[306,29,306,43],[306,45,306,61],[306,69,306,83],[306,95,306,109],[306,111,306,127],[307,3,307,17],[307,29,307,43],[307,45,307,61],[307,95,307,109],[307,111,307,127],[308,3,308,17],[308,29,308,43],[308,45,308,61],[308,95,308,109],[308,111,308,127],[309,3,309,17],[309,29,309,43],[309,45,309,61],[309,69,309,83],[309,95,309,109],[309,111,309,127],[302,3,302,17],[302,29,302,43],[302,45,302,61],[302,69,302,83],[302,95,302,109],[302,111,302,127],[303,3,303,17],[303,29,303,43],[303,45,303,61],[303,69,303,83],[303,95,303,109],[303,111,303,127],[305,3,305,17],[305,29,305,43],[305,45,305,61],[305,69,305,83],[305,95,305,109],[305,111,305,127],[298,69,298,83],[298,95,298,109],[298,111,298,127],[299,3,299,17],[299,29,299,43],[299,45,299,61],[299,69,299,83],[299,95,299,109],[299,111,299,127],[300,3,300,17],[300,29,300,43],[300,45,300,61],[300,69,300,83],[300,95,300,109],[300,111,300,127],[301,3,301,17],[301,29,301,43],[301,45,301,61],[298,3,298,17],[298,29,298,43],[298,45,298,61],[301,69,301,83],[301,95,301,109],[301,111,301,127],[271,3,274,62],[271,69,274,128],[283,56,284,63],[283,122,284,129],[287,2,288,62],[287,68,291,129],[296,3,296,17],[296,29,296,43],[296,45,296,61],[296,69,296,83],[296,95,296,109],[296,111,296,127],[297,3,297,17],[297,29,297,43],[297,45,297,61],[297,69,297,83],[297,95,297,109],[297,111,297,127],[267,3,268,21],[267,69,268,87],[251,69,251,83],[251,95,251,109],[251,111,251,127],[252,3,252,17],[252,29,252,43],[252,45,252,61],[252,69,252,83],[252,95,252,109],[252,111,252,127],[253,3,253,17],[253,29,253,43],[253,45,253,61],[253,69,253,83],[253,95,253,109],[253,111,253,127],[254,3,254,17],[254,29,254,43],[254,45,254,61],[254,69,254,83],[254,95,254,109],[254,111,254,127],[255,3,255,17],[255,29,255,43],[255,45,255,61],[255,69,255,83],[255,95,255,109],[255,111,255,127],[258,3,258,21],[258,28,260,62],[258,69,258,87],[250,3,250,17],[250,29,250,43],[250,45,250,61],[250,69,250,83],[250,95,250,109],[250,111,250,127],[251,3,251,17],[251,29,251,43],[251,45,251,61],[263,3,264,21],[263,69,264,87],[264,28,266,62],[264,94,266,128],[265,3,265,5],[265,69,265,71],[266,3,266,21],[266,69,266,87],[258,94,260,128],[259,3,260,21],[259,69,260,87],[262,3,262,21],[262,69,262,87],[246,3,246,17],[246,29,246,43],[246,45,246,61],[246,69,246,83],[246,95,246,109],[246,111,246,127],[248,3,248,17],[248,29,248,43],[248,45,248,61],[248,69,248,83],[248,95,248,109],[248,111,248,127],[249,3,249,17],[249,29,249,43],[249,45,249,61],[249,69,249,83],[249,95,249,109],[249,111,249,127],[243,3,243,17],[243,29,243,43],[243,45,243,61],[243,69,243,83],[243,95,243,109],[243,111,243,127],[244,3,244,17],[244,29,244,43],[244,45,244,61],[244,69,244,83],[244,95,244,109],[244,111,244,127],[245,3,245,17],[245,29,245,43],[245,45,245,61],[245,69,245,83],[245,95,245,109],[245,111,245,127],[240,3,240,17],[240,29,240,43],[240,45,240,61],[240,69,240,83],[240,95,240,109],[240,111,240,127],[241,3,241,17],[241,29,241,43],[241,45,241,61],[237,3,237,17],[237,29,237,43],[237,45,237,61],[241,69,241,83],[241,95,241,109],[241,111,241,127],[242,3,242,17],[242,29,242,43],[242,45,242,61],[242,69,242,83],[242,95,242,109],[242,111,242,127],[235,95,235,109],[235,111,235,127],[232,69,232,83],[232,95,232,109],[232,111,232,127],[236,3,236,17],[236,29,236,43],[236,45,236,61],[236,69,236,83],[236,95,236,109],[236,111,236,127],[237,69,237,83],[237,95,237,109],[237,111,237,127],[239,3,239,17],[239,29,239,43],[239,45,239,61],[239,69,239,83],[239,95,239,109],[239,111,239,127],[1037,3,1037,10],[1037,11,1037,18],[1037,19,1037,26],[1037,47,1037,54],[1037,55,1037,62],[1037,27,1037,36],[1037,37,1037,46],[1224,4,1251,61],[1034,3,1034,10],[1034,11,1034,18],[1034,19,1034,26],[1034,27,1034,36],[1034,37,1034,46],[1034,47,1034,54],[1034,55,1034,62],[1035,3,1035,10],[1035,11,1035,18],[1035,19,1035,26],[1035,27,1035,36],[1035,37,1035,46],[1035,47,1035,54],[1035,55,1035,62],[1036,3,1036,10],[1036,11,1036,18],[1036,19,1036,26],[1036,27,1036,36],[1036,37,1036,46],[1036,47,1036,54],[1036,55,1036,62],[1181,56,1182,63],[1168,16,1169,35],[1168,36,1169,59],[1031,3,1031,10],[1031,11,1031,18],[1031,19,1031,26],[1031,27,1031,36],[1031,37,1031,46],[1031,47,1031,54],[1031,55,1031,62],[1032,3,1032,10],[1032,11,1032,18],[1032,19,1032,26],[1032,27,1032,36],[1032,37,1032,46],[1032,47,1032,54],[1032,55,1032,62],[1033,3,1033,10],[1033,11,1033,18],[1033,19,1033,26],[1033,27,1033,36],[1033,37,1033,46],[1033,47,1033,54],[1033,55,1033,62],[1028,3,1028,10],[1028,11,1028,18],[1028,19,1028,26],[1028,27,1028,36],[1028,37,1028,46],[1028,47,1028,54],[1028,55,1028,62],[1029,3,1029,10],[1029,11,1029,18],[1029,19,1029,26],[1029,27,1029,36],[1029,37,1029,46],[1029,47,1029,54],[1029,55,1029,62],[1030,3,1030,10],[1030,11,1030,18],[1030,19,1030,26],[1030,27,1030,36],[1030,37,1030,46],[1030,47,1030,54],[1030,55,1030,62],[1025,3,1025,10],[1025,11,1025,18],[1025,19,1025,26],[1025,27,1025,36],[1025,37,1025,46],[1025,47,1025,54],[1025,55,1025,62],[1026,3,1026,10],[1026,11,1026,18],[1026,19,1026,26],[1026,27,1026,36],[1026,37,1026,46],[1026,47,1026,54],[1026,55,1026,62],[1027,3,1027,10],[1027,11,1027,18],[1027,19,1027,26],[1027,27,1027,36],[1027,37,1027,46],[1027,47,1027,54],[1027,55,1027,62],[1022,3,1022,10],[1022,11,1022,18],[1022,19,1022,26],[1022,27,1022,36],[1022,37,1022,46],[1022,47,1022,54],[1022,55,1022,62],[1023,3,1023,10],[1023,11,1023,18],[1023,19,1023,26],[1023,27,1023,36],[1023,37,1023,46],[1023,47,1023,54],[1023,55,1023,62],[1024,3,1024,10],[1024,11,1024,18],[1024,19,1024,26],[1024,27,1024,36],[1024,37,1024,46],[1024,47,1024,54],[1024,55,1024,62],[1019,3,1019,10],[1019,11,1019,18],[1019,19,1019,26],[1019,27,1019,36],[1019,37,1019,46],[1019,47,1019,54],[1019,55,1019,62],[1020,3,1020,10],[1020,11,1020,18],[1020,19,1020,26],[1020,27,1020,36],[1020,37,1020,46],[1020,47,1020,54],[1020,55,1020,62],[1021,3,1021,10],[1021,11,1021,18],[1021,19,1021,26],[1021,27,1021,36],[1021,37,1021,46],[1021,47,1021,54],[1021,55,1021,62],[1016,3,1016,10],[1016,11,1016,18],[1016,19,1016,26],[1016,27,1016,36],[1016,37,1016,46],[1016,47,1016,54],[1016,55,1016,62],[1017,3,1017,10],[1017,11,1017,18],[1017,19,1017,26],[1017,27,1017,36],[1017,37,1017,46],[1017,47,1017,54],[1017,55,1017,62],[1018,3,1018,10],[1018,11,1018,18],[1018,19,1018,26],[1018,27,1018,36],[1018,37,1018,46],[1018,47,1018,54],[1018,55,1018,62],[1013,3,1013,10],[1013,11,1013,18],[1013,19,1013,26],[1013,27,1013,36],[1013,37,1013,46],[1013,47,1013,54],[1013,55,1013,62],[1014,3,1014,10],[1014,11,1014,18],[1014,19,1014,26],[1014,27,1014,36],[1014,37,1014,46],[1014,47,1014,54],[1014,55,1014,62],[1015,3,1015,10],[1015,11,1015,18]],"merged_total":3616,"flags":["merged_cut"]}
[]
[null,null,null,null,null,null,null,null,null,null,null,null,null,null,null,null,null,null,null,null,null,null,null,null,null,null,null,null,null,null,null,null,null,null,null,null,null,null,null,null,null,null,null,null,null,null,null,null,null,null,null,null,null,null,null,null,null,null,null,null,null,null,null,null,null,null,null,null,null,null,null,null,null,null,null,null,null,null,null,null,null,null,null,null,null,null,null,null,null,null,null,null,null,null,null,null,null,null,null,null,null,null,null,null,null,null,null,null,null,null,null,null,null,null,null,null,null,null,null,null,null,null,"記載例"]
[]
[null,null,"社会福祉施設",null,null,null,null,null,null,null,null,null,null,null,null,null,null,null,null,null,null,null,null,null,null,null,null,null,null,null,null,null,null,null,null,null,null,null,null,null,null,null,null,null,null,null,null,null,null,null,null,null,null,null,null,null,null,null,null,null,null,null,null,null,null,null,null,null,"社会福祉施設"]
[]
[]
[]
[]
[null,null,"避難確保計画",null,null,null,null,null,null,null,null,null,null,null,null,null,null,null,null,null,null,null,null,null,null,null,null,null,null,null,null,null,null,null,null,null,null,null,null,null,null,null,null,null,null,null,null,null,null,null,null,null,null,null,null,null,null,null,null,null,null,null,null,null,null,null,null,null,"避難確保計画"]
[]
[]
[]
[]
[]
[]
["　対象災害：",null,null,null,null,null,null,null,null,null,null,null,null,null,null,null,null,{"$f":"IF(入力シート!M11=\"\",\"\",入力シート!M11)","v":""},null,null,null,null,null,null,null,null,null,null,null,null,null,null,null,null,null,null,null,null,null,null,null,null,null,null,null,null,null,null,null,null,null,null,null,null,null,null,null,null,null,null,null,null,null,null,null,null,"　対象災害：水害（洪水　内水　高潮　津波）"]
[null,null,null,null,null,null,null,null,null,null,null,null,null,null,null,null,null,null,null,null,null,null,null,null,null,null,null,null,null,null,null,null,null,null,null,null,null,null,null,null,null,null,null,null,null,null,null,null,null,null,null,null,null,null,null,null,null,null,null,null,null,null,null,null,null,null,"　　　　　　土砂災害（がけ崩れ・土石流・地すべり）"]
[]
[]
[]
[]
[]
[]
[]
[]
[]
[]
[]
[]
[]
[]
[null,null,"【施設名：",null,null,null,null,null,null,null,null,null,null,null,{"$f":"IF(入力シート!M9=\"\",\"\",入力シート!M9)","v":""},null,null,null,null,null,null,null,null,null,null,null,null,null,null,null,null,null,null,null,null,null,null,null,null,null,null,null,null,null,null,null,null,null,null,null,null,null,null,null,null,null,null,null,null,null,"】",null,null,null,null,null,null,null,"【施設名：",null,null,null,null,null,null,null,null,null,null,null,"○○○○○",null,null,null,null,null,null,null,null,null,null,null,null,null,null,null,null,null,null,null,null,null,null,null,null,null,null,null,null,null,null,null,null,null,null,null,null,null,null,null,null,null,null,null,null,null,"】"]
[]
[]
[null,null,null,null,null,null,null,null,null,null,null,null,null,null,null,null,null,null,{"$f":"IF(入力シート!M7=\"\",\"\",入力シート!M7)","v":""},null,null,null,null,null,null,null,"年",null,null,null,{"$f":"IF(入力シート!O7=\"\",\"\",入力シート!O7)","v":""},null,null,null,null,"月",null,null,null,"作成",null,null,null,null,null,null,null,null,null,null,null,null,null,null,null,null,null,null,null,null,null,null,null,null,null,null,null,null,null,null,null,null,null,null,null,null,null,null,null,null,null,null,null,null,"○",null,null,null,null,null,null,null,"年",null,null,null,"○",null,null,null,"月",null,null,null,"作成"]
[]
[]
[null,null,null,null,null,null,null,null,null,null,null,null,null,null,null,null,null,null,null,null,null,null,null,null,null,null,null,null,null,null,null,null,null,null,null,null,null,null,null,null,null,null,null,null,null,null,null,null,null,null,null,null,null,null,null,null,null,null,null,null,null,null,null,null,null,null,"このエクセルファイルの使い方"]
[null,null,null,null,null,null,null,null,null,null,null,null,null,null,null,null,null,null,null,null,null,null,null,null,null,null,null,null,null,null,null,null,null,null,null,null,null,null,null,null,null,null,null,null,null,null,null,null,null,null,null,null,null,null,null,null,null,null,null,null,null,null,null,null,null,null,"作業シートの必要な項目を記入してください。"]
[null,null,null,null,null,null,null,null,null,null,null,null,null,null,null,null,null,null,null,null,null,null,null,null,null,null,null,null,null,null,null,null,null,null,null,null,null,null,null,null,null,null,null,null,null,null,null,null,null,null,null,null,null,null,null,null,null,null,null,null,null,null,null,null,null,null,"記入する場所は桃色の空欄で示しています。"]
[null,null,null,null,null,null,null,null,null,null,null,null,null,null,null,null,null,null,null,null,null,null,null,null,null,null,null,null,null,null,null,null,null,null,null,null,null,null,null,null,null,null,null,null,null,null,null,null,null,null,null,null,null,null,null,null,null,null,null,null,null,null,null,null,null,null,"様式２は対象となる災害のみ記入してください。"]
[null,null,null,null,null,null,null,null,null,null,null,null,null,null,null,null,null,null,null,null,null,null,null,null,null,null,null,null,null,null,null,null,null,null,null,null,null,null,null,null,null,null,null,null,null,null,null,null,null,null,null,null,null,null,null,null,null,null,null,null,null,null,null,null,null,null,"自衛水防組織を設置する場合と設置しない場合があるので、目次を参考に作成してください。"]
[null,null,null,null,null,null,null,null,null,null,null,null,null,null,null,null,null,null,null,null,null,null,null,null,null,null,null,null,null,null,null,null,null,null,null,null,null,null,null,null,null,null,null,null,null,null,null,null,null,null,null,null,null,null,null,null,null,null,null,null,null,null,null,null,null,null,"記入が終わったら、不要な行を削除してください。"]
[]
[]
[]
[null,null,null,null,null,null,null,null,null,null,null,null,null,null,null,null,null,null,null,null,null,null,null,null,null,null,null,null,null,null,null,null,null,null,null,null,null,null,null,null,null,null,null,null,null,null,null,null,null,null,null,null,null,null,null,null,null,null,null,null,null,null,null,null,null,null,null,null,null,null,null,null,null,null,null,null,null,null,null,null,null,null,null,null,null,null,null,null,null,null,null,null,null,null,null,null,null,null,null,null,null,null,null,null,null,null,null,null,null,null,null,null,null,null,null,null,null,null,null,null,null,null,"記載例"]
[]
[null,null,"様式編　目次",null,null,null,null,null,null,null,null,null,null,null,null,null,null,null,null,null,null,null,null,null,null,null,null,null,null,null,null,null,null,null,null,null,null,null,null,null,null,null,null,null,null,null,null,null,null,null,null,null,null,null,null,null,null,null,null,null,null,null,null,null,null,null,null,null,"様式編　目次"]
[]
[null,null,null,null,null,null,null,null,null,null,null,null,null,null,null,null,null,null,null,null,null,null,null,null,null,null,null,null,null,null,null,null,null,null,null,null,null,null,null,null,null,null,null,null,null,null,null,null,null,null,null,null,null,null,null,null,null,null,null,null,null,null,null,null,null,null,null,null,"青色の書類は市町村長に提出してください。"]
[null,null,null,null,null,null,null,null,null,null,null,null,null,null,null,null,null,null,null,null,null,null,null,null,null,null,null,null,null,null,null,null,null,null,null,null,null,null,null,null,null,null,null,null,null,null,null,null,null,null,null,null,null,null,null,null,null,null,null,null,null,null,null,null,null,null,null,null,"自衛水防組織の有無によって、下記の表をコピーして使用してください。"]
[]
[null,null,null,null,null,null,null,null,null,null,null,null,null,null,null,null,null,null,null,null,null,null,null,null,null,null,null,null,null,null,null,null,null,null,null,null,null,null,null,null,null,null,null,null,null,null,null,null,null,null,null,null,null,null,null,null,null,null,null,null,null,null,null,null,null,null,null,null,null,null,"自衛水防組織を設置する場合",null,null,null,null,null,null,null,null,null,null,null,null,null,null,null,null,null,null,null,null,null,null,null,null,null,null,null,null,null,null,null,null,null,"自衛水防組織を設置しない場合"]
[null,null,null,null,null,null,null,null,null,null,null,null,null,null,null,null,null,null,null,null,null,null,null,null,null,null,null,null,null,null,null,null,null,null,null,null,null,null,null,null,null,null,null,null,null,null,null,null,null,null,null,null,null,null,null,null,null,null,null,null,null,null,null,null,null,null,null,null,null,null,null,null,"項目",null,null,null,null,null,null,null,null,null,null,null,null,null,null,null,null,null,"様式等",null,null,null,"ページ",null,null,null,null,null,null,null,null,null,null,null,"項目",null,null,null,null,null,null,null,null,null,null,null,null,null,null,null,null,null,"様式等",null,null,null,"ページ"]
[null,null,null,null,null,null,null,null,null,null,null,null,null,null,null,null,null,null,null,"項目",null,null,null,null,null,null,null,null,null,null,null,null,null,null,null,null,null,null,null,"様式等",null,null,null,null,"ページ",null,null,null,null,null,null,null,null,null,null,null,null,null,null,null,null,null,null,null,null,null,null,null,null,null,1,null,"計画の目的",null,null,null,null,null,null,null,null,null,null,null,null,null,null,null,null,null,"様式１",null,null,null,1,null,null,null,null,null,null,null,null,null,1,null,"計画の目的",null,null,null,null,null,null,null,null,null,null,null,null,null,null,null,null,null,"様式１",null,null,null,1,null,null,null,null,null,null,null,null,null,null,null,null,null,null,null,"ページ","ページ"]
[null,null,null,null,null,null,null,null,null,null,null,null,null,null,null,null,null,1,null,"計画の目的",null,null,null,null,null,null,null,null,null,null,null,null,null,null,null,null,null,null,null,"様式１",null,null,null,null,1,null,null,null,null,null,null,null,null,null,null,null,null,null,null,null,null,null,null,null,null,null,null,null,null,null,2,null,"計画の報告",null,null,null,null,null,null,null,null,null,null,null,null,null,null,null,null,null,"様式１",null,null,null,1,null,null,null,null,null,null,null,null,null,2,null,"計画の報告",null,null,null,null,null,null,null,null,null,null,null,null,null,null,null,null,null,"様式１",null,null,null,1,null,null,null,null,null,null,null,null,null,null,null,null,null,null,null,1,1]
[null,null,null,null,null,null,null,null,null,null,null,null,null,null,null,null,null,2,null,"計画の報告",null,null,null,null,null,null,null,null,null,null,null,null,null,null,null,null,null,null,null,"様式１",null,null,null,null,1,null,null,null,null,null,null,null,null,null,null,null,null,null,null,null,null,null,null,null,null,null,null,null,null,null,3,null,"計画の適用範囲",null,null,null,null,null,null,null,null,null,null,null,null,null,null,null,null,null,"様式１",null,null,null,1,null,null,null,null,null,null,null,null,null,3,null,"計画の適用範囲",null,null,null,null,null,null,null,null,null,null,null,null,null,null,null,null,null,"様式１",null,null,null,1,null,null,null,null,null,null,null,null,null,null,null,null,null,null,null,1,1]
[null,null,null,null,null,null,null,null,null,null,null,null,null,null,null,null,null,3,null,"計画の適用範囲",null,null,null,null,null,null,null,null,null,null,null,null,null,null,null,null,null,null,null,"様式１",null,null,null,null,1,null,null,null,null,null,null,null,null,null,null,null,null,null,null,null,null,null,null,null,null,null,null,null,null,null,4,null,"防災体制",null,null,null,null,null,null,null,null,null,null,null,null,null,null,null,null,null,"様式２",null,null,null,"2～5",null,null,null,null,null,null,null,null,null,4,null,"防災体制",null,null,null,null,null,null,null,null,null,null,null,null,null,null,null,null,null,"様式２",null,null,null,"2～5",null,null,null,null,null,null,null,null,null,null,null,null,null,null,null,1,1]
[null,null,null,null,null,null,null,null,null,null,null,null,null,null,null,null,null,4,null,"防災体制",null,null,null,null,null,null,null,null,null,null,null,null,null,null,null,null,null,null,null,"様式２",null,null,null,null,"2～5",null,null,null,null,null,null,null,null,null,null,null,null,null,null,null,null,null,null,null,null,null,null,null,null,null,5,null,"情報収集・伝達",null,null,null,null,null,null,null,null,null,null,null,null,null,null,null,null,null,"様式３",null,null,null,6,null,null,null,null,null,null,null,null,null,5,null,"情報収集・伝達",null,null,null,null,null,null,null,null,null,null,null,null,null,null,null,null,null,"様式３",null,null,null,6,null,null,null,null,null,null,null,null,null,null,null,null,null,null,null,"2～5","2～5"]
[null,null,null,null,null,null,null,null,null,null,null,null,null,null,null,null,null,5,null,"情報収集・伝達",null,null,null,null,null,null,null,null,null,null,null,null,null,null,null,null,null,null,null,"様式３",null,null,null,null,6,null,null,null,null,null,null,null,null,null,null,null,null,null,null,null,null,null,null,null,null,null,null,null,null,null,6,null,"避難誘導",null,null,null,null,null,null,null,null,null,null,null,null,null,null,null,null,null,"様式４",null,null,null,7,null,null,null,null,null,null,null,null,null,6,null,"避難誘導",null,null,null,null,null,null,null,null,null,null,null,null,null,null,null,null,null,"様式４",null,null,null,7,null,null,null,null,null,null,null,null,null,null,null,null,null,null,null,6,6]
[null,null,null,null,null,null,null,null,null,null,null,null,null,null,null,null,null,6,null,"避難誘導",null,null,null,null,null,null,null,null,null,null,null,null,null,null,null,null,null,null,null,"様式４",null,null,null,null,7,null,null,null,null,null,null,null,null,null,null,null,null,null,null,null,null,null,null,null,null,null,null,null,null,null,7,null,"避難の確保を図るための施設の整備",null,null,null,null,null,null,null,null,null,null,null,null,null,null,null,null,null,"様式５",null,null,null,8,null,null,null,null,null,null,null,null,null,7,null,"避難の確保を図るための施設の整備",null,null,null,null,null,null,null,null,null,null,null,null,null,null,null,null,null,"様式５",null,null,null,8,null,null,null,null,null,null,null,null,null,null,null,null,null,null,null,7,7]
[null,null,null,null,null,null,null,null,null,null,null,null,null,null,null,null,null,7,null,"避難の確保を図るための施設の整備",null,null,null,null,null,null,null,null,null,null,null,null,null,null,null,null,null,null,null,"様式５",null,null,null,null,8,null,null,null,null,null,null,null,null,null,null,null,null,null,null,null,null,null,null,null,null,null,null,null,null,null,8,null,"防災教育及び訓練の実施",null,null,null,null,null,null,null,null,null,null,null,null,null,null,null,null,null,"様式５",null,null,null,8,null,null,null,null,null,null,null,null,null,8,null,"防災教育及び訓練の実施",null,null,null,null,null,null,null,null,null,null,null,null,null,null,null,null,null,"様式５",null,null,null,8,null,null,null,null,null,null,null,null,null,null,null,null,null,null,null,8,8]
[null,null,null,null,null,null,null,null,null,null,null,null,null,null,null,null,null,8,null,"防災教育及び訓練の実施",null,null,null,null,null,null,null,null,null,null,null,null,null,null,null,null,null,null,null,"様式５",null,null,null,null,8,null,null,null,null,null,null,null,null,null,null,null,null,null,null,null,null,null,null,null,null,null,null,null,null,null,9,null,"自衛水防組織の業務に関する事項",null,null,null,null,null,null,null,null,null,null,null,null,null,null,null,null,null,"様式６",null,null,null,9,null,null,null,null,null,null,null,null,null,10,null,"防災教育及び訓練の年間計画",null,null,null,null,null,null,null,null,null,null,null,null,null,null,null,null,null,"様式７",null,null,null,9,null,null,null,null,null,null,null,null,null,null,null,null,null,null,null,8,8]
[null,null,null,null,null,null,null,null,null,null,null,null,null,null,null,null,null,9,null,"自衛水防組織の業務に関する事項",null,null,null,null,null,null,null,null,null,null,null,null,null,null,null,null,null,null,null,"様式６",null,null,null,null,{"$f":"IF(入力シート!M213=\"有\",'出力シート（避難確保計画）'!EO65,EP65)","v":"－"},null,null,null,null,null,null,null,null,null,null,null,null,null,null,null,null,null,null,null,null,null,null,null,null,null,10,null,"防災教育及び訓練の年間計画",null,null,null,null,null,null,null,null,null,null,null,null,null,null,null,null,null,"様式７",null,null,null,10,null,null,null,null,null,null,null,null,null,11,null,"利用者緊急連絡先一覧表",null,null,null,null,null,null,null,null,null,null,null,null,null,null,null,null,null,"様式８",null,null,null,10,null,null,null,null,null,null,null,null,null,null,null,null,null,null,null,9,"－"]
[null,null,null,null,null,null,null,null,null,null,null,null,null,null,null,null,null,10,null,"防災教育及び訓練の年間計画",null,null,null,null,null,null,null,null,null,null,null,null,null,null,null,null,null,null,null,"様式７",null,null,null,null,{"$f":"IF(入力シート!M213=\"有\",'出力シート（避難確保計画）'!EO66,EP66)","v":9},null,null,null,null,null,null,null,null,null,null,null,null,null,null,null,null,null,null,null,null,null,null,null,null,null,11,null,"利用者緊急連絡先一覧表",null,null,null,null,null,null,null,null,null,null,null,null,null,null,null,null,null,"様式８",null,null,null,11,null,null,null,null,null,null,null,null,null,12,null,"緊急連絡網",null,null,null,null,null,null,null,null,null,null,null,null,null,null,null,null,null,"様式９",null,null,null,11,null,null,null,null,null,null,null,null,null,null,null,null,null,null,null,10,9]
[null,null,null,null,null,null,null,null,null,null,null,null,null,null,null,null,null,11,null,"利用者緊急連絡先一覧表",null,null,null,null,null,null,null,null,null,null,null,null,null,null,null,null,null,null,null,"様式８",null,null,null,null,{"$f":"IF(入力シート!M213=\"有\",'出力シート（避難確保計画）'!EO67,EP67)","v":10},null,null,null,null,null,null,null,null,null,null,null,null,null,null,null,null,null,null,null,null,null,null,null,null,null,12,null,"緊急連絡網",null,null,null,null,null,null,null,null,null,null,null,null,null,null,null,null,null,"様式９",null,null,null,12,null,null,null,null,null,null,null,null,null,13,null,"外部機関等の緊急連絡先一覧表",null,null,null,null,null,null,null,null,null,null,null,null,null,null,null,null,null,"様式10",null,null,null,11,null,null,null,null,null,null,null,null,null,null,null,null,null,null,null,11,10]
[null,null,null,null,null,null,null,null,null,null,null,null,null,null,null,null,null,12,null,"緊急連絡網",null,null,null,null,null,null,null,null,null,null,null,null,null,null,null,null,null,null,null,"様式９",null,null,null,null,{"$f":"IF(入力シート!M213=\"有\",'出力シート（避難確保計画）'!EO68,EP68)","v":11},null,null,null,null,null,null,null,null,null,null,null,null,null,null,null,null,null,null,null,null,null,null,null,null,null,13,null,"外部機関等の緊急連絡先一覧表",null,null,null,null,null,null,null,null,null,null,null,null,null,null,null,null,null,"様式10",null,null,null,12,null,null,null,null,null,null,null,null,null,14,null,"対応別避難誘導一覧表",null,null,null,null,null,null,null,null,null,null,null,null,null,null,null,null,null,"様式11",null,null,null,12,null,null,null,null,null,null,null,null,null,null,null,null,null,null,null,12,11]
[null,null,null,null,null,null,null,null,null,null,null,null,null,null,null,null,null,13,null,"外部機関等の緊急連絡先一覧表",null,null,null,null,null,null,null,null,null,null,null,null,null,null,null,null,null,null,null,"様式10",null,null,null,null,{"$f":"IF(入力シート!M213=\"有\",'出力シート（避難確保計画）'!EO69,EP69)","v":11},null,null,null,null,null,null,null,null,null,null,null,null,null,null,null,null,null,null,null,null,null,null,null,null,null,14,null,"対応別避難誘導一覧表",null,null,null,null,null,null,null,null,null,null,null,null,null,null,null,null,null,"様式11",null,null,null,13,null,null,null,null,null,null,null,null,null,15,null,"防災体制一覧表",null,null,null,null,null,null,null,null,null,null,null,null,null,null,null,null,null,"様式12",null,null,null,13,null,null,null,null,null,null,null,null,null,null,null,null,null,null,null,12,11]
[null,null,null,null,null,null,null,null,null,null,null,null,null,null,null,null,null,14,null,"対応別避難誘導一覧表",null,null,null,null,null,null,null,null,null,null,null,null,null,null,null,null,null,null,null,"様式11",null,null,null,null,{"$f":"IF(入力シート!M213=\"有\",'出力シート（避難確保計画）'!EO70,EP70)","v":12},null,null,null,null,null,null,null,null,null,null,null,null,null,null,null,null,null,null,null,null,null,null,null,null,null,"-",null,"自衛水防組織活動要領",null,null,null,null,null,null,null,null,null,null,null,null,null,null,null,null,null,"別添",null,null,null,14,null,null,null,null,null,null,null,null,null,"-",null,"施設周辺の避難地図",null,null,null,null,null,null,null,null,null,null,null,null,null,null,null,null,null,"別紙１",null,null,null,"－",null,null,null,null,null,null,null,null,null,null,null,null,null,null,null,13,12]
[null,null,null,null,null,null,null,null,null,null,null,null,null,null,null,null,null,15,null,"防災体制一覧表",null,null,null,null,null,null,null,null,null,null,null,null,null,null,null,null,null,null,null,"様式12",null,null,null,null,{"$f":"IF(入力シート!M213=\"有\",'出力シート（避難確保計画）'!EO71,EP71)","v":13},null,null,null,null,null,null,null,null,null,null,null,null,null,null,null,null,null,null,null,null,null,null,null,null,null,"-",null,"自衛水防組織の編成と任務",null,null,null,null,null,null,null,null,null,null,null,null,null,null,null,null,null,"別表１",null,null,null,15,null,null,null,null,null,null,null,null,null,null,null,null,null,null,null,null,null,null,null,null,null,null,null,null,null,null,null,null,null,null,null,null,null,null,null,null,null,null,null,null,null,null,null,null,null,null,null,null,null,"－",13]
[null,null,null,null,null,null,null,null,null,null,null,null,null,null,null,null,null,"-",null,"自衛水防組織活動要領",null,null,null,null,null,null,null,null,null,null,null,null,null,null,null,null,null,null,null,"別添",null,null,null,null,{"$f":"IF(入力シート!M213=\"有\",'出力シート（避難確保計画）'!EO72,EP72)","v":"－"},null,null,null,null,null,null,null,null,null,null,null,null,null,null,null,null,null,null,null,null,null,null,null,null,null,"-",null,"自衛水防組織装備品リスト",null,null,null,null,null,null,null,null,null,null,null,null,null,null,null,null,null,"別表２",null,null,null,15,null,null,null,null,null,null,null,null,null,null,null,null,null,null,null,null,null,null,null,null,null,null,null,null,null,null,null,null,null,null,null,null,null,null,null,null,null,null,null,null,null,null,null,null,null,null,null,null,null,14,"－"]
[null,null,null,null,null,null,null,null,null,null,null,null,null,null,null,null,null,"-",null,"自衛水防組織の編成と任務",null,null,null,null,null,null,null,null,null,null,null,null,null,null,null,null,null,null,null,"別表１",null,null,null,null,{"$f":"IF(入力シート!M213=\"有\",'出力シート（避難確保計画）'!EO73,EP73)","v":"－"},null,null,null,null,null,null,null,null,null,null,null,null,null,null,null,null,null,null,null,null,null,null,null,null,null,"-",null,"施設周辺の避難地図",null,null,null,null,null,null,null,null,null,null,null,null,null,null,null,null,null,"別紙１",null,null,null,"－",null,null,null,null,null,null,null,null,null,null,null,null,null,null,null,null,null,null,null,null,null,null,null,null,null,null,null,null,null,null,null,null,null,null,null,null,null,null,null,null,null,null,null,null,null,null,null,null,null,15,"－"]
[null,null,null,null,null,null,null,null,null,null,null,null,null,null,null,null,null,"-",null,"自衛水防組織装備品リスト",null,null,null,null,null,null,null,null,null,null,null,null,null,null,null,null,null,null,null,"別表２",null,null,null,null,{"$f":"IF(入力シート!M213=\"有\",'出力シート（避難確保計画）'!EO74,EP74)","v":"－"},null,null,null,null,null,null,null,null,null,null,null,null,null,null,null,null,null,null,null,null,null,null,null,null,null,null,null,null,null,null,null,null,null,null,null,null,null,null,null,null,null,null,null,null,null,null,null,null,null,null,null,null,null,null,null,null,null,null,null,null,null,null,null,null,null,null,null,null,null,null,null,null,null,null,null,null,null,null,null,null,null,null,null,null,null,null,null,null,null,null,null,null,null,null,null,null,null,null,null,15,"－"]
[null,null,null,null,null,null,null,null,null,null,null,null,null,null,null,null,null,"-",null,"施設周辺の避難地図",null,null,null,null,null,null,null,null,null,null,null,null,null,null,null,null,null,null,null,"別紙１",null,null,null,null,{"$f":"IF(入力シート!M213=\"有\",'出力シート（避難確保計画）'!EO75,EP75)","v":"－"},null,null,null,null,null,null,null,null,null,null,null,null,null,null,null,null,null,null,null,null,null,null,null,null,null,null,null,null,null,null,null,null,null,null,null,null,null,null,null,null,null,null,null,null,null,null,null,null,null,null,null,null,null,null,null,null,null,null,null,null,null,null,null,null,null,null,null,null,null,null,null,null,null,null,null,null,null,null,null,null,null,null,null,null,null,null,null,null,null,null,null,null,null,null,null,null,null,null,null,"－","－"]
[null,null,null,null,null,null,null,null,null,null,null,null,null,null,null,null,null,null,null,null,null,null,null,null,null,null,null,null,null,null,null,null,null,null,null,null,null,null,null,null,null,null,null,null,null,null,null,null,null,null,null,null,null,null,null,null,null,null,null,null,null,null,null,null,null,null,null,null,null,"　自衛水防組織は対象災害に応じて、以下のように定められています。"]
[]
[null,null,null,null,null,null,null,null,null,null,null,null,null,null,null,null,null,null,null,null,null,null,null,null,null,null,null,null,null,null,null,null,null,null,null,null,null,null,null,null,null,null,null,null,null,null,null,null,null,null,null,null,null,null,null,null,null,null,null,null,null,null,null,null,null,null,null,null,null,"（洪水、内水、高潮が対象となる場合）"]
[null,null,null,null,null,null,null,null,null,null,null,null,null,null,null,null,null,null,null,null,null,null,null,null,null,null,null,null,null,null,null,null,null,null,null,null,null,null,null,null,null,null,null,null,null,null,null,null,null,null,null,null,null,null,null,null,null,null,null,null,null,null,null,null,null,null,null,null,null,"　要配慮者利用施設には、自衛水防組織の設置の努力義務が課せられています（水防法第十五条の三第6項）。自衛水防組織を設置する場合、様式６も作成し、合わせて、別添、別表１、別表２を作成します。"]
[]
[]
[null,null,null,null,null,null,null,null,null,null,null,null,null,null,null,null,null,null,null,null,null,null,null,null,null,null,null,null,null,null,null,null,null,null,null,null,null,null,null,null,null,null,null,null,null,null,null,null,null,null,null,null,null,null,null,null,null,null,null,null,null,null,null,null,null,null,null,null,null,"（津波、土砂災害が対象となる場合）"]
[null,null,null,null,null,null,null,null,null,null,null,null,null,null,null,null,null,null,null,null,null,null,null,null,null,null,null,null,null,null,null,null,null,null,null,null,null,null,null,null,null,null,null,null,null,null,null,null,null,null,null,null,null,null,null,null,null,null,null,null,null,null,null,null,null,null,null,null,null,"　要配慮者利用施設には、自衛水防組織の設置の努力義務規定はありません。"]
[]
[null,null,null,null,null,null,null,null,null,null,null,null,null,null,null,null,null,null,null,null,null,null,null,null,null,null,null,null,null,null,null,null,null,null,null,null,null,null,null,null,null,null,null,null,null,null,null,null,null,null,null,null,null,null,null,null,null,null,null,null,null,null,null,null,null,null,null,null,null,"（参考）自衛水防組織を設置している場合としていない場合の組織図"]
[null,null,null,null,null,null,null,null,null,null,null,null,null,null,null,null,null,null,null,null,null,null,null,null,null,null,null,null,null,null,null,null,null,null,null,null,null,null,null,null,null,null,null,null,null,null,null,null,null,null,null,null,null,null,null,null,null,null,null,null,null,null,null,null,null,null,null,null,null,null,"《自衛水防組織を設置する場合》",null,null,null,null,null,null,null,null,null,null,null,null,null,null,null,null,null,null,null,null,null,null,null,null,null,null,null,null,null,null,null,null,null,"《自衛水防組織を設置しない場合》"]
[]
[null,null,null,null,null,null,null,null,null,null,null,null,null,null,null,null,null,null,null,null,null,null,null,null,null,null,null,null,null,null,null,null,null,null,null,null,null,null,null,null,null,null,null,null,null,null,null,null,null,null,null,null,null,null,null,null,null,null,null,null,null,null,null,null,null,null,null,null,null,null,null,null,"管理権限者",null,null,null,null,null,null,null,null,null,null,null,null,null,null,null,null,null,null,null,null,null,null,null,null,null,null,null,null,null,null,null,null,null,"管理権限者"]
[null,null,null,null,null,null,null,null,null,null,null,null,null,null,null,null,null,null,null,null,null,null,null,null,null,null,null,null,null,null,null,null,null,null,null,null,null,null,null,null,null,null,null,null,null,null,null,null,null,null,null,null,null,null,null,null,null,null,null,null,null,null,null,null,null,null,null,null,null,null,null,null,null,null,null,null,null,"↓"]
[null,null,null,null,null,null,null,null,null,null,null,null,null,null,null,null,null,null,null,null,null,null,null,null,null,null,null,null,null,null,null,null,null,null,null,null,null,null,null,null,null,null,null,null,null,null,null,null,null,null,null,null,null,null,null,null,null,null,null,null,null,null,null,null,null,null,null,null,null,null,null,null,"統括管理者"]
[]
[null,null,null,null,null,null,null,null,null,null,null,null,null,null,null,null,null,null,null,null,null,null,null,null,null,null,null,null,null,null,null,null,null,null,null,null,null,null,null,null,null,null,null,null,null,null,null,null,null,null,null,null,null,null,null,null,null,null,null,null,null,null,null,null,null,null,null,null,null,null,null,null,null,null,null,null,null,null,null,null,"総括・情報班",null,null,null,null,null,null,null,null,null,null,null,null,null,null,null,null,null,null,null,null,null,null,null,null,null,null,null,null,null,null,null,null,null,"情報収集伝達要員"]
[]
[]
[null,null,null,null,null,null,null,null,null,null,null,null,null,null,null,null,null,null,null,null,null,null,null,null,null,null,null,null,null,null,null,null,null,null,null,null,null,null,null,null,null,null,null,null,null,null,null,null,null,null,null,null,null,null,null,null,null,null,null,null,null,null,null,null,null,null,null,null,null,null,null,null,null,null,null,null,null,null,null,null,"避難誘導班",null,null,null,null,null,null,null,null,null,null,null,null,null,null,null,null,null,null,null,null,null,null,null,null,null,null,null,null,null,null,null,null,null,"避難誘導要員"]
[]
[]
[]
[]
[null,null,null,null,null,null,null,null,null,null,null,null,null,null,null,null,null,null,null,null,null,null,null,null,null,null,null,null,null,null,null,null,null,null,null,null,null,null,null,null,null,null,null,null,null,null,null,null,null,null,null,null,null,null,null,null,"様式１",null,null,null,null,null,null,null,null,null,null,null,null,null,null,null,null,null,null,null,null,null,null,null,null,null,null,null,null,null,null,null,null,null,null,null,null,null,null,null,null,null,null,null,null,null,null,null,null,null,null,null,null,null,null,null,null,null,null,null,null,null,null,null,null,null,"記載例"]
[]
[]
[null,null,"１　計画の目的",null,null,null,null,null,null,null,null,null,null,null,null,null,null,null,null,null,null,null,null,null,null,null,null,null,null,null,null,null,null,null,null,null,null,null,null,null,null,null,null,null,null,null,null,null,null,null,null,null,null,null,null,null,null,null,null,null,null,null,null,null,null,null,null,null,"１　計画の目的"]
[null,null,"　この計画は、本施設の利用者の洪水時の円滑かつ迅速な避難の確保を図ることを目的とする。\n　また、作成した避難確保計画に基づいて、安全な避難行動を確実に行うことができるよう、防災教育や訓練を行い、施設の職員や利用者に対して、洪水に関する知識を深めるとともに、訓練等を通して課題等を抽出し、必要に応じてこの計画を見直ししていくものとする。",null,null,null,null,null,null,null,null,null,null,null,null,null,null,null,null,null,null,null,null,null,null,null,null,null,null,null,null,null,null,null,null,null,null,null,null,null,null,null,null,null,null,null,null,null,null,null,null,null,null,null,null,null,null,null,null,null,null,null,null,null,null,null,null,null,"　この計画は、本施設の利用者の洪水時・内水時・高潮時・津波の発生時・土砂災害の発生時の円滑かつ迅速な避難の確保を図ることを目的とする。\n　また、作成した避難確保計画に基づいて、安全な避難行動を確実に行うことができるよう、防災教育や訓練を行い、施設の職員や利用者に対して、洪水・内水・高潮・津波・土砂災害に関する知識を深めるとともに、訓練等を通して課題等を抽出し、必要に応じてこの計画を見直ししていくものとする。"]
[]
[]
[]
[]
[]
[null,null,"関連法：水防法",null,null,null,null,null,null,null,null,null,null,null,null,null,null,null,null,null,null,null,null,null,null,null,null,null,null,null,null,null,null,null,null,null,null,null,null,null,null,null,null,null,null,null,null,null,null,null,null,null,null,null,null,null,null,null,null,null,null,null,null,null,null,null,null,null,"関連法：水防法、津波防災地域づくりに関する法律、土砂災害防止法"]
[]
[]
[null,null,"２　計画の報告",null,null,null,null,null,null,null,null,null,null,null,null,null,null,null,null,null,null,null,null,null,null,null,null,null,null,null,null,null,null,null,null,null,null,null,null,null,null,null,null,null,null,null,null,null,null,null,null,null,null,null,null,null,null,null,null,null,null,null,null,null,null,null,null,null,"２　計画の報告"]
[null,null,"　計画を作成又は必要に応じて見直し・修正をしたときは、遅滞なく、当該計画を市町村長へ報告する。",null,null,null,null,null,null,null,null,null,null,null,null,null,null,null,null,null,null,null,null,null,null,null,null,null,null,null,null,null,null,null,null,null,null,null,null,null,null,null,null,null,null,null,null,null,null,null,null,null,null,null,null,null,null,null,null,null,null,null,null,null,null,null,null,null,"　計画を作成又は必要に応じて見直し・修正をしたときは、遅滞なく、当該計画を市町村長へ報告する。"]
[]
[]
[]
[null,null,"３　計画の適用範囲",null,null,null,null,null,null,null,null,null,null,null,null,null,null,null,null,null,null,null,null,null,null,null,null,null,null,null,null,null,null,null,null,null,null,null,null,null,null,null,null,null,null,null,null,null,null,null,null,null,null,null,null,null,null,null,null,null,null,null,null,null,null,null,null,null,"３　計画の適用範囲"]
[null,null,"　この計画は、本施設に勤務又は利用する全ての者に適用するものとする。",null,null,null,null,null,null,null,null,null,null,null,null,null,null,null,null,null,null,null,null,null,null,null,null,null,null,null,null,null,null,null,null,null,null,null,null,null,null,null,null,null,null,null,null,null,null,null,null,null,null,null,null,null,null,null,null,null,null,null,null,null,null,null,null,null,"　この計画は、本施設に勤務又は利用する全ての者に適用するものとする。"]
[]
[]
[null,null,null,null,null,null,null,null,null,null,null,"施設の状況",null,null,null,null,null,null,null,null,null,null,null,null,null,null,null,null,null,null,null,null,null,null,null,null,null,null,null,null,null,null,null,null,null,null,null,null,null,null,null,null,null,null,null,null,null,null,null,null,null,null,null,null,null,null,null,null,null,null,null,null,null,null,null,null,null,"施設の状況"]
[null,null,null,null,null,null,null,null,null,null,null,null,null,null,null,null,null,null,null,"平　日",null,null,null,null,null,null,null,null,null,null,null,null,null,null,null,null,null,"休　日",null,null,null,null,null,null,null,null,null,null,null,null,null,null,null,null,null,null,null,null,null,null,null,null,null,null,null,null,null,null,null,null,null,null,null,null,null,null,null,null,null,null,null,null,null,null,null,"平　日",null,null,null,null,null,null,null,null,null,null,null,null,null,null,null,null,null,"休　日"]
[null,null,null,null,null,null,null,null,null,null,null,null,null,null,null,null,null,null,null,"利用者",null,null,null,null,null,null,null,null,"施設職員",null,null,null,null,null,null,null,null,"利用者",null,null,null,null,null,null,null,null,"施設職員",null,null,null,null,null,null,null,null,null,null,null,null,null,null,null,null,null,null,null,null,null,null,null,null,null,null,null,null,null,null,null,null,null,null,null,null,null,null,"利用者",null,null,null,null,null,null,null,null,"施設職員",null,null,null,null,null,null,null,null,"利用者",null,null,null,null,null,null,null,null,"施設職員"]
[null,null,null,null,null,null,null,null,null,null,null,"昼　間",null,null,null,null,null,null,null,"約",null,null,{"$f":"IF(入力シート!O17=\"\",\"\",入力シート!O17)","v":""},null,null,"名",null,null,"約",null,null,{"$f":"IF(入力シート!S17=\"\",\"\",入力シート!S17)","v":""},null,null,"名",null,null,"約",null,null,{"$f":"IF(入力シート!O21=\"　\",\"　\",IF(入力シート!O21=\"平日と同じ\",W125,入力シート!O23))","v":""},null,null,"名",null,null,"約",null,null,{"$f":"IF(入力シート!O21=\"　\",\"　\",IF(入力シート!O21=\"平日と同じ\",AF125,入力シート!S23))","v":""},null,null,"名",null,null,null,null,null,null,null,null,null,null,null,null,null,null,null,null,null,null,null,null,null,null,null,null,"昼　間",null,null,null,null,null,null,null,"約",null,null,27,null,null,"名",null,null,"約",null,null,9,null,null,"名",null,null,"約",null,null,null,null,null,"名",null,null,"約",null,null,null,null,null,"名"]
[null,null,null,null,null,null,null,null,null,null,null,"夜　間",null,null,null,null,null,null,null,"約",null,null,{"$f":"IF(入力シート!O19=\"\",\"\",入力シート!O19)","v":""},null,null,"名",null,null,"約",null,null,{"$f":"IF(入力シート!S19=\"\",\"\",入力シート!S19)","v":""},null,null,"名",null,null,"約",null,null,{"$f":"IF(入力シート!O21=\"　\",\"　\",(IF(入力シート!O21=\"平日と同じ\",W126,入力シート!O25)))","v":""},null,null,"名",null,null,"約",null,null,{"$f":"IF(入力シート!O21=\"　\",\"　\",IF(入力シート!O21=\"平日と同じ\",AF126,入力シート!S25))","v":""},null,null,"名",null,null,null,null,null,null,null,null,null,null,null,null,null,null,null,null,null,null,null,null,null,null,null,null,"夜　間",null,null,null,null,null,null,null,"約",null,null,9,null,null,"名",null,null,"約",null,null,2,null,null,"名",null,null,"約",null,null,null,null,null,"名",null,null,"約",null,null,null,null,null,"名"]
[]
[null,null,null,null,null,null,null,null,null,null,null,"※利用者数は最大の利用者数を記載（おおよその利用者数でもよい）",null,null,null,null,null,null,null,null,null,null,null,null,null,null,null,null,null,null,null,null,null,null,null,null,null,null,null,null,null,null,null,null,null,null,null,null,null,null,null,null,null,null,null,null,null,null,null,null,null,null,null,null,null,null,null,null,null,null,null,null,null,null,null,null,null,"※利用者数は最大の利用者数を記載（おおよその利用者数でもよい）"]
[null,null,null,null,null,null,null,null,null,null,null,"※昼間は通所部門と入所部門の合計人数を記載",null,null,null,null,null,null,null,null,null,null,null,null,null,null,null,null,null,null,null,null,null,null,null,null,null,null,null,null,null,null,null,null,null,null,null,null,null,null,null,null,null,null,null,null,null,null,null,null,null,null,null,null,null,null,null,null,null,null,null,null,null,null,null,null,null,"※昼間は通所部門と入所部門の合計人数を記載"]
[null,null,null,null,null,null,null,null,null,null,null,"※夜間は入所部門の人数を記載",null,null,null,null,null,null,null,null,null,null,null,null,null,null,null,null,null,null,null,null,null,null,null,null,null,null,null,null,null,null,null,null,null,null,null,null,null,null,null,null,null,null,null,null,null,null,null,null,null,null,null,null,null,null,null,null,null,null,null,null,null,null,null,null,null,"※夜間は入所部門の人数を記載"]
[null,null,null,null,null,null,null,null,null,null,null,null,null,null,null,null,null,null,null,null,null,null,null,null,null,null,null,null,null,null,null,null,null,null,null,null,null,null,null,null,null,null,null,null,null,null,null,null,null,null,null,null,null,null,null,null,null,null,null,null,null,null,null,null,null,null,null,null,null,null,null,null,null,null,null,null,null,"※休日は訪問介護を実施、利用者はいない"]
[]
[null,null,"●　計画の見直し",null,null,null,null,null,null,null,null,null,null,null,null,null,null,null,null,null,null,null,null,null,null,null,null,null,null,null,null,null,null,null,null,null,null,null,null,null,null,null,null,null,null,null,null,null,null,null,null,null,null,null,null,null,null,null,null,null,null,null,null,null,null,null,null,null,"●　計画の見直し"]
[null,null,"避難訓練の結果や社会情勢の変化に伴い、定期的に見直すものとする。",null,null,null,null,null,null,null,null,null,null,null,null,null,null,null,null,null,null,null,null,null,null,null,null,null,null,null,null,null,null,null,null,null,null,null,null,null,null,null,null,null,null,null,null,null,null,null,null,null,null,null,null,null,null,null,null,null,null,null,null,null,null,null,null,null,"避難訓練の結果や社会情勢の変化に伴い、定期的に見直すものとする。"]
[]
[null,null,"●　事前休業の判断について",null,null,null,null,null,null,null,null,null,null,null,null,null,null,null,null,null,null,null,null,null,null,null,null,null,null,null,null,null,null,null,null,null,null,null,null,null,null,null,null,null,null,null,null,null,null,null,null,null,null,null,null,null,null,null,null,null,null,null,null,null,null,null,null,null,"●　事前休業の判断について"]
[null,null,{"$f":"IF(入力シート!W27=FALSE,\"事前休業の基準は設定していない。\",\"　大型台風の襲来が予想される場合で、公共交通機関の計画的な運休が予定される場合、通所部門を臨時休業とする。\")","v":"事前休業の基準は設定していない。"},null,null,null,null,null,null,null,null,null,null,null,null,null,null,null,null,null,null,null,null,null,null,null,null,null,null,null,null,null,null,null,null,null,null,null,null,null,null,null,null,null,null,null,null,null,null,null,null,null,null,null,null,null,null,null,null,null,null,null,null,null,null,null,null,null,"　大型台風の襲来が予想される場合で、公共交通機関の計画的な運休が予定される場合、通所部門を臨時休業とする。"]
[null,null,{"$f":"IF(入力シート!W27=FALSE,\"\",\"　または\")","v":""},null,null,null,null,{"$f":"IF(入力シート!W27=FALSE,\"\",IF(入力シート!D30=\"\",\"\",入力シート!D30))","v":""},null,null,null,null,null,null,{"$f":"IF(入力シート!W27=FALSE,\"\",\"の時点で、全県下又は「\")","v":""},null,null,null,null,null,null,null,null,null,null,null,null,{"$f":"IF(入力シート!W27=FALSE,\"\",IF(入力シート!M30=\"\",\"\",入力シート!M30))","v":""},null,null,null,null,null,null,null,null,null,null,{"$f":"IF(入力シート!W27=FALSE,\"\",\"」に以下のいずれかが発令されている場合は、\")","v":""},null,null,null,null,null,null,null,null,null,null,null,null,null,null,null,null,null,null,null,null,null,null,null,null,null,null,null,null,null,"　または午前",null,null,null,null,null,null,null,null,null,"時の時点で、全県下又は「",null,null,null,null,null,null,null,null,null,null,null,null,null,null,null,null,null,null,null,null,null,null,null,null,null,"」に以下のいずれかが発令されている場合は、"]
[null,null,{"$f":"IF(入力シート!W27=FALSE,\"\",\"通所部門を臨時休業とする。\")","v":""},null,null,null,null,null,null,null,null,null,null,null,null,null,null,null,null,null,null,null,null,null,null,null,null,null,null,null,null,null,null,null,null,null,null,null,null,null,null,null,null,null,null,null,null,null,null,null,null,null,null,null,null,null,null,null,null,null,null,null,null,null,null,null,null,null,"通所部門を臨時休業とする。"]
[]
[null,null,null,{"$f":"IF(入力シート!W27=FALSE,\"\",IF(入力シート!F34=\"\",\"\",入力シート!F34))","v":""},null,null,null,null,null,null,null,null,null,null,null,null,null,null,null,null,null,null,null,null,null,null,null,null,null,null,null,null,null,null,null,null,null,null,null,null,null,null,null,null,null,null,null,null,null,null,null,null,null,null,null,null,null,null,null,null,null,null,null,null,null,null,null,null,null,"暴風警報又は特別警報"]
[null,null,null,{"$f":"IF(入力シート!W27=FALSE,\"\",IF(入力シート!F36=\"\",\"\",入力シート!F36))","v":""},null,null,null,null,null,null,null,null,null,null,null,null,null,null,null,null,null,null,null,null,null,null,null,null,null,null,null,null,null,null,null,null,null,null,null,null,null,null,null,null,null,null,null,null,null,null,null,null,null,null,null,null,null,null,null,null,null,null,null,null,null,null,null,null,null,"大雨警報又は特別警報"]
[null,null,null,{"$f":"IF(入力シート!W27=FALSE,\"\",IF(入力シート!F38=\"\",\"\",入力シート!F38))","v":""},null,null,null,null,null,null,null,null,null,null,null,null,null,null,null,null,null,null,null,null,null,null,null,null,null,null,null,null,null,null,null,null,null,null,null,null,null,null,null,null,null,null,null,null,null,null,null,null,null,null,null,null,null,null,null,null,null,null,null,null,null,null,null,null,null,"洪水警報"]
[null,null,null,{"$f":"IF(入力シート!W27=FALSE,\"\",IF(入力シート!F40=\"\",\"\",入力シート!F40))","v":""}]
[null,null,null,{"$f":"IF(入力シート!W27=FALSE,\"\",IF(入力シート!F42=\"\",\"\",入力シート!F42))","v":""}]
[null,null,null,null,null,null,null,null,null,null,null,null,null,null,null,null,null,null,null,null,null,null,null,null,null,null,null,null,null,null,null,null,null,null,null,null,null,null,null,null,null,null,null,null,null,null,null,null,null,null,null,null,null,null,null,null,null,null,null,null,null,null,null,null,null,null,null,null,null,"※開業時間と利用者の通所にかかる時間も考慮して、休業の判断をする。"]
[]
[]
[null,null,"洪水",null,null,null,null,null,null,null,null,null,null,null,null,null,null,null,null,null,null,null,null,null,null,null,null,null,null,null,null,null,null,null,null,null,null,null,null,null,null,null,null,null,null,null,null,null,null,null,null,null,null,null,null,null,"様式２",null,null,null,null,null,null,null,null,null,null,null,"洪水",null,null,null,null,null,null,null,null,null,null,null,null,null,null,null,null,null,null,null,null,null,null,null,null,null,null,null,null,null,null,null,null,null,null,null,null,null,null,null,null,null,null,null,null,null,null,null,null,null,null,null,null,null,"記載例"]
[]
[null,null,"４　防災体制",null,null,null,null,null,null,null,null,null,null,null,null,null,null,null,null,null,null,null,null,null,null,null,null,null,null,null,null,null,null,null,null,null,null,null,null,null,null,null,null,null,null,null,null,null,null,null,null,null,null,null,null,null,null,null,null,null,null,null,null,null,null,null,null,null,"４　防災体制"]
[]
[null,null,{"$f":"IF(入力シート!M213=\"　\",\"　\",IF(入力シート!M213=\"有\",\"《自衛水防組織を設置する場合》\",\"《自衛水防組織を設置しない場合》\"))","v":"　"},null,null,null,null,null,null,null,null,null,null,null,null,null,null,null,null,null,null,null,null,null,null,null,null,null,null,null,null,null,null,null,null,null,null,null,null,null,null,null,null,null,null,null,null,null,null,null,null,null,null,null,null,null,null,null,null,null,null,null,null,null,null,null,null,null,"《自衛水防組織を設置する場合》\n　防災体制確立の判断時期に基づき、注意、警戒、非常の体制をとり、管理権限者が定めた統括管理者のもと、総括・情報班、避難誘導班が避難誘導等の活動を行う。\n《自衛水防組織を設置しない場合》\n　防災体制確立の判断時期に基づき、注意、警戒、非常の体制をとり、管理権限者のもと情報収集伝達要員、避難誘導要員が避難誘導等の活動を行う。"]
[null,null,{"$f":"IF(入力シート!M213=\"　\",\"　\",IF(入力シート!M213=\"有\",\"防災体制確立の判断時期に基づき、注意、警戒、非常の体制をとり、管理権限者が定めた統括管理者のもと、総括・情報班、避難誘導班が避難誘導等の活動を行う。\",\"防災体制確立の判断時期に基づき、注意、警戒、非常の体制をとり、管理権限者のもと情報収集伝達要員、避難誘導要員が避難誘導等の活動を行う。\"))","v":"　"}]
[]
[]
[null,null,"【防災体制確立の判断時期及び役割分担】",null,null,null,null,null,null,null,null,null,null,null,null,null,null,null,null,null,null,null,null,null,null,null,null,null,null,null,null,null,null,null,null,null,null,null,null,null,null,null,null,null,null,null,null,null,null,null,null,null,null,null,null,null,null,null,null,null,null,null,null,null,null,null,null,null,"【防災体制確立の判断時期及び役割分担】"]
[]
[]
[null,null,null,"以下のいずれかに該当する場合",null,null,null,null,null,null,null,null,null,null,null,null,null,null,null,null,null,null,null,null,null,null,null,null,null,null,null,null,null,null,null,null,null,null,null,null,null,null,null,null,null,null,null,null,null,null,null,null,null,null,null,null,null,null,null,null,null,null,null,null,null,null,null,null,null,"以下のいずれかに該当する場合",null,null,null,null,null,null,null,null,null,null,null,null,null,null,null,null,null,null,null,null,null,null,null,null,null,"洪水予報等の情報収集",null,null,null,null,null,null,null,null,null,null,null,null,null,null,null,"総括・情報班（情報収集伝達要員）"]
[null,null,null,{"$f":"IF(入力シート!B224=\"\",\"\",\"□\"&入力シート!B224)","v":"□洪水注意報の発表"},null,null,null,null,null,null,null,null,null,null,null,null,null,null,null,null,null,null,null,null,null,null,null,null,null,{"$f":"IF(入力シート!H224=\"\",\"\",\"□\"&入力シート!H224)","v":"□防災情報の収集"},null,null,null,null,null,null,null,null,null,null,null,null,null,null,null,{"$f":"IF(入力シート!P224=\"\",\"\",\"□\"&入力シート!P224)","v":"□情報収集伝達要員"},null,null,null,null,null,null,null,null,null,null,null,null,null,null,null,null,null,null,null,null,null,null,null,"　洪水注意報発表"]
[null,null,null,{"$f":"IF(入力シート!B225=\"\",\"\",\"□\"&入力シート!B225)","v":"□氾濫注意情報の発表"},null,null,null,null,null,null,null,null,null,null,null,null,null,null,null,null,null,null,null,null,null,null,null,null,null,{"$f":"IF(入力シート!H225=\"\",\"\",\"□\"&入力シート!H225)","v":"□浸水防止対策の準備"},null,null,null,null,null,null,null,null,null,null,null,null,null,null,null,{"$f":"IF(入力シート!P225=\"\",\"\",\"□\"&入力シート!P225)","v":"□避難誘導要員"},null,null,null,null,null,null,null,null,null,null,null,null,null,null,null,null,null,null,null,null,null,null,null,"　○○川（○○地点）　"]
[null,null,null,{"$f":"IF(入力シート!B226=\"\",\"\",\"□\"&入力シート!B226)","v":"□氾濫注意水位超過"},null,null,null,null,null,null,null,null,null,null,null,null,null,null,null,null,null,null,null,null,null,null,null,null,null,{"$f":"IF(入力シート!H226=\"\",\"\",\"□\"&入力シート!H226)","v":"□幹部職員の参集連絡"},null,null,null,null,null,null,null,null,null,null,null,null,null,null,null,{"$f":"IF(入力シート!P226=\"\",\"\",\"□\"&入力シート!P226)","v":"□情報収集伝達要員"},null,null,null,null,null,null,null,null,null,null,null,null,null,null,null,null,null,null,null,null,null,null,null,"　　氾濫注意情報発表"]
[null,null,null,{"$f":"IF(入力シート!B227=\"\",\"\",\"□\"&入力シート!B227)","v":""},null,null,null,null,null,null,null,null,null,null,null,null,null,null,null,null,null,null,null,null,null,null,null,null,null,{"$f":"IF(入力シート!H227=\"\",\"\",\"□\"&入力シート!H227)","v":"□参集職員への事前連絡"},null,null,null,null,null,null,null,null,null,null,null,null,null,null,null,{"$f":"IF(入力シート!P227=\"\",\"\",\"□\"&入力シート!P227)","v":"□情報収集伝達要員"}]
[null,null,null,{"$f":"IF(入力シート!B228=\"\",\"\",\"□\"&入力シート!B228)","v":""},null,null,null,null,null,null,null,null,null,null,null,null,null,null,null,null,null,null,null,null,null,null,null,null,null,{"$f":"IF(入力シート!H228=\"\",\"\",\"□\"&入力シート!H228)","v":"□持出し品のチェック"},null,null,null,null,null,null,null,null,null,null,null,null,null,null,null,{"$f":"IF(入力シート!P228=\"\",\"\",\"□\"&入力シート!P228)","v":"□避難誘導要員"}]
[null,null,null,{"$f":"IF(入力シート!B229=\"\",\"\",\"□\"&入力シート!B229)","v":""},null,null,null,null,null,null,null,null,null,null,null,null,null,null,null,null,null,null,null,null,null,null,null,null,null,{"$f":"IF(入力シート!H229=\"\",\"\",\"□\"&入力シート!H229)","v":"□避難路の確認"},null,null,null,null,null,null,null,null,null,null,null,null,null,null,null,{"$f":"IF(入力シート!P229=\"\",\"\",\"□\"&入力シート!P229)","v":"□避難誘導要員"}]
[null,null,null,{"$f":"IF(入力シート!B230=\"\",\"\",\"□\"&入力シート!B230)","v":""},null,null,null,null,null,null,null,null,null,null,null,null,null,null,null,null,null,null,null,null,null,null,null,null,null,{"$f":"IF(入力シート!H230=\"\",\"\",\"□\"&入力シート!H230)","v":"□利用者への注意喚起"},null,null,null,null,null,null,null,null,null,null,null,null,null,null,null,{"$f":"IF(入力シート!P230=\"\",\"\",\"□\"&入力シート!P230)","v":"□避難誘導要員"}]
[null,null,null,{"$f":"IF(入力シート!B231=\"\",\"\",\"□\"&入力シート!B231)","v":""},null,null,null,null,null,null,null,null,null,null,null,null,null,null,null,null,null,null,null,null,null,null,null,null,null,{"$f":"IF(入力シート!H231=\"\",\"\",\"□\"&入力シート!H231)","v":""},null,null,null,null,null,null,null,null,null,null,null,null,null,null,null,{"$f":"IF(入力シート!P231=\"\",\"\",\"□\"&入力シート!P231)","v":""}]
[null,null,null,{"$f":"IF('出力シート（タイムライン）'!A54=\"\",\"\",\"□ \"&'出力シート（タイムライン）'!A54)&IF('出力シート（タイムライン）'!B54=\"\",\"\",\"(\"&'出力シート（タイムライン）'!B54&\")\")","v":""},null,null,null,null,null,null,null,null,null,null,null,null,null,null,null,null,null,null,null,null,null,null,null,null,null,{"$f":"IF(入力シート!H232=\"\",\"\",\"□\"&入力シート!H232)","v":""},null,null,null,null,null,null,null,null,null,null,null,null,null,null,null,{"$f":"IF(入力シート!P232=\"\",\"\",\"□\"&入力シート!P232)","v":""},null,null,null,null,null,null,null,null,null,null,null,null,null,null,null,null,null,null,null,null,null,null,null,"以下のいずれかに該当する場合",null,null,null,null,null,null,null,null,null,null,null,null,null,null,null,null,null,null,null,null,null,null,null,null,null,"洪水予報等の情報収集",null,null,null,null,null,null,null,null,null,null,null,null,null,null,null,"総括・情報班（情報収集伝達要員）"]
[null,null,null,{"$f":"IF('出力シート（タイムライン）'!A55=\"\",\"\",\"□ \"&'出力シート（タイムライン）'!A55)&IF('出力シート（タイムライン）'!B55=\"\",\"\",\"(\"&'出力シート（タイムライン）'!B55&\")\")","v":""},null,null,null,null,null,null,null,null,null,null,null,null,null,null,null,null,null,null,null,null,null,null,null,null,null,{"$f":"IF(入力シート!H233=\"\",\"\",\"□\"&入力シート!H233)","v":""},null,null,null,null,null,null,null,null,null,null,null,null,null,null,null,{"$f":"IF(入力シート!P233=\"\",\"\",\"□\"&入力シート!P233)","v":""},null,null,null,null,null,null,null,null,null,null,null,null,null,null,null,null,null,null,null,null,null,null,null,"　高齢者等避難の発令",null,null,null,null,null,null,null,null,null,null,null,null,null,null,null,null,null,null,null,null,null,null,null,null,null,"使用する資器材の準備",null,null,null,null,null,null,null,null,null,null,null,null,null,null,null,"避難誘導班（避難誘導要員）"]
[null,null,null,{"$f":"IF('出力シート（タイムライン）'!A56=\"\",\"\",\"□ \"&'出力シート（タイムライン）'!A56)&IF('出力シート（タイムライン）'!B56=\"\",\"\",\"(\"&'出力シート（タイムライン）'!B56&\")\")","v":""},null,null,null,null,null,null,null,null,null,null,null,null,null,null,null,null,null,null,null,null,null,null,null,null,null,{"$f":"IF(入力シート!H234=\"\",\"\",\"□\"&入力シート!H234)","v":""},null,null,null,null,null,null,null,null,null,null,null,null,null,null,null,{"$f":"IF(入力シート!P234=\"\",\"\",\"□\"&入力シート!P234)","v":""},null,null,null,null,null,null,null,null,null,null,null,null,null,null,null,null,null,null,null,null,null,null,null,"　洪水警報発表",null,null,null,null,null,null,null,null,null,null,null,null,null,null,null,null,null,null,null,null,null,null,null,null,null,"保護者・家族等への事前連絡",null,null,null,null,null,null,null,null,null,null,null,null,null,null,null,"総括・情報班（情報収集伝達要員）"]
[null,null,null,{"$f":"IF('出力シート（タイムライン）'!A57=\"\",\"\",\"□ \"&'出力シート（タイムライン）'!A57)&IF('出力シート（タイムライン）'!B57=\"\",\"\",\"(\"&'出力シート（タイムライン）'!B57&\")\")","v":""},null,null,null,null,null,null,null,null,null,null,null,null,null,null,null,null,null,null,null,null,null,null,null,null,null,{"$f":"IF(入力シート!H235=\"\",\"\",\"□\"&入力シート!H235)","v":""},null,null,null,null,null,null,null,null,null,null,null,null,null,null,null,{"$f":"IF(入力シート!P235=\"\",\"\",\"□\"&入力シート!P235)","v":""},null,null,null,null,null,null,null,null,null,null,null,null,null,null,null,null,null,null,null,null,null,null,null,"　○○川（○○地点）氾濫警戒",null,null,null,null,null,null,null,null,null,null,null,null,null,null,null,null,null,null,null,null,null,null,null,null,null,"周辺住民への事前協力依頼",null,null,null,null,null,null,null,null,null,null,null,null,null,null,null,"総括・情報班（情報収集伝達要員）"]
[null,null,null,{"$f":"IF('出力シート（タイムライン）'!A58=\"\",\"\",\"□ \"&'出力シート（タイムライン）'!A58)&IF('出力シート（タイムライン）'!B58=\"\",\"\",\"(\"&'出力シート（タイムライン）'!B58&\")\")","v":""},null,null,null,null,null,null,null,null,null,null,null,null,null,null,null,null,null,null,null,null,null,null,null,null,null,null,null,null,null,null,null,null,null,null,null,null,null,null,null,null,null,null,null,null,null,null,null,null,null,null,null,null,null,null,null,null,null,null,null,null,null,null,null,null,null,"　　情報発表　",null,null,null,null,null,null,null,null,null,null,null,null,null,null,null,null,null,null,null,null,null,null,null,null,null,"要配慮者の避難誘導",null,null,null,null,null,null,null,null,null,null,null,null,null,null,null,"避難誘導班（避難誘導要員）"]
[]
[]
[null,null,null,"以下のいずれかに該当する場合"]
[null,null,null,{"$f":"IF(入力シート!B237=\"\",\"\",\"□\"&入力シート!B237)","v":"□大雨洪水警報の発表"},null,null,null,null,null,null,null,null,null,null,null,null,null,null,null,null,null,null,null,null,null,null,null,null,null,{"$f":"IF(入力シート!H237=\"\",\"\",\"□\"&入力シート!H237)","v":"□職員の参集"},null,null,null,null,null,null,null,null,null,null,null,null,null,null,null,{"$f":"IF(入力シート!P237=\"\",\"\",\"□\"&入力シート!P237)","v":"□情報収集伝達要員"}]
[null,null,null,{"$f":"IF(入力シート!B238=\"\",\"\",\"□\"&入力シート!B238)","v":"□洪水予報氾濫警戒情報の発表"},null,null,null,null,null,null,null,null,null,null,null,null,null,null,null,null,null,null,null,null,null,null,null,null,null,{"$f":"IF(入力シート!H238=\"\",\"\",\"□\"&入力シート!H238)","v":"□土嚢の設置"},null,null,null,null,null,null,null,null,null,null,null,null,null,null,null,{"$f":"IF(入力シート!P238=\"\",\"\",\"□\"&入力シート!P238)","v":"□避難誘導要員"},null,null,null,null,null,null,null,null,null,null,null,null,null,null,null,null,null,null,null,null,null,null,null,"以下のいずれかに該当する場合\n",null,null,null,null,null,null,null,null,null,null,null,null,null,null,null,null,null,null,null,null,null,null,null,null,null,"施設内全体の避難誘導",null,null,null,null,null,null,null,null,null,null,null,null,null,null,null,"避難誘導班（避難誘導要員）"]
[null,null,null,{"$f":"IF(入力シート!B239=\"\",\"\",\"□\"&入力シート!B239)","v":"□避難判断水位超過"},null,null,null,null,null,null,null,null,null,null,null,null,null,null,null,null,null,null,null,null,null,null,null,null,null,{"$f":"IF(入力シート!H239=\"\",\"\",\"□\"&入力シート!H239)","v":"□止水板の設置"},null,null,null,null,null,null,null,null,null,null,null,null,null,null,null,{"$f":"IF(入力シート!P239=\"\",\"\",\"□\"&入力シート!P239)","v":"□避難誘導要員"},null,null,null,null,null,null,null,null,null,null,null,null,null,null,null,null,null,null,null,null,null,null,null,"　避難指示の発令"]
[null,null,null,{"$f":"IF(入力シート!B240=\"\",\"\",\"□\"&入力シート!B240)","v":"□高齢者等避難の発令"},null,null,null,null,null,null,null,null,null,null,null,null,null,null,null,null,null,null,null,null,null,null,null,null,null,{"$f":"IF(入力シート!H240=\"\",\"\",\"□\"&入力シート!H240)","v":"□重要備品、設備の退避"},null,null,null,null,null,null,null,null,null,null,null,null,null,null,null,{"$f":"IF(入力シート!P240=\"\",\"\",\"□\"&入力シート!P240)","v":"□避難誘導要員"},null,null,null,null,null,null,null,null,null,null,null,null,null,null,null,null,null,null,null,null,null,null,null,"　○○川（○○地点）氾濫危険"]
[null,null,null,{"$f":"IF(入力シート!B241=\"\",\"\",\"□\"&入力シート!B241)","v":""},null,null,null,null,null,null,null,null,null,null,null,null,null,null,null,null,null,null,null,null,null,null,null,null,null,{"$f":"IF(入力シート!H241=\"\",\"\",\"□\"&入力シート!H241)","v":"□利用者家族への連絡"},null,null,null,null,null,null,null,null,null,null,null,null,null,null,null,{"$f":"IF(入力シート!P241=\"\",\"\",\"□\"&入力シート!P241)","v":"□情報収集伝達要員"},null,null,null,null,null,null,null,null,null,null,null,null,null,null,null,null,null,null,null,null,null,null,null,"　　情報発表"]
[null,null,null,{"$f":"IF(入力シート!B242=\"\",\"\",\"□\"&入力シート!B242)","v":""},null,null,null,null,null,null,null,null,null,null,null,null,null,null,null,null,null,null,null,null,null,null,null,null,null,{"$f":"IF(入力シート!H242=\"\",\"\",\"□\"&入力シート!H242)","v":"□利用者家族への引渡し"},null,null,null,null,null,null,null,null,null,null,null,null,null,null,null,{"$f":"IF(入力シート!P242=\"\",\"\",\"□\"&入力シート!P242)","v":"□情報収集伝達要員"}]
[null,null,null,{"$f":"IF(入力シート!B243=\"\",\"\",\"□\"&入力シート!B243)","v":""},null,null,null,null,null,null,null,null,null,null,null,null,null,null,null,null,null,null,null,null,null,null,null,null,null,{"$f":"IF(入力シート!H243=\"\",\"\",\"□\"&入力シート!H243)","v":"□持出し品の準備"},null,null,null,null,null,null,null,null,null,null,null,null,null,null,null,{"$f":"IF(入力シート!P243=\"\",\"\",\"□\"&入力シート!P243)","v":"□避難誘導要員"}]
[null,null,null,{"$f":"IF(入力シート!B244=\"\",\"\",\"□\"&入力シート!B244)","v":""},null,null,null,null,null,null,null,null,null,null,null,null,null,null,null,null,null,null,null,null,null,null,null,null,null,{"$f":"IF(入力シート!H244=\"\",\"\",\"□\"&入力シート!H244)","v":"□利用休止の判断"},null,null,null,null,null,null,null,null,null,null,null,null,null,null,null,{"$f":"IF(入力シート!P244=\"\",\"\",\"□\"&入力シート!P244)","v":"□管理権限者"}]
[null,null,null,{"$f":"IF(入力シート!B245=\"\",\"\",\"□\"&入力シート!B245)","v":""},null,null,null,null,null,null,null,null,null,null,null,null,null,null,null,null,null,null,null,null,null,null,null,null,null,{"$f":"IF(入力シート!H245=\"\",\"\",\"□\"&入力シート!H245)","v":"□避難経路の確認"},null,null,null,null,null,null,null,null,null,null,null,null,null,null,null,{"$f":"IF(入力シート!P245=\"\",\"\",\"□\"&入力シート!P245)","v":"□避難誘導要員"}]
[null,null,null,{"$f":"IF(入力シート!B246=\"\",\"\",\"□\"&入力シート!B246)","v":""},null,null,null,null,null,null,null,null,null,null,null,null,null,null,null,null,null,null,null,null,null,null,null,null,null,{"$f":"IF(入力シート!H246=\"\",\"\",\"□\"&入力シート!H246)","v":"□避難開始の判断"},null,null,null,null,null,null,null,null,null,null,null,null,null,null,null,{"$f":"IF(入力シート!P246=\"\",\"\",\"□\"&入力シート!P246)","v":"□管理権限者"}]
[null,null,null,{"$f":"IF(入力シート!B247=\"\",\"\",\"□\"&入力シート!B247)","v":""},null,null,null,null,null,null,null,null,null,null,null,null,null,null,null,null,null,null,null,null,null,null,null,null,null,{"$f":"IF(入力シート!H247=\"\",\"\",\"□\"&入力シート!H247)","v":"□避難所への移動開始"},null,null,null,null,null,null,null,null,null,null,null,null,null,null,null,{"$f":"IF(入力シート!P247=\"\",\"\",\"□\"&入力シート!P247)","v":"□避難誘導要員"}]
[]
[null,null,null,"以下のいずれかに該当する場合"]
[null,null,null,{"$f":"IF(入力シート!B249=\"\",\"\",\"□\"&入力シート!B249)","v":"□土砂災害警戒情報の発表"},null,null,null,null,null,null,null,null,null,null,null,null,null,null,null,null,null,null,null,null,null,null,null,null,null,{"$f":"IF(入力シート!H249=\"\",\"\",\"□\"&入力シート!H249)","v":"□屋内上層階へ退避開始"},null,null,null,null,null,null,null,null,null,null,null,null,null,null,null,{"$f":"IF(入力シート!P249=\"\",\"\",\"□\"&入力シート!P249)","v":"□避難誘導要員"}]
[null,null,null,{"$f":"IF(入力シート!B250=\"\",\"\",\"□\"&入力シート!B250)","v":"□洪水予報氾濫危険情報の発表"},null,null,null,null,null,null,null,null,null,null,null,null,null,null,null,null,null,null,null,null,null,null,null,null,null,{"$f":"IF(入力シート!H250=\"\",\"\",\"□\"&入力シート!H250)","v":"□全員避難のチェック、施錠"},null,null,null,null,null,null,null,null,null,null,null,null,null,null,null,{"$f":"IF(入力シート!P250=\"\",\"\",\"□\"&入力シート!P250)","v":"□避難誘導要員"}]
[null,null,null,{"$f":"IF(入力シート!B251=\"\",\"\",\"□\"&入力シート!B251)","v":"□氾濫危険水位超過"},null,null,null,null,null,null,null,null,null,null,null,null,null,null,null,null,null,null,null,null,null,null,null,null,null,{"$f":"IF(入力シート!H251=\"\",\"\",\"□\"&入力シート!H251)","v":"□利用者家族への避難先連絡"},null,null,null,null,null,null,null,null,null,null,null,null,null,null,null,{"$f":"IF(入力シート!P251=\"\",\"\",\"□\"&入力シート!P251)","v":"□情報収集伝達要員"}]
[null,null,null,{"$f":"IF(入力シート!B252=\"\",\"\",\"□\"&入力シート!B252)","v":""},null,null,null,null,null,null,null,null,null,null,null,null,null,null,null,null,null,null,null,null,null,null,null,null,null,{"$f":"IF(入力シート!H252=\"\",\"\",\"□\"&入力シート!H252)","v":"□急病人の緊急搬送要請"},null,null,null,null,null,null,null,null,null,null,null,null,null,null,null,{"$f":"IF(入力シート!P252=\"\",\"\",\"□\"&入力シート!P252)","v":"□情報収集伝達要員"}]
[null,null,null,{"$f":"IF(入力シート!B253=\"\",\"\",\"□\"&入力シート!B253)","v":""},null,null,null,null,null,null,null,null,null,null,null,null,null,null,null,null,null,null,null,null,null,null,null,null,null,{"$f":"IF(入力シート!H253=\"\",\"\",\"□\"&入力シート!H253)","v":""},null,null,null,null,null,null,null,null,null,null,null,null,null,null,null,{"$f":"IF(入力シート!P253=\"\",\"\",\"□\"&入力シート!P253)","v":""}]
[null,null,null,{"$f":"IF(入力シート!B254=\"\",\"\",\"□\"&入力シート!B254)","v":""},null,null,null,null,null,null,null,null,null,null,null,null,null,null,null,null,null,null,null,null,null,null,null,null,null,{"$f":"IF(入力シート!H254=\"\",\"\",\"□\"&入力シート!H254)","v":""},null,null,null,null,null,null,null,null,null,null,null,null,null,null,null,{"$f":"IF(入力シート!P254=\"\",\"\",\"□\"&入力シート!P254)","v":""}]
[null,null,null,{"$f":"IF(入力シート!B255=\"\",\"\",\"□\"&入力シート!B255)","v":""},null,null,null,null,null,null,null,null,null,null,null,null,null,null,null,null,null,null,null,null,null,null,null,null,null,{"$f":"IF(入力シート!H255=\"\",\"\",\"□\"&入力シート!H255)","v":""},null,null,null,null,null,null,null,null,null,null,null,null,null,null,null,{"$f":"IF(入力シート!P255=\"\",\"\",\"□\"&入力シート!P255)","v":""}]
[null,null,null,{"$f":"IF(入力シート!B256=\"\",\"\",\"□\"&入力シート!B256)","v":""},null,null,null,null,null,null,null,null,null,null,null,null,null,null,null,null,null,null,null,null,null,null,null,null,null,{"$f":"IF(入力シート!H256=\"\",\"\",\"□\"&入力シート!H256)","v":""},null,null,null,null,null,null,null,null,null,null,null,null,null,null,null,{"$f":"IF(入力シート!P256=\"\",\"\",\"□\"&入力シート!P256)","v":""}]
[null,null,null,null,null,null,null,null,null,null,null,null,null,null,null,null,null,null,null,null,null,null,null,null,null,null,null,null,null,null,null,null,null,null,null,null,null,null,null,null,null,null,null,null,null,null,null,null,null,null,null,null,null,null,null,null,null,null,null,null,null,null,null,null,null,null,null,null,null,"レベル２　注意体制",null,null,null,null,null,null,null,null,null,null,null,null,null,null,null,null,null,null,null,null,null,null,null,null,"※判断時期は、気象情報、洪水警報及び避難情報等をもとに設定する。避難情報等は必ずしも発令されない場合があるので、雨の降り方等により自主的な判断に基づき体制を確立することも必要である。"]
[null,null,null,null,null,null,null,null,null,null,null,null,null,null,null,null,null,null,null,null,null,null,null,null,null,null,null,null,null,null,null,null,null,null,null,null,null,null,null,null,null,null,null,null,null,null,null,null,null,null,null,null,null,null,null,null,null,null,null,null,null,null,null,null,null,null,null,null,null,"・災害モードへ気持ちを切り替える。\n・気象情報等の収集を行う。"]
[null,null,null,"レベル２　注意体制",null,null,null,null,null,null,null,null,null,null,null,null,null,null,null,null,null,null,null,null,null,null,null,"※判断時期は、気象情報、洪水警報及び避難情報等をもとに設定する。避難情報等は必ずしも発令されない場合があるので、雨の降り方等により自主的な判断に基づき体制を確立することも必要である。"]
[null,null,null,"・災害モードへ気持ちを切り替える。\n・気象情報等の収集を行う。",null,null,null,null,null,null,null,null,null,null,null,null,null,null,null,null,null,null,null,null,null,null,null,null,null,null,null,null,null,null,null,null,null,null,null,null,null,null,null,null,null,null,null,null,null,null,null,null,null,null,null,null,null,null,null,null,null,null,null,null,null,null,null,null,null,null,null,null,null,null,null,null,null,null,"↓"]
[null,null,null,null,null,null,null,null,null,null,null,null,null,null,null,null,null,null,null,null,null,null,null,null,null,null,null,null,null,null,null,null,null,null,null,null,null,null,null,null,null,null,null,null,null,null,null,null,null,null,null,null,null,null,null,null,null,null,null,null,null,null,null,null,null,null,null,null,null,"レベル３　警戒体制"]
[null,null,null,null,null,null,null,null,null,null,null,null,"↓",null,null,null,null,null,null,null,null,null,null,null,null,null,null,null,null,null,null,null,null,null,null,null,null,null,null,null,null,null,null,null,null,null,null,null,null,null,null,null,null,null,null,null,null,null,null,null,null,null,null,null,null,null,null,null,null,"・避難場所へ避難する準備を行う。\n・要配慮者の避難誘導を開始する。"]
[null,null,null,"レベル３　警戒体制",null,null,null,null,null,null,null,null,null,null,null,null,null,null,null,null,null,null,null,null,null,null,null,null,null,null,null,null,null,null,null,null,null,null,null,null,null,null,null,null,null,null,null,null,null,null,null,null,null,null,null,null,null,null,null,null,null,null,null,null,null,null,null,null,null,null,null,null,null,null,null,null,null,null,null,null,null,null,null,null,null,null,null,null,null,null,null,null,null,null,"※浸水想定区域と土砂災害警戒区域が重複する地域では、避難情報等の発表・発令が早い情報で避難体制を確立し、避難のタイミングを判断する必要がある。"]
[null,null,null,"・避難場所へ避難する準備を行う。\n・要配慮者の避難誘導を開始する。",null,null,null,null,null,null,null,null,null,null,null,null,null,null,null,null,null,null,null,null,null,null,null,null,null,null,null,null,null,null,null,null,null,null,null,null,null,null,null,null,null,null,null,null,null,null,null,null,null,null,null,null,null,null,null,null,null,null,null,null,null,null,null,null,null,null,null,null,null,null,null,null,null,null,"↓"]
[null,null,null,null,null,null,null,null,null,null,null,null,null,null,null,null,null,null,null,null,null,null,null,null,null,null,null,"※浸水想定区域と土砂災害警戒区域が重複する地域では、避難情報等の発表・発令が早い情報で避難体制を確立し、避難のタイミングを判断する必要がある。",null,null,null,null,null,null,null,null,null,null,null,null,null,null,null,null,null,null,null,null,null,null,null,null,null,null,null,null,null,null,null,null,null,null,null,null,null,null,null,null,null,"レベル４　非常体制"]
[null,null,null,null,null,null,null,null,null,null,null,null,"↓",null,null,null,null,null,null,null,null,null,null,null,null,null,null,null,null,null,null,null,null,null,null,null,null,null,null,null,null,null,null,null,null,null,null,null,null,null,null,null,null,null,null,null,null,null,null,null,null,null,null,null,null,null,null,null,null,"・施設内全体の避難誘導を開始する。"]
[null,null,null,"レベル４　非常体制"]
[null,null,null,"・施設内全体の避難誘導を開始する。"]
[null,null,null,null,null,null,null,null,null,null,null,null,null,null,null,null,null,null,null,null,null,null,null,null,null,null,null,null,null,null,null,null,null,null,null,null,null,null,null,null,null,null,null,null,null,null,null,null,null,null,null,null,null,null,null,null,null,null,null,null,null,null,null,null,null,null,null,null,null,"大型台風"]
[null,null,null,null,null,null,null,null,null,null,null,null,null,null,null,null,null,null,null,null,null,null,null,null,null,null,null,null,null,null,null,null,null,null,null,null,null,null,null,null,null,null,null,null,null,null,null,null,null,null,null,null,null,null,null,null,null,null,null,null,null,null,null,null,null,null,null,null,null,"大型台風の襲来が予想される場合で、公共交通機関の計画運休が予定されている場合、避難に関する準備をし、早めに避難を開始する。また、協定を締結した地域の企業等と連携して早めに避難を開始する。"]
[null,null,null,"大型台風"]
[null,null,null,{"$f":"入力シート!B267","v":"大型台風の襲来が予想される場合で、公共交通機関の計画運休が予定されている場合、避難に関する準備をし、早めに避難を開始する。また、協定を締結した地域の企業等と連携して早めに避難を開始する。"}]
[]
[]
[null,null,null,null,null,null,null,null,null,null,null,null,null,null,null,null,null,null,null,null,null,null,null,null,null,null,null,null,null,null,null,null,null,null,null,null,null,null,null,null,null,null,null,null,null,null,null,null,null,null,null,null,null,null,null,null,null,null,null,null,null,null,null,null,null,null,null,null,null,"○○企業との協定　福祉車両提供及び避難支援（詳細は協定書参照）"]
[]
[null,null,"内水",null,null,null,null,null,null,null,null,null,null,null,null,null,null,null,null,null,null,null,null,null,null,null,null,null,null,null,null,null,null,null,null,null,null,null,null,null,null,null,null,null,null,null,null,null,null,null,null,null,null,null,null,null,"様式２",null,null,null,null,null,null,null,null,null,null,null,"内水",null,null,null,null,null,null,null,null,null,null,null,null,null,null,null,null,null,null,null,null,null,null,null,null,null,null,null,null,null,null,null,null,null,null,null,null,null,null,null,null,null,null,null,null,null,null,null,null,null,null,null,null,null,"記載例"]
[]
[null,null,"４　防災体制",null,null,null,null,null,null,null,null,null,null,null,null,null,null,null,null,null,null,null,null,null,null,null,null,null,null,null,null,null,null,null,null,null,null,null,null,null,null,null,null,null,null,null,null,null,null,null,null,null,null,null,null,null,null,null,null,null,null,null,null,null,null,null,null,null,"４　防災体制"]
[]
[null,null,"　防災体制確立の判断時期に基づき、注意、警戒、非常の体制をとり、管理権限者が定めた統括管理者のもと、総括・情報班、避難誘導班が避難誘導等の活動を行う。",null,null,null,null,null,null,null,null,null,null,null,null,null,null,null,null,null,null,null,null,null,null,null,null,null,null,null,null,null,null,null,null,null,null,null,null,null,null,null,null,null,null,null,null,null,null,null,null,null,null,null,null,null,null,null,null,null,null,null,null,null,null,null,null,null,"《自衛水防組織を設置する場合》\n　防災体制確立の判断時期に基づき、注意、警戒、非常の体制をとり、管理権限者が定めた統括管理者のもと、総括・情報班、避難誘導班が避難誘導等の活動を行う。\n《自衛水防組織を設置しない場合》\n　防災体制確立の判断時期に基づき、注意、警戒、非常の体制をとり、管理権限者のもと情報収集伝達要員、避難誘導要員が避難誘導等の活動を行う。"]
[]
[]
[]
[]
[]
[null,null,"【防災体制確立の判断時期及び役割分担】",null,null,null,null,null,null,null,null,null,null,null,null,null,null,null,null,null,null,null,null,null,null,null,null,null,null,null,null,null,null,null,null,null,null,null,null,null,null,null,null,null,null,null,null,null,null,null,null,null,null,null,null,null,null,null,null,null,null,null,null,null,null,null,null,null,"【防災体制確立の判断時期及び役割分担】"]
[]
[]
[null,null,null,null,null,null,null,null,null,null,null,null,null,null,null,null,null,null,null,null,null,null,null,null,null,null,null,null,null,null,null,null,null,null,null,null,null,null,null,null,null,null,null,null,null,null,null,null,null,null,null,null,null,null,null,null,null,null,null,null,null,null,null,null,null,null,null,null,null,"以下のいずれかに該当する場合\n",null,null,null,null,null,null,null,null,null,null,null,null,null,null,null,null,null,null,null,null,null,null,null,null,null,"気象情報等の情報収集",null,null,null,null,null,null,null,null,null,null,null,null,null,null,null,"総括・情報班（情報収集伝達要員）"]
[null,null,null,null,null,null,null,null,null,null,null,null,null,null,null,null,null,null,null,null,null,null,null,null,null,null,null,null,null,null,null,null,null,null,null,null,null,null,null,null,null,null,null,null,null,null,null,null,null,null,null,null,null,null,null,null,null,null,null,null,null,null,null,null,null,null,null,null,null,"　大雨又は台風に関する気象"]
[null,null,null,null,null,null,null,null,null,null,null,null,null,null,null,null,null,null,null,null,null,null,null,null,null,null,null,null,null,null,null,null,null,null,null,null,null,null,null,null,null,null,null,null,null,null,null,null,null,null,null,null,null,null,null,null,null,null,null,null,null,null,null,null,null,null,null,null,null,"　　情報発表"]
[null,null,null,null,null,null,null,null,null,null,null,null,null,null,null,null,null,null,null,null,null,null,null,null,null,null,null,null,null,null,null,null,null,null,null,null,null,null,null,null,null,null,null,null,null,null,null,null,null,null,null,null,null,null,null,null,null,null,null,null,null,null,null,null,null,null,null,null,null,"　大雨注意報発表"]
[null,null,null,null,null,null,null,null,null,null,null,null,null,null,null,null,null,null,null,null,null,null,null,null,null,null,null,null,null,null,null,null,null,null,null,null,null,null,null,null,null,null,null,null,null,null,null,null,null,null,null,null,null,null,null,null,null,null,null,null,null,null,null,null,null,null,null,null,null,"　○分間雨量が●mmを超過"]
[null,null,null,null,null,null,null,null,null,null,null,null,null,null,null,null,null,null,null,null,null,null,null,null,null,null,null,null,null,null,null,null,null,null,null,null,null,null,null,null,null,null,null,null,null,null,null,null,null,null,null,null,null,null,null,null,null,null,null,null,null,null,null,null,null,null,null,null,null,"　○○ポンプ場が排水開始"]
[]
[]
[]
[null,null,null,null,null,null,null,null,null,null,null,null,null,null,null,null,null,null,null,null,null,null,null,null,null,null,null,null,null,null,null,null,null,null,null,null,null,null,null,null,null,null,null,null,null,null,null,null,null,null,null,null,null,null,null,null,null,null,null,null,null,null,null,null,null,null,null,null,null,"以下のいずれかに該当する場合\n",null,null,null,null,null,null,null,null,null,null,null,null,null,null,null,null,null,null,null,null,null,null,null,null,null,"気象情報等の情報収集",null,null,null,null,null,null,null,null,null,null,null,null,null,null,null,"総括・情報班（情報収集伝達要員）"]
[null,null,null,null,null,null,null,null,null,null,null,null,null,null,null,null,null,null,null,null,null,null,null,null,null,null,null,null,null,null,null,null,null,null,null,null,null,null,null,null,null,null,null,null,null,null,null,null,null,null,null,null,null,null,null,null,null,null,null,null,null,null,null,null,null,null,null,null,null,"　大雨警報発表",null,null,null,null,null,null,null,null,null,null,null,null,null,null,null,null,null,null,null,null,null,null,null,null,null,"使用する資器材の準備",null,null,null,null,null,null,null,null,null,null,null,null,null,null,null,"避難誘導班（避難誘導要員）"]
[null,null,null,null,null,null,null,null,null,null,null,null,null,null,null,null,null,null,null,null,null,null,null,null,null,null,null,null,null,null,null,null,null,null,null,null,null,null,null,null,null,null,null,null,null,null,null,null,null,null,null,null,null,null,null,null,null,null,null,null,null,null,null,null,null,null,null,null,null,"　○分間雨量が▲mmを超過",null,null,null,null,null,null,null,null,null,null,null,null,null,null,null,null,null,null,null,null,null,null,null,null,null,"保護者・家族等への事前連絡",null,null,null,null,null,null,null,null,null,null,null,null,null,null,null,"総括・情報班（情報収集伝達要員）"]
[null,null,null,null,null,null,null,null,null,null,null,null,null,null,null,null,null,null,null,null,null,null,null,null,null,null,null,null,null,null,null,null,null,null,null,null,null,null,null,null,null,null,null,null,null,null,null,null,null,null,null,null,null,null,null,null,null,null,null,null,null,null,null,null,null,null,null,null,null,null,null,null,null,null,null,null,null,null,null,null,null,null,null,null,null,null,null,null,null,null,null,null,null,null,null,"周辺住民への事前協力依頼",null,null,null,null,null,null,null,null,null,null,null,null,null,null,null,"総括・情報班（情報収集伝達要員）"]
[]
[]
[]
[]
[]
[null,null,null,null,null,null,null,null,null,null,null,null,null,null,null,null,null,null,null,null,null,null,null,null,null,null,null,null,null,null,null,null,null,null,null,null,null,null,null,null,null,null,null,null,null,null,null,null,null,null,null,null,null,null,null,null,null,null,null,null,null,null,null,null,null,null,null,null,null,"以下のいずれかに該当する場合\n",null,null,null,null,null,null,null,null,null,null,null,null,null,null,null,null,null,null,null,null,null,null,null,null,null,"避難誘導",null,null,null,null,null,null,null,null,null,null,null,null,null,null,null,"避難誘導班（避難誘導要員）"]
[null,null,null,null,null,null,null,null,null,null,null,null,null,null,null,null,null,null,null,null,null,null,null,null,null,null,null,null,null,null,null,null,null,null,null,null,null,null,null,null,null,null,null,null,null,null,null,null,null,null,null,null,null,null,null,null,null,null,null,null,null,null,null,null,null,null,null,null,null,"　○分間雨量が■mmを超過"]
[null,null,null,null,null,null,null,null,null,null,null,null,null,null,null,null,null,null,null,null,null,null,null,null,null,null,null,null,null,null,null,null,null,null,null,null,null,null,null,null,null,null,null,null,null,null,null,null,null,null,null,null,null,null,null,null,null,null,null,null,null,null,null,null,null,null,null,null,null,"　○○ポンプ場が排水不能"]
[null,null,null,null,null,null,null,null,null,null,null,null,null,null,null,null,null,null,null,null,null,null,null,null,null,null,null,null,null,null,null,null,null,null,null,null,null,null,null,null,null,null,null,null,null,null,null,null,null,null,null,null,null,null,null,null,null,null,null,null,null,null,null,null,null,null,null,null,null,"　○○市○○地区内水氾濫危険"]
[null,null,null,null,null,null,null,null,null,null,null,null,null,null,null,null,null,null,null,null,null,null,null,null,null,null,null,null,null,null,null,null,null,null,null,null,null,null,null,null,null,null,null,null,null,null,null,null,null,null,null,null,null,null,null,null,null,null,null,null,null,null,null,null,null,null,null,null,null,"　　情報発表"]
[null,null,null,null,null,null,null,null,null,null,null,null,null,null,null,null,null,null,null,null,null,null,null,null,null,null,null,null,null,null,null,null,null,null,null,null,null,null,null,null,null,null,null,null,null,null,null,null,null,null,null,null,null,null,null,null,null,null,null,null,null,null,null,null,null,null,null,null,null,"　浸水の前兆を確認"]
[]
[]
[]
[]
[null,null,null,"レベル２　注意体制",null,null,null,null,null,null,null,null,null,null,null,null,null,null,null,null,null,null,null,null,null,null,null,null,"※判断時期は、気象情報、水位到達情報及び避難情報等をもとに設定する。避難情報等は必ずしも発令されない場合があるので、雨の降り方等により自主的な判断に基づき体制を確立することも必要である。",null,null,null,null,null,null,null,null,null,null,null,null,null,null,null,null,null,null,null,null,null,null,null,null,null,null,null,null,null,null,null,null,null,null,null,null,null,null,null,null,"レベル２　注意体制",null,null,null,null,null,null,null,null,null,null,null,null,null,null,null,null,null,null,null,null,null,null,null,null,"※判断時期は、気象情報、水位到達情報及び避難情報等をもとに設定する。避難情報等は必ずしも発令されない場合があるので、雨の降り方等により自主的な判断に基づき体制を確立することも必要である。"]
[null,null,null,"・災害モードへ気持ちを切り替える。\n・気象情報等の収集を行う。",null,null,null,null,null,null,null,null,null,null,null,null,null,null,null,null,null,null,null,null,null,null,null,null,null,null,null,null,null,null,null,null,null,null,null,null,null,null,null,null,null,null,null,null,null,null,null,null,null,null,null,null,null,null,null,null,null,null,null,null,null,null,null,null,null,"・災害モードへ気持ちを切り替える。\n・気象情報等の収集を行う。"]
[]
[null,null,null,null,null,null,null,null,null,null,null,null,"↓",null,null,null,null,null,null,null,null,null,null,null,null,null,null,null,null,null,null,null,null,null,null,null,null,null,null,null,null,null,null,null,null,null,null,null,null,null,null,null,null,null,null,null,null,null,null,null,null,null,null,null,null,null,null,null,null,null,null,null,null,null,null,null,null,null,"↓"]
[null,null,null,"レベル３　警戒体制",null,null,null,null,null,null,null,null,null,null,null,null,null,null,null,null,null,null,null,null,null,null,null,null,null,null,null,null,null,null,null,null,null,null,null,null,null,null,null,null,null,null,null,null,null,null,null,null,null,null,null,null,null,null,null,null,null,null,null,null,null,null,null,null,null,"レベル３　警戒体制"]
[null,null,null,"・避難場所へ避難する準備を行う。",null,null,null,null,null,null,null,null,null,null,null,null,null,null,null,null,null,null,null,null,null,null,null,null,null,null,null,null,null,null,null,null,null,null,null,null,null,null,null,null,null,null,null,null,null,null,null,null,null,null,null,null,null,null,null,null,null,null,null,null,null,null,null,null,null,"・避難場所へ避難する準備を行う。"]
[null,null,null,null,null,null,null,null,null,null,null,null,null,null,null,null,null,null,null,null,null,null,null,null,null,null,null,null,"※浸水想定区域と土砂災害警戒区域が重複する地域では、避難情報等の発表・発令が早い情報で避難体制を確立し、避難のタイミングを判断する必要がある。",null,null,null,null,null,null,null,null,null,null,null,null,null,null,null,null,null,null,null,null,null,null,null,null,null,null,null,null,null,null,null,null,null,null,null,null,null,null,null,null,null,null,null,null,null,null,null,null,null,null,null,null,null,null,null,null,null,null,null,null,null,null,null,null,null,"※浸水想定区域と土砂災害警戒区域が重複する地域では、避難情報等の発表・発令が早い情報で避難体制を確立し、避難のタイミングを判断する必要がある。"]
[null,null,null,null,null,null,null,null,null,null,null,null,"↓",null,null,null,null,null,null,null,null,null,null,null,null,null,null,null,null,null,null,null,null,null,null,null,null,null,null,null,null,null,null,null,null,null,null,null,null,null,null,null,null,null,null,null,null,null,null,null,null,null,null,null,null,null,null,null,null,null,null,null,null,null,null,null,null,null,"↓"]
[null,null,null,"レベル４　非常体制",null,null,null,null,null,null,null,null,null,null,null,null,null,null,null,null,null,null,null,null,null,null,null,null,null,null,null,null,null,null,null,null,null,null,null,null,null,null,null,null,null,null,null,null,null,null,null,null,null,null,null,null,null,null,null,null,null,null,null,null,null,null,null,null,null,"レベル４　非常体制"]
[null,null,null,"・避難誘導を開始する。",null,null,null,null,null,null,null,null,null,null,null,null,null,null,null,null,null,null,null,null,null,null,null,null,null,null,null,null,null,null,null,null,null,null,null,null,null,null,null,null,null,null,null,null,null,null,null,null,null,null,null,null,null,null,null,null,null,null,null,null,null,null,null,null,null,"・避難誘導を開始する。"]
[]
[]
[null,null,null,"大型台風",null,null,null,null,null,null,null,null,null,null,null,null,null,null,null,null,null,null,null,null,null,null,null,null,null,null,null,null,null,null,null,null,null,null,null,null,null,null,null,null,null,null,null,null,null,null,null,null,null,null,null,null,null,null,null,null,null,null,null,null,null,null,null,null,null,"大型台風"]
[null,null,null,null,null,null,null,null,null,null,null,null,null,null,null,null,null,null,null,null,null,null,null,null,null,null,null,null,null,null,null,null,null,null,null,null,null,null,null,null,null,null,null,null,null,null,null,null,null,null,null,null,null,null,null,null,null,null,null,null,null,null,null,null,null,null,null,null,null,"大型台風の襲来が予想される場合で、公共交通機関の計画運休が予定されている場合、避難に関する準備をし、早めに避難を開始する。また、協定を締結した地域の企業等と連携して早めに避難を開始する。"]
[]
[]
[]
[]
[null,null,null,null,null,null,null,null,null,null,null,null,null,null,null,null,null,null,null,null,null,null,null,null,null,null,null,null,null,null,null,null,null,null,null,null,null,null,null,null,null,null,null,null,null,null,null,null,null,null,null,null,null,null,null,null,null,null,null,null,null,null,null,null,null,null,null,null,null,"○○企業との協定　福祉車両提供及び避難支援（詳細は協定書参照）"]
[]
[]
[]
[]
[]
[]
[null,null,"高潮",null,null,null,null,null,null,null,null,null,null,null,null,null,null,null,null,null,null,null,null,null,null,null,null,null,null,null,null,null,null,null,null,null,null,null,null,null,null,null,null,null,null,null,null,null,null,null,null,null,null,null,null,null,"様式２",null,null,null,null,null,null,null,null,null,null,null,"高潮",null,null,null,null,null,null,null,null,null,null,null,null,null,null,null,null,null,null,null,null,null,null,null,null,null,null,null,null,null,null,null,null,null,null,null,null,null,null,null,null,null,null,null,null,null,null,null,null,null,null,null,null,null,"記載例"]
[]
[null,null,"４　防災体制",null,null,null,null,null,null,null,null,null,null,null,null,null,null,null,null,null,null,null,null,null,null,null,null,null,null,null,null,null,null,null,null,null,null,null,null,null,null,null,null,null,null,null,null,null,null,null,null,null,null,null,null,null,null,null,null,null,null,null,null,null,null,null,null,null,"４　防災体制"]
[]
[null,null,"　防災体制確立の判断時期に基づき、注意、警戒、非常の体制をとり、管理権限者が定めた統括管理者のもと、総括・情報班、避難誘導班が避難誘導等の活動を行う。",null,null,null,null,null,null,null,null,null,null,null,null,null,null,null,null,null,null,null,null,null,null,null,null,null,null,null,null,null,null,null,null,null,null,null,null,null,null,null,null,null,null,null,null,null,null,null,null,null,null,null,null,null,null,null,null,null,null,null,null,null,null,null,null,null,"《自衛水防組織を設置する場合》\n　防災体制確立の判断時期に基づき、注意、警戒、非常の体制をとり、管理権限者が定めた統括管理者のもと、総括・情報班、避難誘導班が避難誘導等の活動を行う。\n《自衛水防組織を設置しない場合》\n　防災体制確立の判断時期に基づき、注意、警戒、非常の体制をとり、管理権限者のもと情報収集伝達要員、避難誘導要員が避難誘導等の活動を行う。"]
[]
[]
[]
[]
[]
[null,null,"【防災体制確立の判断時期及び役割分担】",null,null,null,null,null,null,null,null,null,null,null,null,null,null,null,null,null,null,null,null,null,null,null,null,null,null,null,null,null,null,null,null,null,null,null,null,null,null,null,null,null,null,null,null,null,null,null,null,null,null,null,null,null,null,null,null,null,null,null,null,null,null,null,null,null,"【防災体制確立の判断時期及び役割分担】"]
[]
[]
[null,null,null,null,null,null,null,null,null,null,null,null,null,null,null,null,null,null,null,null,null,null,null,null,null,null,null,null,null,null,null,null,null,null,null,null,null,null,null,null,null,null,null,null,null,null,null,null,null,null,null,null,null,null,null,null,null,null,null,null,null,null,null,null,null,null,null,null,null,"以下のいずれかに該当する場合\n",null,null,null,null,null,null,null,null,null,null,null,null,null,null,null,null,null,null,null,null,null,null,null,null,null,"気象・潮位情報等の情報収集",null,null,null,null,null,null,null,null,null,null,null,null,null,null,null,"総括・情報班（情報収集伝達要員）"]
[null,null,null,null,null,null,null,null,null,null,null,null,null,null,null,null,null,null,null,null,null,null,null,null,null,null,null,null,null,null,null,null,null,null,null,null,null,null,null,null,null,null,null,null,null,null,null,null,null,null,null,null,null,null,null,null,null,null,null,null,null,null,null,null,null,null,null,null,null,"　高潮注意報発表"]
[]
[]
[]
[]
[]
[]
[]
[null,null,null,null,null,null,null,null,null,null,null,null,null,null,null,null,null,null,null,null,null,null,null,null,null,null,null,null,null,null,null,null,null,null,null,null,null,null,null,null,null,null,null,null,null,null,null,null,null,null,null,null,null,null,null,null,null,null,null,null,null,null,null,null,null,null,null,null,null,"以下のいずれかに該当する場合\n",null,null,null,null,null,null,null,null,null,null,null,null,null,null,null,null,null,null,null,null,null,null,null,null,null,"気象・潮位情報等の情報収集",null,null,null,null,null,null,null,null,null,null,null,null,null,null,null,"総括・情報班（情報収集伝達要員）"]
[null,null,null,null,null,null,null,null,null,null,null,null,null,null,null,null,null,null,null,null,null,null,null,null,null,null,null,null,null,null,null,null,null,null,null,null,null,null,null,null,null,null,null,null,null,null,null,null,null,null,null,null,null,null,null,null,null,null,null,null,null,null,null,null,null,null,null,null,null,"　高齢者等避難の発令",null,null,null,null,null,null,null,null,null,null,null,null,null,null,null,null,null,null,null,null,null,null,null,null,null,"使用する資器材の準備",null,null,null,null,null,null,null,null,null,null,null,null,null,null,null,"避難誘導班（避難誘導要員）"]
[null,null,null,null,null,null,null,null,null,null,null,null,null,null,null,null,null,null,null,null,null,null,null,null,null,null,null,null,null,null,null,null,null,null,null,null,null,null,null,null,null,null,null,null,null,null,null,null,null,null,null,null,null,null,null,null,null,null,null,null,null,null,null,null,null,null,null,null,null,"　高潮警報発表（当該施設におけ",null,null,null,null,null,null,null,null,null,null,null,null,null,null,null,null,null,null,null,null,null,null,null,null,null,"保護者・家族等への事前連絡",null,null,null,null,null,null,null,null,null,null,null,null,null,null,null,"総括・情報班（情報収集伝達要員）"]
[null,null,null,null,null,null,null,null,null,null,null,null,null,null,null,null,null,null,null,null,null,null,null,null,null,null,null,null,null,null,null,null,null,null,null,null,null,null,null,null,null,null,null,null,null,null,null,null,null,null,null,null,null,null,null,null,null,null,null,null,null,null,null,null,null,null,null,null,null,"　　る想定される浸水深が小さく、",null,null,null,null,null,null,null,null,null,null,null,null,null,null,null,null,null,null,null,null,null,null,null,null,null,"周辺住民への事前協力依頼",null,null,null,null,null,null,null,null,null,null,null,null,null,null,null,"総括・情報班（情報収集伝達要員）"]
[null,null,null,null,null,null,null,null,null,null,null,null,null,null,null,null,null,null,null,null,null,null,null,null,null,null,null,null,null,null,null,null,null,null,null,null,null,null,null,null,null,null,null,null,null,null,null,null,null,null,null,null,null,null,null,null,null,null,null,null,null,null,null,null,null,null,null,null,null,"　　浸水継続時間が短い場合）",null,null,null,null,null,null,null,null,null,null,null,null,null,null,null,null,null,null,null,null,null,null,null,null,null,"要配慮者の避難誘導",null,null,null,null,null,null,null,null,null,null,null,null,null,null,null,"避難誘導班（避難誘導要員）"]
[]
[]
[]
[]
[null,null,null,null,null,null,null,null,null,null,null,null,null,null,null,null,null,null,null,null,null,null,null,null,null,null,null,null,null,null,null,null,null,null,null,null,null,null,null,null,null,null,null,null,null,null,null,null,null,null,null,null,null,null,null,null,null,null,null,null,null,null,null,null,null,null,null,null,null,"以下のいずれかに該当する場合\n",null,null,null,null,null,null,null,null,null,null,null,null,null,null,null,null,null,null,null,null,null,null,null,null,null,"施設内全体の避難誘導",null,null,null,null,null,null,null,null,null,null,null,null,null,null,null,"避難誘導班（避難誘導要員）"]
[null,null,null,null,null,null,null,null,null,null,null,null,null,null,null,null,null,null,null,null,null,null,null,null,null,null,null,null,null,null,null,null,null,null,null,null,null,null,null,null,null,null,null,null,null,null,null,null,null,null,null,null,null,null,null,null,null,null,null,null,null,null,null,null,null,null,null,null,null,"　避難指示の発令"]
[null,null,null,null,null,null,null,null,null,null,null,null,null,null,null,null,null,null,null,null,null,null,null,null,null,null,null,null,null,null,null,null,null,null,null,null,null,null,null,null,null,null,null,null,null,null,null,null,null,null,null,null,null,null,null,null,null,null,null,null,null,null,null,null,null,null,null,null,null,"　暴風警報及び高潮警報発表"]
[null,null,null,null,null,null,null,null,null,null,null,null,null,null,null,null,null,null,null,null,null,null,null,null,null,null,null,null,null,null,null,null,null,null,null,null,null,null,null,null,null,null,null,null,null,null,null,null,null,null,null,null,null,null,null,null,null,null,null,null,null,null,null,null,null,null,null,null,null,"　（当該施設における想定される"]
[null,null,null,null,null,null,null,null,null,null,null,null,null,null,null,null,null,null,null,null,null,null,null,null,null,null,null,null,null,null,null,null,null,null,null,null,null,null,null,null,null,null,null,null,null,null,null,null,null,null,null,null,null,null,null,null,null,null,null,null,null,null,null,null,null,null,null,null,null,"　　浸水深が大きく、浸水継続時"]
[null,null,null,null,null,null,null,null,null,null,null,null,null,null,null,null,null,null,null,null,null,null,null,null,null,null,null,null,null,null,null,null,null,null,null,null,null,null,null,null,null,null,null,null,null,null,null,null,null,null,null,null,null,null,null,null,null,null,null,null,null,null,null,null,null,null,null,null,null,"　　間が長い場合）"]
[null,null,null,null,null,null,null,null,null,null,null,null,null,null,null,null,null,null,null,null,null,null,null,null,null,null,null,null,null,null,null,null,null,null,null,null,null,null,null,null,null,null,null,null,null,null,null,null,null,null,null,null,null,null,null,null,null,null,null,null,null,null,null,null,null,null,null,null,null,"　高潮特別警報発表"]
[null,null,null,null,null,null,null,null,null,null,null,null,null,null,null,null,null,null,null,null,null,null,null,null,null,null,null,null,null,null,null,null,null,null,null,null,null,null,null,null,null,null,null,null,null,null,null,null,null,null,null,null,null,null,null,null,null,null,null,null,null,null,null,null,null,null,null,null,null,"　○○海岸高潮氾濫危険情報発表"]
[]
[]
[]
[null,null,null,"レベル２　注意体制",null,null,null,null,null,null,null,null,null,null,null,null,null,null,null,null,null,null,null,null,null,null,null,null,"※判断時期は、気象情報、水位到達情報及び避難情報等をもとに設定する。避難情報等は必ずしも発令されない場合があるので、台風の進路等により自主的な判断に基づき体制を確立することも必要である。",null,null,null,null,null,null,null,null,null,null,null,null,null,null,null,null,null,null,null,null,null,null,null,null,null,null,null,null,null,null,null,null,null,null,null,null,null,null,null,null,"レベル２　注意体制",null,null,null,null,null,null,null,null,null,null,null,null,null,null,null,null,null,null,null,null,null,null,null,null,"※判断時期は、気象情報、水位到達情報及び避難情報等をもとに設定する。避難情報等は必ずしも発令されない場合があるので、台風の進路等により自主的な判断に基づき体制を確立することも必要である。"]
[null,null,null,"・災害モードへ気持ちを切り替える。\n・気象情報等の収集を行う。",null,null,null,null,null,null,null,null,null,null,null,null,null,null,null,null,null,null,null,null,null,null,null,null,null,null,null,null,null,null,null,null,null,null,null,null,null,null,null,null,null,null,null,null,null,null,null,null,null,null,null,null,null,null,null,null,null,null,null,null,null,null,null,null,null,"・災害モードへ気持ちを切り替える。\n・気象情報等の収集を行う。"]
[]
[null,null,null,null,null,null,null,null,null,null,null,null,"↓",null,null,null,null,null,null,null,null,null,null,null,null,null,null,null,null,null,null,null,null,null,null,null,null,null,null,null,null,null,null,null,null,null,null,null,null,null,null,null,null,null,null,null,null,null,null,null,null,null,null,null,null,null,null,null,null,null,null,null,null,null,null,null,null,null,"↓"]
[null,null,null,"レベル３　警戒体制",null,null,null,null,null,null,null,null,null,null,null,null,null,null,null,null,null,null,null,null,null,null,null,null,null,null,null,null,null,null,null,null,null,null,null,null,null,null,null,null,null,null,null,null,null,null,null,null,null,null,null,null,null,null,null,null,null,null,null,null,null,null,null,null,null,"レベル３　警戒体制"]
[null,null,null,"・避難場所へ避難する準備を行う。\n・要配慮者の避難誘導を開始する。",null,null,null,null,null,null,null,null,null,null,null,null,null,null,null,null,null,null,null,null,null,null,null,null,null,null,null,null,null,null,null,null,null,null,null,null,null,null,null,null,null,null,null,null,null,null,null,null,null,null,null,null,null,null,null,null,null,null,null,null,null,null,null,null,null,"・避難場所へ避難する準備を行う。\n・要配慮者の避難誘導を開始する。"]
[null,null,null,null,null,null,null,null,null,null,null,null,null,null,null,null,null,null,null,null,null,null,null,null,null,null,null,null,"※浸水想定区域と土砂災害警戒区域が重複する地域では、避難情報等の発表・発令が早い情報で避難体制を確立し、避難のタイミングを判断する必要がある。",null,null,null,null,null,null,null,null,null,null,null,null,null,null,null,null,null,null,null,null,null,null,null,null,null,null,null,null,null,null,null,null,null,null,null,null,null,null,null,null,null,null,null,null,null,null,null,null,null,null,null,null,null,null,null,null,null,null,null,null,null,null,null,null,null,"※浸水想定区域と土砂災害警戒区域が重複する地域では、避難情報等の発表・発令が早い情報で避難体制を確立し、避難のタイミングを判断する必要がある。"]
[null,null,null,null,null,null,null,null,null,null,null,null,"↓",null,null,null,null,null,null,null,null,null,null,null,null,null,null,null,null,null,null,null,null,null,null,null,null,null,null,null,null,null,null,null,null,null,null,null,null,null,null,null,null,null,null,null,null,null,null,null,null,null,null,null,null,null,null,null,null,null,null,null,null,null,null,null,null,null,"↓"]
[null,null,null,"レベル４　非常体制",null,null,null,null,null,null,null,null,null,null,null,null,null,null,null,null,null,null,null,null,null,null,null,null,null,null,null,null,null,null,null,null,null,null,null,null,null,null,null,null,null,null,null,null,null,null,null,null,null,null,null,null,null,null,null,null,null,null,null,null,null,null,null,null,null,"レベル４　非常体制"]
[null,null,null,"・施設内全体の避難誘導を開始する。",null,null,null,null,null,null,null,null,null,null,null,null,null,null,null,null,null,null,null,null,null,null,null,null,null,null,null,null,null,null,null,null,null,null,null,null,null,null,null,null,null,null,null,null,null,null,null,null,null,null,null,null,null,null,null,null,null,null,null,null,null,null,null,null,null,"・施設内全体の避難誘導を開始する。"]
[]
[]
[null,null,null,"大型台風",null,null,null,null,null,null,null,null,null,null,null,null,null,null,null,null,null,null,null,null,null,null,null,null,null,null,null,null,null,null,null,null,null,null,null,null,null,null,null,null,null,null,null,null,null,null,null,null,null,null,null,null,null,null,null,null,null,null,null,null,null,null,null,null,null,"大型台風"]
[null,null,null,null,null,null,null,null,null,null,null,null,null,null,null,null,null,null,null,null,null,null,null,null,null,null,null,null,null,null,null,null,null,null,null,null,null,null,null,null,null,null,null,null,null,null,null,null,null,null,null,null,null,null,null,null,null,null,null,null,null,null,null,null,null,null,null,null,null,"大型台風の襲来が予想される場合で、公共交通機関の計画運休が予定されている場合、避難に関する準備をし、早めに避難を開始する。また、協定を締結した地域の企業等と連携して早めに避難を開始する。"]
[]
[]
[]
[]
[null,null,null,null,null,null,null,null,null,null,null,null,null,null,null,null,null,null,null,null,null,null,null,null,null,null,null,null,null,null,null,null,null,null,null,null,null,null,null,null,null,null,null,null,null,null,null,null,null,null,null,null,null,null,null,null,null,null,null,null,null,null,null,null,null,null,null,null,null,"○○企業との協定　福祉車両提供及び避難支援（詳細は協定書参照）"]
[]
[]
[]
[]
[]
[]
[null,null,"津波到達時間が短い場合",null,null,null,null,null,null,null,null,null,null,null,null,null,null,null,null,null,null,null,null,null,null,null,null,null,null,null,null,null,null,null,null,null,null,null,null,null,null,null,null,null,null,null,null,null,null,null,null,null,null,null,null,null,"様式２",null,null,null,null,null,null,null,null,null,null,null,"津波到達時間が短い場合",null,null,null,null,null,null,null,null,null,null,null,null,null,null,null,null,null,null,null,null,null,null,null,null,null,null,null,null,null,null,null,null,null,null,null,null,null,null,null,null,null,null,null,null,null,null,null,null,null,null,null,null,null,"記載例"]
[]
[null,null,"４　防災体制",null,null,null,null,null,null,null,null,null,null,null,null,null,null,null,null,null,null,null,null,null,null,null,null,null,null,null,null,null,null,null,null,null,null,null,null,null,null,null,null,null,null,null,null,null,null,null,null,null,null,null,null,null,null,null,null,null,null,null,null,null,null,null,null,null,"４　防災体制"]
[]
[null,null,"　防災体制確立の判断時期に基づき、注意、警戒、非常の体制をとり、管理権限者が定めた統括管理者のもと、総括・情報班、避難誘導班が避難誘導等の活動を行う。",null,null,null,null,null,null,null,null,null,null,null,null,null,null,null,null,null,null,null,null,null,null,null,null,null,null,null,null,null,null,null,null,null,null,null,null,null,null,null,null,null,null,null,null,null,null,null,null,null,null,null,null,null,null,null,null,null,null,null,null,null,null,null,null,null,"《自衛水防組織を設置する場合》\n　防災体制確立の判断時期に基づき、注意、警戒、非常の体制をとり、管理権限者が定めた統括管理者のもと、総括・情報班、避難誘導班が避難誘導等の活動を行う。\n《自衛水防組織を設置しない場合》\n　防災体制確立の判断時期に基づき、注意、警戒、非常の体制をとり、管理権限者のもと情報収集伝達要員、避難誘導要員が避難誘導等の活動を行う。"]
[]
[]
[]
[]
[]
[null,null,"【防災体制確立の判断時期及び役割分担】",null,null,null,null,null,null,null,null,null,null,null,null,null,null,null,null,null,null,null,null,null,null,null,null,null,null,null,null,null,null,null,null,null,null,null,null,null,null,null,null,null,null,null,null,null,null,null,null,null,null,null,null,null,null,null,null,null,null,null,null,null,null,null,null,null,"【防災体制確立の判断時期及び役割分担】"]
[]
[]
[null,null,null,null,null,null,null,null,null,null,null,null,null,null,null,null,null,null,null,null,null,null,null,null,null,null,null,null,null,null,null,null,null,null,null,null,null,null,null,null,null,null,null,null,null,null,null,null,null,null,null,null,null,null,null,null,null,null,null,null,null,null,null,null,null,null,null,null,null,"　緊急地震速報",null,null,null,null,null,null,null,null,null,null,null,null,null,null,null,null,null,null,null,null,null,null,null,null,null,"津波情報等の情報収集",null,null,null,null,null,null,null,null,null,null,null,null,null,null,null,"総括・情報班（情報収集伝達要員）"]
[]
[]
[]
[]
[]
[]
[]
[]
[null,null,null,null,null,null,null,null,null,null,null,null,null,null,null,null,null,null,null,null,null,null,null,null,null,null,null,null,null,null,null,null,null,null,null,null,null,null,null,null,null,null,null,null,null,null,null,null,null,null,null,null,null,null,null,null,null,null,null,null,null,null,null,null,null,null,null,null,null,"　津波注意報発表",null,null,null,null,null,null,null,null,null,null,null,null,null,null,null,null,null,null,null,null,null,null,null,null,null,"津波情報等の情報収集",null,null,null,null,null,null,null,null,null,null,null,null,null,null,null,"総括・情報班（情報収集伝達要員）"]
[null,null,null,null,null,null,null,null,null,null,null,null,null,null,null,null,null,null,null,null,null,null,null,null,null,null,null,null,null,null,null,null,null,null,null,null,null,null,null,null,null,null,null,null,null,null,null,null,null,null,null,null,null,null,null,null,null,null,null,null,null,null,null,null,null,null,null,null,null,null,null,null,null,null,null,null,null,null,null,null,null,null,null,null,null,null,null,null,null,null,null,null,null,null,null,"使用する資器材の準備",null,null,null,null,null,null,null,null,null,null,null,null,null,null,null,"避難誘導班（避難誘導要員）"]
[null,null,null,null,null,null,null,null,null,null,null,null,null,null,null,null,null,null,null,null,null,null,null,null,null,null,null,null,null,null,null,null,null,null,null,null,null,null,null,null,null,null,null,null,null,null,null,null,null,null,null,null,null,null,null,null,null,null,null,null,null,null,null,null,null,null,null,null,null,null,null,null,null,null,null,null,null,null,null,null,null,null,null,null,null,null,null,null,null,null,null,null,null,null,null,"保護者・家族等への事前連絡",null,null,null,null,null,null,null,null,null,null,null,null,null,null,null,"総括・情報班（情報収集伝達要員）"]
[null,null,null,null,null,null,null,null,null,null,null,null,null,null,null,null,null,null,null,null,null,null,null,null,null,null,null,null,null,null,null,null,null,null,null,null,null,null,null,null,null,null,null,null,null,null,null,null,null,null,null,null,null,null,null,null,null,null,null,null,null,null,null,null,null,null,null,null,null,null,null,null,null,null,null,null,null,null,null,null,null,null,null,null,null,null,null,null,null,null,null,null,null,null,null,"周辺住民への事前協力依頼",null,null,null,null,null,null,null,null,null,null,null,null,null,null,null,"総括・情報班（情報収集伝達要員）"]
[]
[]
[]
[]
[]
[null,null,null,null,null,null,null,null,null,null,null,null,null,null,null,null,null,null,null,null,null,null,null,null,null,null,null,null,null,null,null,null,null,null,null,null,null,null,null,null,null,null,null,null,null,null,null,null,null,null,null,null,null,null,null,null,null,null,null,null,null,null,null,null,null,null,null,null,null,"　避難指示の発令",null,null,null,null,null,null,null,null,null,null,null,null,null,null,null,null,null,null,null,null,null,null,null,null,null,"避難誘導",null,null,null,null,null,null,null,null,null,null,null,null,null,null,null,"避難誘導班（避難誘導要員）"]
[null,null,null,null,null,null,null,null,null,null,null,null,null,null,null,null,null,null,null,null,null,null,null,null,null,null,null,null,null,null,null,null,null,null,null,null,null,null,null,null,null,null,null,null,null,null,null,null,null,null,null,null,null,null,null,null,null,null,null,null,null,null,null,null,null,null,null,null,null,"　津波警報、津波特別警報（大"]
[null,null,null,null,null,null,null,null,null,null,null,null,null,null,null,null,null,null,null,null,null,null,null,null,null,null,null,null,null,null,null,null,null,null,null,null,null,null,null,null,null,null,null,null,null,null,null,null,null,null,null,null,null,null,null,null,null,null,null,null,null,null,null,null,null,null,null,null,null,"　　津波警報）発表"]
[null,null,null,null,null,null,null,null,null,null,null,null,null,null,null,null,null,null,null,null,null,null,null,null,null,null,null,null,null,null,null,null,null,null,null,null,null,null,null,null,null,null,null,null,null,null,null,null,null,null,null,null,null,null,null,null,null,null,null,null,null,null,null,null,null,null,null,null,null,"　危険の前兆を確認　等"]
[]
[]
[]
[]
[]
[]
[null,null,null,"注意体制",null,null,null,null,null,null,null,null,null,null,null,null,null,null,null,null,null,null,null,null,null,null,null,null,"※判断時期は、気象情報及び避難情報等をもとに設定する。津波の場合では、避難情報等は必ずしも発令されない場合があるので、地震の大きさ等により自主的な判断に基づき体制を確立することも必要である。",null,null,null,null,null,null,null,null,null,null,null,null,null,null,null,null,null,null,null,null,null,null,null,null,null,null,null,null,null,null,null,null,null,null,null,null,null,null,null,null,"注意体制",null,null,null,null,null,null,null,null,null,null,null,null,null,null,null,null,null,null,null,null,null,null,null,null,"※判断時期は、気象情報及び避難情報等をもとに設定する。津波の場合では、避難情報等は必ずしも発令されない場合があるので、地震の大きさ等により自主的な判断に基づき体制を確立することも必要である。"]
[null,null,null,"・災害モードへ気持ちを切り替える。\n・気象情報等の収集を行う。",null,null,null,null,null,null,null,null,null,null,null,null,null,null,null,null,null,null,null,null,null,null,null,null,null,null,null,null,null,null,null,null,null,null,null,null,null,null,null,null,null,null,null,null,null,null,null,null,null,null,null,null,null,null,null,null,null,null,null,null,null,null,null,null,null,"・災害モードへ気持ちを切り替える。\n・気象情報等の収集を行う。"]
[]
[null,null,null,null,null,null,null,null,null,null,null,null,"↓",null,null,null,null,null,null,null,null,null,null,null,null,null,null,null,null,null,null,null,null,null,null,null,null,null,null,null,null,null,null,null,null,null,null,null,null,null,null,null,null,null,null,null,null,null,null,null,null,null,null,null,null,null,null,null,null,null,null,null,null,null,null,null,null,null,"↓"]
[null,null,null,"警戒体制",null,null,null,null,null,null,null,null,null,null,null,null,null,null,null,null,null,null,null,null,null,null,null,null,null,null,null,null,null,null,null,null,null,null,null,null,null,null,null,null,null,null,null,null,null,null,null,null,null,null,null,null,null,null,null,null,null,null,null,null,null,null,null,null,null,"警戒体制"]
[null,null,null,"・避難場所へ避難する準備を行う。",null,null,null,null,null,null,null,null,null,null,null,null,null,null,null,null,null,null,null,null,null,null,null,null,null,null,null,null,null,null,null,null,null,null,null,null,null,null,null,null,null,null,null,null,null,null,null,null,null,null,null,null,null,null,null,null,null,null,null,null,null,null,null,null,null,"・避難場所へ避難する準備を行う。"]
[]
[null,null,null,null,null,null,null,null,null,null,null,null,"↓",null,null,null,null,null,null,null,null,null,null,null,null,null,null,null,null,null,null,null,null,null,null,null,null,null,null,null,null,null,null,null,null,null,null,null,null,null,null,null,null,null,null,null,null,null,null,null,null,null,null,null,null,null,null,null,null,null,null,null,null,null,null,null,null,null,"↓"]
[null,null,null,"非常体制",null,null,null,null,null,null,null,null,null,null,null,null,null,null,null,null,null,null,null,null,null,null,null,null,null,null,null,null,null,null,null,null,null,null,null,null,null,null,null,null,null,null,null,null,null,null,null,null,null,null,null,null,null,null,null,null,null,null,null,null,null,null,null,null,null,"非常体制"]
[null,null,null,"・避難誘導を開始する。",null,null,null,null,null,null,null,null,null,null,null,null,null,null,null,null,null,null,null,null,null,null,null,null,null,null,null,null,null,null,null,null,null,null,null,null,null,null,null,null,null,null,null,null,null,null,null,null,null,null,null,null,null,null,null,null,null,null,null,null,null,null,null,null,null,"・避難誘導を開始する。"]
[]
[]
[]
[]
[]
[]
[]
[]
[]
[]
[]
[]
[]
[]
[]
[null,null,"津波到達時間が長い場合",null,null,null,null,null,null,null,null,null,null,null,null,null,null,null,null,null,null,null,null,null,null,null,null,null,null,null,null,null,null,null,null,null,null,null,null,null,null,null,null,null,null,null,null,null,null,null,null,null,null,null,null,null,"様式２",null,null,null,null,null,null,null,null,null,null,null,"津波到達時間が長い場合",null,null,null,null,null,null,null,null,null,null,null,null,null,null,null,null,null,null,null,null,null,null,null,null,null,null,null,null,null,null,null,null,null,null,null,null,null,null,null,null,null,null,null,null,null,null,null,null,null,null,null,null,null,"記載例"]
[]
[null,null,"４　防災体制",null,null,null,null,null,null,null,null,null,null,null,null,null,null,null,null,null,null,null,null,null,null,null,null,null,null,null,null,null,null,null,null,null,null,null,null,null,null,null,null,null,null,null,null,null,null,null,null,null,null,null,null,null,null,null,null,null,null,null,null,null,null,null,null,null,"４　防災体制"]
[]
[null,null,"　防災体制確立の判断時期に基づき、注意、警戒、非常の体制をとり、管理権限者が定めた統括管理者のもと、総括・情報班、避難誘導班が避難誘導等の活動を行う。",null,null,null,null,null,null,null,null,null,null,null,null,null,null,null,null,null,null,null,null,null,null,null,null,null,null,null,null,null,null,null,null,null,null,null,null,null,null,null,null,null,null,null,null,null,null,null,null,null,null,null,null,null,null,null,null,null,null,null,null,null,null,null,null,null,"《自衛水防組織を設置する場合》\n　防災体制確立の判断時期に基づき、注意、警戒、非常の体制をとり、管理権限者が定めた統括管理者のもと、総括・情報班、避難誘導班が避難誘導等の活動を行う。\n《自衛水防組織を設置しない場合》\n　防災体制確立の判断時期に基づき、注意、警戒、非常の体制をとり、管理権限者のもと情報収集伝達要員、避難誘導要員が避難誘導等の活動を行う。"]
[]
[]
[]
[]
[]
[null,null,"【防災体制確立の判断時期及び役割分担】",null,null,null,null,null,null,null,null,null,null,null,null,null,null,null,null,null,null,null,null,null,null,null,null,null,null,null,null,null,null,null,null,null,null,null,null,null,null,null,null,null,null,null,null,null,null,null,null,null,null,null,null,null,null,null,null,null,null,null,null,null,null,null,null,null,"【防災体制確立の判断時期及び役割分担】"]
[]
[]
[null,null,null,null,null,null,null,null,null,null,null,null,null,null,null,null,null,null,null,null,null,null,null,null,null,null,null,null,null,null,null,null,null,null,null,null,null,null,null,null,null,null,null,null,null,null,null,null,null,null,null,null,null,null,null,null,null,null,null,null,null,null,null,null,null,null,null,null,null,"　緊急地震速報",null,null,null,null,null,null,null,null,null,null,null,null,null,null,null,null,null,null,null,null,null,null,null,null,null,"津波情報等の情報収集",null,null,null,null,null,null,null,null,null,null,null,null,null,null,null,"総括・情報班（情報収集伝達要員）"]
[null,null,null,null,null,null,null,null,null,null,null,null,null,null,null,null,null,null,null,null,null,null,null,null,null,null,null,null,null,null,null,null,null,null,null,null,null,null,null,null,null,null,null,null,null,null,null,null,null,null,null,null,null,null,null,null,null,null,null,null,null,null,null,null,null,null,null,null,null,"　津波注意報発表"]
[null,null,null,null,null,null,null,null,null,null,null,null,null,null,null,null,null,null,null,null,null,null,null,null,null,null,null,null,null,null,null,null,null,null,null,null,null,null,null,null,null,null,null,null,null,null,null,null,null,null,null,null,null,null,null,null,null,null,null,null,null,null,null,null,null,null,null,null,null,"　遠地地震に関する情報"]
[]
[]
[]
[]
[]
[]
[null,null,null,null,null,null,null,null,null,null,null,null,null,null,null,null,null,null,null,null,null,null,null,null,null,null,null,null,null,null,null,null,null,null,null,null,null,null,null,null,null,null,null,null,null,null,null,null,null,null,null,null,null,null,null,null,null,null,null,null,null,null,null,null,null,null,null,null,null,"　高齢者等避難の発令",null,null,null,null,null,null,null,null,null,null,null,null,null,null,null,null,null,null,null,null,null,null,null,null,null,"津波情報等の情報収集",null,null,null,null,null,null,null,null,null,null,null,null,null,null,null,"総括・情報班（情報収集伝達要員）"]
[null,null,null,null,null,null,null,null,null,null,null,null,null,null,null,null,null,null,null,null,null,null,null,null,null,null,null,null,null,null,null,null,null,null,null,null,null,null,null,null,null,null,null,null,null,null,null,null,null,null,null,null,null,null,null,null,null,null,null,null,null,null,null,null,null,null,null,null,null,"　津波警報発表",null,null,null,null,null,null,null,null,null,null,null,null,null,null,null,null,null,null,null,null,null,null,null,null,null,"使用する資器材の準備",null,null,null,null,null,null,null,null,null,null,null,null,null,null,null,"避難誘導班（避難誘導要員）"]
[null,null,null,null,null,null,null,null,null,null,null,null,null,null,null,null,null,null,null,null,null,null,null,null,null,null,null,null,null,null,null,null,null,null,null,null,null,null,null,null,null,null,null,null,null,null,null,null,null,null,null,null,null,null,null,null,null,null,null,null,null,null,null,null,null,null,null,null,null,null,null,null,null,null,null,null,null,null,null,null,null,null,null,null,null,null,null,null,null,null,null,null,null,null,null,"保護者・家族等への事前連絡",null,null,null,null,null,null,null,null,null,null,null,null,null,null,null,"総括・情報班（情報収集伝達要員）"]
[null,null,null,null,null,null,null,null,null,null,null,null,null,null,null,null,null,null,null,null,null,null,null,null,null,null,null,null,null,null,null,null,null,null,null,null,null,null,null,null,null,null,null,null,null,null,null,null,null,null,null,null,null,null,null,null,null,null,null,null,null,null,null,null,null,null,null,null,null,null,null,null,null,null,null,null,null,null,null,null,null,null,null,null,null,null,null,null,null,null,null,null,null,null,null,"周辺住民への事前協力依頼",null,null,null,null,null,null,null,null,null,null,null,null,null,null,null,"総括・情報班（情報収集伝達要員）"]
[null,null,null,null,null,null,null,null,null,null,null,null,null,null,null,null,null,null,null,null,null,null,null,null,null,null,null,null,null,null,null,null,null,null,null,null,null,null,null,null,null,null,null,null,null,null,null,null,null,null,null,null,null,null,null,null,null,null,null,null,null,null,null,null,null,null,null,null,null,null,null,null,null,null,null,null,null,null,null,null,null,null,null,null,null,null,null,null,null,null,null,null,null,null,null,"要配慮者の避難誘導",null,null,null,null,null,null,null,null,null,null,null,null,null,null,null,"避難誘導班（避難誘導要員）"]
[]
[]
[]
[]
[null,null,null,null,null,null,null,null,null,null,null,null,null,null,null,null,null,null,null,null,null,null,null,null,null,null,null,null,null,null,null,null,null,null,null,null,null,null,null,null,null,null,null,null,null,null,null,null,null,null,null,null,null,null,null,null,null,null,null,null,null,null,null,null,null,null,null,null,null,"　避難指示の発令",null,null,null,null,null,null,null,null,null,null,null,null,null,null,null,null,null,null,null,null,null,null,null,null,null,"施設内全体の避難誘導",null,null,null,null,null,null,null,null,null,null,null,null,null,null,null,"避難誘導班（避難誘導要員）"]
[null,null,null,null,null,null,null,null,null,null,null,null,null,null,null,null,null,null,null,null,null,null,null,null,null,null,null,null,null,null,null,null,null,null,null,null,null,null,null,null,null,null,null,null,null,null,null,null,null,null,null,null,null,null,null,null,null,null,null,null,null,null,null,null,null,null,null,null,null,"　津波警報発表（標高の低い"]
[null,null,null,null,null,null,null,null,null,null,null,null,null,null,null,null,null,null,null,null,null,null,null,null,null,null,null,null,null,null,null,null,null,null,null,null,null,null,null,null,null,null,null,null,null,null,null,null,null,null,null,null,null,null,null,null,null,null,null,null,null,null,null,null,null,null,null,null,null,"　　地域の場合）"]
[null,null,null,null,null,null,null,null,null,null,null,null,null,null,null,null,null,null,null,null,null,null,null,null,null,null,null,null,null,null,null,null,null,null,null,null,null,null,null,null,null,null,null,null,null,null,null,null,null,null,null,null,null,null,null,null,null,null,null,null,null,null,null,null,null,null,null,null,null,"　津波特別警報(大津波"]
[null,null,null,null,null,null,null,null,null,null,null,null,null,null,null,null,null,null,null,null,null,null,null,null,null,null,null,null,null,null,null,null,null,null,null,null,null,null,null,null,null,null,null,null,null,null,null,null,null,null,null,null,null,null,null,null,null,null,null,null,null,null,null,null,null,null,null,null,null,"　　警報)発表"]
[null,null,null,null,null,null,null,null,null,null,null,null,null,null,null,null,null,null,null,null,null,null,null,null,null,null,null,null,null,null,null,null,null,null,null,null,null,null,null,null,null,null,null,null,null,null,null,null,null,null,null,null,null,null,null,null,null,null,null,null,null,null,null,null,null,null,null,null,null,"　危険の前兆を確認　等"]
[]
[]
[]
[]
[null,null,null,"注意体制",null,null,null,null,null,null,null,null,null,null,null,null,null,null,null,null,null,null,null,null,null,null,null,null,"※判断時期は、気象情報及び避難情報等をもとに設定する。津波の場合では、避難情報等は必ずしも発令されない場合があるので、地震の大きさ等により自主的な判断に基づき体制を確立することも必要である。",null,null,null,null,null,null,null,null,null,null,null,null,null,null,null,null,null,null,null,null,null,null,null,null,null,null,null,null,null,null,null,null,null,null,null,null,null,null,null,null,"注意体制",null,null,null,null,null,null,null,null,null,null,null,null,null,null,null,null,null,null,null,null,null,null,null,null,"※判断時期は、気象情報及び避難情報等をもとに設定する。津波の場合では、避難情報等は必ずしも発令されない場合があるので、地震の大きさ等により自主的な判断に基づき体制を確立することも必要である。"]
[null,null,null,"・災害モードへ気持ちを切り替える。\n・気象情報等の収集を行う。",null,null,null,null,null,null,null,null,null,null,null,null,null,null,null,null,null,null,null,null,null,null,null,null,null,null,null,null,null,null,null,null,null,null,null,null,null,null,null,null,null,null,null,null,null,null,null,null,null,null,null,null,null,null,null,null,null,null,null,null,null,null,null,null,null,"・災害モードへ気持ちを切り替える。\n・気象情報等の収集を行う。"]
[]
[null,null,null,null,null,null,null,null,null,null,null,null,"↓",null,null,null,null,null,null,null,null,null,null,null,null,null,null,null,null,null,null,null,null,null,null,null,null,null,null,null,null,null,null,null,null,null,null,null,null,null,null,null,null,null,null,null,null,null,null,null,null,null,null,null,null,null,null,null,null,null,null,null,null,null,null,null,null,null,"↓"]
[null,null,null,"警戒体制",null,null,null,null,null,null,null,null,null,null,null,null,null,null,null,null,null,null,null,null,null,null,null,null,null,null,null,null,null,null,null,null,null,null,null,null,null,null,null,null,null,null,null,null,null,null,null,null,null,null,null,null,null,null,null,null,null,null,null,null,null,null,null,null,null,"警戒体制"]
[null,null,null,"・避難場所へ避難する準備を行う。\n・要配慮者の避難誘導を開始する。",null,null,null,null,null,null,null,null,null,null,null,null,null,null,null,null,null,null,null,null,null,null,null,null,null,null,null,null,null,null,null,null,null,null,null,null,null,null,null,null,null,null,null,null,null,null,null,null,null,null,null,null,null,null,null,null,null,null,null,null,null,null,null,null,null,"・避難場所へ避難する準備を行う。\n・要配慮者の避難誘導を開始する。"]
[]
[null,null,null,null,null,null,null,null,null,null,null,null,"↓",null,null,null,null,null,null,null,null,null,null,null,null,null,null,null,null,null,null,null,null,null,null,null,null,null,null,null,null,null,null,null,null,null,null,null,null,null,null,null,null,null,null,null,null,null,null,null,null,null,null,null,null,null,null,null,null,null,null,null,null,null,null,null,null,null,"↓"]
[null,null,null,"非常体制",null,null,null,null,null,null,null,null,null,null,null,null,null,null,null,null,null,null,null,null,null,null,null,null,null,null,null,null,null,null,null,null,null,null,null,null,null,null,null,null,null,null,null,null,null,null,null,null,null,null,null,null,null,null,null,null,null,null,null,null,null,null,null,null,null,"非常体制"]
[null,null,null,"・施設内全体の避難誘導を開始する。",null,null,null,null,null,null,null,null,null,null,null,null,null,null,null,null,null,null,null,null,null,null,null,null,null,null,null,null,null,null,null,null,null,null,null,null,null,null,null,null,null,null,null,null,null,null,null,null,null,null,null,null,null,null,null,null,null,null,null,null,null,null,null,null,null,"・施設内全体の避難誘導を開始する。"]
[]
[]
[]
[]
[]
[]
[]
[]
[]
[]
[]
[]
[]
[]
[]
[null,null,"土砂災害",null,null,null,null,null,null,null,null,null,null,null,null,null,null,null,null,null,null,null,null,null,null,null,null,null,null,null,null,null,null,null,null,null,null,null,null,null,null,null,null,null,null,null,null,null,null,null,null,null,null,null,null,null,"様式２",null,null,null,null,null,null,null,null,null,null,null,"土砂災害",null,null,null,null,null,null,null,null,null,null,null,null,null,null,null,null,null,null,null,null,null,null,null,null,null,null,null,null,null,null,null,null,null,null,null,null,null,null,null,null,null,null,null,null,null,null,null,null,null,null,null,null,null,"記載例"]
[]
[null,null,"４　防災体制",null,null,null,null,null,null,null,null,null,null,null,null,null,null,null,null,null,null,null,null,null,null,null,null,null,null,null,null,null,null,null,null,null,null,null,null,null,null,null,null,null,null,null,null,null,null,null,null,null,null,null,null,null,null,null,null,null,null,null,null,null,null,null,null,null,"４　防災体制"]
[]
[]
[null,null,"【防災体制確立の判断時期及び役割分担】",null,null,null,null,null,null,null,null,null,null,null,null,null,null,null,null,null,null,null,null,null,null,null,null,null,null,null,null,null,null,null,null,null,null,null,null,null,null,null,null,null,null,null,null,null,null,null,null,null,null,null,null,null,null,null,null,null,null,null,null,null,null,null,null,null,"【防災体制確立の判断時期及び役割分担】"]
[]
[]
[null,null,null,null,null,null,null,null,null,null,null,null,null,null,null,null,null,null,null,null,null,null,null,null,null,null,null,null,null,null,null,null,null,null,null,null,null,null,null,null,null,null,null,null,null,null,null,null,null,null,null,null,null,null,null,null,null,null,null,null,null,null,null,null,null,null,null,null,null,"以下のいずれかに該当する場合\n",null,null,null,null,null,null,null,null,null,null,null,null,null,null,null,null,null,null,null,null,null,null,null,null,null,"気象情報等の情報収集",null,null,null,null,null,null,null,null,null,null,null,null,null,null,null,"総括・情報班（情報収集伝達要員）"]
[null,null,null,null,null,null,null,null,null,null,null,null,null,null,null,null,null,null,null,null,null,null,null,null,null,null,null,null,null,null,null,null,null,null,null,null,null,null,null,null,null,null,null,null,null,null,null,null,null,null,null,null,null,null,null,null,null,null,null,null,null,null,null,null,null,null,null,null,null,"　台風接近"]
[null,null,null,null,null,null,null,null,null,null,null,null,null,null,null,null,null,null,null,null,null,null,null,null,null,null,null,null,null,null,null,null,null,null,null,null,null,null,null,null,null,null,null,null,null,null,null,null,null,null,null,null,null,null,null,null,null,null,null,null,null,null,null,null,null,null,null,null,null,"　大雨情報"]
[]
[]
[]
[]
[]
[]
[null,null,null,null,null,null,null,null,null,null,null,null,null,null,null,null,null,null,null,null,null,null,null,null,null,null,null,null,null,null,null,null,null,null,null,null,null,null,null,null,null,null,null,null,null,null,null,null,null,null,null,null,null,null,null,null,null,null,null,null,null,null,null,null,null,null,null,null,null,"以下のいずれかに該当する場合\n",null,null,null,null,null,null,null,null,null,null,null,null,null,null,null,null,null,null,null,null,null,null,null,null,null,"気象情報等の情報収集",null,null,null,null,null,null,null,null,null,null,null,null,null,null,null,"総括・情報班（情報収集伝達要員）"]
[null,null,null,null,null,null,null,null,null,null,null,null,null,null,null,null,null,null,null,null,null,null,null,null,null,null,null,null,null,null,null,null,null,null,null,null,null,null,null,null,null,null,null,null,null,null,null,null,null,null,null,null,null,null,null,null,null,null,null,null,null,null,null,null,null,null,null,null,null,"　高齢者等避難の発令",null,null,null,null,null,null,null,null,null,null,null,null,null,null,null,null,null,null,null,null,null,null,null,null,null,"使用する資器材の準備",null,null,null,null,null,null,null,null,null,null,null,null,null,null,null,"避難誘導班（避難誘導要員）"]
[null,null,null,null,null,null,null,null,null,null,null,null,null,null,null,null,null,null,null,null,null,null,null,null,null,null,null,null,null,null,null,null,null,null,null,null,null,null,null,null,null,null,null,null,null,null,null,null,null,null,null,null,null,null,null,null,null,null,null,null,null,null,null,null,null,null,null,null,null,"　大雨注意報（土砂災害）発表",null,null,null,null,null,null,null,null,null,null,null,null,null,null,null,null,null,null,null,null,null,null,null,null,null,"保護者・家族等への事前連絡",null,null,null,null,null,null,null,null,null,null,null,null,null,null,null,"総括・情報班（情報収集伝達要員）"]
[null,null,null,null,null,null,null,null,null,null,null,null,null,null,null,null,null,null,null,null,null,null,null,null,null,null,null,null,null,null,null,null,null,null,null,null,null,null,null,null,null,null,null,null,null,null,null,null,null,null,null,null,null,null,null,null,null,null,null,null,null,null,null,null,null,null,null,null,null,null,null,null,null,null,null,null,null,null,null,null,null,null,null,null,null,null,null,null,null,null,null,null,null,null,null,"周辺住民への事前協力依頼",null,null,null,null,null,null,null,null,null,null,null,null,null,null,null,"総括・情報班（情報収集伝達要員）"]
[null,null,null,null,null,null,null,null,null,null,null,null,null,null,null,null,null,null,null,null,null,null,null,null,null,null,null,null,null,null,null,null,null,null,null,null,null,null,null,null,null,null,null,null,null,null,null,null,null,null,null,null,null,null,null,null,null,null,null,null,null,null,null,null,null,null,null,null,null,null,null,null,null,null,null,null,null,null,null,null,null,null,null,null,null,null,null,null,null,null,null,null,null,null,null,"要配慮者の避難誘導",null,null,null,null,null,null,null,null,null,null,null,null,null,null,null,"避難誘導班（避難誘導要員）"]
[]
[]
[]
[]
[null,null,null,null,null,null,null,null,null,null,null,null,null,null,null,null,null,null,null,null,null,null,null,null,null,null,null,null,null,null,null,null,null,null,null,null,null,null,null,null,null,null,null,null,null,null,null,null,null,null,null,null,null,null,null,null,null,null,null,null,null,null,null,null,null,null,null,null,null,"以下のいずれかに該当する場合\n",null,null,null,null,null,null,null,null,null,null,null,null,null,null,null,null,null,null,null,null,null,null,null,null,null,"施設内全体の避難誘導",null,null,null,null,null,null,null,null,null,null,null,null,null,null,null,"避難誘導班（避難誘導要員）"]
[null,null,null,null,null,null,null,null,null,null,null,null,null,null,null,null,null,null,null,null,null,null,null,null,null,null,null,null,null,null,null,null,null,null,null,null,null,null,null,null,null,null,null,null,null,null,null,null,null,null,null,null,null,null,null,null,null,null,null,null,null,null,null,null,null,null,null,null,null,"　避難指示の発令"]
[null,null,null,null,null,null,null,null,null,null,null,null,null,null,null,null,null,null,null,null,null,null,null,null,null,null,null,null,null,null,null,null,null,null,null,null,null,null,null,null,null,null,null,null,null,null,null,null,null,null,null,null,null,null,null,null,null,null,null,null,null,null,null,null,null,null,null,null,null,"　大雨警報（土砂災害）"]
[null,null,null,null,null,null,null,null,null,null,null,null,null,null,null,null,null,null,null,null,null,null,null,null,null,null,null,null,null,null,null,null,null,null,null,null,null,null,null,null,null,null,null,null,null,null,null,null,null,null,null,null,null,null,null,null,null,null,null,null,null,null,null,null,null,null,null,null,null,"　土砂災害警戒情報"]
[null,null,null,null,null,null,null,null,null,null,null,null,null,null,null,null,null,null,null,null,null,null,null,null,null,null,null,null,null,null,null,null,null,null,null,null,null,null,null,null,null,null,null,null,null,null,null,null,null,null,null,null,null,null,null,null,null,null,null,null,null,null,null,null,null,null,null,null,null,"　土砂災害の前兆現象"]
[]
[]
[]
[]
[]
[null,null,null,"レベル２　注意体制",null,null,null,null,null,null,null,null,null,null,null,null,null,null,null,null,null,null,null,null,null,null,null,null,"※判断時期は、気象情報、土砂災害警戒情報及び避難情報等をもとに設定する。雨の降り方や土砂災害の前兆現象等により自主的な判断に基づき体制を確立することも必要である。",null,null,null,null,null,null,null,null,null,null,null,null,null,null,null,null,null,null,null,null,null,null,null,null,null,null,null,null,null,null,null,null,null,null,null,null,null,null,null,null,"レベル２　注意体制",null,null,null,null,null,null,null,null,null,null,null,null,null,null,null,null,null,null,null,null,null,null,null,null,"※判断時期は、気象情報、土砂災害警戒情報及び避難情報等をもとに設定する。雨の降り方や土砂災害の前兆現象等により自主的な判断に基づき体制を確立することも必要である。"]
[null,null,null,"・災害モードへ気持ちを切り替える。\n・気象情報等の収集を行う。",null,null,null,null,null,null,null,null,null,null,null,null,null,null,null,null,null,null,null,null,null,null,null,null,null,null,null,null,null,null,null,null,null,null,null,null,null,null,null,null,null,null,null,null,null,null,null,null,null,null,null,null,null,null,null,null,null,null,null,null,null,null,null,null,null,"・災害モードへ気持ちを切り替える。\n・気象情報等の収集を行う。"]
[]
[null,null,null,null,null,null,null,null,null,null,null,null,"↓",null,null,null,null,null,null,null,null,null,null,null,null,null,null,null,null,null,null,null,null,null,null,null,null,null,null,null,null,null,null,null,null,null,null,null,null,null,null,null,null,null,null,null,null,null,null,null,null,null,null,null,null,null,null,null,null,null,null,null,null,null,null,null,null,null,"↓"]
[null,null,null,"レベル３　警戒体制",null,null,null,null,null,null,null,null,null,null,null,null,null,null,null,null,null,null,null,null,null,null,null,null,null,null,null,null,null,null,null,null,null,null,null,null,null,null,null,null,null,null,null,null,null,null,null,null,null,null,null,null,null,null,null,null,null,null,null,null,null,null,null,null,null,"レベル３　警戒体制"]
[null,null,null,"・避難場所へ避難する準備を行う。\n・要配慮者の避難誘導を開始する。",null,null,null,null,null,null,null,null,null,null,null,null,null,null,null,null,null,null,null,null,null,null,null,null,null,null,null,null,null,null,null,null,null,null,null,null,null,null,null,null,null,null,null,null,null,null,null,null,null,null,null,null,null,null,null,null,null,null,null,null,null,null,null,null,null,"・避難場所へ避難する準備を行う。\n・要配慮者の避難誘導を開始する。"]
[null,null,null,null,null,null,null,null,null,null,null,null,null,null,null,null,null,null,null,null,null,null,null,null,null,null,null,null,"※浸水想定区域と土砂災害警戒区域が重複する地域では、避難情報等の発表・発令が早い情報で避難体制を確立し、避難のタイミングを判断する必要がある。",null,null,null,null,null,null,null,null,null,null,null,null,null,null,null,null,null,null,null,null,null,null,null,null,null,null,null,null,null,null,null,null,null,null,null,null,null,null,null,null,null,null,null,null,null,null,null,null,null,null,null,null,null,null,null,null,null,null,null,null,null,null,null,null,null,"※浸水想定区域と土砂災害警戒区域が重複する地域では、避難情報等の発表・発令が早い情報で避難体制を確立し、避難のタイミングを判断する必要がある。"]
[null,null,null,null,null,null,null,null,null,null,null,null,"↓",null,null,null,null,null,null,null,null,null,null,null,null,null,null,null,null,null,null,null,null,null,null,null,null,null,null,null,null,null,null,null,null,null,null,null,null,null,null,null,null,null,null,null,null,null,null,null,null,null,null,null,null,null,null,null,null,null,null,null,null,null,null,null,null,null,"↓"]
[null,null,null,"レベル４　非常体制",null,null,null,null,null,null,null,null,null,null,null,null,null,null,null,null,null,null,null,null,null,null,null,null,null,null,null,null,null,null,null,null,null,null,null,null,null,null,null,null,null,null,null,null,null,null,null,null,null,null,null,null,null,null,null,null,null,null,null,null,null,null,null,null,null,"レベル４　非常体制"]
[null,null,null,"・施設内全体の避難誘導を開始する。",null,null,null,null,null,null,null,null,null,null,null,null,null,null,null,null,null,null,null,null,null,null,null,null,null,null,null,null,null,null,null,null,null,null,null,null,null,null,null,null,null,null,null,null,null,null,null,null,null,null,null,null,null,null,null,null,null,null,null,null,null,null,null,null,null,"・施設内全体の避難誘導を開始する。"]
[]
[]
[null,null,null,"大型台風",null,null,null,null,null,null,null,null,null,null,null,null,null,null,null,null,null,null,null,null,null,null,null,null,null,null,null,null,null,null,null,null,null,null,null,null,null,null,null,null,null,null,null,null,null,null,null,null,null,null,null,null,null,null,null,null,null,null,null,null,null,null,null,null,null,"大型台風"]
[null,null,null,null,null,null,null,null,null,null,null,null,null,null,null,null,null,null,null,null,null,null,null,null,null,null,null,null,null,null,null,null,null,null,null,null,null,null,null,null,null,null,null,null,null,null,null,null,null,null,null,null,null,null,null,null,null,null,null,null,null,null,null,null,null,null,null,null,null,"大型台風の襲来が予想される場合で、公共交通機関の計画運休が予定されている場合、避難に関する準備をし、早めに避難を開始する。また、協定を締結した地域の企業等と連携して早めに避難を開始する。"]
[]
[]
[]
[]
[null,null,null,null,null,null,null,null,null,null,null,null,null,null,null,null,null,null,null,null,null,null,null,null,null,null,null,null,null,null,null,null,null,null,null,null,null,null,null,null,null,null,null,null,null,null,null,null,null,null,null,null,null,null,null,null,null,null,null,null,null,null,null,null,null,null,null,null,null,"○○企業との協定　福祉車両提供及び避難支援（詳細は協定書参照）"]
[]
[]
[]
[]
[]
[]
[]
[]
[]
[]
[]
[]
[]
[]
[null,null,null,null,null,null,null,null,null,null,null,null,null,null,null,null,null,null,null,null,null,null,null,null,null,null,null,null,null,null,null,null,null,null,null,null,null,null,null,null,null,null,null,null,null,null,null,null,null,null,null,null,null,null,null,null,"様式３",null,null,null,null,null,null,null,null,null,null,null,null,null,null,null,null,null,null,null,null,null,null,null,null,null,null,null,null,null,null,null,null,null,null,null,null,null,null,null,null,null,null,null,null,null,null,null,null,null,null,null,null,null,null,null,null,null,null,null,null,null,null,null,null,null,"記載例"]
[]
[null,null,"５　情報収集・伝達",null,null,null,null,null,null,null,null,null,null,null,null,null,null,null,null,null,null,null,null,null,null,null,null,null,null,null,null,null,null,null,null,null,null,null,null,null,null,null,null,null,null,null,null,null,null,null,null,null,null,null,null,null,null,null,null,null,null,null,null,null,null,null,null,null,"５　情報収集・伝達"]
[null,null,"(1) 情報収集",null,null,null,null,null,null,null,null,null,null,null,null,null,null,null,null,null,null,null,null,null,null,null,null,null,null,null,null,null,null,null,null,null,null,null,null,null,null,null,null,null,null,null,null,null,null,null,null,null,null,null,null,null,null,null,null,null,null,null,null,null,null,null,null,null,"(1) 情報収集"]
[null,null,null,null,"収集する主な情報及び収集方法は、以下のとおりとする。",null,null,null,null,null,null,null,null,null,null,null,null,null,null,null,null,null,null,null,null,null,null,null,null,null,null,null,null,null,null,null,null,null,null,null,null,null,null,null,null,null,null,null,null,null,null,null,null,null,null,null,null,null,null,null,null,null,null,null,null,null,null,null,null,null,"収集する主な情報及び収集方法は、以下のとおりとする。"]
[]
[null,null,null,null,null,"収集する情報",null,null,null,null,null,null,null,null,null,null,null,"情報の例示",null,null,null,null,null,null,null,null,null,null,null,null,null,null,null,null,null,"収集方法",null,null,null,null,null,null,null,null,null,null,null,null,null,null,null,null,null,null,null,null,null,null,null,null,null,null,null,null,null,null,null,null,null,null,null,"収集する情報",null,null,null,null,null,null,null,null,null,null,null,"情報の例示",null,null,null,null,null,null,null,null,null,null,null,null,null,null,null,null,null,"収集方法（例）"]
[null,null,null,null,null,"洪水予報等",null,null,null,null,null,null,null,null,null,null,null,"気象警報、津波情報",null,null,null,null,null,null,null,null,null,null,null,null,null,null,null,null,null,{"$f":"IF(入力シート!L110=\"\",\"\",入力シート!L110)","v":"気象庁ウェブサイト（http://www.jma.go.jp/jp/warn/）、テレビ（データ放送）"},null,null,null,null,null,null,null,null,null,null,null,null,null,null,null,null,null,null,null,null,null,null,null,null,null,null,null,null,null,null,null,null,null,null,null,"洪水予報等",null,null,null,null,null,null,null,null,null,null,null,"気象警報、津波情報",null,null,null,null,null,null,null,null,null,null,null,null,null,null,null,null,null,"テレビ"]
[]
[]
[null,null,null,null,null,null,null,null,null,null,null,null,null,null,null,null,null,"洪水予報、水位到達情報",null,null,null,null,null,null,null,null,null,null,null,null,null,null,null,null,null,{"$f":"IF(入力シート!L112=\"\",\"\",入力シート!L112)","v":"川の防災情報（https://www.river.go.jp/index）"},null,null,null,null,null,null,null,null,null,null,null,null,null,null,null,null,null,null,null,null,null,null,null,null,null,null,null,null,null,null,null,null,null,null,null,null,null,null,null,null,null,null,null,null,null,null,null,"洪水予報、水位到達情報",null,null,null,null,null,null,null,null,null,null,null,null,null,null,null,null,null,"インターネット（情報提供機関のウェブサイト）"]
[]
[null,null,null,null,null,null,null,null,null,null,null,null,null,null,null,null,null,null,null,null,null,null,null,null,null,null,null,null,null,null,null,null,null,null,null,"気象庁ウェブサイトの洪水予報のサイト（http://www.jma.go.jp/jp/flood/）"]
[null,null,null,null,null,null,null,null,null,null,null,null,null,null,null,null,null,"土砂災害警戒情報",null,null,null,null,null,null,null,null,null,null,null,null,null,null,null,null,null,{"$f":"IF(入力シート!L114=\"\",\"\",入力シート!L114)","v":"気象庁ウェブサイト（http://www.jma.go.jp/jp/warn/）"},null,null,null,null,null,null,null,null,null,null,null,null,null,null,null,null,null,null,null,null,null,null,null,null,null,null,null,null,null,null,null,null,null,null,null,null,null,null,null,null,null,null,null,null,null,null,null,"土砂災害警戒情報",null,null,null,null,null,null,null,null,null,null,null,null,null,null,null,null,null,"ラジオ（ＡＭ○○○）"]
[]
[]
[null,null,null,null,null,null,null,null,null,null,null,null,null,null,null,null,null,"高齢者等避難、避難指示",null,null,null,null,null,null,null,null,null,null,null,null,null,null,null,null,null,{"$f":"IF(入力シート!L116=\"\",\"\",入力シート!L116)","v":"市町村ウェブサイト（●●）、緊急速報メール"},null,null,null,null,null,null,null,null,null,null,null,null,null,null,null,null,null,null,null,null,null,null,null,null,null,null,null,null,null,null,null,null,null,null,null,null,null,null,null,null,null,null,null,null,null,null,null,"高齢者等避難、避難指示",null,null,null,null,null,null,null,null,null,null,null,null,null,null,null,null,null,"防災行政無線、エリアメール・緊急速報メール、防災メール"]
[]
[]
[null,null,null,null,null,"その他",null,null,null,null,null,null,null,null,null,null,null,"施設周辺の浸水状況",null,null,null,null,null,null,null,null,null,null,null,null,null,null,null,null,null,{"$f":"IF(入力シート!L118=\"\",\"\",入力シート!L118)","v":"施設職員による目視"},null,null,null,null,null,null,null,null,null,null,null,null,null,null,null,null,null,null,null,null,null,null,null,null,null,null,null,null,null,null,null,null,null,null,null,"その他",null,null,null,null,null,null,null,null,null,null,null,"施設周辺の浸水状況",null,null,null,null,null,null,null,null,null,null,null,null,null,null,null,null,null,"施設職員による目視\n（但し、安全に配慮して危険な場所に近づかないよう施設内から実施）\n \n"]
[]
[]
[null,null,null,null,null,null,null,null,null,null,null,null,null,null,null,null,null,"排水施設の稼働状況",null,null,null,null,null,null,null,null,null,null,null,null,null,null,null,null,null,{"$f":"IF(入力シート!L120=\"\",\"\",入力シート!L120)","v":"市町村への問い合わせ"},null,null,null,null,null,null,null,null,null,null,null,null,null,null,null,null,null,null,null,null,null,null,null,null,null,null,null,null,null,null,null,null,null,null,null,null,null,null,null,null,null,null,null,null,null,null,null,"排水施設の稼働状況",null,null,null,null,null,null,null,null,null,null,null,null,null,null,null,null,null,"市町村からのＦＡＸ（事前に調整）"]
[]
[]
[null,null,null,null,null,null,null,null,null,null,null,null,null,null,null,null,null,"施設周辺における土砂災害の前兆現象",null,null,null,null,null,null,null,null,null,null,null,null,null,null,null,null,null,{"$f":"IF(入力シート!L122=\"\",\"\",入力シート!L122)","v":"―"},null,null,null,null,null,null,null,null,null,null,null,null,null,null,null,null,null,null,null,null,null,null,null,null,null,null,null,null,null,null,null,null,null,null,null,null,null,null,null,null,null,null,null,null,null,null,null,"施設周辺における土砂災害の前兆現象",null,null,null,null,null,null,null,null,null,null,null,null,null,null,null,null,null,"施設職員による目視\n（但し、安全に配慮して危険な場所に近づかないよう施設内から実施）"]
[]
[]
[]
[]
[null,null,"　停電時は、ラジオ、タブレット、携帯電話を活用して情報を収集するものとし、これに備えて、",null,null,null,null,null,null,null,null,null,null,null,null,null,null,null,null,null,null,null,null,null,null,null,null,null,null,null,null,null,null,null,null,null,null,null,null,null,null,null,null,null,null,null,null,null,null,null,null,null,null,null,null,null,null,null,null,null,null,null,null,null,null,null,null,null,"　停電時は、ラジオ、タブレット、携帯電話を活用して情報を収集するものとし、これに備えて、"]
[null,null,"乾電池、バッテリー等を備蓄する。",null,null,null,null,null,null,null,null,null,null,null,null,null,null,null,null,null,null,null,null,null,null,null,null,null,null,null,null,null,null,null,null,null,null,null,null,null,null,null,null,null,null,null,null,null,null,null,null,null,null,null,null,null,null,null,null,null,null,null,null,null,null,null,null,null,"乾電池、バッテリー等を備蓄する。"]
[null,null,"　提供される情報に加えて、雨の降り方、施設周辺の水路や道路の状況、斜面に危険な前兆が",null,null,null,null,null,null,null,null,null,null,null,null,null,null,null,null,null,null,null,null,null,null,null,null,null,null,null,null,null,null,null,null,null,null,null,null,null,null,null,null,null,null,null,null,null,null,null,null,null,null,null,null,null,null,null,null,null,null,null,null,null,null,null,null,null,"　提供される情報に加えて、雨の降り方、施設周辺の水路や道路の状況、斜面に危険な前兆が"]
[null,null,"無いか等、施設内から確認を行う。",null,null,null,null,null,null,null,null,null,null,null,null,null,null,null,null,null,null,null,null,null,null,null,null,null,null,null,null,null,null,null,null,null,null,null,null,null,null,null,null,null,null,null,null,null,null,null,null,null,null,null,null,null,null,null,null,null,null,null,null,null,null,null,null,null,"無いか等、施設内から確認を行う。"]
[null,null,null,"「対応別避難誘導一覧表」⇒様式１１",null,null,null,null,null,null,null,null,null,null,null,null,null,null,null,null,null,null,null,null,null,null,null,null,null,null,null,null,null,null,null,null,null,null,null,null,null,null,null,null,null,null,null,null,null,null,null,null,null,null,null,null,null,null,null,null,null,null,null,null,null,null,null,null,null,"「対応別避難誘導一覧表」⇒様式１１"]
[]
[null,null,"(2) 情報伝達",null,null,null,null,null,null,null,null,null,null,null,null,null,null,null,null,null,null,null,null,null,null,null,null,null,null,null,null,null,null,null,null,null,null,null,null,null,null,null,null,null,null,null,null,null,null,null,null,null,null,null,null,null,null,null,null,null,null,null,null,null,null,null,null,null,"(2) 情報伝達"]
[null,null,"　「緊急連絡網」に基づき、気象情報、洪水予報、津波情報及び土砂災害警戒情報等の",null,null,null,null,null,null,null,null,null,null,null,null,null,null,null,null,null,null,null,null,null,null,null,null,null,null,null,null,null,null,null,null,null,null,null,null,null,null,null,null,null,null,null,null,null,null,null,null,null,null,null,null,null,null,null,null,null,null,null,null,null,null,null,null,null,"　「緊急連絡網」に基づき、気象情報、洪水予報、津波情報及び土砂災害警戒情報等の"]
[null,null,"情報を施設内関係者間で共有する。",null,null,null,null,null,null,null,null,null,null,null,null,null,null,null,null,null,null,null,null,null,null,null,null,null,null,null,null,null,null,null,null,null,null,null,null,null,null,null,null,null,null,null,null,null,null,null,null,null,null,null,null,null,null,null,null,null,null,null,null,null,null,null,null,null,"情報を施設内関係者間で共有する。"]
[null,null,"　避難する場合には「利用者緊急連絡先一覧表」に基づき、利用者の保護者・家族等に対し、",null,null,null,null,null,null,null,null,null,null,null,null,null,null,null,null,null,null,null,null,null,null,null,null,null,null,null,null,null,null,null,null,null,null,null,null,null,null,null,null,null,null,null,null,null,null,null,null,null,null,null,null,null,null,null,null,null,null,null,null,null,null,null,null,null,"　避難する場合には「利用者緊急連絡先一覧表」に基づき、利用者の保護者・家族等に対し、"]
[null,null,"「",null,{"$f":"IF(入力シート!C128=\"\",\"\",入力シート!C128)","v":""},null,null,null,null,null,null,null,"（避難場所）へ避難する。利用者引き渡しは",null,null,null,null,null,null,null,null,null,null,null,null,null,null,null,null,null,null,null,null,null,null,null,null,{"$f":"IF(入力シート!P128=\"\",\"\",入力シート!P128)","v":""},null,null,null,null,null,null,null,"（避難場所）において",null,null,null,null,null,null,null,null,null,null,null,null,null,null,null,null,null,null,null,null,null,null,"「",null,"Ａ会",null,null,null,null,null,null,null,"（避難場所）へ避難する。利用者引き渡しは",null,null,null,null,null,null,null,null,null,null,null,null,null,null,null,null,null,null,null,null,null,null,null,null,"Ａ会",null,null,null,null,null,null,null,"（避難場所）において"]
[null,null,"行う。利用者の引き渡し開始は○○時頃とする。」旨を連絡する。",null,null,null,null,null,null,null,null,null,null,null,null,null,null,null,null,null,null,null,null,null,null,null,null,null,null,null,null,null,null,null,null,null,null,null,null,null,null,null,null,null,null,null,null,null,null,null,null,null,null,null,null,null,null,null,null,null,null,null,null,null,null,null,null,null,"行う。利用者の引き渡し開始は○○時頃とする。」旨を連絡する。"]
[null,null,null,null,null,null,null,null,null,null,null,null,null,null,null,null,null,null,null,null,null,null,null,null,null,null,null,null,null,null,null,null,null,null,null,null,null,null,null,null,null,null,null,null,null,null,null,null,null,null,null,null,null,null,null,null,null,null,null,null,null,null,null,null,null,null,null,null,"※実際に避難する場所の名称を記載して下さい。"]
[null,null,null,"「利用者緊急連絡先一覧表」⇒様式８",null,null,null,null,null,null,null,null,null,null,null,null,null,null,null,null,null,null,null,null,null,null,null,null,null,null,null,null,null,null,null,null,null,null,null,null,null,null,null,null,null,null,null,null,null,null,null,null,null,null,null,null,null,null,null,null,null,null,null,null,null,null,null,null,null,"「利用者緊急連絡先一覧表」⇒様式８"]
[null,null,null,"「緊急連絡網」⇒様式９",null,null,null,null,null,null,null,null,null,null,null,null,null,null,null,null,null,null,null,null,null,null,null,null,null,null,null,null,null,null,null,null,null,null,null,null,null,null,null,null,null,null,null,null,null,null,null,null,null,null,null,null,null,null,null,null,null,null,null,null,null,null,null,null,null,"「緊急連絡網」⇒様式９"]
[]
[]
[]
[]
[]
[]
[]
[]
[]
[]
[]
[]
[]
[]
[null,null,"６　避難誘導",null,null,null,null,null,null,null,null,null,null,null,null,null,null,null,null,null,null,null,null,null,null,null,null,null,null,null,null,null,null,null,null,null,null,null,null,null,null,null,null,null,null,null,null,null,null,null,null,null,null,null,null,null,"様式４",null,null,null,null,null,null,null,null,null,null,null,"６　避難誘導",null,null,null,null,null,null,null,null,null,null,null,null,null,null,null,null,null,null,null,null,null,null,null,null,null,null,null,null,null,null,null,null,null,null,null,null,null,null,null,null,null,null,null,null,null,null,null,null,null,null,null,null,null,"記載例"]
[null,null,"（１）避難場所、移動距離及び手段",null,null,null,null,null,null,null,null,null,null,null,null,null,null,null,null,null,null,null,null,null,null,null,null,null,null,null,null,null,null,null,null,null,null,null,null,null,null,null,null,null,null,null,null,null,null,null,null,null,null,null,null,null,null,null,null,null,null,null,null,null,null,null,null,null,"（１）避難場所、移動距離及び手段"]
[null,null,null,null,"浸水深が大きく、施設全体が浸水するおそれがある場合、浸水継続時間が長く、長期的に孤立するおそれがある場合、家屋倒壊等氾濫想定区域に位置する場合は立退き避難（水平避難）する。関連施設等への避難も選択肢の一つである。利用者に合わせて移動手段に配慮する。避難場所への立退き避難（水平避難）が危険な場合は、近隣の安全な場所や建物のより安全な部屋等へ移動する。",null,null,null,null,null,null,null,null,null,null,null,null,null,null,null,null,null,null,null,null,null,null,null,null,null,null,null,null,null,null,null,null,null,null,null,null,null,null,null,null,null,null,null,null,null,null,null,null,null,null,null,null,null,null,null,null,null,null,null,null,null,null,null,null,null,"浸水深が大きく、施設全体が浸水するおそれがある場合、浸水継続時間が長く、長期的に孤立するおそれがある場合、家屋倒壊等氾濫想定区域に位置する場合は立退き避難（水平避難）する。関連施設等への避難も選択肢の一つである。利用者に合わせて移動手段に配慮する。避難場所への立退き避難（水平避難）が危険な場合は、近隣の安全な場所や建物のより安全な部屋等へ移動する。"]
[]
[]
[]
[null,null,null,null,"１）立退き避難（水平避難）を行う場合",null,null,null,null,null,null,null,null,null,null,null,null,null,null,null,null,null,null,null,null,null,null,null,null,null,null,null,null,null,null,null,null,null,null,null,null,null,null,null,null,null,null,null,null,null,null,null,null,null,null,null,null,null,null,null,null,null,null,null,null,null,null,null,null,null,"１）立退き避難（水平避難）を行う場合"]
[null,null,null,null,"立退き避難（水平避難）の場合の避難場所１（浸水想定区域外の関連施設）",null,null,null,null,null,null,null,null,null,null,null,null,null,null,null,null,null,null,null,null,null,null,null,null,null,null,null,null,null,null,null,null,null,null,null,null,null,null,null,null,null,null,null,null,null,null,null,null,null,null,null,null,null,null,null,null,null,null,null,null,null,null,null,null,null,"立退き避難（水平避難）の場合の避難場所１（浸水想定区域外の関連施設等）"]
[null,null,null,null,null,null,null,null,null,null,null,null,null,null,null,null,null,null,null,null,"避難場所名称",null,null,null,null,null,null,null,null,null,null,null,null,null,null,null,"移動距離",null,null,null,null,null,null,null,null,null,"移動手段",null,null,null,null,null,null,null,null,null,null,null,null,null,null,null,null,null,null,null,null,null,null,null,null,null,null,null,null,null,null,null,null,null,null,null,null,null,null,null,"避難場所名称",null,null,null,null,null,null,null,null,null,null,null,null,null,null,null,"移動距離",null,null,null,null,null,null,null,null,null,"移動手段"]
[null,null,null,null,null,null,null,null,null,null,null,null,null,null,null,null,null,null,null,null,null,null,null,null,null,null,null,null,null,null,null,null,null,null,null,null,null,null,null,null,null,null,null,null,null,null,"徒歩",null,null,null,null,null,"車両",null,null,null,null,null,null,null,null,null,null,null,null,null,null,null,null,null,null,null,null,null,null,null,null,null,null,null,null,null,null,null,null,null,null,null,null,null,null,null,null,null,null,null,null,null,null,null,null,null,null,null,null,null,null,null,null,null,null,null,"徒歩",null,null,null,null,null,"車両"]
[null,null,null,null,"施設名（洪水）",null,null,null,null,null,null,null,null,null,null,null,null,null,null,null,{"$f":"IF(入力シート!M136=\"\",\"\",入力シート!M136)","v":""},null,null,null,null,null,null,null,null,null,null,null,null,null,null,null,{"$f":"IF(入力シート!M142=\"\",\"\",入力シート!M142)","v":""},null,null,null,null,null,null,null,"m",null,null,null,null,null,null,null,null,null,null,null,{"$f":"IF(入力シート!S146=\"\",\"\",入力シート!S146)","v":""},null,null,"台",null,null,null,null,null,null,null,null,null,null,"施設名（洪水）",null,null,null,null,null,null,null,null,null,null,null,null,null,null,null,"Ａ会（系列グループホーム）",null,null,null,null,null,null,null,null,null,null,null,null,null,null,null,2000,null,null,null,null,null,null,null,"m",null,null,null,null,null,null,null,null,null,null,null,4,null,null,"台"]
[null,null,null,null,null,null,null,null,null,null,null,null,null,null,null,null,null,null,null,null,null,null,null,null,null,null,null,null,null,null,null,null,null,null,null,null,null,null,null,null,null,null,null,null,null,null,null,null,{"$f":"IF(入力シート!S144=\"\",\"\",\"✓\")","v":""},null,null,null,null,null,{"$f":"IF(入力シート!S146=\"\",\"\",\"✓\")","v":""},null,null,null,null,null,null,null,null,null,null,null,null,null,null,null,null,null,null,null,null,null,null,null,null,null,null,null,null,null,null,null,null,null,null,null,null,null,null,null,null,null,null,null,null,null,null,null,null,null,null,null,null,null,null,null,null,null,null,null,null,null,null,null,null,null,"✔"]
[null,null,null,null,null,null,null,null,null,null,null,null,null,null,null,null,null,null,null,null,{"$f":"IF(入力シート!M138=\"\",\"\",入力シート!M138)","v":""}]
[null,null,null,null,"施設名（内水）",null,null,null,null,null,null,null,null,null,null,null,null,null,null,null,null,null,null,null,null,null,null,null,null,null,null,null,null,null,null,null,null,null,null,null,null,null,null,null,"m",null,null,null,null,null,null,null,null,null,null,null,null,null,null,"台",null,null,null,null,null,null,null,null,null,null,"施設名（内水）",null,null,null,null,null,null,null,null,null,null,null,null,null,null,null,"Ａ会（系列グループホーム）",null,null,null,null,null,null,null,null,null,null,null,null,null,null,null,2000,null,null,null,null,null,null,null,"m",null,null,null,null,null,null,null,null,null,null,null,4,null,null,"台"]
[null,null,null,null,null,null,null,null,null,null,null,null,null,null,null,null,null,null,null,null,null,null,null,null,null,null,null,null,null,null,null,null,null,null,null,null,null,null,null,null,null,null,null,null,null,null,null,null,null,null,null,null,null,null,null,null,null,null,null,null,null,null,null,null,null,null,null,null,null,null,null,null,null,null,null,null,null,null,null,null,null,null,null,null,null,null,null,null,null,null,null,null,null,null,null,null,null,null,null,null,null,null,null,null,null,null,null,null,null,null,null,null,null,null,null,null,null,null,null,null,"✔"]
[]
[null,null,null,null,"施設名（高潮）",null,null,null,null,null,null,null,null,null,null,null,null,null,null,null,null,null,null,null,null,null,null,null,null,null,null,null,null,null,null,null,null,null,null,null,null,null,null,null,"m",null,null,null,null,null,null,null,null,null,null,null,null,null,null,"台",null,null,null,null,null,null,null,null,null,null,"施設名（高潮）",null,null,null,null,null,null,null,null,null,null,null,null,null,null,null,"Ａ会（系列グループホーム）",null,null,null,null,null,null,null,null,null,null,null,null,null,null,null,2000,null,null,null,null,null,null,null,"m",null,null,null,null,null,null,null,null,null,null,null,4,null,null,"台"]
[null,null,null,null,null,null,null,null,null,null,null,null,null,null,null,null,null,null,null,null,null,null,null,null,null,null,null,null,null,null,null,null,null,null,null,null,null,null,null,null,null,null,null,null,null,null,null,null,null,null,null,null,null,null,null,null,null,null,null,null,null,null,null,null,null,null,null,null,null,null,null,null,null,null,null,null,null,null,null,null,null,null,null,null,null,null,null,null,null,null,null,null,null,null,null,null,null,null,null,null,null,null,null,null,null,null,null,null,null,null,null,null,null,null,null,null,null,null,null,null,"✔"]
[]
[null,null,null,null,"施設名（津波）",null,null,null,null,null,null,null,null,null,null,null,null,null,null,null,null,null,null,null,null,null,null,null,null,null,null,null,null,null,null,null,null,null,null,null,null,null,null,null,"m",null,null,null,null,null,null,null,null,null,null,null,null,null,null,"台",null,null,null,null,null,null,null,null,null,null,"施設名（津波）",null,null,null,null,null,null,null,null,null,null,null,null,null,null,null,"Ｂ神社",null,null,null,null,null,null,null,null,null,null,null,null,null,null,null,300,null,null,null,null,null,null,null,"m",null,null,null,null,null,null,null,null,null,null,null,4,null,null,"台"]
[null,null,null,null,null,null,null,null,null,null,null,null,null,null,null,null,null,null,null,null,null,null,null,null,null,null,null,null,null,null,null,null,null,null,null,null,null,null,null,null,null,null,null,null,null,null,null,null,null,null,null,null,null,null,null,null,null,null,null,null,null,null,null,null,null,null,null,null,null,null,null,null,null,null,null,null,null,null,null,null,null,null,null,null,null,null,null,null,null,null,null,null,null,null,null,null,null,null,null,null,null,null,null,null,null,null,null,null,null,null,null,null,null,null,"✔",null,null,null,null,null,"✔"]
[]
[null,null,null,null,"施設名（土砂災害：がけ崩れ・土石流・地すべり）",null,null,null,null,null,null,null,null,null,null,null,null,null,null,null,null,null,null,null,null,null,null,null,null,null,null,null,null,null,null,null,null,null,null,null,null,null,null,null,"m",null,null,null,null,null,null,null,null,null,null,null,null,null,null,"台",null,null,null,null,null,null,null,null,null,null,"施設名（土砂災害：がけ崩れ・土石流・地すべり）",null,null,null,null,null,null,null,null,null,null,null,null,null,null,null,"Ｃ高校（体育館）",null,null,null,null,null,null,null,null,null,null,null,null,null,null,null,500,null,null,null,null,null,null,null,"m",null,null,null,null,null,null,null,null,null,null,null,4,null,null,"台"]
[null,null,null,null,null,null,null,null,null,null,null,null,null,null,null,null,null,null,null,null,null,null,null,null,null,null,null,null,null,null,null,null,null,null,null,null,null,null,null,null,null,null,null,null,null,null,null,null,null,null,null,null,null,null,null,null,null,null,null,null,null,null,null,null,null,null,null,null,null,null,null,null,null,null,null,null,null,null,null,null,null,null,null,null,null,null,null,null,null,null,null,null,null,null,null,null,null,null,null,null,null,null,null,null,null,null,null,null,null,null,null,null,null,null,"✔",null,null,null,null,null,"✔"]
[]
[]
[]
[null,null,null,null,"立退き避難（水平避難）の場合の避難場所２（指定緊急避難場所）",null,null,null,null,null,null,null,null,null,null,null,null,null,null,null,null,null,null,null,null,null,null,null,null,null,null,null,null,null,null,null,null,null,null,null,null,null,null,null,null,null,null,null,null,null,null,null,null,null,null,null,null,null,null,null,null,null,null,null,null,null,null,null,null,null,"立退き避難（水平避難）の場合の避難場所２（指定緊急避難場所）"]
[null,null,null,null,null,null,null,null,null,null,null,null,null,null,null,null,null,null,null,null,"避難場所名称",null,null,null,null,null,null,null,null,null,null,null,null,null,null,null,"移動距離",null,null,null,null,null,null,null,null,null,"移動手段",null,null,null,null,null,null,null,null,null,null,null,null,null,null,null,null,null,null,null,null,null,null,null,null,null,null,null,null,null,null,null,null,null,null,null,null,null,null,null,"避難場所名称",null,null,null,null,null,null,null,null,null,null,null,null,null,null,null,"移動距離",null,null,null,null,null,null,null,null,null,"移動手段"]
[null,null,null,null,null,null,null,null,null,null,null,null,null,null,null,null,null,null,null,null,null,null,null,null,null,null,null,null,null,null,null,null,null,null,null,null,null,null,null,null,null,null,null,null,null,null,"徒歩",null,null,null,null,null,"車両",null,null,null,null,null,null,null,null,null,null,null,null,null,null,null,null,null,null,null,null,null,null,null,null,null,null,null,null,null,null,null,null,null,null,null,null,null,null,null,null,null,null,null,null,null,null,null,null,null,null,null,null,null,null,null,null,null,null,null,"徒歩",null,null,null,null,null,"車両"]
[null,null,null,null,"施設名（洪水）",null,null,null,null,null,null,null,null,null,null,null,null,null,null,null,{"$f":"IF(入力シート!M154=\"\",\"\",入力シート!M154)","v":""},null,null,null,null,null,null,null,null,null,null,null,null,null,null,null,{"$f":"IF(入力シート!M160=\"\",\"\",入力シート!M160)","v":""},null,null,null,null,null,null,null,"m",null,null,null,null,null,null,null,null,null,null,null,{"$f":"IF(入力シート!S164=\"\",\"\",入力シート!S164)","v":""},null,null,"台",null,null,null,null,null,null,null,null,null,null,"施設名（洪水）",null,null,null,null,null,null,null,null,null,null,null,null,null,null,null,"Ｃ高校（体育館）",null,null,null,null,null,null,null,null,null,null,null,null,null,null,null,500,null,null,null,null,null,null,null,"m",null,null,null,null,null,null,null,null,null,null,null,4,null,null,"台"]
[null,null,null,null,null,null,null,null,null,null,null,null,null,null,null,null,null,null,null,null,null,null,null,null,null,null,null,null,null,null,null,null,null,null,null,null,null,null,null,null,null,null,null,null,null,null,null,null,{"$f":"IF(入力シート!S162=\"\",\"\",\"✓\")","v":""},null,null,null,null,null,{"$f":"IF(入力シート!S164=\"\",\"\",\"✓\")","v":""},null,null,null,null,null,null,null,null,null,null,null,null,null,null,null,null,null,null,null,null,null,null,null,null,null,null,null,null,null,null,null,null,null,null,null,null,null,null,null,null,null,null,null,null,null,null,null,null,null,null,null,null,null,null,null,null,null,null,null,"✔",null,null,null,null,null,"✔"]
[null,null,null,null,null,null,null,null,null,null,null,null,null,null,null,null,null,null,null,null,{"$f":"IF(入力シート!M156=\"\",\"\",入力シート!M156)","v":""}]
[null,null,null,null,"施設名（内水）",null,null,null,null,null,null,null,null,null,null,null,null,null,null,null,null,null,null,null,null,null,null,null,null,null,null,null,null,null,null,null,null,null,null,null,null,null,null,null,"m",null,null,null,null,null,null,null,null,null,null,null,null,null,null,"台",null,null,null,null,null,null,null,null,null,null,"施設名（内水）",null,null,null,null,null,null,null,null,null,null,null,null,null,null,null,"Ｃ高校（体育館）",null,null,null,null,null,null,null,null,null,null,null,null,null,null,null,500,null,null,null,null,null,null,null,"m",null,null,null,null,null,null,null,null,null,null,null,4,null,null,"台"]
[null,null,null,null,null,null,null,null,null,null,null,null,null,null,null,null,null,null,null,null,null,null,null,null,null,null,null,null,null,null,null,null,null,null,null,null,null,null,null,null,null,null,null,null,null,null,null,null,null,null,null,null,null,null,null,null,null,null,null,null,null,null,null,null,null,null,null,null,null,null,null,null,null,null,null,null,null,null,null,null,null,null,null,null,null,null,null,null,null,null,null,null,null,null,null,null,null,null,null,null,null,null,null,null,null,null,null,null,null,null,null,null,null,null,"✔",null,null,null,null,null,"✔"]
[]
[null,null,null,null,"施設名（高潮）",null,null,null,null,null,null,null,null,null,null,null,null,null,null,null,null,null,null,null,null,null,null,null,null,null,null,null,null,null,null,null,null,null,null,null,null,null,null,null,"m",null,null,null,null,null,null,null,null,null,null,null,null,null,null,"台",null,null,null,null,null,null,null,null,null,null,"施設名（高潮）",null,null,null,null,null,null,null,null,null,null,null,null,null,null,null,"Ｃ高校（体育館）",null,null,null,null,null,null,null,null,null,null,null,null,null,null,null,500,null,null,null,null,null,null,null,"m",null,null,null,null,null,null,null,null,null,null,null,4,null,null,"台"]
[null,null,null,null,null,null,null,null,null,null,null,null,null,null,null,null,null,null,null,null,null,null,null,null,null,null,null,null,null,null,null,null,null,null,null,null,null,null,null,null,null,null,null,null,null,null,null,null,null,null,null,null,null,null,null,null,null,null,null,null,null,null,null,null,null,null,null,null,null,null,null,null,null,null,null,null,null,null,null,null,null,null,null,null,null,null,null,null,null,null,null,null,null,null,null,null,null,null,null,null,null,null,null,null,null,null,null,null,null,null,null,null,null,null,"✔",null,null,null,null,null,"✔"]
[]
[null,null,null,null,"施設名（津波）",null,null,null,null,null,null,null,null,null,null,null,null,null,null,null,null,null,null,null,null,null,null,null,null,null,null,null,null,null,null,null,null,null,null,null,null,null,null,null,"m",null,null,null,null,null,null,null,null,null,null,null,null,null,null,"台",null,null,null,null,null,null,null,null,null,null,"施設名（津波）",null,null,null,null,null,null,null,null,null,null,null,null,null,null,null,"Ｄ小学校（校舎2階以上）",null,null,null,null,null,null,null,null,null,null,null,null,null,null,null,350,null,null,null,null,null,null,null,"m",null,null,null,null,null,null,null,null,null,null,null,4,null,null,"台"]
[null,null,null,null,null,null,null,null,null,null,null,null,null,null,null,null,null,null,null,null,null,null,null,null,null,null,null,null,null,null,null,null,null,null,null,null,null,null,null,null,null,null,null,null,null,null,null,null,null,null,null,null,null,null,null,null,null,null,null,null,null,null,null,null,null,null,null,null,null,null,null,null,null,null,null,null,null,null,null,null,null,null,null,null,null,null,null,null,null,null,null,null,null,null,null,null,null,null,null,null,null,null,null,null,null,null,null,null,null,null,null,null,null,null,"✔",null,null,null,null,null,"✔"]
[]
[null,null,null,null,"施設名（土砂災害：がけ崩れ・土石流・地すべり）",null,null,null,null,null,null,null,null,null,null,null,null,null,null,null,null,null,null,null,null,null,null,null,null,null,null,null,null,null,null,null,null,null,null,null,null,null,null,null,"m",null,null,null,null,null,null,null,null,null,null,null,null,null,null,"台",null,null,null,null,null,null,null,null,null,null,"施設名（土砂災害：がけ崩れ・土石流・地すべり）",null,null,null,null,null,null,null,null,null,null,null,null,null,null,null,"Ｃ高校（体育館）",null,null,null,null,null,null,null,null,null,null,null,null,null,null,null,500,null,null,null,null,null,null,null,"m",null,null,null,null,null,null,null,null,null,null,null,4,null,null,"台"]
[null,null,null,null,null,null,null,null,null,null,null,null,null,null,null,null,null,null,null,null,null,null,null,null,null,null,null,null,null,null,null,null,null,null,null,null,null,null,null,null,null,null,null,null,null,null,null,null,null,null,null,null,null,null,null,null,null,null,null,null,null,null,null,null,null,null,null,null,null,null,null,null,null,null,null,null,null,null,null,null,null,null,null,null,null,null,null,null,null,null,null,null,null,null,null,null,null,null,null,null,null,null,null,null,null,null,null,null,null,null,null,null,null,null,"✔",null,null,null,null,null,"✔"]
[]
[]
[]
[null,null,null,null,"２）屋内安全確保を行う場合",null,null,null,null,null,null,null,null,null,null,null,null,null,null,null,null,null,null,null,null,null,null,null,null,null,null,null,null,null,null,null,null,null,null,null,null,null,null,null,null,null,null,null,null,null,null,null,null,null,null,null,null,null,null,null,null,null,null,null,null,null,null,null,null,null,"２）屋内安全確保を行う場合"]
[null,null,null,null,"屋内安全確保（垂直避難）の場合",null,null,null,null,null,null,null,null,null,null,null,null,null,null,null,null,null,null,null,null,null,null,null,null,null,null,null,null,null,null,null,null,null,null,null,null,null,null,null,null,null,null,null,null,null,null,null,null,null,null,null,null,null,null,null,null,null,null,null,null,null,null,null,null,null,"屋内安全確保（垂直避難）の場合"]
[null,null,null,null,null,null,null,null,null,null,null,null,null,null,null,null,null,null,null,null,"建物名称",null,null,null,null,null,null,null,null,null,null,null,null,null,null,null,"避難階",null,null,null,null,null,null,null,null,null,"移動手段",null,null,null,null,null,null,null,null,null,null,null,null,null,null,null,null,null,null,null,null,null,null,null,null,null,null,null,null,null,null,null,null,null,null,null,null,null,null,null,"建物名称",null,null,null,null,null,null,null,null,null,null,null,null,null,null,null,"避難階",null,null,null,null,null,null,null,null,null,"移動手段"]
[]
[null,null,null,null,"屋内安全確保（洪水）",null,null,null,null,null,null,null,null,null,null,null,null,null,null,null,{"$f":"IF(入力シート!M172=\"\",\"-\",入力シート!M172)","v":"-"},null,null,null,null,null,null,null,null,null,null,null,null,null,null,null,{"$f":"IF(入力シート!M174=\"\",\"-\",入力シート!M174)","v":"-"},null,null,null,null,null,null,null,"階",null,{"$f":"IF(入力シート!M176=\"\",\"-\",入力シート!M176)","v":"-"},null,null,null,null,null,null,null,null,null,null,null,null,null,null,null,null,null,null,null,null,null,null,null,"屋内安全確保（洪水）",null,null,null,null,null,null,null,null,null,null,null,null,null,null,null,"本施設",null,null,null,null,null,null,null,null,null,null,null,null,null,null,null,2,null,null,null,null,null,null,null,"階",null,"エレベーター、ストレッチャー"]
[null,null,null,null,"屋内安全確保（内水）",null,null,null,null,null,null,null,null,null,null,null,null,null,null,null,null,null,null,null,null,null,null,null,null,null,null,null,null,null,null,null,null,null,null,null,null,null,null,null,"階",null,null,null,null,null,null,null,null,null,null,null,null,null,null,null,null,null,null,null,null,null,null,null,null,null,"屋内安全確保（内水）",null,null,null,null,null,null,null,null,null,null,null,null,null,null,null,"本施設",null,null,null,null,null,null,null,null,null,null,null,null,null,null,null,2,null,null,null,null,null,null,null,"階",null,"エレベーター、ストレッチャー"]
[null,null,null,null,"屋内安全確保（高潮）",null,null,null,null,null,null,null,null,null,null,null,null,null,null,null,null,null,null,null,null,null,null,null,null,null,null,null,null,null,null,null,null,null,null,null,null,null,null,null,"階",null,null,null,null,null,null,null,null,null,null,null,null,null,null,null,null,null,null,null,null,null,null,null,null,null,"屋内安全確保（高潮）",null,null,null,null,null,null,null,null,null,null,null,null,null,null,null,"本施設",null,null,null,null,null,null,null,null,null,null,null,null,null,null,null,2,null,null,null,null,null,null,null,"階",null,"エレベーター、ストレッチャー"]
[null,null,null,null,"屋内安全確保（津波）",null,null,null,null,null,null,null,null,null,null,null,null,null,null,null,null,null,null,null,null,null,null,null,null,null,null,null,null,null,null,null,null,null,null,null,null,null,null,null,"階",null,null,null,null,null,null,null,null,null,null,null,null,null,null,null,null,null,null,null,null,null,null,null,null,null,"屋内安全確保（津波）",null,null,null,null,null,null,null,null,null,null,null,null,null,null,null,"指定無",null,null,null,null,null,null,null,null,null,null,null,null,null,null,null,null,null,null,null,null,null,null,null,"階"]
[null,null,null,null,"施設名（土砂災害：がけ崩れ・土石流・地すべり）",null,null,null,null,null,null,null,null,null,null,null,null,null,null,null,null,null,null,null,null,null,null,null,null,null,null,null,null,null,null,null,null,null,null,null,null,null,null,null,"階",null,null,null,null,null,null,null,null,null,null,null,null,null,null,null,null,null,null,null,null,null,null,null,null,null,"施設名（土砂災害：がけ崩れ・土石流・地すべり）",null,null,null,null,null,null,null,null,null,null,null,null,null,null,null,"本施設（斜面の反対側）",null,null,null,null,null,null,null,null,null,null,null,null,null,null,null,2,null,null,null,null,null,null,null,"階",null,"エレベーター、ストレッチャー"]
[null,null,null,null,null,null,null,null,null,null,null,null,null,null,null,null,null,null,null,null,null,null,null,null,null,null,null,null,null,null,null,null,null,null,null,null,null,null,null,null,null,null,null,null,null,null,null,null,null,null,null,null,null,null,null,null,null,null,null,null,null,null,null,null,null,null,null,null,null,null,"※建物名称は、複数の建物がある場合や日頃用いている名称がある場合に記載する。"]
[]
[]
[null,null,null,null,"３）近隣の安全な場所",null,null,null,null,null,null,null,null,null,null,null,null,null,null,null,null,null,null,null,null,null,null,null,null,null,null,null,null,null,null,null,null,null,null,null,null,null,null,null,null,null,null,null,null,null,null,null,null,null,null,null,null,null,null,null,null,null,null,null,null,null,null,null,null,null,"３）近隣の安全な場所※"]
[null,null,null,null,"立退き避難（水平避難）、屋内安全確保（垂直避難）が困難な場合、近隣の安全な場所",null,null,null,null,null,null,null,null,null,null,null,null,null,null,null,null,null,null,null,null,null,null,null,null,null,null,null,null,null,null,null,null,null,null,null,null,null,null,null,null,null,null,null,null,null,null,null,null,null,null,null,null,null,null,null,null,null,null,null,null,null,null,null,null,null,"立退き避難（水平避難）、屋内安全確保（垂直避難）が困難な場合、近隣の安全な場所"]
[null,null,null,null,"「",{"$f":"IF(入力シート!M180=\"\",\"\",入力シート!M180)","v":""},null,null,null,null,null,null,null,"」","に避難するものとする。",null,null,null,null,null,null,null,null,null,null,null,null,null,null,null,null,null,null,null,null,null,null,null,null,null,null,null,null,null,null,null,null,null,null,null,null,null,null,null,null,null,null,null,null,null,null,null,null,null,null,null,null,null,null,null,"「","○○公園",null,null,null,null,null,null,null,"」","に避難するものとする。"]
[null,null,null,null,null,null,null,null,null,null,null,null,null,null,null,null,null,null,null,null,null,null,null,null,null,null,null,null,null,null,null,null,null,null,null,null,null,null,null,null,null,null,null,null,null,null,null,null,null,null,null,null,null,null,null,null,null,null,null,null,null,null,null,null,null,null,null,null,null,null,"※指定緊急避難場所ではないが、標高の高い場所など近隣のより安全な場所・建物等"]
[]
[null,null,"（２）避難経路",null,null,null,null,null,null,null,null,null,null,null,null,null,null,null,null,null,null,null,null,null,null,null,null,null,null,null,null,null,null,null,null,null,null,null,null,null,null,null,null,null,null,null,null,null,null,null,null,null,null,null,null,null,null,null,null,null,null,null,null,null,null,null,null,null,"（２）避難経路"]
[null,null,null,null,"避難場所までの避難経路は、【施設周辺の避難地図】のとおりとする。",null,null,null,null,null,null,null,null,null,null,null,null,null,null,null,null,null,null,null,null,null,null,null,null,null,null,null,null,null,null,null,null,null,null,null,null,null,null,null,null,null,null,null,null,null,null,null,null,null,null,null,null,null,null,null,null,null,null,null,null,null,null,null,null,null,"避難場所までの避難経路は、【施設周辺の避難地図】のとおりとする。"]
[]
[null,null,"避難場所については、避難訓練等により避難できることを確かめ、必要に応じ見直しするものとする。",null,null,null,null,null,null,null,null,null,null,null,null,null,null,null,null,null,null,null,null,null,null,null,null,null,null,null,null,null,null,null,null,null,null,null,null,null,null,null,null,null,null,null,null,null,null,null,null,null,null,null,null,null,null,null,null,null,null,null,null,null,null,null,null,null,"避難場所については、避難訓練等により避難できることを確かめ、必要に応じ見直しするものとする。"]
[]
[null,null,"【施設周辺の避難地図】 ⇒別紙１",null,null,null,null,null,null,null,null,null,null,null,null,null,null,null,null,null,null,null,null,null,null,null,null,null,null,null,null,null,null,null,null,null,null,null,null,null,null,null,null,null,null,null,null,null,null,null,null,null,null,null,null,null,null,null,null,null,null,null,null,null,null,null,null,null,"【施設周辺の避難地図】 ⇒別紙１"]
[null,null,"対応別避難誘導一覧表 　⇒様式１１",null,null,null,null,null,null,null,null,null,null,null,null,null,null,null,null,null,null,null,null,null,null,null,null,null,null,null,null,null,null,null,null,null,null,null,null,null,null,null,null,null,null,null,null,null,null,null,null,null,null,null,null,null,null,null,null,null,null,null,null,null,null,null,null,null,"対応別避難誘導一覧表 　⇒様式１１"]
[]
[]
[null,null,null,null,null,null,null,null,null,null,null,null,null,null,null,null,null,null,null,null,null,null,null,null,null,null,null,null,null,null,null,null,null,null,null,null,null,null,null,null,null,null,null,null,null,null,null,null,null,null,null,null,null,null,null,null,"様式５",null,null,null,null,null,null,null,null,null,null,null,null,null,null,null,null,null,null,null,null,null,null,null,null,null,null,null,null,null,null,null,null,null,null,null,null,null,null,null,null,null,null,null,null,null,null,null,null,null,null,null,null,null,null,null,null,null,null,null,null,null,null,null,null,null,"記載例"]
[]
[]
[null,null,"７　避難の確保を図るための施設の整備",null,null,null,null,null,null,null,null,null,null,null,null,null,null,null,null,null,null,null,null,null,null,null,null,null,null,null,null,null,null,null,null,null,null,null,null,null,null,null,null,null,null,null,null,null,null,null,null,null,null,null,null,null,null,null,null,null,null,null,null,null,null,null,null,null,"７　避難の確保を図るための施設の整備"]
[null,null,"　情報収集・伝達及び避難誘導の際に使用する資器材等については、下表「避難確保資器材一覧」に示すとおりである。これらの資器材等については、日頃からその維持管理に努めるものとする。",null,null,null,null,null,null,null,null,null,null,null,null,null,null,null,null,null,null,null,null,null,null,null,null,null,null,null,null,null,null,null,null,null,null,null,null,null,null,null,null,null,null,null,null,null,null,null,null,null,null,null,null,null,null,null,null,null,null,null,null,null,null,null,null,null,"　情報収集・伝達及び避難誘導の際に使用する資器材等については、下表「避難確保資器材一覧」に示すとおりである。これらの資器材等については、日頃からその維持管理に努めるものとする。"]
[]
[null,null,null,null,null,null,null,null,null,null,null,null,null,null,null,null,null,null,null,null,null,null,null,null,null,null,null,null,null,null,null,null,null,null,null,null,null,null,null,null,null,null,null,null,null,null,null,null,null,null,null,null,null,null,null,null,null,null,null,null,null,null,null,null,null,null,null,null,"　利用者にあわせた器具や食事の提供が必要となる場合がある。避難場所での生活に必要な備品などに配慮する。"]
[]
[null,null,null,null,null,"避難確保資器材一覧",null,null,null,null,null,null,null,null,null,null,null,null,null,null,null,null,null,null,null,null,null,null,null,null,null,null,null,null,null,null,null,null,null,null,null,null,null,null,null,null,null,null,null,null,null,null,null,null,null,null,null,null,null,null,null,null,null,null,null,null,null,null,null,null,null,"避難確保資器材一覧（例）"]
[null,null,null,null,null,null,null,null,null,null,null,null,null,null,null,null,null,null,null,null,null,"備蓄品",null,null,null,null,null,null,null,null,null,null,null,null,null,null,null,null,null,null,null,null,null,null,null,null,null,null,null,null,null,null,null,null,null,null,null,null,null,null,null,null,null,null,null,null,null,null,null,null,null,null,null,null,null,null,null,null,null,null,null,null,null,null,null,null,null,"備蓄品"]
[]
[null,null,null,null,null,"情報収集・伝達",null,null,null,null,null,null,null,null,null,null,null,null,null,null,null,{"$f":"'出力シート（タイムライン）'!R23","v":"□テレビ、□デスクトップパソコン、□ノートパソコン、□ラジオ、□タブレット端末、□ファックス、□携帯電話、□携帯電話用バッテリー、□乾電池"},null,null,null,null,null,null,null,null,null,null,null,null,null,null,null,null,null,null,null,null,null,null,null,null,null,null,null,null,null,null,null,null,null,null,null,null,null,null,null,null,null,null,null,null,null,null,null,null,null,"情報収集・伝達",null,null,null,null,null,null,null,null,null,null,null,null,null,null,null,"　テレビ　、　ラジオ　、　タブレット　、　ファックス　、　携帯電話　、　"]
[null,null,null,null,null,null,null,null,null,null,null,null,null,null,null,null,null,null,null,null,null,null,null,null,null,null,null,null,null,null,null,null,null,null,null,null,null,null,null,null,null,null,null,null,null,null,null,null,null,null,null,null,null,null,null,null,null,null,null,null,null,null,null,null,null,null,null,null,null,null,null,null,null,null,null,null,null,null,null,null,null,null,null,null,null,null,null,"　懐中電灯　、　電池　、　携帯電話用バッテリー"]
[]
[]
[null,null,null,null,null,"避難誘導",null,null,null,null,null,null,null,null,null,null,null,null,null,null,null,{"$f":"'出力シート（タイムライン）'!R27","v":"□従業員名簿、□利用者名簿、□案内旗、□携帯電話、□携帯電話用バッテリー、□拡声器、□懐中電灯、□乾電池"},null,null,null,null,null,null,null,null,null,null,null,null,null,null,null,null,null,null,null,null,null,null,null,null,null,null,null,null,null,null,null,null,null,null,null,null,null,null,null,null,null,null,null,null,null,null,null,null,null,"避難誘導",null,null,null,null,null,null,null,null,null,null,null,null,null,null,null,"　名簿（施設職員、利用者）　、　案内旗　、　タブレット　、　"]
[null,null,null,null,null,null,null,null,null,null,null,null,null,null,null,null,null,null,null,null,null,null,null,null,null,null,null,null,null,null,null,null,null,null,null,null,null,null,null,null,null,null,null,null,null,null,null,null,null,null,null,null,null,null,null,null,null,null,null,null,null,null,null,null,null,null,null,null,null,null,null,null,null,null,null,null,null,null,null,null,null,null,null,null,null,null,null,"　携帯電話　、　懐中電灯　、　携帯用拡声器　、　電池式照明器具　、　"]
[null,null,null,null,null,null,null,null,null,null,null,null,null,null,null,null,null,null,null,null,null,null,null,null,null,null,null,null,null,null,null,null,null,null,null,null,null,null,null,null,null,null,null,null,null,null,null,null,null,null,null,null,null,null,null,null,null,null,null,null,null,null,null,null,null,null,null,null,null,null,null,null,null,null,null,null,null,null,null,null,null,null,null,null,null,null,null,"　電池　、　携帯電話用バッテリー　、　ライフジャケット　、　"]
[null,null,null,null,null,null,null,null,null,null,null,null,null,null,null,null,null,null,null,null,null,null,null,null,null,null,null,null,null,null,null,null,null,null,null,null,null,null,null,null,null,null,null,null,null,null,null,null,null,null,null,null,null,null,null,null,null,null,null,null,null,null,null,null,null,null,null,null,null,null,null,null,null,null,null,null,null,null,null,null,null,null,null,null,null,null,null,"　蛍光塗料"]
[null,null,null,null,null,"施設内の一時避難",null,null,null,null,null,null,null,null,null,null,null,null,null,null,null,{"$f":"'出力シート（タイムライン）'!R30","v":"□水、□食料、□寝具、□防寒具"},null,null,null,null,null,null,null,null,null,null,null,null,null,null,null,null,null,null,null,null,null,null,null,null,null,null,null,null,null,null,null,null,null,null,null,null,null,null,null,null,null,null,null,null,null,null,null,null,null,"施設内の一時避難",null,null,null,null,null,null,null,null,null,null,null,null,null,null,null,"　水（１人あたり9リットル）　、　食料（１人あたり9食分）　、　"]
[null,null,null,null,null,null,null,null,null,null,null,null,null,null,null,null,null,null,null,null,null,null,null,null,null,null,null,null,null,null,null,null,null,null,null,null,null,null,null,null,null,null,null,null,null,null,null,null,null,null,null,null,null,null,null,null,null,null,null,null,null,null,null,null,null,null,null,null,null,null,null,null,null,null,null,null,null,null,null,null,null,null,null,null,null,null,null,"　寝具　、　防寒具"]
[null,null,null,null,null,"衛生器具",null,null,null,null,null,null,null,null,null,null,null,null,null,null,null,{"$f":"'出力シート（タイムライン）'!R32","v":"□おむつ・おしりふき、□タオル"},null,null,null,null,null,null,null,null,null,null,null,null,null,null,null,null,null,null,null,null,null,null,null,null,null,null,null,null,null,null,null,null,null,null,null,null,null,null,null,null,null,null,null,null,null,null,null,null,null,"衛生器具",null,null,null,null,null,null,null,null,null,null,null,null,null,null,null,"　おむつ・おしりふき　、　タオル　、　ウエットティッシュ　、　"]
[null,null,null,null,null,null,null,null,null,null,null,null,null,null,null,null,null,null,null,null,null,null,null,null,null,null,null,null,null,null,null,null,null,null,null,null,null,null,null,null,null,null,null,null,null,null,null,null,null,null,null,null,null,null,null,null,null,null,null,null,null,null,null,null,null,null,null,null,null,null,null,null,null,null,null,null,null,null,null,null,null,null,null,null,null,null,null,"　マスク　、　ゴミ袋"]
[null,null,null,null,null,"医薬品",null,null,null,null,null,null,null,null,null,null,null,null,null,null,null,{"$f":"'出力シート（タイムライン）'!R34","v":""},null,null,null,null,null,null,null,null,null,null,null,null,null,null,null,null,null,null,null,null,null,null,null,null,null,null,null,null,null,null,null,null,null,null,null,null,null,null,null,null,null,null,null,null,null,null,null,null,null,"医薬品",null,null,null,null,null,null,null,null,null,null,null,null,null,null,null,"　常備薬　、　消毒薬　、　包帯　、　絆創膏　"]
[]
[null,null,null,null,null,"その他",null,null,null,null,null,null,null,null,null,null,null,null,null,null,null,{"$f":"'出力シート（タイムライン）'!R35","v":"□ウエットティッシュ、□ゴミ袋、□タオル"},null,null,null,null,null,null,null,null,null,null,null,null,null,null,null,null,null,null,null,null,null,null,null,null,null,null,null,null,null,null,null,null,null,null,null,null,null,null,null,null,null,null,null,null,null,null,null,null,null,"その他",null,null,null,null,null,null,null,null,null,null,null,null,null,null,null,"　○○○○"]
[]
[]
[null,null,null,null,null,"浸水を防ぐための対策",null,null,null,null,null,null,null,null,null,null,null,null,null,null,null,null,null,null,null,null,null,null,null,null,null,null,null,null,null,null,null,null,null,null,null,null,null,null,null,null,null,null,null,null,null,null,null,null,null,null,null,null,null,null,null,null,null,null,null,null,null,null,null,null,null,"浸水を防ぐための対策"]
[null,null,null,null,null,{"$f":"'出力シート（タイムライン）'!S36","v":""},null,null,null,null,null,null,null,null,null,null,null,null,null,null,null,null,null,null,null,null,null,null,null,null,null,null,null,null,null,null,null,null,null,null,null,null,null,null,null,null,null,null,null,null,null,null,null,null,null,null,null,null,null,null,null,null,null,null,null,null,null,null,null,null,null,"　土のう　、　止水板　、　○○○○"]
[]
[null,null,null,null,null,"土砂災害に対する避難を確保するための対策※",null,null,null,null,null,null,null,null,null,null,null,null,null,null,null,null,null,null,null,null,null,null,null,null,null,null,null,null,null,null,null,null,null,null,null,null,null,null,null,null,null,null,null,null,null,null,null,null,null,null,null,null,null,null,null,null,null,null,null,null,null,null,null,null,null,"土砂災害に対する避難を確保するための対策※"]
[null,null,null,null,null,{"$f":"'出力シート（タイムライン）'!S38","v":""},null,null,null,null,null,null,null,null,null,null,null,null,null,null,null,null,null,null,null,null,null,null,null,null,null,null,null,null,null,null,null,null,null,null,null,null,null,null,null,null,null,null,null,null,null,null,null,null,null,null,null,null,null,null,null,null,null,null,null,null,null,null,null,null,null,"　自家発電機　、　壁の補強　、　非常用サイレン（屋外設置）　、　○○○○"]
[null,null,null,null,null,"※事前の対策",null,null,null,null,null,null,null,null,null,null,null,null,null,null,null,null,null,null,null,null,null,null,null,null,null,null,null,null,null,null,null,null,null,null,null,null,null,null,null,null,null,null,null,null,null,null,null,null,null,null,null,null,null,null,null,null,null,null,null,null,null,null,null,null,null,"※事前の対策"]
[]
[null,null,"８　防災教育及び訓練の実施",null,null,null,null,null,null,null,null,null,null,null,null,null,null,null,null,null,null,null,null,null,null,null,null,null,null,null,null,null,null,null,null,null,null,null,null,null,null,null,null,null,null,null,null,null,null,null,null,null,null,null,null,null,null,null,null,null,null,null,null,null,null,null,null,null,"８　防災教育及び訓練の実施"]
[null,null,"　毎年",null,null,null,{"$f":"IF(入力シート!M376=\"\",\"\",入力シート!M376)","v":""},null,"月に新規採用の施設職員を対象に研修を実施する。",null,null,null,null,null,null,null,null,null,null,null,null,null,null,null,null,null,null,null,null,null,null,null,null,null,null,null,null,null,null,null,null,null,null,null,null,null,null,null,null,null,null,null,null,null,null,null,null,null,null,null,null,null,null,null,null,null,null,null,"　毎年",null,null,null,4,null,"月に新規採用の施設職員を対象に研修を実施する。"]
[null,null,"　毎年",null,null,null,{"$f":"IF(入力シート!M378=\"\",\"\",入力シート!M378)","v":""},null,"月に全施設職員を対象として、情報収集・伝達及び避難誘導に関する訓練を実施する。",null,null,null,null,null,null,null,null,null,null,null,null,null,null,null,null,null,null,null,null,null,null,null,null,null,null,null,null,null,null,null,null,null,null,null,null,null,null,null,null,null,null,null,null,null,null,null,null,null,null,null,null,null,null,null,null,null,null,null,"　毎年",null,null,null,9,null,"月に全施設職員を対象として、情報収集・伝達及び避難誘導に関する訓練を実施する。"]
[null,null,"　その他、年間の教育及び訓練計画を毎年",null,null,null,null,null,null,null,null,null,null,null,null,null,null,null,null,null,null,null,null,null,null,null,null,{"$f":"IF(入力シート!M380=\"\",\"\",入力シート!M380)","v":""},null,"月に作成する。",null,null,null,null,null,null,null,null,null,null,null,null,null,null,null,null,null,null,null,null,null,null,null,null,null,null,null,null,null,null,null,null,null,null,null,null,null,null,"　その他、年間の教育及び訓練計画を毎年",null,null,null,null,null,null,null,null,null,null,null,null,null,null,null,null,null,null,null,null,null,null,null,3,null,"月に作成する。"]
[]
[]
[null,null,null,null,"防災教育及び訓練の年間計画⇒様式７",null,null,null,null,null,null,null,null,null,null,null,null,null,null,null,null,null,null,null,null,null,null,null,null,null,null,null,null,null,null,null,null,null,null,null,null,null,null,null,null,null,null,null,null,null,null,null,null,null,null,null,null,null,null,null,null,null,null,null,null,null,null,null,null,null,"防災教育及び訓練の年間計画⇒様式７"]
[]
[]
[]
[]
[]
[]
[]
[]
[]
[]
[]
[]
[]
[]
[]
[]
[null,null,null,null,null,null,null,null,null,null,null,null,null,null,null,null,null,null,null,null,null,null,null,null,null,null,null,null,null,null,null,null,null,null,null,null,null,null,null,null,null,null,null,null,null,null,null,null,null,null,null,null,null,null,null,null,"様式６",null,null,null,null,null,null,null,null,null,null,null,null,null,null,null,null,null,null,null,null,null,null,null,null,null,null,null,null,null,null,null,null,null,null,null,null,null,null,null,null,null,null,null,null,null,null,null,null,null,null,null,null,null,null,null,null,null,null,null,null,null,null,null,null,null,"記載例"]
[]
[]
[null,null,"９　自衛水防組織の業務に関する事項",null,null,null,null,null,null,null,null,null,null,null,null,null,null,null,null,null,null,null,null,null,null,null,null,null,null,null,null,null,null,null,null,null,null,null,null,null,null,null,null,null,null,null,null,null,null,null,null,null,null,null,null,null,null,null,null,null,null,null,null,null,null,null,null,null,"９　自衛水防組織の業務に関する事項"]
[]
[null,null,"（１）「自衛水防組織活動要領」に基づき自衛水防組織を設置する。",null,null,null,null,null,null,null,null,null,null,null,null,null,null,null,null,null,null,null,null,null,null,null,null,null,null,null,null,null,null,null,null,null,null,null,null,null,null,null,null,null,null,null,null,null,null,null,null,null,null,null,null,null,null,null,null,null,null,null,null,null,null,null,null,null,"（１）「自衛水防組織活動要領」に基づき自衛水防組織を設置する。"]
[]
[null,null,"（２）自衛水防組織においては、以下のとおり訓練を実施するものとする。",null,null,null,null,null,null,null,null,null,null,null,null,null,null,null,null,null,null,null,null,null,null,null,null,null,null,null,null,null,null,null,null,null,null,null,null,null,null,null,null,null,null,null,null,null,null,null,null,null,null,null,null,null,null,null,null,null,null,null,null,null,null,null,null,null,"（２）自衛水防組織においては、以下のとおり訓練を実施するものとする。"]
[null,null,null,null,null,"①毎年",null,null,null,null,null,"月に新たに自衛水防組織の構成員となった施設職員を対象として研修を実施する。",null,null,null,null,null,null,null,null,null,null,null,null,null,null,null,null,null,null,null,null,null,null,null,null,null,null,null,null,null,null,null,null,null,null,null,null,null,null,null,null,null,null,null,null,null,null,null,null,null,null,null,null,null,null,null,null,null,null,null,"①毎年",null,null,null,4,null,"月に新たに自衛水防組織の構成員となった施設職員を対象として研修を実施する。"]
[null,null,null,null,null,"②毎年",null,null,null,null,null,"月に行う全施設職員を対象とした訓練に先立って、自衛水防組織の全構成員を対象と",null,null,null,null,null,null,null,null,null,null,null,null,null,null,null,null,null,null,null,null,null,null,null,null,null,null,null,null,null,null,null,null,null,null,null,null,null,null,null,null,null,null,null,null,null,null,null,null,null,null,null,null,null,null,null,null,null,null,null,"②毎年",null,null,null,8,null,"月に行う全施設職員を対象とした訓練に先立って、自衛水防組織の全構成員を対象と"]
[null,null,null,null,null,"して情報収集・伝達及び避難誘導に関する訓練を実施する。",null,null,null,null,null,null,null,null,null,null,null,null,null,null,null,null,null,null,null,null,null,null,null,null,null,null,null,null,null,null,null,null,null,null,null,null,null,null,null,null,null,null,null,null,null,null,null,null,null,null,null,null,null,null,null,null,null,null,null,null,null,null,null,null,null,"して情報収集・伝達及び避難誘導に関する訓練を実施する。"]
[]
[null,null,"（３）自衛水防組織の報告",null,null,null,null,null,null,null,null,null,null,null,null,null,null,null,null,null,null,null,null,null,null,null,null,null,null,null,null,null,null,null,null,null,null,null,null,null,null,null,null,null,null,null,null,null,null,null,null,null,null,null,null,null,null,null,null,null,null,null,null,null,null,null,null,null,"（３）自衛水防組織の報告"]
[null,null,null,"　自衛水防組織を組織または変更をしたときは、遅滞なく、当該事項を市町村長へ報告する。",null,null,null,null,null,null,null,null,null,null,null,null,null,null,null,null,null,null,null,null,null,null,null,null,null,null,null,null,null,null,null,null,null,null,null,null,null,null,null,null,null,null,null,null,null,null,null,null,null,null,null,null,null,null,null,null,null,null,null,null,null,null,null,null,null,"　自衛水防組織を組織または変更をしたときは、遅滞なく、当該事項を市町村長へ報告する。"]
[]
[null,null,null,"「自衛水防組織活動要領」⇒別添",null,null,null,null,null,null,null,null,null,null,null,null,null,null,null,null,null,null,null,null,null,null,null,null,null,null,null,null,null,null,null,null,null,null,null,null,null,null,null,null,null,null,null,null,null,null,null,null,null,null,null,null,null,null,null,null,null,null,null,null,null,null,null,null,null,"「自衛水防組織活動要領」⇒別添"]
[]
[]
[]
[]
[]
[]
[]
[]
[]
[]
[]
[]
[]
[]
[]
[]
[]
[]
[]
[]
[]
[]
[]
[]
[]
[]
[]
[]
[]
[]
[]
[]
[]
[]
[]
[]
[]
[]
[]
[]
[]
[null,null,null,null,null,null,null,null,null,null,null,null,null,null,null,null,null,null,null,null,null,null,null,null,null,null,null,null,null,null,null,null,null,null,null,null,null,null,null,null,null,null,null,null,null,null,null,null,null,null,null,null,null,null,null,null,null,null,null,null,null,null,null,null,null,null,null,null,"既存の消防計画等がある場合は、それに追加してもよい。"]
[null,null,null,null,null,null,null,null,null,null,null,null,null,null,null,null,null,null,null,null,null,null,null,null,null,null,null,null,null,null,null,null,null,null,null,null,null,null,null,null,null,null,null,null,null,null,null,null,null,null,null,null,null,null,null,null,"様式７",null,null,null,null,null,null,null,null,null,null,null,null,null,null,null,null,null,null,null,null,null,null,null,null,null,null,null,null,null,null,null,null,null,null,null,null,null,null,null,null,null,null,null,null,null,null,null,null,null,null,null,null,null,null,null,null,null,null,null,null,null,null,null,null,null,"記載例"]
[]
[null,null,"１０　防災教育及び訓練の年間計画",null,null,null,null,null,null,null,null,null,null,null,null,null,null,null,null,null,null,null,null,null,null,null,null,null,null,null,null,null,null,null,null,null,null,null,null,null,null,null,null,null,null,null,null,null,null,null,null,null,null,null,null,null,null,null,null,null,null,null,null,null,null,null,null,null,"１０　防災教育及び訓練の年間計画"]
[]
[null,null,null,null,null,null,"避難確保計画の作成＝防災体制の確立",null,null,null,null,null,null,null,null,null,null,null,null,null,null,null,null,null,null,null,null,null,null,null,null,null,null,null,null,null,null,null,null,null,null,null,null,null,null,null,null,null,null,null,null,null,null,null,null,null,"実施予定月日",null,null,null,null,null,null,null,null,null,null,null,null,null,null,null,"避難確保計画の作成＝防災体制の確立",null,null,null,null,null,null,null,null,null,null,null,null,null,null,null,null,null,null,null,null,null,null,null,null,null,null,null,null,null,null,null,null,null,null,null,null,null,null,null,null,null,null,null,null,null,null,null,null,null,"実施予定月日"]
[]
[]
[null,null,null,null,null,null,"施設職員への防災教育",null,null,null,null,null,null,null,null,null,null,null,null,null,null,null,null,null,null,null,null,null,null,null,null,null,null,null,null,null,null,null,null,null,null,null,null,null,null,null,null,null,null,null,null,null,null,null,null,null,null,null,null,null,null,null,null,null,null,null,null,null,null,null,null,null,"施設職員への防災教育"]
[null,null,null,null,null,null,null,null,null,null,null,null,null,null,null,null,null,null,null,null,null,null,null,null,null,"○避難確保計画の情報共有\n○過去の被災経験や災害に対する知恵の伝承\n　等",null,null,null,null,null,null,null,null,null,null,null,null,null,null,null,null,null,null,null,null,null,null,null,null,null,null,null,null,null,null,null,null,"月",null,null,null,"日",null,null,null,null,null,null,null,null,null,null,null,null,null,null,null,null,null,null,null,null,null,null,null,null,null,null,null,null,"○避難確保計画の情報共有\n○過去の被災経験や災害に対する知恵の伝承\n　等",null,null,null,null,null,null,null,null,null,null,null,null,null,null,null,null,null,null,null,null,null,null,null,null,null,null,null,null,null,null,4,null,"月",null,1,null,"日"]
[]
[]
[]
[]
[null,null,null,null,null,null,"利用者への防災教育",null,null,null,null,null,null,null,null,null,null,null,null,null,null,null,null,null,null,null,null,null,null,null,null,null,null,null,null,null,null,null,null,null,null,null,null,null,null,null,null,null,null,null,null,null,null,null,null,null,null,null,null,null,null,null,null,null,null,null,null,null,null,null,null,null,"利用者への防災教育"]
[null,null,null,null,null,null,null,null,null,null,null,null,null,null,null,null,null,null,null,null,null,null,null,null,null,"○水害・土砂災害の危険性や避難場所の確認\n○緊急時の対応等に関する保護者・家族等への説明\n　等",null,null,null,null,null,null,null,null,null,null,null,null,null,null,null,null,null,null,null,null,null,null,null,null,null,null,null,null,null,null,null,null,"月",null,null,null,"日",null,null,null,null,null,null,null,null,null,null,null,null,null,null,null,null,null,null,null,null,null,null,null,null,null,null,null,null,"○水害・土砂災害の危険性や避難場所の確認\n○緊急時の対応等に関する保護者・家族等への説明\n　等",null,null,null,null,null,null,null,null,null,null,null,null,null,null,null,null,null,null,null,null,null,null,null,null,null,null,null,null,null,null,4,null,"月",null,1,null,"日"]
[]
[]
[]
[]
[null,null,null,null,null,null,"通所部門",null,null,null,null,null,null,null,null,null,null,null,null,null,null,null,null,null,null,null,null,null,null,null,null,null,null,null,null,null,null,null,null,null,null,null,null,null,null,null,null,null,null,null,null,null,null,null,null,null,null,null,null,null,null,null,null,null,null,null,null,null,null,null,null,null,"通所部門"]
[]
[]
[null,null,null,null,null,null,"情報伝達訓練",null,null,null,null,null,null,null,null,null,null,null,null,null,null,null,null,null,null,null,null,null,null,null,null,null,null,null,null,null,null,null,null,null,null,null,null,null,null,null,null,null,null,null,null,null,null,null,null,null,null,null,null,null,null,null,null,null,null,null,null,null,null,null,null,null,"情報伝達訓練"]
[null,null,null,null,null,null,null,null,null,null,null,null,null,null,null,null,null,null,null,null,null,null,null,null,null,"○施設職員の緊急連絡網の試行\n○保護者・家族等への情報伝達手段（メール・電話等）の確認、情報伝達の試行　等",null,null,null,null,null,null,null,null,null,null,null,null,null,null,null,null,null,null,null,null,null,null,null,null,null,null,null,null,null,null,null,null,"月",null,null,null,"日",null,null,null,null,null,null,null,null,null,null,null,null,null,null,null,null,null,null,null,null,null,null,null,null,null,null,null,null,"○施設職員の緊急連絡網の試行\n○保護者・家族等への情報伝達手段（メール・電話等）の確認、情報伝達の試行　等",null,null,null,null,null,null,null,null,null,null,null,null,null,null,null,null,null,null,null,null,null,null,null,null,null,null,null,null,null,null,8,null,"月",null,1,null,"日"]
[]
[]
[]
[]
[null,null,null,null,null,null,"保護者・家族等への引き渡し訓練",null,null,null,null,null,null,null,null,null,null,null,null,null,null,null,null,null,null,null,null,null,null,null,null,null,null,null,null,null,null,null,null,null,null,null,null,null,null,null,null,null,null,null,null,null,null,null,null,null,null,null,null,null,null,null,null,null,null,null,null,null,null,null,null,null,"保護者・家族等への引き渡し訓練"]
[null,null,null,null,null,null,null,null,null,null,null,null,null,null,null,null,null,null,null,null,null,null,null,null,null,"○施設職員の緊急連絡網の試行\n○連絡後、全利用者を保護者・家族等に引き渡すまでにかかる時間の計測　等",null,null,null,null,null,null,null,null,null,null,null,null,null,null,null,null,null,null,null,null,null,null,null,null,null,null,null,null,null,null,null,null,"月",null,null,null,"日",null,null,null,null,null,null,null,null,null,null,null,null,null,null,null,null,null,null,null,null,null,null,null,null,null,null,null,null,"○施設職員の緊急連絡網の試行\n○連絡後、全利用者を保護者・家族等に引き渡すまでにかかる時間の計測　等",null,null,null,null,null,null,null,null,null,null,null,null,null,null,null,null,null,null,null,null,null,null,null,null,null,null,null,null,null,null,8,null,"月",null,1,null,"日"]
[]
[]
[]
[]
[]
[null,null,null,null,null,null,"入所部門",null,null,null,null,null,null,null,null,null,null,null,null,null,null,null,null,null,null,null,null,null,null,null,null,null,null,null,null,null,null,null,null,null,null,null,null,null,null,null,null,null,null,null,null,null,null,null,null,null,null,null,null,null,null,null,null,null,null,null,null,null,null,null,null,null,"入所部門"]
[]
[]
[null,null,null,null,null,null,"情報伝達訓練",null,null,null,null,null,null,null,null,null,null,null,null,null,null,null,null,null,null,null,null,null,null,null,null,null,null,null,null,null,null,null,null,null,null,null,null,null,null,null,null,null,null,null,null,null,null,null,null,null,null,null,null,null,null,null,null,null,null,null,null,null,null,null,null,null,"情報伝達訓練"]
[null,null,null,null,null,null,null,null,null,null,null,null,null,null,null,null,null,null,null,null,null,null,null,null,null,"○施設職員の緊急連絡網の試行\n○保護者・家族等への情報伝達手段（メール・電話等）の確認、情報伝達の試行　等",null,null,null,null,null,null,null,null,null,null,null,null,null,null,null,null,null,null,null,null,null,null,null,null,null,null,null,null,null,null,null,null,"月",null,null,null,"日",null,null,null,null,null,null,null,null,null,null,null,null,null,null,null,null,null,null,null,null,null,null,null,null,null,null,null,null,"○施設職員の緊急連絡網の試行\n○保護者・家族等への情報伝達手段（メール・電話等）の確認、情報伝達の試行　等",null,null,null,null,null,null,null,null,null,null,null,null,null,null,null,null,null,null,null,null,null,null,null,null,null,null,null,null,null,null,8,null,"月",null,1,null,"日"]
[]
[]
[]
[]
[null,null,null,null,null,null,"施設職員の非常参集訓練",null,null,null,null,null,null,null,null,null,null,null,null,null,null,null,null,null,null,null,null,null,null,null,null,null,null,null,null,null,null,null,null,null,null,null,null,null,null,null,null,null,null,null,null,null,null,null,null,null,null,null,null,null,null,null,null,null,null,null,null,null,null,null,null,null,"施設職員の非常参集訓練"]
[null,null,null,null,null,null,null,null,null,null,null,null,null,null,null,null,null,null,null,null,null,null,null,null,null,"○施設職員の緊急連絡網の試行\n○連絡後、施設職員の参集にかかる時間の計測　等",null,null,null,null,null,null,null,null,null,null,null,null,null,null,null,null,null,null,null,null,null,null,null,null,null,null,null,null,null,null,null,null,"月",null,null,null,"日",null,null,null,null,null,null,null,null,null,null,null,null,null,null,null,null,null,null,null,null,null,null,null,null,null,null,null,null,"○施設職員の緊急連絡網の試行\n○連絡後、施設職員の参集にかかる時間の計測　等",null,null,null,null,null,null,null,null,null,null,null,null,null,null,null,null,null,null,null,null,null,null,null,null,null,null,null,null,null,null,8,null,"月",null,1,null,"日"]
[]
[]
[]
[]
[]
[null,null,null,null,null,null,"避難訓練",null,null,null,null,null,null,null,null,null,null,null,null,null,null,null,null,null,null,null,null,null,null,null,null,null,null,null,null,null,null,null,null,null,null,null,null,null,null,null,null,null,null,null,null,null,null,null,null,null,null,null,null,null,null,null,null,null,null,null,null,null,null,null,null,null,"避難訓練"]
[null,null,null,null,null,null,null,null,null,null,null,null,null,null,null,null,null,null,null,null,null,null,null,null,null,"○防災体制と役割分担の確認、試行\n○施設から避難場所までの移動にかかる時間の計測　等",null,null,null,null,null,null,null,null,null,null,null,null,null,null,null,null,null,null,null,null,null,null,null,null,null,null,null,null,null,null,null,null,"月",null,null,null,"日",null,null,null,null,null,null,null,null,null,null,null,null,null,null,null,null,null,null,null,null,null,null,null,null,null,null,null,null,"○防災体制と役割分担の確認、試行\n○施設から避難場所までの移動にかかる時間の計測　等",null,null,null,null,null,null,null,null,null,null,null,null,null,null,null,null,null,null,null,null,null,null,null,null,null,null,null,null,null,null,9,null,"月",null,1,null,"日"]
[]
[]
[]
[]
[null,null,null,null,null,null,"避難確保計画の更新",null,null,null,null,null,null,null,null,null,null,null,null,null,null,null,null,null,null,null,null,null,null,null,null,null,null,null,null,null,null,null,null,null,null,null,null,null,null,null,null,null,null,null,null,null,null,null,null,null,null,null,null,null,null,null,null,null,null,null,null,null,null,null,null,null,"避難確保計画の更新"]
[null,null,null,null,null,null,null,null,null,null,null,null,null,null,null,null,null,null,null,null,null,null,null,null,null,"避難訓練の実施に基づき、必要に応じて避難確保計画を見直します。",null,null,null,null,null,null,null,null,null,null,null,null,null,null,null,null,null,null,null,null,null,null,null,null,null,null,null,null,null,null,null,null,"月",null,null,null,"日",null,null,null,null,null,null,null,null,null,null,null,null,null,null,null,null,null,null,null,null,null,null,null,null,null,null,null,null,"避難訓練の実施に基づき、必要に応じて避難確保計画を見直します。",null,null,null,null,null,null,null,null,null,null,null,null,null,null,null,null,null,null,null,null,null,null,null,null,null,null,null,null,null,null,3,null,"月",null,1,null,"日"]
[]
[]
[]
[]
[]
[]
[]
[]
[]
[]
[]
[]
[]
[]
[]
[]
[]
[]
[]
[]
[]
[]
[null,null,null,null,null,null,null,null,null,null,null,null,null,null,null,null,null,null,null,null,null,null,null,null,null,null,null,null,null,null,null,null,null,null,null,null,null,null,null,null,null,null,null,null,null,null,null,null,null,null,null,null,null,null,null,null,"様式８",null,null,null,null,null,null,null,null,null,null,null,null,null,null,null,null,null,null,null,null,null,null,null,null,null,null,null,null,null,null,null,null,null,null,null,null,null,null,null,null,null,null,null,null,null,null,null,null,null,null,null,null,null,null,null,null,null,null,null,null,null,null,null,null,null,"記載例"]
[null,null,"既存の名簿等がある場合は、それを用いてもよい。",null,null,null,null,null,null,null,null,null,null,null,null,null,null,null,null,null,null,null,null,null,null,null,null,null,null,null,null,null,null,null,null,null,null,null,null,null,null,null,null,null,null,null,null,null,null,null,null,null,null,null,null,null,null,null,null,null,null,null,null,null,null,null,null,null,"既存の名簿等がある場合は、それを用いてもよい。"]
[]
[]
[null,null,"１１　利用者緊急連絡先一覧表",null,null,null,null,null,null,null,null,null,null,null,null,null,null,null,null,null,null,null,null,null,null,null,null,null,null,null,null,null,null,null,null,null,null,null,null,null,null,null,null,null,null,null,null,null,null,null,null,null,null,null,null,null,null,null,null,null,null,null,null,null,null,null,null,null,"１１　利用者緊急連絡先一覧表"]
[]
[null,null,null,null,null,"利用者",null,null,null,null,null,null,null,null,null,null,null,null,null,null,null,null,null,null,"緊急連絡先",null,null,null,null,null,null,null,null,null,null,null,null,null,null,null,null,null,null,null,null,null,null,null,null,null,null,"その他",null,null,null,null,null,null,null,null,null,null,null,null,null,null,null,null,null,null,null,null,"利用者",null,null,null,null,null,null,null,null,null,null,null,null,null,null,null,null,null,null,"緊急連絡先",null,null,null,null,null,null,null,null,null,null,null,null,null,null,null,null,null,null,null,null,null,null,null,null,null,null,"その他"]
[null,null,null,null,null,"氏名",null,null,null,null,null,"年齢",null,null,"住所",null,null,null,null,null,null,null,null,null,"氏名",null,null,null,null,null,"続柄",null,null,"電話番号",null,null,null,null,null,null,null,"住所",null,null,null,null,null,null,null,null,null,"（緊急連絡先等）",null,null,null,null,null,null,null,null,null,null,null,null,null,null,null,null,null,null,null,null,"氏名",null,null,null,null,null,"年齢",null,null,"住所",null,null,null,null,null,null,null,null,null,"氏名",null,null,null,null,null,"続柄",null,null,"電話番号",null,null,null,null,null,null,null,"住所",null,null,null,null,null,null,null,null,null,"（緊急連絡先等）"]
[null,null,1,null,null,null,null,null,null,null,null,null,null,null,null,null,null,null,null,null,null,null,null,null,null,null,null,null,null,null,null,null,null,null,null,null,null,null,null,null,null,null,null,null,null,null,null,null,null,null,null,null,null,null,null,null,null,null,null,null,null,null,null,null,null,null,null,null,null,1,null,null,"〇〇〇〇",null,null,null,null,null,84,null,null,"〇市1丁目××",null,null,null,null,null,null,null,null,null,"△△△△",null,null,null,null,null,"娘",null,null," 012-3456-7890",null,null,null,null,null,null,null,"〇市1丁目××",null,null,null,null,null,null,null,null,null," 090-1234-5678"]
[null,null,2,null,null,null,null,null,null,null,null,null,null,null,null,null,null,null,null,null,null,null,null,null,null,null,null,null,null,null,null,null,null,null,null,null,null,null,null,null,null,null,null,null,null,null,null,null,null,null,null,null,null,null,null,null,null,null,null,null,null,null,null,null,null,null,null,null,null,2]
[null,null,3,null,null,null,null,null,null,null,null,null,null,null,null,null,null,null,null,null,null,null,null,null,null,null,null,null,null,null,null,null,null,null,null,null,null,null,null,null,null,null,null,null,null,null,null,null,null,null,null,null,null,null,null,null,null,null,null,null,null,null,null,null,null,null,null,null,null,3]
[null,null,4,null,null,null,null,null,null,null,null,null,null,null,null,null,null,null,null,null,null,null,null,null,null,null,null,null,null,null,null,null,null,null,null,null,null,null,null,null,null,null,null,null,null,null,null,null,null,null,null,null,null,null,null,null,null,null,null,null,null,null,null,null,null,null,null,null,null,4]
[null,null,5,null,null,null,null,null,null,null,null,null,null,null,null,null,null,null,null,null,null,null,null,null,null,null,null,null,null,null,null,null,null,null,null,null,null,null,null,null,null,null,null,null,null,null,null,null,null,null,null,null,null,null,null,null,null,null,null,null,null,null,null,null,null,null,null,null,null,5]
[null,null,6,null,null,null,null,null,null,null,null,null,null,null,null,null,null,null,null,null,null,null,null,null,null,null,null,null,null,null,null,null,null,null,null,null,null,null,null,null,null,null,null,null,null,null,null,null,null,null,null,null,null,null,null,null,null,null,null,null,null,null,null,null,null,null,null,null,null,6]
[null,null,7,null,null,null,null,null,null,null,null,null,null,null,null,null,null,null,null,null,null,null,null,null,null,null,null,null,null,null,null,null,null,null,null,null,null,null,null,null,null,null,null,null,null,null,null,null,null,null,null,null,null,null,null,null,null,null,null,null,null,null,null,null,null,null,null,null,null,7]
[null,null,8,null,null,null,null,null,null,null,null,null,null,null,null,null,null,null,null,null,null,null,null,null,null,null,null,null,null,null,null,null,null,null,null,null,null,null,null,null,null,null,null,null,null,null,null,null,null,null,null,null,null,null,null,null,null,null,null,null,null,null,null,null,null,null,null,null,null,8]
[null,null,9,null,null,null,null,null,null,null,null,null,null,null,null,null,null,null,null,null,null,null,null,null,null,null,null,null,null,null,null,null,null,null,null,null,null,null,null,null,null,null,null,null,null,null,null,null,null,null,null,null,null,null,null,null,null,null,null,null,null,null,null,null,null,null,null,null,null,9]
[null,null,10,null,null,null,null,null,null,null,null,null,null,null,null,null,null,null,null,null,null,null,null,null,null,null,null,null,null,null,null,null,null,null,null,null,null,null,null,null,null,null,null,null,null,null,null,null,null,null,null,null,null,null,null,null,null,null,null,null,null,null,null,null,null,null,null,null,null,10]
[null,null,11,null,null,null,null,null,null,null,null,null,null,null,null,null,null,null,null,null,null,null,null,null,null,null,null,null,null,null,null,null,null,null,null,null,null,null,null,null,null,null,null,null,null,null,null,null,null,null,null,null,null,null,null,null,null,null,null,null,null,null,null,null,null,null,null,null,null,11]
[null,null,12,null,null,null,null,null,null,null,null,null,null,null,null,null,null,null,null,null,null,null,null,null,null,null,null,null,null,null,null,null,null,null,null,null,null,null,null,null,null,null,null,null,null,null,null,null,null,null,null,null,null,null,null,null,null,null,null,null,null,null,null,null,null,null,null,null,null,12]
[null,null,13,null,null,null,null,null,null,null,null,null,null,null,null,null,null,null,null,null,null,null,null,null,null,null,null,null,null,null,null,null,null,null,null,null,null,null,null,null,null,null,null,null,null,null,null,null,null,null,null,null,null,null,null,null,null,null,null,null,null,null,null,null,null,null,null,null,null,13]
[null,null,14,null,null,null,null,null,null,null,null,null,null,null,null,null,null,null,null,null,null,null,null,null,null,null,null,null,null,null,null,null,null,null,null,null,null,null,null,null,null,null,null,null,null,null,null,null,null,null,null,null,null,null,null,null,null,null,null,null,null,null,null,null,null,null,null,null,null,14]
[null,null,15,null,null,null,null,null,null,null,null,null,null,null,null,null,null,null,null,null,null,null,null,null,null,null,null,null,null,null,null,null,null,null,null,null,null,null,null,null,null,null,null,null,null,null,null,null,null,null,null,null,null,null,null,null,null,null,null,null,null,null,null,null,null,null,null,null,null,15]
[null,null,16,null,null,null,null,null,null,null,null,null,null,null,null,null,null,null,null,null,null,null,null,null,null,null,null,null,null,null,null,null,null,null,null,null,null,null,null,null,null,null,null,null,null,null,null,null,null,null,null,null,null,null,null,null,null,null,null,null,null,null,null,null,null,null,null,null,null,16]
[null,null,17,null,null,null,null,null,null,null,null,null,null,null,null,null,null,null,null,null,null,null,null,null,null,null,null,null,null,null,null,null,null,null,null,null,null,null,null,null,null,null,null,null,null,null,null,null,null,null,null,null,null,null,null,null,null,null,null,null,null,null,null,null,null,null,null,null,null,17]
[null,null,18,null,null,null,null,null,null,null,null,null,null,null,null,null,null,null,null,null,null,null,null,null,null,null,null,null,null,null,null,null,null,null,null,null,null,null,null,null,null,null,null,null,null,null,null,null,null,null,null,null,null,null,null,null,null,null,null,null,null,null,null,null,null,null,null,null,null,18]
[null,null,19,null,null,null,null,null,null,null,null,null,null,null,null,null,null,null,null,null,null,null,null,null,null,null,null,null,null,null,null,null,null,null,null,null,null,null,null,null,null,null,null,null,null,null,null,null,null,null,null,null,null,null,null,null,null,null,null,null,null,null,null,null,null,null,null,null,null,19]
[null,null,20,null,null,null,null,null,null,null,null,null,null,null,null,null,null,null,null,null,null,null,null,null,null,null,null,null,null,null,null,null,null,null,null,null,null,null,null,null,null,null,null,null,null,null,null,null,null,null,null,null,null,null,null,null,null,null,null,null,null,null,null,null,null,null,null,null,null,20]
[null,null,21,null,null,null,null,null,null,null,null,null,null,null,null,null,null,null,null,null,null,null,null,null,null,null,null,null,null,null,null,null,null,null,null,null,null,null,null,null,null,null,null,null,null,null,null,null,null,null,null,null,null,null,null,null,null,null,null,null,null,null,null,null,null,null,null,null,null,21]
[null,null,22,null,null,null,null,null,null,null,null,null,null,null,null,null,null,null,null,null,null,null,null,null,null,null,null,null,null,null,null,null,null,null,null,null,null,null,null,null,null,null,null,null,null,null,null,null,null,null,null,null,null,null,null,null,null,null,null,null,null,null,null,null,null,null,null,null,null,22]
[null,null,23,null,null,null,null,null,null,null,null,null,null,null,null,null,null,null,null,null,null,null,null,null,null,null,null,null,null,null,null,null,null,null,null,null,null,null,null,null,null,null,null,null,null,null,null,null,null,null,null,null,null,null,null,null,null,null,null,null,null,null,null,null,null,null,null,null,null,23]
[null,null,24,null,null,null,null,null,null,null,null,null,null,null,null,null,null,null,null,null,null,null,null,null,null,null,null,null,null,null,null,null,null,null,null,null,null,null,null,null,null,null,null,null,null,null,null,null,null,null,null,null,null,null,null,null,null,null,null,null,null,null,null,null,null,null,null,null,null,24]
[null,null,25,null,null,null,null,null,null,null,null,null,null,null,null,null,null,null,null,null,null,null,null,null,null,null,null,null,null,null,null,null,null,null,null,null,null,null,null,null,null,null,null,null,null,null,null,null,null,null,null,null,null,null,null,null,null,null,null,null,null,null,null,null,null,null,null,null,null,25]
[null,null,26,null,null,null,null,null,null,null,null,null,null,null,null,null,null,null,null,null,null,null,null,null,null,null,null,null,null,null,null,null,null,null,null,null,null,null,null,null,null,null,null,null,null,null,null,null,null,null,null,null,null,null,null,null,null,null,null,null,null,null,null,null,null,null,null,null,null,26]
[null,null,27,null,null,null,null,null,null,null,null,null,null,null,null,null,null,null,null,null,null,null,null,null,null,null,null,null,null,null,null,null,null,null,null,null,null,null,null,null,null,null,null,null,null,null,null,null,null,null,null,null,null,null,null,null,null,null,null,null,null,null,null,null,null,null,null,null,null,27]
[null,null,28,null,null,null,null,null,null,null,null,null,null,null,null,null,null,null,null,null,null,null,null,null,null,null,null,null,null,null,null,null,null,null,null,null,null,null,null,null,null,null,null,null,null,null,null,null,null,null,null,null,null,null,null,null,null,null,null,null,null,null,null,null,null,null,null,null,null,28]
[null,null,29,null,null,null,null,null,null,null,null,null,null,null,null,null,null,null,null,null,null,null,null,null,null,null,null,null,null,null,null,null,null,null,null,null,null,null,null,null,null,null,null,null,null,null,null,null,null,null,null,null,null,null,null,null,null,null,null,null,null,null,null,null,null,null,null,null,null,29,null,null,"〇〇〇〇",null,null,null,null,null,90,null,null,"〇市3丁目××",null,null,null,null,null,null,null,null,null,"△△△△",null,null,null,null,null,"息子",null,null," 012-3456-7890",null,null,null,null,null,null,null,"〇市2丁目××",null,null,null,null,null,null,null,null,null," 090-1234-5678"]
[null,null,30]
[null,null,31]
[null,null,32]
[null,null,33]
[null,null,34]
[null,null,35]
[null,null,36]
[null,null,37]
[null,null,38]
[null,null,39]
[null,null,40]
[null,null,41]
[null,null,42]
[null,null,43]
[null,null,44]
[null,null,45]
[null,null,46]
[null,null,47]
[null,null,48]
[null,null,49]
[null,null,50]
[]
[]
[]
[]
[]
[null,null,"既存の名簿等がある場合は、それを用いてもよい。",null,null,null,null,null,null,null,null,null,null,null,null,null,null,null,null,null,null,null,null,null,null,null,null,null,null,null,null,null,null,null,null,null,null,null,null,null,null,null,null,null,null,null,null,null,null,null,null,null,null,null,null,null,"様式９",null,null,null,null,null,null,null,null,null,null,null,"既存の名簿等がある場合は、それを用いてもよい。",null,null,null,null,null,null,null,null,null,null,null,null,null,null,null,null,null,null,null,null,null,null,null,null,null,null,null,null,null,null,null,null,null,null,null,null,null,null,null,null,null,null,null,null,null,null,null,null,null,null,null,null,null,"記載例"]
[]
[null,null,"１２　緊急連絡網",null,null,null,null,null,null,null,null,null,null,null,null,null,null,null,null,null,null,null,null,null,null,null,null,null,null,null,null,null,null,null,null,null,null,null,null,null,null,null,null,null,null,null,null,null,null,null,null,null,null,null,null,null,null,null,null,null,null,null,null,null,null,null,null,null,"１２　緊急連絡網"]
[null,null,null,null,null,null,null,null,null,null,null,null,null,null,null,null,null,null,null,null,null,null,null,null,null,null,null,null,null,null,null,null,null,null,null,null,null,null,null,null,null,null,null,null,null,null,null,null,null,null,null,null,null,null,null,null,null,null,null,null,null,null,null,null,null,null,null,null,null,null,null,null,null,null,null,null,null,null,null,null,null,null,null,null,null,null,null,null,null,null,"施設長"]
[]
[null,null,null,null,null,null,null,null,null,null,null,null,null,null,null,null,null,null,null,null,null,null,null,null,null,null,null,null,null,null,null,null,null,null,null,null,null,null,null,null,null,null,null,null,null,null,null,null,null,null,null,null,null,null,null,null,null,null,null,null,null,null,null,null,null,null,null,null,null,null,null,null,null,null,null,null,null,null,null,null,null,null,null,null,null,null,null,null,null,null,"012-3456-7890"]
[]
[null,null,null,null,null,null,null,null,null,null,null,null,null,null,null,null,null,null,null,null,null,null,null,null,null,null,null,null,null,null,null,null,null,null,null,null,null,null,null,null,null,null,null,null,null,null,null,null,null,null,null,null,null,null,null,null,null,null,null,null,null,null,null,null,null,null,null,null,null,null,null,null,null,null,null,null,null,null,null,null,null,null,null,null,null,null,null,null,null,null,"事務長"]
[]
[null,null,null,null,null,null,null,null,null,null,null,null,null,null,null,null,null,null,null,null,null,null,null,null,null,null,null,null,null,null,null,null,null,null,null,null,null,null,null,null,null,null,null,null,null,null,null,null,null,null,null,null,null,null,null,null,null,null,null,null,null,null,null,null,null,null,null,null,null,null,null,null,null,null,null,null,null,null,null,null,null,null,null,null,null,null,null,null,null,null,"012-3456-7890"]
[]
[]
[null,null,null,null,null,null,null,null,null,null,null,null,null,null,null,null,null,null,null,null,null,null,null,null,null,null,null,null,null,null,null,null,null,null,null,null,null,null,null,null,null,null,null,null,null,null,null,null,null,null,null,null,null,null,null,null,null,null,null,null,null,null,null,null,null,null,null,null,null,null,null,null,null,"○○○○",null,null,null,null,null,null,null,null,null,null,null,null,"○○○○",null,null,null,null,null,null,null,null,null,null,null,null,"○○○○",null,null,null,null,null,null,null,null,null,null,null,null,"○○○○"]
[]
[null,null,null,null,null,null,null,null,null,null,null,null,null,null,null,null,null,null,null,null,null,null,null,null,null,null,null,null,null,null,null,null,null,null,null,null,null,null,null,null,null,null,null,null,null,null,null,null,null,null,null,null,null,null,null,null,null,null,null,null,null,null,null,null,null,null,null,null,null,null,null,null,null,"012-3456-7890",null,null,null,null,null,null,null,null,null,null,null,null,"012-3456-7890",null,null,null,null,null,null,null,null,null,null,null,null,"012-3456-7890",null,null,null,null,null,null,null,null,null,null,null,null,"012-3456-7890"]
[]
[null,null,null,null,null,null,null,null,null,null,null,null,null,null,null,null,null,null,null,null,null,null,null,null,null,null,null,null,null,null,null,null,null,null,null,null,null,null,null,null,null,null,null,null,null,null,null,null,null,null,null,null,null,null,null,null,null,null,null,null,null,null,null,null,null,null,null,null,null,null,null,null,null,"○○○○",null,null,null,null,null,null,null,null,null,null,null,null,"○○○○",null,null,null,null,null,null,null,null,null,null,null,null,"○○○○",null,null,null,null,null,null,null,null,null,null,null,null,"○○○○"]
[]
[null,null,null,null,null,null,null,null,null,null,null,null,null,null,null,null,null,null,null,null,null,null,null,null,null,null,null,null,null,null,null,null,null,null,null,null,null,null,null,null,null,null,null,null,null,null,null,null,null,null,null,null,null,null,null,null,null,null,null,null,null,null,null,null,null,null,null,null,null,null,null,null,null,"012-3456-7890",null,null,null,null,null,null,null,null,null,null,null,null,"012-3456-7890",null,null,null,null,null,null,null,null,null,null,null,null,"012-3456-7890",null,null,null,null,null,null,null,null,null,null,null,null,"012-3456-7890"]
[]
[null,null,null,null,null,null,null,null,null,null,null,null,null,null,null,null,null,null,null,null,null,null,null,null,null,null,null,null,null,null,null,null,null,null,null,null,null,null,null,null,null,null,null,null,null,null,null,null,null,null,null,null,null,null,null,null,null,null,null,null,null,null,null,null,null,null,null,null,null,null,null,null,null,"○○○○",null,null,null,null,null,null,null,null,null,null,null,null,"○○○○",null,null,null,null,null,null,null,null,null,null,null,null,"○○○○",null,null,null,null,null,null,null,null,null,null,null,null,"○○○○"]
[]
[null,null,null,null,null,null,null,null,null,null,null,null,null,null,null,null,null,null,null,null,null,null,null,null,null,null,null,null,null,null,null,null,null,null,null,null,null,null,null,null,null,null,null,null,null,null,null,null,null,null,null,null,null,null,null,null,null,null,null,null,null,null,null,null,null,null,null,null,null,null,null,null,null,"012-3456-7890",null,null,null,null,null,null,null,null,null,null,null,null,"012-3456-7890",null,null,null,null,null,null,null,null,null,null,null,null,"012-3456-7890",null,null,null,null,null,null,null,null,null,null,null,null,"012-3456-7890"]
[]
[null,null,null,null,null,null,null,null,null,null,null,null,null,null,null,null,null,null,null,null,null,null,null,null,null,null,null,null,null,null,null,null,null,null,null,null,null,null,null,null,null,null,null,null,null,null,null,null,null,null,null,null,null,null,null,null,null,null,null,null,null,null,null,null,null,null,null,null,null,null,null,null,null,"○○○○"]
[]
[null,null,null,null,null,null,null,null,null,null,null,null,null,null,null,null,null,null,null,null,null,null,null,null,null,null,null,null,null,null,null,null,null,null,null,null,null,null,null,null,null,null,null,null,null,null,null,null,null,null,null,null,null,null,null,null,null,null,null,null,null,null,null,null,null,null,null,null,null,null,null,null,null,"012-3456-7890"]
[]
[]
[]
[]
[null,null,"既存の名簿等がある場合は、それを用いてもよい。",null,null,null,null,null,null,null,null,null,null,null,null,null,null,null,null,null,null,null,null,null,null,null,null,null,null,null,null,null,null,null,null,null,null,null,null,null,null,null,null,null,null,null,null,null,null,null,null,null,null,null,null,null,"様式10",null,null,null,null,null,null,null,null,null,null,null,"既存の名簿等がある場合は、それを用いてもよい。",null,null,null,null,null,null,null,null,null,null,null,null,null,null,null,null,null,null,null,null,null,null,null,null,null,null,null,null,null,null,null,null,null,null,null,null,null,null,null,null,null,null,null,null,null,null,null,null,null,null,null,null,"記載例"]
[]
[null,null,"１３　外部機関等の緊急連絡先一覧表",null,null,null,null,null,null,null,null,null,null,null,null,null,null,null,null,null,null,null,null,null,null,null,null,null,null,null,null,null,null,null,null,null,null,null,null,null,null,null,null,null,null,null,null,null,null,null,null,null,null,null,null,null,null,null,null,null,null,null,null,null,null,null,null,null,"１３　外部機関等の緊急連絡先一覧表"]
[]
[null,null,null,"外部機関等",null,null,null,null,null,null,null,null,null,"連絡先",null,null,null,null,null,null,null,null,null,null,null,null,null,null,"備　　考",null,null,null,null,null,null,null,null,null,null,null,null,null,null,null,null,null,null,null,null,null,null,null,null,null,null,null,null,null,null,null,null,null,null,null,null,null,null,null,null,null,null,null,null,null,null,null,null,null,null,"連絡先",null,null,null,null,null,null,null,null,null,null,null,null,null,null,"備考"]
[]
[null,null,null,null,null,null,null,null,null,null,null,null,null,null,null,null,null,null,null,null,null,null,null,null,null,null,null,null,null,null,null,null,null,null,null,null,null,null,null,null,null,null,null,null,null,null,null,null,null,null,null,null,null,null,null,null,null,null,null,null,null,null,null,null,null,null,null,null,null,"市町村（防災担当）",null,null,null,null,null,null,null,null,null,"012-3456-7890"]
[]
[null,null,null,null,null,null,null,null,null,null,null,null,null,null,null,null,null,null,null,null,null,null,null,null,null,null,null,null,null,null,null,null,null,null,null,null,null,null,null,null,null,null,null,null,null,null,null,null,null,null,null,null,null,null,null,null,null,null,null,null,null,null,null,null,null,null,null,null,null,"市町村（福祉担当）",null,null,null,null,null,null,null,null,null,"012-3456-7890"]
[]
[null,null,null,null,null,null,null,null,null,null,null,null,null,null,null,null,null,null,null,null,null,null,null,null,null,null,null,null,null,null,null,null,null,null,null,null,null,null,null,null,null,null,null,null,null,null,null,null,null,null,null,null,null,null,null,null,null,null,null,null,null,null,null,null,null,null,null,null,null,"消防署",null,null,null,null,null,null,null,null,null,"012-3456-7890"]
[]
[null,null,null,null,null,null,null,null,null,null,null,null,null,null,null,null,null,null,null,null,null,null,null,null,null,null,null,null,null,null,null,null,null,null,null,null,null,null,null,null,null,null,null,null,null,null,null,null,null,null,null,null,null,null,null,null,null,null,null,null,null,null,null,null,null,null,null,null,null,"警察署",null,null,null,null,null,null,null,null,null,"012-3456-7890"]
[]
[null,null,null,null,null,null,null,null,null,null,null,null,null,null,null,null,null,null,null,null,null,null,null,null,null,null,null,null,null,null,null,null,null,null,null,null,null,null,null,null,null,null,null,null,null,null,null,null,null,null,null,null,null,null,null,null,null,null,null,null,null,null,null,null,null,null,null,null,null,"避難誘導等の支援者",null,null,null,null,null,null,null,null,null,"012-3456-7890"]
[]
[null,null,null,null,null,null,null,null,null,null,null,null,null,null,null,null,null,null,null,null,null,null,null,null,null,null,null,null,null,null,null,null,null,null,null,null,null,null,null,null,null,null,null,null,null,null,null,null,null,null,null,null,null,null,null,null,null,null,null,null,null,null,null,null,null,null,null,null,null,"医療機関",null,null,null,null,null,null,null,null,null,"012-3456-7890"]
[]
[]
[]
[]
[]
[]
[]
[]
[]
[null,null,"既存の名簿等がある場合は、それを用いてもよい。",null,null,null,null,null,null,null,null,null,null,null,null,null,null,null,null,null,null,null,null,null,null,null,null,null,null,null,null,null,null,null,null,null,null,null,null,null,null,null,null,null,null,null,null,null,null,null,null,null,null,null,null,null,null,null,null,null,null,null,null,null,null,null,null,null,"既存の名簿等がある場合は、それを用いてもよい。"]
[null,null,null,null,null,null,null,null,null,null,null,null,null,null,null,null,null,null,null,null,null,null,null,null,null,null,null,null,null,null,null,null,null,null,null,null,null,null,null,null,null,null,null,null,null,null,null,null,null,null,null,null,null,null,null,null,"様式11",null,null,null,null,null,null,null,null,null,null,null,null,null,null,null,null,null,null,null,null,null,null,null,null,null,null,null,null,null,null,null,null,null,null,null,null,null,null,null,null,null,null,null,null,null,null,null,null,null,null,null,null,null,null,null,null,null,null,null,null,null,null,null,null,null,"記載例"]
[]
[null,null,"１４　対応別避難誘導一覧表",null,null,null,null,null,null,null,null,null,null,null,null,null,null,null,null,null,null,null,null,null,null,null,null,null,null,null,null,null,null,null,null,null,null,null,null,null,null,null,null,null,null,null,null,null,null,null,null,null,null,null,null,null,null,null,null,null,null,null,null,null,null,null,null,null,"１４　対応別避難誘導一覧表"]
[]
[null,null,null,"氏名",null,null,null,null,null,null,null,"連絡先",null,null,null,null,null,null,null,"対応内容",null,null,null,null,null,null,null,"移動手段",null,null,null,null,null,null,null,null,null,null,null,null,null,null,null,null,null,null,null,"担当者",null,null,null,null,null,null,null,"備考",null,null,null,null,null,null,null,null,null,null,null,null,null,"氏名",null,null,null,null,null,null,null,"連絡先",null,null,null,null,null,null,null,"対応内容",null,null,null,null,null,null,null,"移動手段",null,null,null,null,null,null,null,null,null,null,null,null,null,null,null,null,null,null,null,"担当者",null,null,null,null,null,null,null,"備考"]
[null,null,null,null,null,null,null,null,null,null,null,null,null,null,null,null,null,null,null,null,null,null,null,null,null,null,null,"立退き避難",null,null,null,null,null,null,null,null,null,"屋内安全確保",null,null,null,null,null,null,null,null,null,null,null,null,null,null,null,null,null,null,null,null,null,null,null,null,null,null,null,null,null,null,null,null,null,null,null,null,null,null,null,null,null,null,null,null,null,null,null,null,null,null,null,null,null,null,null,"立退き避難",null,null,null,null,null,null,null,null,null,"屋内安全確保"]
[null,null,null,null,null,null,null,null,null,null,null,null,null,null,null,null,null,null,null,null,null,null,null,null,null,null,null,null,null,null,null,null,null,null,null,null,null,null,null,null,null,null,null,null,null,null,null,null,null,null,null,null,null,null,null,null,null,null,null,null,null,null,null,null,null,null,null,null,null,"〇〇〇〇",null,null,null,null,null,null,null,"012-3456-7890",null,null,null,null,null,null,null,1,null,null,null,null,null,null,null,"徒歩",null,null,null,null,null,null,null,null,null,"階段",null,null,null,null,null,null,null,null,null,"○○○○",null,null,null,null,null,null,null,"要介護度1"]
[]
[]
[]
[]
[]
[]
[]
[]
[]
[]
[]
[]
[]
[]
[]
[]
[]
[]
[]
[]
[]
[]
[]
[]
[]
[]
[]
[null,null,null,null,null,null,null,null,null,null,null,null,null,null,null,null,null,null,null,null,null,null,null,null,null,null,null,null,null,null,null,null,null,null,null,null,null,null,null,null,null,null,null,null,null,null,null,null,null,null,null,null,null,null,null,null,null,null,null,null,null,null,null,null,null,null,null,null,null,"〇〇〇〇",null,null,null,null,null,null,null,"012-3456-7890",null,null,null,null,null,null,null,4,null,null,null,null,null,null,null,"自動車",null,null,null,null,null,null,null,null,null,"エレベーター、ストレッチャー",null,null,null,null,null,null,null,null,null,"○○○○",null,null,null,null,null,null,null,"要介護度5"]
[]
[]
[]
[]
[]
[]
[]
[]
[]
[]
[]
[null,null,null,null,null,null,null,null,null,null,null,null,null,null,null,null,null,null,null,null,null,null,null,null,null,null,null,null,null,null,null,null,null,null,null,null,null,null,null,null,null,null,null,null,null,null,null,null,null,null,null,null,null,null,null,null,"様式12",null,null,null,null,null,null,null,null,null,null,null,"既に防災体制を確立している場合は、それを活用してもよい。",null,null,null,null,null,null,null,null,null,null,null,null,null,null,null,null,null,null,null,null,null,null,null,null,null,null,null,null,null,null,null,null,null,null,null,null,null,null,null,null,null,null,null,null,null,null,null,null,null,null,null,null,null,"記載例"]
[]
[null,null,"１５　防災体制一覧表",null,null,null,null,null,null,null,null,null,null,null,null,null,null,null,null,null,null,null,null,null,null,null,null,null,null,null,null,null,null,null,null,null,null,null,null,null,null,null,null,null,null,null,null,null,null,null,null,null,null,null,null,null,null,null,null,null,null,null,null,null,null,null,null,null,"１５　防災体制一覧表"]
[]
[]
[null,null," 管理権限者",null,null,null,null,null,null,null,null,null,"(",null,null,null,null,null,null,null,null,null,null,")",null,"(","代行者",null,null,null,null,null,null,null,null,null,null,null,null,null,null,null,")",null,null,null,null,null,null,null,null,null,null,null,null,null,null,null,null,null,null,null,null,null,null,null,null,null," 管理権限者",null,null,null,null,null,null,null,null,null,"(","施設長",null,null,null,null,null,null,null,null,null,")",null,"(","代行者",null,null,null,null,null,"事務長",null,null,null,null,null,null,null,null,null,")"]
[]
[null,null,null,null,null,null,null,null,"情報収集\n伝達要員",null,null,null,null,null,null,null,"担当者",null,null,null,null,null,null,null,null,null,null,null,null,null,null,null,null,null,null,null,"役割",null,null,null,null,null,null,null,null,null,null,null,null,null,null,null,null,null,null,null,null,null,null,null,null,null,null,null,null,null,null,null,null,null,null,null,null,null,"情報収集\n伝達要員",null,null,null,null,null,null,null,"担当者",null,null,null,null,null,null,null,null,null,null,null,null,null,null,null,null,null,null,null,"役割"]
[]
[]
[null,null,null,null,null,null,null,null,null,null,null,null,null,null,null,null,"班長",null,null,null,"（",null,null,null,null,null,null,null,null,null,null,null,"）",null,null,null,null,"□",null,"洪水予報等の情報の収集",null,null,null,null,null,null,null,null,null,null,null,null,null,null,null,null,null,null,null,null,null,null,null,null,null,null,null,null,null,null,null,null,null,null,null,null,null,null,null,null,null,null,"班長",null,null,null,"（",null,"管理職員",null,null,null,null,null,null,null,null,null,"）",null,null,null,null,"□",null,"洪水予報等の情報の収集"]
[null,null,null,null,null,null,null,null,null,null,null,null,null,null,null,null,"班員",null,null,null,"（",null,null,null,"）","名",null,null,null,null,null,null,null,null,null,null,null,"□",null,"情報内容の記録",null,null,null,null,null,null,null,null,null,null,null,null,null,null,null,null,null,null,null,null,null,null,null,null,null,null,null,null,null,null,null,null,null,null,null,null,null,null,null,null,null,null,"班員",null,null,null,"（",null,"○",null,"）","名",null,null,null,null,null,null,null,null,null,null,null,"□",null,"情報内容の記録"]
[null,null,null,null,null,null,null,null,null,null,null,null,null,null,null,null,"・",null,null,null,null,null,null,null,null,null,null,null,null,null,null,null,null,null,null,null,null,"□",null,"館内放送等による情報伝達",null,null,null,null,null,null,null,null,null,null,null,null,null,null,null,null,null,null,null,null,null,null,null,null,null,null,null,null,null,null,null,null,null,null,null,null,null,null,null,null,null,null,"・",null,null,null,"○○○○",null,null,null,null,null,null,null,null,null,null,null,null,null,null,null,null,"□",null,"館内放送等による情報伝達"]
[null,null,null,null,null,null,null,null,null,null,null,null,null,null,null,null,"・",null,null,null,null,null,null,null,null,null,null,null,null,null,null,null,null,null,null,null,null,"□",null,"関係者及び関係機関との連絡",null,null,null,null,null,null,null,null,null,null,null,null,null,null,null,null,null,null,null,null,null,null,null,null,null,null,null,null,null,null,null,null,null,null,null,null,null,null,null,null,null,null,"・",null,null,null,"○○○○",null,null,null,null,null,null,null,null,null,null,null,null,null,null,null,null,"□",null,"関係者及び関係機関との連絡"]
[]
[]
[null,null,null,null,null,null,null,null,"避難誘導要員",null,null,null,null,null,null,null,"担当者",null,null,null,null,null,null,null,null,null,null,null,null,null,null,null,null,null,null,null,"役割",null,null,null,null,null,null,null,null,null,null,null,null,null,null,null,null,null,null,null,null,null,null,null,null,null,null,null,null,null,null,null,null,null,null,null,null,null,"避難誘導要員",null,null,null,null,null,null,null,"担当者",null,null,null,null,null,null,null,null,null,null,null,null,null,null,null,null,null,null,null,"役割"]
[]
[]
[null,null,null,null,null,null,null,null,null,null,null,null,null,null,null,null,"班長",null,null,null,"（",null,null,null,null,null,null,null,null,null,null,null,"）",null,null,null,null,"□",null,"避難誘導の実施",null,null,null,null,null,null,null,null,null,null,null,null,null,null,null,null,null,null,null,null,null,null,null,null,null,null,null,null,null,null,null,null,null,null,null,null,null,null,null,null,null,null,"班長",null,null,null,"（",null,"管理職員",null,null,null,null,null,null,null,null,null,"）",null,null,null,null,"□",null,"避難誘導の実施"]
[null,null,null,null,null,null,null,null,null,null,null,null,null,null,null,null,"班員",null,null,null,"（",null,null,null,"）","名",null,null,null,null,null,null,null,null,null,null,null,"□",null,"未避難者、要救助者の確認",null,null,null,null,null,null,null,null,null,null,null,null,null,null,null,null,null,null,null,null,null,null,null,null,null,null,null,null,null,null,null,null,null,null,null,null,null,null,null,null,null,null,"班員",null,null,null,"（",null,"○",null,"）","名",null,null,null,null,null,null,null,null,null,null,null,"□",null,"未避難者、要救助者の確認"]
[null,null,null,null,null,null,null,null,null,null,null,null,null,null,null,null,"・",null,null,null,null,null,null,null,null,null,null,null,null,null,null,null,null,null,null,null,null,null,null,null,null,null,null,null,null,null,null,null,null,null,null,null,null,null,null,null,null,null,null,null,null,null,null,null,null,null,null,null,null,null,null,null,null,null,null,null,null,null,null,null,null,null,"・",null,null,null,"○○○○"]
[null,null,null,null,null,null,null,null,null,null,null,null,null,null,null,null,"・",null,null,null,null,null,null,null,null,null,null,null,null,null,null,null,null,null,null,null,null,null,null,null,null,null,null,null,null,null,null,null,null,null,null,null,null,null,null,null,null,null,null,null,null,null,null,null,null,null,null,null,null,null,null,null,null,null,null,null,null,null,null,null,null,null,"・",null,null,null,"○○○○"]
[]
[]
[]
[]
[]
[]
[]
[]
[]
[]
[]
[]
[]
[]
[]
[]
[]
[]
[]
[]
[]
[]
[]
[]
[]
[]
[]
[]
[]
[]
[]
[]
[]
[]
[]
[null,null,null,null,null,null,null,null,null,null,null,null,null,null,null,null,null,null,null,null,null,null,null,null,null,null,null,null,null,null,null,null,null,null,null,null,null,null,null,null,null,null,null,null,null,null,null,null,null,null,null,null,null,null,null,null,"別添",null,null,null,null,null,null,null,null,null,null,null,null,null,null,null,null,null,null,null,null,null,null,null,null,null,null,null,null,null,null,null,null,null,null,null,null,null,null,null,null,null,null,null,null,null,null,null,null,null,null,null,null,null,null,null,null,null,null,null,null,null,null,null,null,null,"記載例"]
[]
[null,null,null,null,"自衛水防組織活動要領",null,null,null,null,null,null,null,null,null,null,null,null,null,null,null,null,null,null,null,null,null,null,null,null,null,null,null,null,null,null,null,null,null,null,null,null,null,null,null,null,null,null,null,null,null,null,null,null,null,null,null,null,null,null,null,null,null,null,null,null,null,null,null,null,null,"自衛水防組織活動要領"]
[]
[null,null,null,null,"（自衛水防組織の編成）","（自衛水防組織の編成）",0,0,0,0,0,0,0,0,0,0,0,0,0,0,0,0,0,0,0,0,0,0,0,0,0,0,0,0,0,0,0,0,0,0,0,0,0,0,0,0,0,0,0,0,0,0,0,0,0,0,0,0,0,0,0,0,null,null,null,null,null,null,null,null,"（自衛水防組織の編成）"]
[null,null,null,null,"第１条　管理権限者は、洪水時等において避難確保計画に基づく円滑かつ迅速な避難を確保するため、自衛水防組織を編成するものとする。","第１条　管理権限者は、洪水時等において避難確保計画に基づく円滑かつ迅速な避難を確保するため、自衛水防組織を編成するものとする。",0,0,0,0,0,0,0,0,0,0,0,0,0,0,0,0,0,0,0,0,0,0,0,0,0,0,0,0,0,0,0,0,0,0,0,0,0,0,0,0,0,0,0,0,0,0,0,0,0,0,0,0,0,0,0,0,null,null,null,null,null,null,null,null,"第１条　管理権限者は、洪水時等において避難確保計画に基づく円滑かつ迅速な避難を確保するため、自衛水防組織を編成するものとする。"]
[null,null,null,null,"２　自衛水防組織には、統括管理者を置く。","２　自衛水防組織には、統括管理者を置く。",0,0,0,0,0,0,0,0,0,0,0,0,0,0,0,0,0,0,0,0,0,0,0,0,0,0,0,0,0,0,0,0,0,0,0,0,0,0,0,0,0,0,0,0,0,0,0,0,0,0,0,0,0,0,0,0,null,null,null,null,null,null,null,null,"２　自衛水防組織には、統括管理者を置く。"]
[null,null,null,null,"（１）統括管理者は、管理権限者の命を受け、自衛水防組織の機能が有効に発揮できるよう組織を統括する。","（１）統括管理者は、管理権限者の命を受け、自衛水防組織の機能が有効に発揮できるよう組織を統括する。",0,0,0,0,0,0,0,0,0,0,0,0,0,0,0,0,0,0,0,0,0,0,0,0,0,0,0,0,0,0,0,0,0,0,0,0,0,0,0,0,0,0,0,0,0,0,0,0,0,0,0,0,0,0,0,0,null,null,null,null,null,null,null,null,"（１）統括管理者は、管理権限者の命を受け、自衛水防組織の機能が有効に発揮できるよう組織を統括する。"]
[null,null,null,null,"（２）統括管理者は、洪水時等における避難行動について、その指揮、命令、監督等一切の権限を有する。","（２）統括管理者は、洪水時等における避難行動について、その指揮、命令、監督等一切の権限を有する。",0,0,0,0,0,0,0,0,0,0,0,0,0,0,0,0,0,0,0,0,0,0,0,0,0,0,0,0,0,0,0,0,0,0,0,0,0,0,0,0,0,0,0,0,0,0,0,0,0,0,0,0,0,0,0,0,null,null,null,null,null,null,null,null,"（２）統括管理者は、洪水時等における避難行動について、その指揮、命令、監督等一切の権限を有する。"]
[null,null,null,null,"３　管理権限者は、統括管理者の代行者を定め、当該代行者に対し、統括管理者の任務を代行するために必要な指揮、命令、監督等の権限を付与する。","３　管理権限者は、統括管理者の代行者を定め、当該代行者に対し、統括管理者の任務を代行するために必要な指揮、命令、監督等の権限を付与する。",0,0,0,0,0,0,0,0,0,0,0,0,0,0,0,0,0,0,0,0,0,0,0,0,0,0,0,0,0,0,0,0,0,0,0,0,0,0,0,0,0,0,0,0,0,0,0,0,0,0,0,0,0,0,0,0,null,null,null,null,null,null,null,null,"３　管理権限者は、統括管理者の代行者を定め、当該代行者に対し、統括管理者の任務を代行するために必要な指揮、命令、監督等の権限を付与する。"]
[null,null,null,null,"４　自衛水防組織に、班を置く。","４　自衛水防組織に、班を置く。",0,0,0,0,0,0,0,0,0,0,0,0,0,0,0,0,0,0,0,0,0,0,0,0,0,0,0,0,0,0,0,0,0,0,0,0,0,0,0,0,0,0,0,0,0,0,0,0,0,0,0,0,0,0,0,0,null,null,null,null,null,null,null,null,"４　自衛水防組織に、班を置く。"]
[null,null,null,null,"(１)　班は、総括・情報班及び避難誘導班とし、各班に班長を置く。","(１)　班は、総括・情報班及び避難誘導班とし、各班に班長を置く。",0,0,0,0,0,0,0,0,0,0,0,0,0,0,0,0,0,0,0,0,0,0,0,0,0,0,0,0,0,0,0,0,0,0,0,0,0,0,0,0,0,0,0,0,0,0,0,0,0,0,0,0,0,0,0,0,null,null,null,null,null,null,null,null,"(１)　班は、総括・情報班及び避難誘導班とし、各班に班長を置く。"]
[null,null,null,null,"(２)　各班の任務は、別表１に掲げる任務とする。","(２)　各班の任務は、別表１に掲げる任務とする。",0,0,0,0,0,0,0,0,0,0,0,0,0,0,0,0,0,0,0,0,0,0,0,0,0,0,0,0,0,0,0,0,0,0,0,0,0,0,0,0,0,0,0,0,0,0,0,0,0,0,0,0,0,0,0,0,null,null,null,null,null,null,null,null,"(２)　各班の任務は、別表１に掲げる任務とする。"]
[null,null,null,null,"(３)  防災センター（最低限、通信設備を有するものとする）を自衛水防組織の活動拠点とし、防災センター勤務員及び各班の班長を自衛水防組織の中核として配置する。","(３)  防災センター（最低限、通信設備を有するものとする）を自衛水防組織の活動拠点とし、防災センター勤務員及び各班の班長を自衛水防組織の中核として配置する。",0,0,0,0,0,0,0,0,0,0,0,0,0,0,0,0,0,0,0,0,0,0,0,0,0,0,0,0,0,0,0,0,0,0,0,0,0,0,0,0,0,0,0,0,0,0,0,0,0,0,0,0,0,0,0,0,null,null,null,null,null,null,null,null,"(３)  防災センター（最低限、通信設備を有するものとする）を自衛水防組織の活動拠点とし、防災センター勤務員及び各班の班長を自衛水防組織の中核として配置する。"]
[]
[null,null,null,null,"（自衛水防組織の運用）","（自衛水防組織の運用）",0,0,0,0,0,0,0,0,0,0,0,0,0,0,0,0,0,0,0,0,0,0,0,0,0,0,0,0,0,0,0,0,0,0,0,0,0,0,0,0,0,0,0,0,0,0,0,0,0,0,0,0,0,0,0,0,null,null,null,null,null,null,null,null,"（自衛水防組織の運用）"]
[null,null,null,null,"第２条　管理権限者は、施設職員の勤務体制（シフト）も考慮した組織編成に努め、必要な人員の確保及び施設職員等に割り当てた任務の周知徹底を図るものとする。","第２条　管理権限者は、施設職員の勤務体制（シフト）も考慮した組織編成に努め、必要な人員の確保及び施設職員等に割り当てた任務の周知徹底を図るものとする。",0,0,0,0,0,0,0,0,0,0,0,0,0,0,0,0,0,0,0,0,0,0,0,0,0,0,0,0,0,0,0,0,0,0,0,0,0,0,0,0,0,0,0,0,0,0,0,0,0,0,0,0,0,0,0,0,null,null,null,null,null,null,null,null,"第２条　管理権限者は、施設職員の勤務体制（シフト）も考慮した組織編成に努め、必要な人員の確保及び施設職員等に割り当てた任務の周知徹底を図るものとする。"]
[null,null,null,null,"２　特に、休日・夜間も施設内に利用者が滞在する施設にあって、休日・夜間に在館する施設職員等のみによっては十分な体制を確保することが難しい場合は、管理権限者は、近隣在住の施設職員等の非常参集も考慮して組織編成に努めるものとする。","２　特に、休日・夜間も施設内に利用者が滞在する施設にあって、休日・夜間に在館する施設職員等のみによっては十分な体制を確保することが難しい場合は、管理権限者は、近隣在住の施設職員等の非常参集も考慮して組織編成に努めるものとする。",0,0,0,0,0,0,0,0,0,0,0,0,0,0,0,0,0,0,0,0,0,0,0,0,0,0,0,0,0,0,0,0,0,0,0,0,0,0,0,0,0,0,0,0,0,0,0,0,0,0,0,0,0,0,0,0,null,null,null,null,null,null,null,null,"２　特に、休日・夜間も施設内に利用者が滞在する施設にあって、休日・夜間に在館する施設職員等のみによっては十分な体制を確保することが難しい場合は、管理権限者は、近隣在住の施設職員等の非常参集も考慮して組織編成に努めるものとする。"]
[null,null,null,null,"３　管理権限者は、災害等の応急活動のため緊急連絡網や施設職員等の非常参集計画を定めるものとする。","３　管理権限者は、災害等の応急活動のため緊急連絡網や施設職員等の非常参集計画を定めるものとする。",0,0,0,0,0,0,0,0,0,0,0,0,0,0,0,0,0,0,0,0,0,0,0,0,0,0,0,0,0,0,0,0,0,0,0,0,0,0,0,0,0,0,0,0,0,0,0,0,0,0,0,0,0,0,0,0,null,null,null,null,null,null,null,null,"３　管理権限者は、災害等の応急活動のため緊急連絡網や施設職員等の非常参集計画を定めるものとする。"]
[]
[null,null,null,null,"（自衛水防組織の装備）","（自衛水防組織の装備）",0,0,0,0,0,0,0,0,0,0,0,0,0,0,0,0,0,0,0,0,0,0,0,0,0,0,0,0,0,0,0,0,0,0,0,0,0,0,0,0,0,0,0,0,0,0,0,0,0,0,0,0,0,0,0,0,null,null,null,null,null,null,null,null,"（自衛水防組織の装備）"]
[null,null,null,null,"第３条　管理権限者は、自衛水防組織に必要な装備品を整備するとともに、適正な維持管理に努めなければならない。","第３条　管理権限者は、自衛水防組織に必要な装備品を整備するとともに、適正な維持管理に努めなければならない。",0,0,0,0,0,0,0,0,0,0,0,0,0,0,0,0,0,0,0,0,0,0,0,0,0,0,0,0,0,0,0,0,0,0,0,0,0,0,0,0,0,0,0,0,0,0,0,0,0,0,0,0,0,0,0,0,null,null,null,null,null,null,null,null,"第３条　管理権限者は、自衛水防組織に必要な装備品を整備するとともに、適正な維持管理に努めなければならない。"]
[null,null,null,null,"(１)　自衛水防組織の装備品は、別表２「自衛水防組織装備品リスト」のとおりとする。","(１)　自衛水防組織の装備品は、別表２「自衛水防組織装備品リスト」のとおりとする。",0,0,0,0,0,0,0,0,0,0,0,0,0,0,0,0,0,0,0,0,0,0,0,0,0,0,0,0,0,0,0,0,0,0,0,0,0,0,0,0,0,0,0,0,0,0,0,0,0,0,0,0,0,0,0,0,null,null,null,null,null,null,null,null,"(１)　自衛水防組織の装備品は、別表２「自衛水防組織装備品リスト」のとおりとする。"]
[null,null,null,null,"(２)　自衛水防組織の装備品については、統括管理者が防災センターに保管し、必要な点検を行うとともに点検結果を記録保管し、常時使用できる状態で維持管理する。","(２)　自衛水防組織の装備品については、統括管理者が防災センターに保管し、必要な点検を行うとともに点検結果を記録保管し、常時使用できる状態で維持管理する。",0,0,0,0,0,0,0,0,0,0,0,0,0,0,0,0,0,0,0,0,0,0,0,0,0,0,0,0,0,0,0,0,0,0,0,0,0,0,0,0,0,0,0,0,0,0,0,0,0,0,0,0,0,0,0,0,null,null,null,null,null,null,null,null,"(２)　自衛水防組織の装備品については、統括管理者が防災センターに保管し、必要な点検を行うとともに点検結果を記録保管し、常時使用できる状態で維持管理する。"]
[]
[null,null,null,null,"（自衛水防組織の活動）","（自衛水防組織の活動）",0,0,0,0,0,0,0,0,0,0,0,0,0,0,0,0,0,0,0,0,0,0,0,0,0,0,0,0,0,0,0,0,0,0,0,0,0,0,0,0,0,0,0,0,0,0,0,0,0,0,0,0,0,0,0,0,null,null,null,null,null,null,null,null,"（自衛水防組織の活動）"]
[null,null,null,null,"第４条　自衛水防組織の各班は、避難確保計画に基づき情報収集及び避難誘導等の活動を行うものとする。","第４条　自衛水防組織の各班は、避難確保計画に基づき情報収集及び避難誘導等の活動を行うものとする。",0,0,0,0,0,0,0,0,0,0,0,0,0,0,0,0,0,0,0,0,0,0,0,0,0,0,0,0,0,0,0,0,0,0,0,0,0,0,0,0,0,0,0,0,0,0,0,0,0,0,0,0,0,0,0,0,null,null,null,null,null,null,null,null,"第４条　自衛水防組織の各班は、避難確保計画に基づき情報収集及び避難誘導等の活動を行うものとする。"]
[]
[]
[]
[]
[]
[]
[]
[]
[]
[]
[]
[]
[]
[]
[]
[]
[]
[]
[]
[null,null,null,null,null,null,null,null,null,null,null,null,null,null,null,null,null,null,null,null,null,null,null,null,null,null,null,null,null,null,null,null,null,null,null,null,null,null,null,null,null,null,null,null,null,null,null,null,null,null,null,null,null,null,null,null,"別表１",null,null,null,null,null,null,null,null,null,null,null,null,null,null,null,null,null,null,null,null,null,null,null,null,null,null,null,null,null,null,null,null,null,null,null,null,null,null,null,null,null,null,null,null,null,null,null,null,null,null,null,null,null,null,null,null,null,null,null,null,null,null,null,null,null,"記載例"]
[]
[null,null,"自衛水防組織の編成と任務",null,null,null,null,null,null,null,null,null,null,null,null,null,null,null,null,null,null,null,null,null,null,null,null,null,null,null,null,null,null,null,null,null,null,null,null,null,null,null,null,null,null,null,null,null,null,null,null,null,null,null,null,null,null,null,null,null,null,null,null,null,null,null,null,null,"自衛水防組織の編成と任務"]
[]
[]
[null,null," 統括管理者",null,null,null,null,null,null,null,null,null,"(",null,null,null,null,null,null,null,null,null,null,")",null,"(","代行者",null,null,null,null,null,null,null,null,null,null,null,null,null,null,null,")",null,null,null,null,null,null,null,null,null,null,null,null,null,null,null,null,null,null,null,null,null,null,null,null,null," 統括管理者",null,null,null,null,null,null,null,null,null,"(","施設長",null,null,null,null,null,null,null,null,null,")",null,"(","代行者",null,null,null,null,null,"事務長",null,null,null,null,null,null,null,null,null,")"]
[]
[null,null,null,null,null,null,null,null," 総括・情報班",null,null,null,null,null,null,null,"担当者",null,null,null,null,null,null,null,null,null,null,null,null,null,null,null,null,null,null,null,"役割",null,null,null,null,null,null,null,null,null,null,null,null,null,null,null,null,null,null,null,null,null,null,null,null,null,null,null,null,null,null,null,null,null,null,null,null,null," 総括・情報班",null,null,null,null,null,null,null,"担当者",null,null,null,null,null,null,null,null,null,null,null,null,null,null,null,null,null,null,null,"役割"]
[]
[]
[null,null,null,null,null,null,null,null,null,null,null,null,null,null,null,null,"班長",null,null,null,"（",null,null,null,null,null,null,null,null,null,null,null,"）",null,null,null,null,"□",null,"状況の把握",null,null,null,null,null,null,null,null,null,null,null,null,null,null,null,null,null,null,null,null,null,null,null,null,null,null,null,null,null,null,null,null,null,null,null,null,null,null,null,null,null,null,"班長",null,null,null,"（",null,"管理職員",null,null,null,null,null,null,null,null,null,"）",null,null,null,null,"□",null,"状況の把握"]
[null,null,null,null,null,null,null,null,null,null,null,null,null,null,null,null,"班員",null,null,null,"（",null,null,null,"）","名",null,null,null,null,null,null,null,null,null,null,null,"□",null,"洪水予報等の情報の収集",null,null,null,null,null,null,null,null,null,null,null,null,null,null,null,null,null,null,null,null,null,null,null,null,null,null,null,null,null,null,null,null,null,null,null,null,null,null,null,null,null,null,"班員",null,null,null,"（",null,"○",null,"）","名",null,null,null,null,null,null,null,null,null,null,null,"□",null,"洪水予報等の情報の収集"]
[null,null,null,null,null,null,null,null,null,null,null,null,null,null,null,null,"・",null,null,null,null,null,null,null,null,null,null,null,null,null,null,null,null,null,null,null,null,"□",null,"情報内容の記録",null,null,null,null,null,null,null,null,null,null,null,null,null,null,null,null,null,null,null,null,null,null,null,null,null,null,null,null,null,null,null,null,null,null,null,null,null,null,null,null,null,null,"・",null,null,null,"○○○○",null,null,null,null,null,null,null,null,null,null,null,null,null,null,null,null,"□",null,"情報内容の記録"]
[null,null,null,null,null,null,null,null,null,null,null,null,null,null,null,null,"・",null,null,null,null,null,null,null,null,null,null,null,null,null,null,null,null,null,null,null,null,"□",null,"館内放送等による情報伝達",null,null,null,null,null,null,null,null,null,null,null,null,null,null,null,null,null,null,null,null,null,null,null,null,null,null,null,null,null,null,null,null,null,null,null,null,null,null,null,null,null,null,"・",null,null,null,"○○○○",null,null,null,null,null,null,null,null,null,null,null,null,null,null,null,null,"□",null,"館内放送等による情報伝達"]
[null,null,null,null,null,null,null,null,null,null,null,null,null,null,null,null,null,null,null,null,null,null,null,null,null,null,null,null,null,null,null,null,null,null,null,null,null,"□",null,"関係者及び関係機関との連絡",null,null,null,null,null,null,null,null,null,null,null,null,null,null,null,null,null,null,null,null,null,null,null,null,null,null,null,null,null,null,null,null,null,null,null,null,null,null,null,null,null,null,null,null,null,null,null,null,null,null,null,null,null,null,null,null,null,null,null,null,null,null,null,"□",null,"関係者及び関係機関との連絡"]
[]
[]
[null,null,null,null,null,null,null,null," 避難誘導班",null,null,null,null,null,null,null,"担当者",null,null,null,null,null,null,null,null,null,null,null,null,null,null,null,null,null,null,null,"役割",null,null,null,null,null,null,null,null,null,null,null,null,null,null,null,null,null,null,null,null,null,null,null,null,null,null,null,null,null,null,null,null,null,null,null,null,null," 避難誘導班",null,null,null,null,null,null,null,"担当者",null,null,null,null,null,null,null,null,null,null,null,null,null,null,null,null,null,null,null,"役割"]
[]
[]
[null,null,null,null,null,null,null,null,null,null,null,null,null,null,null,null,"班長",null,null,null,"（",null,null,null,null,null,null,null,null,null,null,null,"）",null,null,null,null,"□",null,"避難誘導の実施",null,null,null,null,null,null,null,null,null,null,null,null,null,null,null,null,null,null,null,null,null,null,null,null,null,null,null,null,null,null,null,null,null,null,null,null,null,null,null,null,null,null,"班長",null,null,null,"（",null,"管理職員",null,null,null,null,null,null,null,null,null,"）",null,null,null,null,"□",null,"避難誘導の実施"]
[null,null,null,null,null,null,null,null,null,null,null,null,null,null,null,null,"班員",null,null,null,"（",null,null,null,"）","名",null,null,null,null,null,null,null,null,null,null,null,"□",null,"未避難者、要救助者の確認",null,null,null,null,null,null,null,null,null,null,null,null,null,null,null,null,null,null,null,null,null,null,null,null,null,null,null,null,null,null,null,null,null,null,null,null,null,null,null,null,null,null,"班員",null,null,null,"（",null,"○",null,"）","名",null,null,null,null,null,null,null,null,null,null,null,"□",null,"未避難者、要救助者の確認"]
[null,null,null,null,null,null,null,null,null,null,null,null,null,null,null,null,"・",null,null,null,null,null,null,null,null,null,null,null,null,null,null,null,null,null,null,null,null,null,null,null,null,null,null,null,null,null,null,null,null,null,null,null,null,null,null,null,null,null,null,null,null,null,null,null,null,null,null,null,null,null,null,null,null,null,null,null,null,null,null,null,null,null,"・",null,null,null,"○○○○"]
[null,null,null,null,null,null,null,null,null,null,null,null,null,null,null,null,"・",null,null,null,null,null,null,null,null,null,null,null,null,null,null,null,null,null,null,null,null,null,null,null,null,null,null,null,null,null,null,null,null,null,null,null,null,null,null,null,null,null,null,null,null,null,null,null,null,null,null,null,null,null,null,null,null,null,null,null,null,null,null,null,null,null,"・",null,null,null,"○○○○"]
[]
[]
[]
[]
[]
[]
[null,null,null,null,null,null,null,null,null,null,null,null,null,null,null,null,null,null,null,null,null,null,null,null,null,null,null,null,null,null,null,null,null,null,null,null,null,null,null,null,null,null,null,null,null,null,null,null,null,null,null,null,null,null,null,null,"別表２",null,null,null,null,null,null,null,null,null,null,null,null,null,null,null,null,null,null,null,null,null,null,null,null,null,null,null,null,null,null,null,null,null,null,null,null,null,null,null,null,null,null,null,null,null,null,null,null,null,null,null,null,null,null,null,null,null,null,null,null,null,null,null,null,null,"記載例"]
[]
[null,null,"自衛水防組織装備品リスト",null,null,null,null,null,null,null,null,null,null,null,null,null,null,null,null,null,null,null,null,null,null,null,null,null,null,null,null,null,null,null,null,null,null,null,null,null,null,null,null,null,null,null,null,null,null,null,null,null,null,null,null,null,null,null,null,null,null,null,null,null,null,null,null,null,"自衛水防組織装備品リスト"]
[]
[null,null,null,null,null,null,"　任務",null,null,null,null,null,null,null,null,null,null,null,null,null,null,null,null,null,"　装備品",null,null,null,null,null,null,null,null,null,null,null,null,null,null,null,null,null,null,null,null,null,null,null,null,null,null,null,null,null,null,null,null,null,null,null,null,null,null,null,null,null,null,null,null,null,null,null,"　任務",null,null,null,null,null,null,null,null,null,null,null,null,null,null,null,null,null,"　装備品"]
[]
[null,null,null,null,null,null," 総括・情報班",null,null,null,null,null,null,null,null,null,null,null,null,null,null,null,null,null,"　名簿（施設職員、利用者等）",null,null,null,null,null,null,null,null,null,null,null,null,null,null,null,null,null,null,null,null,null,null,null,null,null,null,null,null,null,null,null,null,null,null,null,null,null,null,null,null,null,null,null,null,null,null,null," 総括・情報班",null,null,null,null,null,null,null,null,null,null,null,null,null,null,null,null,null,"　名簿（施設職員、利用者等）",null,null,null,null,null,null,null,null,null,null,null,null,null,null,null,null,null,0]
[null,null,null,null,null,null," 避難誘導班",null,null,null,null,null,null,null,null,null,null,null,null,null,null,null,null,null,"　様式５避難確保資器材一覧に掲げるもの。",null,null,null,null,null,null,null,null,null,null,null,null,null,null,null,null,null,null,null,null,null,null,null,null,null,null,null,null,null,null,null,null,null,null,null,null,null,null,null,null,null,null,null,null,null,null,null," 避難誘導班",null,null,null,null,null,null,null,null,null,null,null,null,null,null,null,null,null,"　様式５避難確保資器材一覧に掲げるもの。",null,null,null,null,null,null,null,null,null,null,null,null,null,null,null,null,null,0]
[]
[]
[]
[]
[]
[]
[]
[]
[]
[]
[]
[]
[]
[]
[]
[]
[]
[]
[]
[]
[null,null,null,null,null,null,null,null,null,null,null,null,null,null,null,null,null,null,null,null,null,null,null,null,null,null,null,null,null,null,null,null,null,null,null,null,null,null,null,null,null,null,null,null,null,null,null,null,null,null,null,null,null,null,null,null,"別紙１",null,null,null,null,null,null,null,null,null,null,null,null,null,null,null,null,null,null,null,null,null,null,null,null,null,null,null,null,null,null,null,null,null,null,null,null,null,null,null,null,null,null,null,null,null,null,null,null,null,null,null,null,null,null,null,null,null,null,null,null,null,null,null,null,null,"記載例"]
[]
[]
[null,null,null,null,"【施設周辺の避難地図】",null,null,null,null,null,null,null,null,null,null,null,null,null,null,null,null,null,null,null,null,null,null,null,null,null,null,null,null,null,null,null,null,null,null,null,null,null,null,null,null,null,null,null,null,null,null,null,null,null,null,null,null,null,null,null,null,null,null,null,null,null,null,null,null,null,"【施設周辺の避難地図】"]
[null,null,null,null,"　洪水時の避難場所、避難経路は以下のものとする。",null,null,null,null,null,null,null,null,null,null,null,null,null,null,null,null,null,null,null,null,null,null,null,null,null,null,null,null,null,null,null,null,null,null,null,null,null,null,null,null,null,null,null,null,null,null,null,null,null,null,null,null,null,null,null,null,null,null,null,null,null,null,null,null,null,"　洪水時・内水時・高潮時・津波の発生時・土砂災害の発生時の避難場所、避難経路は以下のものとする。"]
[]
[]
[null,null,null,null,null,null,null,null,null,null,"立退き避難",null,null,null,null,null,null,null,null,null,null,null,null,null,null,null,null,null,null,null,null,null,null,null,null,null,null,null,null,null,null,null,null,null,null,null,"屋内安全確保",null,null,null,null,null,null,null,null,null,null,null,null,null,null,null,null,null,null,null,null,null,null,null,null,null,null,null,null,null,"立退き避難",null,null,null,null,null,null,null,null,null,null,null,null,null,null,null,null,null,null,null,null,null,null,null,null,null,null,null,null,null,null,null,null,null,null,null,"屋内安全確保"]
[null,null,null,null,null,null,null,null,null,null,"避難場所１",null,null,null,null,null,null,null,null,null,null,null,null,null,null,null,null,null,"避難場所２",null,null,null,null,null,null,null,null,null,null,null,null,null,null,null,null,null,null,null,null,null,null,null,null,null,null,null,null,null,null,null,null,null,null,null,null,null,null,null,null,null,null,null,null,null,null,null,"避難場所１",null,null,null,null,null,null,null,null,null,null,null,null,null,null,null,null,null,"避難場所２"]
[null,null,null,null,"洪水",null,null,null,null,null,{"$f":"IF(U621<>\"\",U621,\"\")","v":""},null,null,null,null,null,null,null,null,null,null,null,null,null,null,null,null,null,{"$f":"IF(U641<>\"\",U641,\"\")","v":""},null,null,null,null,null,null,null,null,null,null,null,null,null,null,null,null,null,{"$f":"IF(AND(U662<>\"\",U662<>\"指定無\"),U662&AK662&AS662,\"\")","v":"--階"},null,null,null,null,null,null,null,null,null,null,null,null,null,null,null,null,null,null,null,null,null,null,null,"洪水",null,null,null,null,null,"Ａ会（系列グループホーム）",null,null,null,null,null,null,null,null,null,null,null,null,null,null,null,null,null,"Ｃ高校（体育館）",null,null,null,null,null,null,null,null,null,null,null,null,null,null,null,null,null,"本施設2階"]
[null,null,null,null,"内水",null,null,null,null,null,{"$f":"IF(U624<>\"\",U624,\"\")","v":""},null,null,null,null,null,null,null,null,null,null,null,null,null,null,null,null,null,{"$f":"IF(U644<>\"\",U644,\"\")","v":""},null,null,null,null,null,null,null,null,null,null,null,null,null,null,null,null,null,{"$f":"IF(AND(U663<>\"\",U663<>\"指定無\"),U663&AK663&AS663,\"\")","v":""},null,null,null,null,null,null,null,null,null,null,null,null,null,null,null,null,null,null,null,null,null,null,null,"内水",null,null,null,null,null,"Ａ会（系列グループホーム）",null,null,null,null,null,null,null,null,null,null,null,null,null,null,null,null,null,"Ｃ高校（体育館）",null,null,null,null,null,null,null,null,null,null,null,null,null,null,null,null,null,"本施設2階"]
[null,null,null,null,"高潮",null,null,null,null,null,{"$f":"IF(U627<>\"\",U627,\"\")","v":""},null,null,null,null,null,null,null,null,null,null,null,null,null,null,null,null,null,{"$f":"IF(U647<>\"\",U647,\"\")","v":""},null,null,null,null,null,null,null,null,null,null,null,null,null,null,null,null,null,{"$f":"IF(AND(U664<>\"\",U664<>\"指定無\"),U664&AK664&AS664,\"\")","v":""},null,null,null,null,null,null,null,null,null,null,null,null,null,null,null,null,null,null,null,null,null,null,null,"高潮",null,null,null,null,null,"Ａ会（系列グループホーム）",null,null,null,null,null,null,null,null,null,null,null,null,null,null,null,null,null,"Ｃ高校（体育館）",null,null,null,null,null,null,null,null,null,null,null,null,null,null,null,null,null,"本施設2階"]
[null,null,null,null,"津波",null,null,null,null,null,{"$f":"IF(U630<>\"\",U630,\"\")","v":""},null,null,null,null,null,null,null,null,null,null,null,null,null,null,null,null,null,{"$f":"IF(U650<>\"\",U650,\"\")","v":""},null,null,null,null,null,null,null,null,null,null,null,null,null,null,null,null,null,{"$f":"IF(AND(U665<>\"\",U665<>\"指定無\"),U665&AK665&AS665,\"\")","v":""},null,null,null,null,null,null,null,null,null,null,null,null,null,null,null,null,null,null,null,null,null,null,null,"津波",null,null,null,null,null,"Ｂ神社",null,null,null,null,null,null,null,null,null,null,null,null,null,null,null,null,null,"Ｄ小学校（校舎2階以上）",null,null,null,null,null,null,null,null,null,null,null,null,null,null,null,null,null,"指定無"]
[null,null,null,null,"土砂",null,null,null,null,null,{"$f":"IF(U633<>\"\",U633,\"\")","v":""},null,null,null,null,null,null,null,null,null,null,null,null,null,null,null,null,null,{"$f":"IF(U653<>\"\",U653,\"\")","v":""},null,null,null,null,null,null,null,null,null,null,null,null,null,null,null,null,null,{"$f":"IF(AND(U666<>\"\",U666<>\"指定無\"),U666&AK666&AS666,\"\")","v":""},null,null,null,null,null,null,null,null,null,null,null,null,null,null,null,null,null,null,null,null,null,null,null,"土砂",null,null,null,null,null,"Ｃ高校（体育館）",null,null,null,null,null,null,null,null,null,null,null,null,null,null,null,null,null,"Ｃ高校（体育館）",null,null,null,null,null,null,null,null,null,null,null,null,null,null,null,null,null,"本施設（斜面の反対側）2階"]
[]
[]
[]
[]
[]
[]
[]
[]
[]
[]
[]
[]
[]
[]
[]
[]
[]
[]
[]
[]
[]
[]
[]
[]
[]
[]
[]
[]
[]
[null,null,null,null,"※施設の位置、避難場所の位置、避難経路、移動手段（徒歩、自動車等）を記載",null,null,null,null,null,null,null,null,null,null,null,null,null,null,null,null,null,null,null,null,null,null,null,null,null,null,null,null,null,null,null,null,null,null,null,null,null,null,null,null,null,null,null,null,null,null,null,null,null,null,null,null,null,null,null,null,null,null,null,null,null,null,null,null,null,"※施設の位置、避難場所の位置、避難経路、移動手段（徒歩、自動車等）を記載"]
[null,null,null,null,"避難場所については、避難訓練等により避難できることを確かめ、必要に応じ見直しするものとする。",null,null,null,null,null,null,null,null,null,null,null,null,null,null,null,null,null,null,null,null,null,null,null,null,null,null,null,null,null,null,null,null,null,null,null,null,null,null,null,null,null,null,null,null,null,null,null,null,null,null,null,null,null,null,null,null,null,null,null,null,null,null,null,null,null,"避難場所については、避難訓練等により避難できることを確かめ、必要に応じ見直しするものとする。"]